Workbook

Sheet Presentación (hidden)
B2: Cierre Anual
B3: Versión: | C3: 2013.0.01 | G3: Fecha de Modificación: | H3: 42692
B5: dSoft, S.A. de C.V.
E21: www.dsoft.mx
C26: Nota: Ver las indicaciones en los comentarios de cada hoja.

Sheet Empresa
C4: Datos Generales
C6: Cierre Anual
C8: Empresa | D8: EMPRESA EJEMPLO
C9: RFC
C10: Representante Legal
C11: RFC del Representante
C12: CURP del Representante
C13: Ejercicio | D13: 2024

Sheet Balanzas (hidden)
A1: =Empresa!$D$8 -> EMPRESA EJEMPLO
A2: Concentrado de saldos finales
A4: ="Ejercicio "&Empresa!D13 -> Ejercicio 2024 | R4: COMPROBACIÓN: | S4: =IF(Balance!C74=0,"¡¡¡¡CUADRADO!!!!",Balance!C74) -> ¡¡¡¡CUADRADO!!!!
P6: C L A S I F I C A C I O N E S
A7: Cuenta | B7: Nombre | C7: S.I. | D7: Enero | E7: Febrero | F7: Marzo | G7: Abril | H7: Mayo | I7: Junio | J7: Julio | K7: Agosto | L7: Septiembre | M7: Octubre | N7: Noviembre | O7: Diciembre | P7: Ingresos | Q7: Egresos | R7: Activos | S7: Pasivo y Capital | T7: Ajuste Anual | U7: Ingresos Contables No Fiscales | V7: Deducciones Contables No Fiscales | W7: Otros Datos Fiscales | X7: Algunas Deducciones Autorizadas | Y7: CUENTA Y NOMBRE
Y8: =A8&" "&B8 -> 
B9: CAJA | D9: 10000 | E9: 10000 | F9: 10000 | G9: 10000 | H9: 10000 | I9: 10000 | J9: 10000 | K9: 10000 | L9: 10000 | M9: 10000 | N9: 10000 | O9: 10000 | R9: Caja y Bancos Nacionales | Y9: =A9&" "&B9 -> CAJA | Z9: =P9&Q9&R9&S9&T9&U9&W9&X9 -> Caja y Bancos Nacionales
B10: BANCOS | D10: 77000 | E10: 97000 | F10: 34000 | G10: 30000 | H10: 56000 | I10: 36000 | J10: 397000 | K10: 237510.67 | L10: 216883.77 | M10: 552567.21 | N10: 171699.94 | O10: 396950.92 | R10: Caja y Bancos Nacionales | T10: Bancos (M.N.) | Y10: BANCOS | Z10: Caja y Bancos NacionalesBancos (M.N.)
B11: CLIENTES | D11: 536001.6007 | E11: 687793.2662 | F11: 408291.6117 | G11: 622749.9479 | H11: 586708.29 | I11: 425666.6307 | J11: 745155.1703 | K11: 981261.0592 | L11: 1002796.69 | M11: 1023502.312 | N11: 1025879.203 | O11: 784081.71 | R11: Ctas. y Doctos. por Cobrar (Nac. Partes No Relac.) | T11: Clientes (M.N.) | Y11: CLIENTES | Z11: Ctas. y Doctos. por Cobrar (Nac. Partes No Relac.)Clientes (M.N.)
B12: DEUDORES DIVERSOS | R12: Ctas. y Doctos. por Cobrar (Nac. Partes No Relac.) | T12: Deudores Div. (M.N.) | Y12: DEUDORES DIVERSOS | Z12: Ctas. y Doctos. por Cobrar (Nac. Partes No Relac.)Deudores Div. (M.N.)
B13: FUNCIONARIOS Y EMPLEADOS (1) | D13: 1000 | E13: 2000 | F13: 1000 | G13: 1000 | H13: 1000 | I13: 1000 | J13: 1000 | K13: 2000 | L13: 1000 | M13: 1000 | N13: 1000 | O13: 1000 | R13: Ctas. y Doctos. por Cobrar (Nac. Partes No Relac.) | Y13: FUNCIONARIOS Y EMPLEADOS (1)
B14: PERSONAS MORALES | D14: 2000 | E14: 1000 | F14: 1000 | G14: 1000 | H14: 1000 | I14: 1000 | J14: 2000 | K14: 1000 | L14: 1000 | M14: 1000 | N14: 1000 | O14: 1000 | R14: Ctas. y Doctos. por Cobrar (Nac. Partes No Relac.) | T14: Deudores Div. (M.N.) | Y14: PERSONAS MORALES
B15: INVENTARIOS | C15: 1500000 | D15: 600000 | E15: 658500 | F15: 195000 | G15: 201000 | H15: 232000 | I15: 222014 | J15: 232000 | K15: 252000 | L15: 475096.96 | M15: 500000 | N15: 1000000 | O15: 490177.21 | R15: Inventarios | Y15: INVENTARIOS | Z15: Inventarios
B16: IVA PENDIENTE DE ACREDITAR | D16: 7500 | E16: 7500 | F16: 7500 | G16: 7500 | H16: 7500 | I16: 15000 | J16: 110603.4483 | K16: 108189.6552 | L16: 112686.2069 | M16: 111431.0359 | N16: 119844.1324 | O16: 85794.72 | R16: Otros Activos Circulantes | Y16: IVA PENDIENTE DE ACREDITAR | Z16: Otros Activos Circulantes
B17: IVA A FAVOR | D17: 38255.9 | E17: 0 | F17: 0 | G17: 0 | H17: 0 | I17: 0 | J17: 0 | K17: 0 | L17: 0 | M17: 0 | N17: 0 | O17: 0 | R17: Contribuciones a Favor | T17: Impuestos a Favor | Y17: IVA A FAVOR
B18: IMPUESTOS ANTICIPADOS (I.S.R.) | D18: 24750 | E18: 50000 | F18: 73750 | G18: 98000 | H18: 123750 | I18: 148500 | J18: 510500 | K18: 532000 | L18: 559600 | M18: 585500 | N18: 654128 | O18: =329844-329844 -> 0 | R18: Otros Activos Circulantes | Y18: IMPUESTOS ANTICIPADOS (I.S.R.) | Z18: Otros Activos Circulantes
D19: 170000 | E19: 170000 | F19: 170000 | G19: 170000 | H19: 170000 | I19: 170000 | J19: 170000 | K19: 170000 | L19: 170000 | M19: 170000 | N19: 170000 | R19: Contribuciones a Favor | Z19: Contribuciones a Favor
B20: TERRENO | O20: 520000 | R20: Terrenos | Y20: TERRENO
B21: EDIFICIO | O21: 2000000 | R21: Construcciones | Y21: EDIFICIO | Z21: Construcciones
B22: EQUIPO DE TRANSPORTE | O22: 1023000 | R22: Equipo de Transporte | Y22: EQUIPO DE TRANSPORTE | Z22: Equipo de Transporte
B23: EQUIPO DE OFICINA | O23: 500000 | R23: Mobiliario y Equipo de Oficina | Y23: EQUIPO DE OFICINA | Z23: Mobiliario y Equipo de Oficina
B24: GASTOS DE INSTALACIÓN | O24: 120000 | R24: Cargos y Gastos Diferidos | Y24: GASTOS DE INSTALACIÓN | Z24: Cargos y Gastos Diferidos
B25: DEP. ACUM. EDIFICIO | O25: 900000 | R25: Depreciación Acumulada | Y25: DEP. ACUM. EDIFICIO | Z25: Depreciación Acumulada
B26: DEP. ACUM. EQUIPO TRANSP. | O26: 695395.8333 | R26: Depreciación Acumulada | Y26: DEP. ACUM. EQUIPO TRANSP. | Z26: Depreciación Acumulada
B27: DEP. ACUM. EQUIPO DE OFC. | O27: 396666.6667 | R27: Depreciación Acumulada | Y27: DEP. ACUM. EQUIPO DE OFC. | Z27: Depreciación Acumulada
B28: AMORTIZACION GTOS. INST. | O28: 53000 | R28: Amortización Acumulada | Y28: AMORTIZACION GTOS. INST. | Z28: Amortización Acumulada
B30: PROVEEDORES M.N. | D30: 225750 | E30: 355809.64 | F30: 286776.45 | G30: 362000 | H30: 383542.95 | I30: 374959.43 | J30: 747500 | K30: 730000 | L30: 762600 | M30: 753500.01 | N30: 814494.96 | O30: 301851.72 | S30: Ctas. y Doctos. por Pagar (Nac. Partes No Relac.) | T30: Proveedores (M.N.) | Y30: PROVEEDORES M.N. | Z30: Ctas. y Doctos. por Pagar (Nac. Partes No Relac.)Proveedores (M.N.)
B31: PROVEEDORES M.E. | D31: 0 | E31: 0 | F31: 0 | G31: 0 | H31: 0 | I31: 0 | K31: 172366.55 | L31: 176464.49 | M31: 186364.13 | N31: 186666.67 | O31: 160945.53 | S31: Ctas. y Doctos. por Pagar (Extranj. Partes No Relac.) | Y31: PROVEEDORES M.E. | Z31: Ctas. y Doctos. por Pagar (Extranj. Partes No Relac.)
B32: ACREEDORES DIVERSOS (4) | D32: 0 | E32: 0 | F32: 0 | G32: 0 | H32: 0 | I32: 0 | N32: 58000 | O32: 239316.83 | S32: Ctas. y Doctos. por Pagar (Nac. Partes No Relac.) | Y32: ACREEDORES DIVERSOS (4) | Z32: Ctas. y Doctos. por Pagar (Nac. Partes No Relac.)
B33: PRESTAMOS BANCARIOS (2) | D33: 1000000 | E33: 1000000 | F33: 1000000 | G33: 1000000 | H33: 1000000 | I33: 1000000 | J33: 1672348.17 | K33: 1683919.3 | L33: 1688140.03 | M33: 1676484.69 | N33: 1696607.23 | O33: 389671.49 | S33: Ctas. y Doctos. por Pagar (Nac. Partes No Relac.) | T33: Doctos. Por Pagar (M.N.) | Y33: PRESTAMOS BANCARIOS (2)
B34: IMPUESTOS POR PAGAR (I.S.R.) | D34: 865010.98 | E34: 865010.98 | F34: 0 | G34: 0 | H34: 0 | I34: 0 | J34: 0 | K34: 0 | L34: 0 | M34: 0 | N34: 0 | O34: =361358-329844 -> 31514 | S34: Contribuciones Por Pagar | Y34: IMPUESTOS POR PAGAR (I.S.R.) | Z34: Contribuciones Por Pagar
B35: P.T.U. POR PAGAR | C35: 43800 | D35: 430800 | E35: 430800 | F35: 430800 | G35: 430800 | H35: 0 | I35: 0 | J35: 0 | K35: 0 | L35: 0 | M35: 0 | N35: 0 | O35: 123981 | S35: Otros Pasivos | Y35: P.T.U. POR PAGAR | Z35: Otros Pasivos
B36: I.V.A. PENDIENTE DE CAUSAR | D36: 82758.62069 | E36: 90827.58621 | F36: 26896.55172 | G36: 27724.13793 | H36: 32000 | I36: 30622.62069 | J36: 88138.20218 | K36: 112556.8878 | L36: 115363.5489 | M36: 118360.4489 | N36: 119145.084 | O36: 73748.92092 | S36: Otros Pasivos | Y36: I.V.A. PENDIENTE DE CAUSAR | Z36: Otros Pasivos
B37: I.V.A. POR PAGAR | D37: 0 | E37: 190540.44 | F37: 110348.56 | G37: 208354.92 | H37: 142469.2 | I37: 185155.68 | J37: 102629.46 | K37: 139527.04 | L37: 167709.18 | M37: 196991.0575 | N37: 219492.919 | O37: 192548.95 | S37: Contribuciones Por Pagar | T37: Impuestos por Pagar | Y37: I.V.A. POR PAGAR | Z37: Contribuciones Por PagarImpuestos por Pagar
B38: OTRAS CONTRIBUCIONES: | S38: Contribuciones Por Pagar | Y38: OTRAS CONTRIBUCIONES: | Z38: Contribuciones Por Pagar
B39: CUOTAS I.M.S.S. INFONAVIT S.A.R. (3) | D39: 45000 | E39: 44500 | F39: 48115 | G39: 47125 | H39: 94250 | I39: 47600 | J39: 45000 | K39: 40500 | L39: 40500 | M39: 40500 | N39: 40500 | O39: 48500 | S39: Contribuciones Por Pagar | T39: Impuestos por Pagar | Y39: CUOTAS I.M.S.S. INFONAVIT S.A.R. (3)
B40: 3% S. / NÓMINA (3) | D40: 20038 | E40: 22000 | F40: 21000 | G40: 21047.53 | H40: 42105.53 | I40: 21515 | J40: 20000 | K40: 17198 | L40: 17198 | M40: 17198 | N40: 17198 | O40: 25750 | S40: Contribuciones Por Pagar | T40: Impuestos por Pagar | Y40: 3% S. / NÓMINA (3) | Z40: Contribuciones Por PagarImpuestos por Pagar
B41: I.V.A. RETENIDO | D41: 0 | E41: 0 | F41: 0 | G41: 0 | H41: 0 | I41: 0 | J41: 0 | K41: 0 | L41: 0 | M41: 0 | N41: 0 | O41: 7040 | S41: Contribuciones Por Pagar | Y41: I.V.A. RETENIDO
B42: CAPITAL SOCIAL | D42: 700000 | E42: 700000 | F42: 700000 | G42: 700000 | H42: 700000 | I42: 700000 | J42: 700000 | K42: 700000 | L42: 700000 | M42: 700000 | N42: 700000 | O42: 700000 | S42: Capital Social (Aportaciones) | Y42: CAPITAL SOCIAL | Z42: Capital Social (Aportaciones)
B43: RESULTADOS EJER. ANT. | D43: 273078.08 | E43: 283286.41 | F43: 283286.41 | G43: 283286.41 | H43: 283286.41 | I43: 283286.41 | J43: 283286.41 | K43: 283286.41 | L43: 283286.41 | M43: 283286.41 | N43: 283286.41 | O43: 1236920.32 | S43: Utilidades Acumuladas | Y43: RESULTADOS EJER. ANT. | Z43: Utilidades Acumuladas
B44: UTILIDAD DEL EJERCICIO | D44: -2844.81 | E44: -145002.63 | F44: 124026.97 | G44: 168349.45 | H44: 594470.87 | I44: 446937.33 | J44: 556981.39 | K44: 528961.38 | L44: 688051.98 | M44: 1048461.65 | N44: 1060201.67 | Y44: UTILIDAD DEL EJERCICIO
B45: APORT. P. / FUTUROS AUMENTOS (1) | D45: 100000 | E45: 100000 | F45: 100000 | G45: 100000 | H45: 100000 | I45: 100000 | J45: 100000 | K45: 100000 | L45: 100000 | M45: 100000 | N45: 100000 | O45: 100000 | S45: Aportaciones para Aumentos de Capital (Capital) | T45: Otras Deudas (M.N.) | Y45: APORT. P. / FUTUROS AUMENTOS (1) | Z45: Aportaciones para Aumentos de Capital (Capital)Otras Deudas (M.N.)
B47: VENTAS | O47: 9185656 | P47: Ventas o Servicios (Nac. Partes No Relac.) | Y47: VENTAS | Z47: Ventas o Servicios (Nac. Partes No Relac.)
B48: DEVOLUCIONES | O48: 600000 | P48: Devol., Desc. o Bonific. (Nac. Partes No Relac.) | Y48: DEVOLUCIONES | Z48: Devol., Desc. o Bonific. (Nac. Partes No Relac.)
B49: COSTO DE VENTAS | O49: 1906628.278 | Q49: Costo de las Mercancías | Y49: COSTO DE VENTAS
B50: DEPRECIACION DE EDIFICIO | O50: 100000 | Q50: Gastos de Operación (Partes No Relac.) | V50: Deprec. y Amortiz. Contab. | Y50: DEPRECIACION DE EDIFICIO | Z50: Gastos de Operación (Partes No Relac.)
B51: DEPRECIACION MOBILIARIO Y EQUIPO | O51: 43333.33333 | Q51: Gastos de Operación (Partes No Relac.) | V51: Deprec. y Amortiz. Contab. | Y51: DEPRECIACION MOBILIARIO Y EQUIPO | Z51: Gastos de Operación (Partes No Relac.)
B52: DEPRECIACION DE EQUIPO DE TRANSPORTE | O52: 129083.3333 | Q52: Gastos de Operación (Partes No Relac.) | V52: Deprec. y Amortiz. Contab. | Y52: DEPRECIACION DE EQUIPO DE TRANSPORTE | Z52: Gastos de Operación (Partes No Relac.)
B53: AMORTIZACION DE GASTOS DE INSTALACION | O53: 6000 | Q53: Gastos de Operación (Partes No Relac.) | V53: Deprec. y Amortiz. Contab. | Y53: AMORTIZACION DE GASTOS DE INSTALACION | Z53: Gastos de Operación (Partes No Relac.)
B54: LUZ | O54: 26000 | Q54: Gastos de Operación (Partes No Relac.) | Y54: LUZ
B55: TELEFONO | O55: 38000 | Q55: Gastos de Operación (Partes No Relac.) | Y55: TELEFONO | Z55: Gastos de Operación (Partes No Relac.)
B56: MANTENIMIENTO EQUIPO DE TRANSPORTE | O56: 45400 | Q56: Gastos de Operación (Partes No Relac.) | Y56: MANTENIMIENTO EQUIPO DE TRANSPORTE
B57: MANTENIMIENTO MOBILIARIO | O57: 10000 | Q57: Gastos de Operación (Partes No Relac.) | Y57: MANTENIMIENTO MOBILIARIO | Z57: Gastos de Operación (Partes No Relac.)
B58: PRIMAS DE SEGUROS (INCENDIO) DEL LOCAL | O58: 96000 | Q58: Gastos de Operación (Partes No Relac.) | X58: Seguros y Fianzas | Y58: PRIMAS DE SEGUROS (INCENDIO) DEL LOCAL | Z58: Gastos de Operación (Partes No Relac.)Seguros y Fianzas
B59: PAPELERIA | O59: 33042 | Q59: Gastos de Operación (Partes No Relac.) | Y59: PAPELERIA | Z59: Gastos de Operación (Partes No Relac.)
B60: FLETES | O60: 76000 | Q60: Gastos de Operación (Partes No Relac.) | X60: Fletes (Pers. Físicas) | Y60: FLETES | Z60: Gastos de Operación (Partes No Relac.)Fletes (Pers. Físicas)
B61: GASTOS DE REPRESENTACION | O61: 24000 | Q61: Gastos de Operación (Partes No Relac.) | V61: Gastos que no Reúnen Req. Fisc. | Y61: GASTOS DE REPRESENTACION | Z61: Gastos de Operación (Partes No Relac.)
B62: GASTOS DE VIAJE | O62: 70252 | Q62: Gastos de Operación (Partes No Relac.) | Y62: GASTOS DE VIAJE | Z62: Gastos de Operación (Partes No Relac.)
B63: AGUINALDOS Y GRATIFICACIONES | O63: =415000-20862 -> 394138 | Q63: Gastos de Operación (Partes No Relac.) | X63: Sueldos y Salarios | Y63: AGUINALDOS Y GRATIFICACIONES | Z63: Gastos de Operación (Partes No Relac.)Sueldos y Salarios
B64: PRIMAS VACACIONALES | O64: 250000 | Q64: Gastos de Operación (Partes No Relac.) | X64: Sueldos y Salarios | Y64: PRIMAS VACACIONALES | Z64: Gastos de Operación (Partes No Relac.)Sueldos y Salarios
Q65: Gastos de Operación (Partes No Relac.)
B66: DIVERSOS | O66: 21042 | Q66: Gastos de Operación (Partes No Relac.) | Y66: DIVERSOS | Z66: Gastos de Operación (Partes No Relac.)
B67: CUENTAS INCOBRABLES (REUNE REQ. FISCALES.) | O67: 126943.2226 | Q67: Gastos de Operación (Partes No Relac.) | Y67: CUENTAS INCOBRABLES (REUNE REQ. FISCALES.) | Z67: Gastos de Operación (Partes No Relac.)
B68: OTROS GASTOS (SIN COMPROBANTES) | O68: 95044 | Q68: Gastos de Operación (Partes No Relac.) | V68: Gastos que no Reúnen Req. Fisc. | Y68: OTROS GASTOS (SIN COMPROBANTES) | Z68: Gastos de Operación (Partes No Relac.)
B69: SUELDOS DE EMPLEADOS DE CONFIANZA | O69: 1739700 | Q69: Gastos de Operación (Partes No Relac.) | X69: Sueldos y Salarios | Y69: SUELDOS DE EMPLEADOS DE CONFIANZA | Z69: Gastos de Operación (Partes No Relac.)Sueldos y Salarios
B70: SUELDOS DE TRABAJADORES | O70: 1273063 | Q70: Gastos de Operación (Partes No Relac.) | X70: Sueldos y Salarios | Y70: SUELDOS DE TRABAJADORES | Z70: Gastos de Operación (Partes No Relac.)Sueldos y Salarios
B71: PUBLICIDAD Y PROPAGANDA | O71: 225000 | Q71: Gastos de Operación (Partes No Relac.) | Y71: PUBLICIDAD Y PROPAGANDA | Z71: Gastos de Operación (Partes No Relac.)
B72: SEGURO SOCIAL (CUOTAS PATRONALES) | N72: 256626.38 | O72: 181626.38 | Q72: Gastos de Operación (Partes No Relac.) | X72: SAR, INFONAVIT y Jubilaciones | Y72: SEGURO SOCIAL (CUOTAS PATRONALES)
B73: PARTE EXENTA NO DEDUCIBLE | N73: 296904.38 | O73: 39863.05 | Q73: Gastos de Operación (Partes No Relac.) | V73: Gastos que no Reúnen Req. Fisc. | Y73: =A73&" "&B73 -> PARTE EXENTA NO DEDUCIBLE | Z73: =P73&Q73&R73&S73&T73&U73&W73&X73 -> Gastos de Operación (Partes No Relac.)
B74: INFONAVIT | N74: 296904.38 | O74: 196904.38 | Q74: Gastos de Operación (Partes No Relac.) | X74: SAR, INFONAVIT y Jubilaciones | Y74: INFONAVIT | Z74: Gastos de Operación (Partes No Relac.)SAR, INFONAVIT y Jubilaciones
B75: SEGURO SOCIAL CUOTA OBRERA (NO S.M.G.) | O75: 102420.38 | Q75: Gastos de Operación (Partes No Relac.) | Y75: SEGURO SOCIAL CUOTA OBRERA (NO S.M.G.) | Z75: Gastos de Operación (Partes No Relac.)
B76: COMBUSTIBLE Y LUBRICANTES | O76: 32911 | Q76: Gastos de Operación (Partes No Relac.) | Y76: COMBUSTIBLE Y LUBRICANTES | Z76: Gastos de Operación (Partes No Relac.)
B77: HONORARIOS (PAGADOS A PERSONAS FÍSICAS) | O77: 59000 | Q77: Gastos de Operación (Partes No Relac.) | X77: Honorarios (Pers. Físicas) | Y77: HONORARIOS (PAGADOS A PERSONAS FÍSICAS)
B78: ARRENDAMIENTO DE OFICINAS Y BODEGAS (PERSONAS MORALES) | O78: 42000 | Q78: Gastos de Operación (Partes No Relac.) | X78: Arrendamiento (Pers. Físicas) | Y78: ARRENDAMIENTO DE OFICINAS Y BODEGAS (PERSONAS MORALES) | Z78: Gastos de Operación (Partes No Relac.)Arrendamiento (Pers. Físicas)
B79: ATENCION A CLIENTES | O79: 16300 | Q79: Gastos de Operación (Partes No Relac.) | Y79: ATENCION A CLIENTES | Z79: Gastos de Operación (Partes No Relac.)
B80: ROPA DE TRABAJO PERSONAL OBRERO | O80: 2320 | Q80: Gastos de Operación (Partes No Relac.) | Y80: ROPA DE TRABAJO PERSONAL OBRERO | Z80: Gastos de Operación (Partes No Relac.)
B81: FONDO DE AHORRO | O81: 2400 | Q81: Gastos de Operación (Partes No Relac.) | X81: Sueldos y Salarios | Y81: FONDO DE AHORRO | Z81: Gastos de Operación (Partes No Relac.)Sueldos y Salarios
B82: DESPENSA (VALES) | O82: 5200 | Q82: Gastos de Operación (Partes No Relac.) | X82: Sueldos y Salarios | Y82: DESPENSA (VALES) | Z82: Gastos de Operación (Partes No Relac.)Sueldos y Salarios
B83: MULTAS | O83: 83906.27 | Q83: Gastos de Operación (Partes No Relac.) | V83: Gastos que no Reúnen Req. Fisc. | Y83: MULTAS
B84: SERVICIO DE LIMPIEZA DE OFICINAS | O84: 15889 | Q84: Gastos de Operación (Partes No Relac.) | Y84: SERVICIO DE LIMPIEZA DE OFICINAS | Z84: Gastos de Operación (Partes No Relac.)
B85: IMPUESTOS LOCALES | O85: 24120 | Q85: Gastos de Operación (Partes No Relac.) | X85: Contribuciones (Excepto: ISR, IMPAC, IVA, IEPS) | Y85: IMPUESTOS LOCALES
B86: CAPACITACIÓN | O86: 11232 | Q86: Gastos de Operación (Partes No Relac.) | Y86: CAPACITACIÓN | Z86: Gastos de Operación (Partes No Relac.)
B87: ACTUALIZACION DE CONTRIBUCIONES OMITIDAS | O87: 3558 | Q87: Gastos de Operación (Partes No Relac.) | V87: Gastos que no Reúnen Req. Fisc. | Y87: ACTUALIZACION DE CONTRIBUCIONES OMITIDAS
B88: SAR | N88: 120214.38 | O88: 12021 | Q88: Gastos de Operación (Partes No Relac.) | X88: SAR, INFONAVIT y Jubilaciones | Y88: SAR | Z88: Gastos de Operación (Partes No Relac.)SAR, INFONAVIT y Jubilaciones
B89: SERVICIOS ADMINISTRATIVOS Y CONTABLES | O89: 225998.95 | Q89: Gastos de Operación (Partes No Relac.) | Y89: SERVICIOS ADMINISTRATIVOS Y CONTABLES | Z89: Gastos de Operación (Partes No Relac.)
B90: IVA NO ACREDITABLE Y NO DEDUCIBLE | O90: 38550 | Q90: Gastos de Operación (Partes No Relac.) | V90: Gastos que no Reúnen Req. Fisc. | Y90: IVA NO ACREDITABLE Y NO DEDUCIBLE | Z90: Gastos de Operación (Partes No Relac.)
B92: INTERESESES DEVENGADOS A FAVOR | O92: 20000 | P92: Int. a Favor (Nac. Partes No Relac.) | Y92: INTERESESES DEVENGADOS A FAVOR | Z92: Int. a Favor (Nac. Partes No Relac.)
B93: UTILIDAD POR FLUCTUACION CAMBIARIA | O93: 11155.39429 | P93: Result. Por Posic. Monet. Fav. (Partes No Relac.) | Y93: UTILIDAD POR FLUCTUACION CAMBIARIA | Z93: Result. Por Posic. Monet. Fav. (Partes No Relac.)
B94: INTERESES DEVENGADOS A CARGO | O94: 29814 | Q94: Int. a Cargo (Nac. Partes No Relac.) | Y94: INTERESES DEVENGADOS A CARGO | Z94: Int. a Cargo (Nac. Partes No Relac.)
B95: PERDIDA CAMBIARIA | O95: 21615.51583 | Q95: Pérdida Camb. (Partes No Relac.) | Y95: PERDIDA CAMBIARIA | Z95: Pérdida Camb. (Partes No Relac.)
B97: IMPUESTO SOBRE LA RENTA | O97: 361358 | Q97: ISR | Y97: IMPUESTO SOBRE LA RENTA
B98: P.T.U. | O98: 123981 | Q98: PTU | Y98: P.T.U.
Y137: =A137&" "&B137 ->  | Z137: =P137&Q137&R137&S137&T137&U137&W137&X137 -> 
Y201: =A201&" "&B201 ->  | Z201: =P201&Q201&R201&S201&T201&U201&W201&X201 -> 
Y265: =A265&" "&B265 ->  | Z265: =P265&Q265&R265&S265&T265&U265&W265&X265 -> 
Y329: =A329&" "&B329 ->  | Z329: =P329&Q329&R329&S329&T329&U329&W329&X329 -> 
Y393: =A393&" "&B393 -> 
Y457: =A457&" "&B457 -> 
Y521: =A521&" "&B521 -> 
Y585: =A585&" "&B585 -> 
Y649: =A649&" "&B649 -> 
Y713: =A713&" "&B713 -> 
Y777: =A777&" "&B777 -> 
Y841: =A841&" "&B841 -> 
Y905: =A905&" "&B905 -> 
Y969: =A969&" "&B969 -> 
... 24 more rows

Sheet Resultados (hidden)
B1: =Empresa!$D$8 -> EMPRESA EJEMPLO | G1: =B1 -> EMPRESA EJEMPLO
B2: ="Estado de Resultados del ejercicio "&Empresa!$D$13 -> Estado de Resultados del ejercicio 2024 | G2: Notas o comentarios
B4: Concepto | C4: Relacionadas | D4: No Relacionadas | E4: Total
B6: VENTAS Y/O SERVICIOS NACIONALES | E6: =SUM(C6:D6) -> 0
B7: VENTAS Y/O SERVICIOS EXTRANJEROS | E7: =SUM(C7:D7) -> 0
B8: DEVOLUCIONES, DESCUENTOS Y BONIFICACIONES SOBRE VENTAS NACIONALES | E8: =SUM(C8:D8) -> 0
B9: DEVOLUCIONES, DESCUENTOS Y BONIFICACIONES SOBRE VENTAS AL EXTRANJERO | E9: =SUM(C9:D9) -> 0
B10: INGRESOS NETOS | E10: =E6+E7-E8-E9 -> 0
B11: INVENTARIO INICIAL
B12: COMPRAS NETAS NACIONALES | D12: =E12-C12 -> 0 | E12: =E15+E14-E11-C13-D13 -> 0
B13: COMPRAS NETAS DE IMPORTACIÓN | E13: =C13+D13 -> 0
B14: INVENTARIO FINAL
B15: COSTO DE MERCANCIAS
B16: MANO DE OBRA | C16: 0 | D16: 0 | E16: =SUM(C16:D16) -> 0
B17: MAQUILAS | C17: 0 | D17: 0 | E17: 0
B18: GASTOS INDIRECTOS DE FABRICACIÓN | C18: 0 | D18: 0 | E18: 0
B19: COSTO DE VENTAS Y/O SERVICIOS | E19: =E15+E16+E17+E18 -> 0
B20: UTILIDAD BRUTA | E20: =IF(E10-E19>0,E10-E19,0) -> 0
B21: PÉRDIDA BRUTA | E21: =IF(E10-E19<0,E19-E10,0) -> 0
B22: GASTOS DE OPERACIÓN | E22: =SUM(C22:D22) -> 0
B23: UTILIDAD DE OPERACIÓN | E23: =IF(E20-E21-E22>0,E20-E21-E22,0) -> 0
B24: PÉRDIDA DE OPERACIÓN | E24: =IF(E20-E21-E22<0,E22+E21-E20,0) -> 0
B25: INTERESES DEVENGADOS A FAVOR NACIONALES | E25: =SUM(C25:D25) -> 0
B26: INTERESES DEVENGADOS A FAVOR EN EL EXTRANJERO | E26: 0
B27: INTERESES MORATORIOS A FAVOR NACIONALES | E27: 0
B28: INTERESES MORATORIOS A FAVOR EN EL EXTRANJERO | E28: 0
B29: GANANCIA CAMBIARIA | E29: 0
B30: INTERESES DEVENGADOS A CARGO NACIONALES | E30: 0
B31: INTERESES DEVENGADOS A CARGO EN EL EXTRANJERO | E31: 0
B32: INTERESES MORATORIOS A CARGO NACIONALES | E32: 0
B33: INTERESES MORATORIOS A CARGO EN EL EXTRANJERO | E33: 0
B34: PERDIDA CAMBIARIA | E34: 0
B35: RESULTADO POR POSICIÓN MONETARIA FAVORABLE | E35: 0
B36: RESULTADO POR POSICIÓN MONETARIA DESFAVORABLE | E36: 0
B37: OTRAS OPERACIONES FINANCIERAS NACIONALES | E37: 0
B38: OTRAS OPERACIONES FINANCIERAS EXTRANJERAS | E38: 0
B39: OTRAS OPERACIONES FINANCIERAS | E39: =E37+E38 -> 0
B40: RESULTADO INTEGRAL DE FINANCIAMIENTO | E40: =SUM(E25:E29,E35,E39)-SUM(E30:E34,E36) -> 0
B41: OTROS GASTOS NACIONALES | E41: 0
B42: OTROS GASTOS EXTRANJEROS | E42: 0
B43: OTROS GASTOS | E43: =+E41+E42 -> 0
B44: OTROS PRODUCTOS NACIONALES
B45: OTROS PRODUCTOS EXTRANJEROS
B46: OTROS PRODUCTOS | E46: =+E44+E45 -> 0
B47: INGRESOS POR PARTIDAS DISCONTINUAS Y EXTRAORDINARIAS | E47: 0
B48: GASTOS POR PARTIDAS DISCONTINUAS Y EXTRAORDINARIAS | E48: 0
B49: UTILIDAD ANTES DE IMPUESTOS | E49: =IF(E23-E24+E40-E43+E46+E47-E48>0,E23-E24+E40-E43+E46+E47-E48,0) -> 0
B50: PÉRDIDA ANTES DE IMPUESTOS | E50: =IF(E23-E24+E40-E43+E46+E47-E48<0,(E23-E24+E40-E43+E46+E47-E48)*-1,0) -> 0
B51: ISR | G51: =+E51-'Concilicacion RC y RF'!D77 -> 0
B52: IETU | E52: 0
B53: PTU | G53: =+E53-'Concilicacion RC y RF'!D109 -> 
B54: UTILIDAD EN PARTICIPACIÓN SUBSIDIARIA | E54: 0
B55: PÉRDIDA EN PARTICIPACIÓN SUBSIDIARIA | E55: 0
B56: EFECTOS DE REEXPRESIÓN FAVORABLE EXCEPTO RESULTADO POR POSICIÓN MONETARIA | E56: 0
B57: EFECTOS DE REEXPRESIÓN DESFAVORABLE EXCEPTO RESULTADO POR POSICIÓN MONETARIA | E57: 0
B58: UTILIDAD NETA | E58: =IF(E49-E50-E51-E52-E53+E54-E55+E56-E57>0,E49-E50-E51-E52-E53+E54-E55+E56-E57,0) -> 0 | G58: =+E58-'Result. Contable Fiscal'!C87 -> 0
B59: PÉRDIDA NETA | E59: =IF(E49-E50-E51-E52-E53+E54-E55+E56-E57<0,(E49-E50-E51-E52-E53+E54-E55+E56-E57)*-1,0) -> 0 | G59: =+E59-'Result. Contable Fiscal'!C88 -> 0

Sheet Balance (hidden)
B1: =Empresa!$D$8 -> EMPRESA EJEMPLO | E1: =B1 -> EMPRESA EJEMPLO
B2: ="Balance General al Cierre del Ejercicio "&Empresa!$D$13 -> Balance General al Cierre del Ejercicio 2024 | E2: Notas o comentarios
B4: Concepto | C4: Importe
B6: EFECTIVO EN CAJA Y DEPÓSITOS EN INSTITUCIONES DE CRÉDITO NACIONALES
B7: EFECTIVO EN CAJA Y DEPÓSITOS EN INSTITUCIONES DE CRÉDITO DEL EXTRANJERO
B8: INVERSIONES EN VALORES CON INSTITUCIONES NACIONALES (EXCEPTO ACCIONES)
B9: INVERSIONES EN VALORES CON INSTITUCIONES EXTRANJERAS (EXCEPTO ACCIONES)
B11: CUENTAS Y DOCUMENTOS POR COBRAR NACIONALES (PARTES RELACIONADAS)
B12: CUENTAS Y DOCUMENTOS POR COBRAR NACIONALES (PARTES NO RELACIONADAS)
B13: CUENTAS Y DOCUMENTOS POR COBRAR NACIONALES (TOTAL) | C13: =SUM(C11:C12) -> 0
B15: CUENTAS Y DOCUMENTOS POR COBRAR DEL EXTRANJERO (PARTES RELACIONADAS) | C15: 0
B16: CUENTAS Y DOCUMENTOS POR COBRAR DEL EXTRANJERO (PARTES NO RELACIONADAS) | C16: 0
B17: CUENTAS Y DOCUMENTOS POR COBRAR DEL EXTRANJERO (TOTAL) | C17: =SUM(C15:C16) -> 0
B19: CONTRIBUCIONES A FAVOR | C19: 0 | E19: PP ISR
B20: INVENTARIOS | C20: =+'Costo de Ventas'!F9 -> 0
B21: OTROS ACTIVOS CIRCULANTES
B23: INVERSIONES EN ACCIONES NACIONALES
B24: INVERSIONES EN ACCIONES DEL EXTRANJERO
B25: INVERSIONES EN ACCIONES (TOTAL) | C25: =SUM(C23:C24) -> 0
B27: TERRENOS
B28: CONSTRUCCIONES
B29: CONSTRUCCIONES EN PROCESO
B30: MAQUINARIA Y EQUIPO
B31: MOBILIARIO Y EQUIPO DE OFICINA
B32: EQUIPO DE COMPUTO
B33: EQUIPO DE TRANSPORTE
B34: OTROS ACTIVOS FIJOS
B35: DEPRECIACIÓN ACUMULADA
B36: CARGOS Y GASTOS DIFERIDOS
B37: AMORTIZACIÓN ACUMULADA
B39: SUMA ACTIVO | C39: =SUM(C6:C9,C13,C17,C19:C21,C25,C27:C37) -> 0
B41: CUENTAS Y DOCUMENTOS POR PAGAR NACIONALES (PARTES RELACIONADAS)
B42: CUENTAS Y DOCUMENTOS POR PAGAR NACIONALES (PARTES NO RELACIONADAS)
B43: CUENTAS Y DOCUMENTOS POR PAGAR NACIONALES (PARTES TOTAL) | C43: =SUM(C41:C42) -> 0
B45: CUENTAS Y DOCUMENTOS POR PAGAR DEL EXTRANJERO (PARTES RELACIONADAS)
B46: CUENTAS Y DOCUMENTOS POR PAGAR DEL EXTRANJERO (PARTES NO RELACIONADAS)
B47: CUENTAS Y DOCUMENTOS POR PAGAR DEL EXTRANJERO (PARTES TOTAL) | C47: =SUM(C45:C46) -> 0
B49: CONTRIBUCIONES POR PAGAR
B50: ANTICIPOS DE CLIENTES PARTES RELACIONADAS
B51: ANTICIPOS DE CLIENTES PARTES NO RELACIONADAS
B52: APORTACIONES PARA FUTUROS AUMENTOS DE CAPITAL
B53: OTROS PASIVOS
B55: SUMA PASIVO | C55: =SUM(C43,C47,C49:C53) -> 0
B57: CAPITAL SOCIAL PROVENIENTE DE APORTACIONES
B58: CAPITAL SOCIAL PROVENIENTE DE CAPITALIZACIÓN
B59: RESERVAS
B60: OTRAS CUENTAS DE CAPITAL
B61: APORTACIONES PARA FUTUROS AUMENTOS DE CAPITAL
B62: UTILDADES ACUMULADAS
B63: UTILIDAD DEL EJERCICIO | C63: =Resultados!E58 -> 0
B64: PÉRDIDAS ACUMULADAS | C64: 0
B65: PÉRDIDA DEL EJERCICIO | C65: =Resultados!E59 -> 0
B66: EXCESO EN LA ACTUALIZACIÓN DEL CAPITAL | C66: 0
B67: INSUFICIENCIA EN LA ACTUALIZACIÓN DEL CAPITAL | C67: 0
B68: ACTUALIZACIÓN DEL CAPITAL CONTABLE | C68: 0
B70: SUMA CAPITAL CONTABLE | C70: =SUM(C57:C63,C66,C68)-C64-C65-C67 -> 0
B72: SUMA PASIVO MÁS CAPITAL CONTABLE | C72: =C55+C70 -> 0
B74: COMPROBACIÓN | C74: =C39-C72 -> 0

Sheet Invent. Acum. (hidden)
B1: =Empresa!$D$8 -> EMPRESA EJEMPLO | F1: =B1 -> EMPRESA EJEMPLO
B2: Determinación del Inventario Acumulable | F2: Notas o Comentarios
B3: ="Ejercicio "&Empresa!$D$13 -> Ejercicio 2024
B5: Ejercicio | C5: Importe Anual | D5: Importe Mensual
B7: 2005 | D7: =C7/12 -> 0
B8: 2006 | D8: =C8/12 -> 0
B9: 2007 | D9: =C9/12 -> 0
B10: 2008 | D10: 0
B11: 2009 | D11: 0
B12: 2010 | D12: 0
B13: 2011 | D13: 0
B14: 2012 | D14: 0
B15: 2013 | D15: 0
B16: 2014 | D16: 0
B17: 2015 | D17: 0
B18: 2016 | D18: 0
B19: 2017 | D19: 0
B20: 2018 | D20: 0
B21: 2019 | D21: =C21/12 -> 0
B23: Total | C23: =SUM(C7:C22) -> 0
B25: Determinación del Inventario Acumulable
B27: Inventario Base al 31 de diciembre de 2004
B28: Saldo por Deducir al 1 de Enero de 2005
B29: Pérdidas Fiscales por Disminuir al 31 de diciembre de 2004
B30: Diferencia en Inventarios de Importación
B32: Valor del Inventario Acumulable | D32: =D27-D28-D29-D30 -> 0
B34: Porcentaje de Acumulación en el ejercicio
B35: Inventario Acumulable | D35: =D32*D34 -> 0
B37: Inventario Reducido
B39: Inventario Acumulable en el Ejercicio | D39: =D35-D37 -> 0

Sheet PTU Pagada (hidden)
B1: =Empresa!$D$8 -> EMPRESA EJEMPLO | Q1: =Empresa!$D$8 -> EMPRESA EJEMPLO
B2: Proporción de PTU pagada para efectos de Pagos Provisionales de ISR | Q2: Notas o Comentarios
B3: ="Ejercicio "&Empresa!$D$13 -> Ejercicio 2024
B5: Cuenta | C5: Enero | D5: Febrero | E5: Marzo | F5: Abril | G5: Mayo | H5: Junio | I5: Julio | J5: Agosto | K5: Septiembre | L5: Octubre | M5: Noviembre | N5: Diciembre | O5: Totales
C7: =IF($B7="",0,SUMIF(CUENTA_NOMBRE,$B7,SALDOS_ENE)) -> 0 | D7: =IF(B7="",0,SUMIF(CUENTA_NOMBRE,$B7,SALDOS_FEB)) -> 0 | E7: =IF(B7="",0,SUMIF(CUENTA_NOMBRE,$B7,SALDOS_MAR)) -> 0 | F7: =IF(B7="",0,SUMIF(CUENTA_NOMBRE,$B7,SALDOS_ABR)) -> 0 | G7: =IF(B7="",0,SUMIF(CUENTA_NOMBRE,$B7,SALDOS_MAY)) -> 0 | H7: =IF(B7="",0,SUMIF(CUENTA_NOMBRE,$B7,SALDOS_JUN)) -> 0 | I7: =IF(B7="",0,SUMIF(CUENTA_NOMBRE,$B7,SALDOS_JUL)) -> 0 | J7: =IF(B7="",0,SUMIF(CUENTA_NOMBRE,$B7,SALDOS_AGO)) -> 0 | K7: =IF(B7="",0,SUMIF(CUENTA_NOMBRE,$B7,SALDOS_SEP)) -> 0 | L7: =IF(B7="",0,SUMIF(CUENTA_NOMBRE,$B7,SALDOS_OCT)) -> 0 | M7: =IF(B7="",0,SUMIF(CUENTA_NOMBRE,$B7,SALDOS_NOV)) -> 0 | N7: =IF(B7="",0,SUMIF(CUENTA_NOMBRE,$B7,SALDOS_FINALES)) -> 0
O8: =SUM(C8:N8) -> 0
B9: cuenta contable 21020002 | N9: 98001 | O9: =SUM(C9:N9) -> 98001 | Q9: 50000
O10: 0 | Q10: =N9-Q9 -> 48001
O11: 0
O12: 0
O13: 0
B16: Total Pagada en el Mes | C16: =ABS(SUM(C7:C15)) -> 0 | D16: 0 | E16: 0 | F16: 0 | G16: 0 | H16: 0 | I16: 0 | J16: 0 | K16: 0 | L16: 0 | M16: 0 | N16: 98001 | O16: 98001
B17: Proporción de cada mes | C17: =C16/12 -> 0 | D17: =D16/11 -> 0 | E17: =E16/10 -> 0 | F17: =F16/9 -> 0 | G17: =G16/8 -> 0 | H17: =H16/7 -> 0 | I17: =I16/6 -> 0 | J17: =J16/5 -> 0 | K17: =K16/4 -> 0 | L17: =L16/3 -> 0 | M17: =M16/2 -> 0 | N17: =N16 -> 98001
B19: Enero | C19: =$C$17 -> 0 | D19: =$C$17 -> 0 | E19: 0 | F19: 0 | G19: 0 | H19: 0 | I19: 0 | J19: 0 | K19: 0 | L19: 0 | M19: 0 | N19: 0 | O19: =SUM(C19:N19) -> 0
B20: Febrero | D20: =$D$17 -> 0 | E20: =$D$17 -> 0 | F20: 0 | G20: 0 | H20: 0 | I20: 0 | J20: 0 | K20: 0 | L20: 0 | M20: 0 | N20: 0 | O20: =SUM(C20:N20) -> 0
B21: Marzo | E21: =$E$17 -> 0 | F21: =$E$17 -> 0 | G21: 0 | H21: 0 | I21: 0 | J21: 0 | K21: 0 | L21: 0 | M21: 0 | N21: 0 | O21: 0
B22: Abril | F22: =$F$17 -> 0 | G22: =$F$17 -> 0 | H22: 0 | I22: 0 | J22: 0 | K22: 0 | L22: 0 | M22: 0 | N22: 0 | O22: 0
B23: Mayo | G23: =$G$17 -> 0 | H23: =$G$17 -> 0 | I23: 0 | J23: 0 | K23: 0 | L23: 0 | M23: 0 | N23: 0 | O23: 0
B24: Junio | H24: =$H$17 -> 0 | I24: =$H$17 -> 0 | J24: 0 | K24: 0 | L24: 0 | M24: 0 | N24: 0 | O24: 0
B25: Julio | I25: =$I$17 -> 0 | J25: =$I$17 -> 0 | K25: 0 | L25: 0 | M25: 0 | N25: 0 | O25: 0
B26: Agosto | J26: =$J$17 -> 0 | K26: =$J$17 -> 0 | L26: 0 | M26: 0 | N26: 0 | O26: 0
B27: Septiembre | K27: =$K$17 -> 0 | L27: =$K$17 -> 0 | M27: 0 | N27: 0 | O27: 0
B28: Octubre | L28: =$L$17 -> 0 | M28: =$L$17 -> 0 | N28: 0 | O28: 0
B29: Noviembre | M29: =$M$17 -> 0 | N29: =$M$17 -> 0 | O29: 0
B30: Diciembre | N30: =$N$17 -> 98001 | O30: 98001
B32: PTU Proporcional Mensual | C32: =SUM(C19:C31) -> 0 | D32: =SUM(D19:D31) -> 0 | E32: 0 | F32: 0 | G32: 0 | H32: 0 | I32: 0 | J32: 0 | K32: 0 | L32: 0 | M32: 0 | N32: 98001 | O32: =SUM(C32:N32) -> 98001
B33: PTU Proporcional Acumulada | C33: =C32 -> 0 | D33: =SUM(C32:D32) -> 0 | E33: =SUM(C32:E32) -> 0 | F33: =SUM(C32:F32) -> 0 | G33: =SUM(C32:G32) -> 0 | H33: =SUM(C32:H32) -> 0 | I33: =SUM(C32:I32) -> 0 | J33: =SUM(C32:J32) -> 0 | K33: =SUM(C32:K32) -> 0 | L33: =SUM(C32:L32) -> 0 | M33: =SUM(C32:M32) -> 0 | N33: =SUM(C32:N32) -> 98001
B36: Saldo Inicial de la PTU | C36: =ABS(SUMIF(CL_OTROS_D_FISC,'Clasificaciones de Balanza'!H10,SALDOS_INICIALES)) -> 0
B37: (+) PTU del ejercicio | C37: ='Concilicacion RC y RF'!D109 -> 
B38: (-) Saldo Final de PTU | C38: =ABS(SUMIF(CL_OTROS_D_FISC,'Clasificaciones de Balanza'!H10,SALDOS_FINALES)) -> 0
B39: (=) PTU pagada del ejercicio | C39: =C36+C37-C38 -> 
B40: Diferencia | C40: =O16-C39 -> 

Sheet Anticipos SC o AC (hidden)
B1: =Empresa!$D$8 -> EMPRESA EJEMPLO | P1: =Empresa!$D$8 -> EMPRESA EJEMPLO
B2: Anticipos o Rendimientos de S.C. o A.C. | P2: Notas o Comentarios
B3: ="Ejercicio "&Empresa!$D$13 -> Ejercicio 2024
B5: Cuenta | C5: Enero | D5: Febrero | E5: Marzo | F5: Abril | G5: Mayo | H5: Junio | I5: Julio | J5: Agosto | K5: Septiembre | L5: Octubre | M5: Noviembre | N5: Diciembre
C7: =IF($B7="",0,SUMIF(CUENTA_NOMBRE,$B7,SALDOS_ENE)) -> 0 | D7: =IF(B7="",0,SUMIF(CUENTA_NOMBRE,$B7,SALDOS_FEB)) -> 0 | E7: =IF(B7="",0,SUMIF(CUENTA_NOMBRE,$B7,SALDOS_MAR)) -> 0 | F7: =IF(B7="",0,SUMIF(CUENTA_NOMBRE,$B7,SALDOS_ABR)) -> 0 | G7: =IF(B7="",0,SUMIF(CUENTA_NOMBRE,$B7,SALDOS_MAY)) -> 0 | H7: =IF(B7="",0,SUMIF(CUENTA_NOMBRE,$B7,SALDOS_JUN)) -> 0 | I7: =IF(B7="",0,SUMIF(CUENTA_NOMBRE,$B7,SALDOS_JUL)) -> 0 | J7: =IF(B7="",0,SUMIF(CUENTA_NOMBRE,$B7,SALDOS_AGO)) -> 0 | K7: =IF(B7="",0,SUMIF(CUENTA_NOMBRE,$B7,SALDOS_SEP)) -> 0 | L7: =IF(B7="",0,SUMIF(CUENTA_NOMBRE,$B7,SALDOS_OCT)) -> 0 | M7: =IF(B7="",0,SUMIF(CUENTA_NOMBRE,$B7,SALDOS_NOV)) -> 0 | N7: =IF(B7="",0,SUMIF(CUENTA_NOMBRE,$B7,SALDOS_FINALES)) -> 0
C8: 0 | D8: 0 | E8: 0 | F8: 0 | G8: 0 | H8: 0 | I8: 0 | J8: 0 | K8: 0 | L8: 0 | M8: 0 | N8: 0
C9: 0 | D9: =IF(B9="",0,SUMIF(CUENTA_NOMBRE,$B9,SALDOS_FEB)) -> 0 | E9: =IF(B9="",0,SUMIF(CUENTA_NOMBRE,$B9,SALDOS_MAR)) -> 0 | F9: =IF(B9="",0,SUMIF(CUENTA_NOMBRE,$B9,SALDOS_ABR)) -> 0 | G9: =IF(B9="",0,SUMIF(CUENTA_NOMBRE,$B9,SALDOS_MAY)) -> 0 | H9: =IF(B9="",0,SUMIF(CUENTA_NOMBRE,$B9,SALDOS_JUN)) -> 0 | I9: =IF(B9="",0,SUMIF(CUENTA_NOMBRE,$B9,SALDOS_JUL)) -> 0 | J9: =IF(B9="",0,SUMIF(CUENTA_NOMBRE,$B9,SALDOS_AGO)) -> 0 | K9: =IF(B9="",0,SUMIF(CUENTA_NOMBRE,$B9,SALDOS_SEP)) -> 0 | L9: =IF(B9="",0,SUMIF(CUENTA_NOMBRE,$B9,SALDOS_OCT)) -> 0 | M9: =IF(B9="",0,SUMIF(CUENTA_NOMBRE,$B9,SALDOS_NOV)) -> 0 | N9: =IF(B9="",0,SUMIF(CUENTA_NOMBRE,$B9,SALDOS_FINALES)) -> 0
C10: 0 | D10: 0 | E10: 0 | F10: 0 | G10: 0 | H10: 0 | I10: 0 | J10: 0 | K10: 0 | L10: 0 | M10: 0 | N10: 0
C11: 0 | D11: 0 | E11: 0 | F11: 0 | G11: 0 | H11: 0 | I11: 0 | J11: 0 | K11: 0 | L11: 0 | M11: 0 | N11: 0
C12: 0 | D12: =IF(B12="",0,SUMIF(CUENTA_NOMBRE,$B12,SALDOS_FEB)) -> 0 | E12: =IF(B12="",0,SUMIF(CUENTA_NOMBRE,$B12,SALDOS_MAR)) -> 0 | F12: =IF(B12="",0,SUMIF(CUENTA_NOMBRE,$B12,SALDOS_ABR)) -> 0 | G12: =IF(B12="",0,SUMIF(CUENTA_NOMBRE,$B12,SALDOS_MAY)) -> 0 | H12: =IF(B12="",0,SUMIF(CUENTA_NOMBRE,$B12,SALDOS_JUN)) -> 0 | I12: =IF(B12="",0,SUMIF(CUENTA_NOMBRE,$B12,SALDOS_JUL)) -> 0 | J12: =IF(B12="",0,SUMIF(CUENTA_NOMBRE,$B12,SALDOS_AGO)) -> 0 | K12: =IF(B12="",0,SUMIF(CUENTA_NOMBRE,$B12,SALDOS_SEP)) -> 0 | L12: =IF(B12="",0,SUMIF(CUENTA_NOMBRE,$B12,SALDOS_OCT)) -> 0 | M12: =IF(B12="",0,SUMIF(CUENTA_NOMBRE,$B12,SALDOS_NOV)) -> 0 | N12: =IF(B12="",0,SUMIF(CUENTA_NOMBRE,$B12,SALDOS_FINALES)) -> 0
C13: 0 | D13: =IF(B13="",0,SUMIF(CUENTA_NOMBRE,$B13,SALDOS_FEB)) -> 0 | E13: =IF(B13="",0,SUMIF(CUENTA_NOMBRE,$B13,SALDOS_MAR)) -> 0 | F13: =IF(B13="",0,SUMIF(CUENTA_NOMBRE,$B13,SALDOS_ABR)) -> 0 | G13: =IF(B13="",0,SUMIF(CUENTA_NOMBRE,$B13,SALDOS_MAY)) -> 0 | H13: =IF(B13="",0,SUMIF(CUENTA_NOMBRE,$B13,SALDOS_JUN)) -> 0 | I13: =IF(B13="",0,SUMIF(CUENTA_NOMBRE,$B13,SALDOS_JUL)) -> 0 | J13: =IF(B13="",0,SUMIF(CUENTA_NOMBRE,$B13,SALDOS_AGO)) -> 0 | K13: =IF(B13="",0,SUMIF(CUENTA_NOMBRE,$B13,SALDOS_SEP)) -> 0 | L13: =IF(B13="",0,SUMIF(CUENTA_NOMBRE,$B13,SALDOS_OCT)) -> 0 | M13: =IF(B13="",0,SUMIF(CUENTA_NOMBRE,$B13,SALDOS_NOV)) -> 0 | N13: =IF(B13="",0,SUMIF(CUENTA_NOMBRE,$B13,SALDOS_FINALES)) -> 0
C14: 0 | D14: =IF(B14="",0,SUMIF(CUENTA_NOMBRE,$B14,SALDOS_FEB)) -> 0 | E14: =IF(B14="",0,SUMIF(CUENTA_NOMBRE,$B14,SALDOS_MAR)) -> 0 | F14: =IF(B14="",0,SUMIF(CUENTA_NOMBRE,$B14,SALDOS_ABR)) -> 0 | G14: =IF(B14="",0,SUMIF(CUENTA_NOMBRE,$B14,SALDOS_MAY)) -> 0 | H14: =IF(B14="",0,SUMIF(CUENTA_NOMBRE,$B14,SALDOS_JUN)) -> 0 | I14: =IF(B14="",0,SUMIF(CUENTA_NOMBRE,$B14,SALDOS_JUL)) -> 0 | J14: =IF(B14="",0,SUMIF(CUENTA_NOMBRE,$B14,SALDOS_AGO)) -> 0 | K14: =IF(B14="",0,SUMIF(CUENTA_NOMBRE,$B14,SALDOS_SEP)) -> 0 | L14: =IF(B14="",0,SUMIF(CUENTA_NOMBRE,$B14,SALDOS_OCT)) -> 0 | M14: =IF(B14="",0,SUMIF(CUENTA_NOMBRE,$B14,SALDOS_NOV)) -> 0 | N14: =IF(B14="",0,SUMIF(CUENTA_NOMBRE,$B14,SALDOS_FINALES)) -> 0
C15: 0 | D15: 0 | E15: 0 | F15: 0 | G15: 0 | H15: 0 | I15: 0 | J15: 0 | K15: 0 | L15: 0 | M15: 0 | N15: 0
B18: Anticipos o Rendimientos Acumulados | C18: =ABS(SUM(C7:C17)) -> 0 | D18: 0 | E18: 0 | F18: 0 | G18: 0 | H18: 0 | I18: 0 | J18: 0 | K18: 0 | L18: 0 | M18: 0 | N18: 0
B19: Anticipos o Rendimientos del Mes | C19: =C18 -> 0 | D19: =D18-C18 -> 0 | E19: =E18-D18 -> 0 | F19: 0 | G19: 0 | H19: 0 | I19: 0 | J19: 0 | K19: 0 | L19: 0 | M19: 0 | N19: 0
B21: Otros Anticipos o Rendimientos
B22: Otros Anticipos o Rendimientos
B24: Total de Anticipos o Rendimientos | C24: =C18+C21+C22 -> 0 | D24: =D18+D21+D22 -> 0 | E24: 0 | F24: 0 | G24: 0 | H24: 0 | I24: 0 | J24: 0 | K24: 0 | L24: 0 | M24: 0 | N24: 0
B26: Importe Clasificado en la balanza | C26: =SUMIF(CL_OTROS_D_FISC,'Clasificaciones de Balanza'!H12,SALDOS_FINALES) -> 0
B27: Diferencia | C27: =N18-C26 -> 0

Sheet Anticipos Clientes (hidden)
B1: =Empresa!$D$8 -> EMPRESA EJEMPLO | R1: =Empresa!$D$8 -> EMPRESA EJEMPLO
B2: Anticipos de Clientes | R2: Notas o Comentarios
B3: ="Ejercicio "&Empresa!$D$13 -> Ejercicio 2024
B5: Anticipos de Clientes al 16% de IVA | C5: S.I. | D5: Enero | E5: Febrero | F5: Marzo | G5: Abril | H5: Mayo | I5: Junio | J5: Julio | K5: Agosto | L5: Septiembre | M5: Octubre | N5: Noviembre | O5: Diciembre
C7: =IF($B7="",0,SUMIF(CUENTA_NOMBRE,$B7,SALDOS_ENE)) -> 0 | D7: 0 | E7: =IF(B7="",0,SUMIF(CUENTA_NOMBRE,$B7,SALDOS_FEB)) -> 0 | F7: =IF(B7="",0,SUMIF(CUENTA_NOMBRE,$B7,SALDOS_MAR)) -> 0 | G7: =IF(B7="",0,SUMIF(CUENTA_NOMBRE,$B7,SALDOS_ABR)) -> 0 | H7: =IF(B7="",0,SUMIF(CUENTA_NOMBRE,$B7,SALDOS_MAY)) -> 0 | I7: =IF(B7="",0,SUMIF(CUENTA_NOMBRE,$B7,SALDOS_JUN)) -> 0 | J7: =IF(B7="",0,SUMIF(CUENTA_NOMBRE,$B7,SALDOS_JUL)) -> 0 | K7: =IF(B7="",0,SUMIF(CUENTA_NOMBRE,$B7,SALDOS_AGO)) -> 0 | L7: =IF(B7="",0,SUMIF(CUENTA_NOMBRE,$B7,SALDOS_SEP)) -> 0 | M7: =IF(B7="",0,SUMIF(CUENTA_NOMBRE,$B7,SALDOS_OCT)) -> 0 | N7: =IF(B7="",0,SUMIF(CUENTA_NOMBRE,$B7,SALDOS_NOV)) -> 0 | O7: =IF(B7="",0,SUMIF(CUENTA_NOMBRE,$B7,SALDOS_FINALES)) -> 0
C8: =IF($B8="",0,SUMIF(CUENTA_NOMBRE,$B8,SALDOS_INICIALES)) -> 0 | D8: 0 | E8: 0 | F8: 0 | G8: 0 | H8: 0 | I8: 0 | J8: 0 | K8: 0 | L8: 0 | M8: 0 | N8: 0 | O8: 0 | P8: 16
C9: 0 | D9: 0 | E9: 0 | F9: 0 | G9: 0 | H9: 0 | I9: 0 | J9: 0 | K9: 0 | L9: 0 | M9: 0 | N9: 0 | O9: 0
C10: 0 | D10: 0 | E10: =IF(B10="",0,SUMIF(CUENTA_NOMBRE,$B10,SALDOS_FEB)) -> 0 | F10: =IF(B10="",0,SUMIF(CUENTA_NOMBRE,$B10,SALDOS_MAR)) -> 0 | G10: =IF(B10="",0,SUMIF(CUENTA_NOMBRE,$B10,SALDOS_ABR)) -> 0 | H10: =IF(B10="",0,SUMIF(CUENTA_NOMBRE,$B10,SALDOS_MAY)) -> 0 | I10: =IF(B10="",0,SUMIF(CUENTA_NOMBRE,$B10,SALDOS_JUN)) -> 0 | J10: =IF(B10="",0,SUMIF(CUENTA_NOMBRE,$B10,SALDOS_JUL)) -> 0 | K10: =IF(B10="",0,SUMIF(CUENTA_NOMBRE,$B10,SALDOS_AGO)) -> 0 | L10: =IF(B10="",0,SUMIF(CUENTA_NOMBRE,$B10,SALDOS_SEP)) -> 0 | M10: =IF(B10="",0,SUMIF(CUENTA_NOMBRE,$B10,SALDOS_OCT)) -> 0 | N10: =IF(B10="",0,SUMIF(CUENTA_NOMBRE,$B10,SALDOS_NOV)) -> 0 | O10: =IF(B10="",0,SUMIF(CUENTA_NOMBRE,$B10,SALDOS_FINALES)) -> 0
C11: 0 | D11: 0 | E11: 0 | F11: 0 | G11: 0 | H11: 0 | I11: 0 | J11: 0 | K11: 0 | L11: 0 | M11: 0 | N11: 0 | O11: 0
C12: 0 | D12: 0 | E12: =IF(B12="",0,SUMIF(CUENTA_NOMBRE,$B12,SALDOS_FEB)) -> 0 | F12: =IF(B12="",0,SUMIF(CUENTA_NOMBRE,$B12,SALDOS_MAR)) -> 0 | G12: =IF(B12="",0,SUMIF(CUENTA_NOMBRE,$B12,SALDOS_ABR)) -> 0 | H12: =IF(B12="",0,SUMIF(CUENTA_NOMBRE,$B12,SALDOS_MAY)) -> 0 | I12: =IF(B12="",0,SUMIF(CUENTA_NOMBRE,$B12,SALDOS_JUN)) -> 0 | J12: =IF(B12="",0,SUMIF(CUENTA_NOMBRE,$B12,SALDOS_JUL)) -> 0 | K12: =IF(B12="",0,SUMIF(CUENTA_NOMBRE,$B12,SALDOS_AGO)) -> 0 | L12: =IF(B12="",0,SUMIF(CUENTA_NOMBRE,$B12,SALDOS_SEP)) -> 0 | M12: =IF(B12="",0,SUMIF(CUENTA_NOMBRE,$B12,SALDOS_OCT)) -> 0 | N12: =IF(B12="",0,SUMIF(CUENTA_NOMBRE,$B12,SALDOS_NOV)) -> 0 | O12: =IF(B12="",0,SUMIF(CUENTA_NOMBRE,$B12,SALDOS_FINALES)) -> 0
B15: Saldos de Anticipos de Clientes al 16% | C15: =ABS(SUM(C7:C14)) -> 0 | D15: 0 | E15: 0 | F15: 0 | G15: 0 | H15: 0 | I15: 0 | J15: 0 | K15: 0 | L15: 0 | M15: 0 | N15: 0 | O15: 0
B17: Otros Cargos
B18: Otros Abonos
B20: Total de Anticipos de Clientes al 16% | C20: =C15+C18-C17 -> 0 | D20: =D15+D18-D17 -> 0 | E20: 0 | F20: 0 | G20: 0 | H20: 0 | I20: 0 | J20: 0 | K20: 0 | L20: 0 | M20: 0 | N20: 0 | O20: 0
B23: Anticipos de Clientes al 11% de IVA (2013 y anteriores) | C23: S.I. | D23: Enero | E23: Febrero | F23: Marzo | G23: Abril | H23: Mayo | I23: Junio | J23: Julio | K23: Agosto | L23: Septiembre | M23: Octubre | N23: Noviembre | O23: Diciembre
C25: =IF($B25="",0,SUMIF(CUENTA_NOMBRE,$B25,SALDOS_ENE)) -> 0 | D25: 0 | E25: =IF(B25="",0,SUMIF(CUENTA_NOMBRE,$B25,SALDOS_FEB)) -> 0 | F25: =IF(B25="",0,SUMIF(CUENTA_NOMBRE,$B25,SALDOS_MAR)) -> 0 | G25: =IF(B25="",0,SUMIF(CUENTA_NOMBRE,$B25,SALDOS_ABR)) -> 0 | H25: =IF(B25="",0,SUMIF(CUENTA_NOMBRE,$B25,SALDOS_MAY)) -> 0 | I25: =IF(B25="",0,SUMIF(CUENTA_NOMBRE,$B25,SALDOS_JUN)) -> 0 | J25: =IF(B25="",0,SUMIF(CUENTA_NOMBRE,$B25,SALDOS_JUL)) -> 0 | K25: =IF(B25="",0,SUMIF(CUENTA_NOMBRE,$B25,SALDOS_AGO)) -> 0 | L25: =IF(B25="",0,SUMIF(CUENTA_NOMBRE,$B25,SALDOS_SEP)) -> 0 | M25: =IF(B25="",0,SUMIF(CUENTA_NOMBRE,$B25,SALDOS_OCT)) -> 0 | N25: =IF(B25="",0,SUMIF(CUENTA_NOMBRE,$B25,SALDOS_NOV)) -> 0 | O25: =IF(B25="",0,SUMIF(CUENTA_NOMBRE,$B25,SALDOS_FINALES)) -> 0
C26: =IF($B26="",0,SUMIF(CUENTA_NOMBRE,$B26,SALDOS_INICIALES)) -> 0 | D26: 0 | E26: 0 | F26: 0 | G26: 0 | H26: 0 | I26: 0 | J26: 0 | K26: 0 | L26: 0 | M26: 0 | N26: 0 | O26: 0 | P26: 11
C27: 0 | D27: 0 | E27: 0 | F27: 0 | G27: 0 | H27: 0 | I27: 0 | J27: 0 | K27: 0 | L27: 0 | M27: 0 | N27: 0 | O27: 0
C28: 0 | D28: 0 | E28: =IF(B28="",0,SUMIF(CUENTA_NOMBRE,$B28,SALDOS_FEB)) -> 0 | F28: =IF(B28="",0,SUMIF(CUENTA_NOMBRE,$B28,SALDOS_MAR)) -> 0 | G28: =IF(B28="",0,SUMIF(CUENTA_NOMBRE,$B28,SALDOS_ABR)) -> 0 | H28: =IF(B28="",0,SUMIF(CUENTA_NOMBRE,$B28,SALDOS_MAY)) -> 0 | I28: =IF(B28="",0,SUMIF(CUENTA_NOMBRE,$B28,SALDOS_JUN)) -> 0 | J28: =IF(B28="",0,SUMIF(CUENTA_NOMBRE,$B28,SALDOS_JUL)) -> 0 | K28: =IF(B28="",0,SUMIF(CUENTA_NOMBRE,$B28,SALDOS_AGO)) -> 0 | L28: =IF(B28="",0,SUMIF(CUENTA_NOMBRE,$B28,SALDOS_SEP)) -> 0 | M28: =IF(B28="",0,SUMIF(CUENTA_NOMBRE,$B28,SALDOS_OCT)) -> 0 | N28: =IF(B28="",0,SUMIF(CUENTA_NOMBRE,$B28,SALDOS_NOV)) -> 0 | O28: =IF(B28="",0,SUMIF(CUENTA_NOMBRE,$B28,SALDOS_FINALES)) -> 0
C29: =IF($B29="",0,SUMIF(CUENTA_NOMBRE,$B29,SALDOS_ENE)) -> 0 | D29: 0 | E29: 0 | F29: 0 | G29: 0 | H29: 0 | I29: 0 | J29: 0 | K29: 0 | L29: 0 | M29: 0 | N29: 0 | O29: 0
C30: 0 | D30: 0 | E30: 0 | F30: 0 | G30: 0 | H30: 0 | I30: 0 | J30: 0 | K30: 0 | L30: 0 | M30: 0 | N30: 0 | O30: 0
B33: Saldos de Anticipos de Clientes al 11% | C33: =ABS(SUM(C25:C32)) -> 0 | D33: 0 | E33: 0 | F33: 0 | G33: 0 | H33: 0 | I33: 0 | J33: 0 | K33: 0 | L33: 0 | M33: 0 | N33: 0 | O33: 0
B35: Otros Cargos
B36: Otros Abonos
B38: Total de Anticipos de Clientes al 11% | C38: =C33+C36-C35 -> 0 | D38: =D33+D36-D35 -> 0 | E38: 0 | F38: 0 | G38: 0 | H38: 0 | I38: 0 | J38: 0 | K38: 0 | L38: 0 | M38: 0 | N38: 0 | O38: 0
B42: Anticipos de Clientes al 0% de IVA | C42: S.I. | D42: Enero | E42: Febrero | F42: Marzo | G42: Abril | H42: Mayo | I42: Junio | J42: Julio | K42: Agosto | L42: Septiembre | M42: Octubre | N42: Noviembre | O42: Diciembre
C44: =IF($B44="",0,SUMIF(CUENTA_NOMBRE,$B44,SALDOS_ENE)) -> 0 | D44: 0 | E44: =IF(B44="",0,SUMIF(CUENTA_NOMBRE,$B44,SALDOS_FEB)) -> 0 | F44: =IF(B44="",0,SUMIF(CUENTA_NOMBRE,$B44,SALDOS_MAR)) -> 0 | G44: =IF(B44="",0,SUMIF(CUENTA_NOMBRE,$B44,SALDOS_ABR)) -> 0 | H44: =IF(B44="",0,SUMIF(CUENTA_NOMBRE,$B44,SALDOS_MAY)) -> 0 | I44: =IF(B44="",0,SUMIF(CUENTA_NOMBRE,$B44,SALDOS_JUN)) -> 0 | J44: =IF(B44="",0,SUMIF(CUENTA_NOMBRE,$B44,SALDOS_JUL)) -> 0 | K44: =IF(B44="",0,SUMIF(CUENTA_NOMBRE,$B44,SALDOS_AGO)) -> 0 | L44: =IF(B44="",0,SUMIF(CUENTA_NOMBRE,$B44,SALDOS_SEP)) -> 0 | M44: =IF(B44="",0,SUMIF(CUENTA_NOMBRE,$B44,SALDOS_OCT)) -> 0 | N44: =IF(B44="",0,SUMIF(CUENTA_NOMBRE,$B44,SALDOS_NOV)) -> 0 | O44: =IF(B44="",0,SUMIF(CUENTA_NOMBRE,$B44,SALDOS_FINALES)) -> 0
C45: =IF($B45="",0,SUMIF(CUENTA_NOMBRE,$B45,SALDOS_INICIALES)) -> 0 | D45: 0 | E45: 0 | F45: 0 | G45: 0 | H45: 0 | I45: 0 | J45: 0 | K45: 0 | L45: 0 | M45: 0 | N45: 0 | O45: 0 | P45: 0
C46: 0 | D46: 0 | E46: 0 | F46: 0 | G46: 0 | H46: 0 | I46: 0 | J46: 0 | K46: 0 | L46: 0 | M46: 0 | N46: 0 | O46: 0
C47: 0 | D47: 0 | E47: 0 | F47: 0 | G47: 0 | H47: 0 | I47: 0 | J47: 0 | K47: 0 | L47: 0 | M47: 0 | N47: 0 | O47: 0
C48: =IF($B48="",0,SUMIF(CUENTA_NOMBRE,$B48,SALDOS_ENE)) -> 0 | D48: 0 | E48: 0 | F48: 0 | G48: 0 | H48: 0 | I48: 0 | J48: 0 | K48: 0 | L48: 0 | M48: 0 | N48: 0 | O48: 0
C49: 0 | D49: 0 | E49: 0 | F49: 0 | G49: 0 | H49: 0 | I49: 0 | J49: 0 | K49: 0 | L49: 0 | M49: 0 | N49: 0 | O49: 0
B52: Saldos de Anticipos de Clientes al 0% | C52: =ABS(SUM(C44:C51)) -> 0 | D52: 0 | E52: 0 | F52: 0 | G52: 0 | H52: 0 | I52: 0 | J52: 0 | K52: 0 | L52: 0 | M52: 0 | N52: 0 | O52: 0
B54: Otros Cargos
B55: Otros Abonos
B57: Total de Anticipos de Clientes al 0% | C57: =C52+C55-C54 -> 0 | D57: =D52+D55-D54 -> 0 | E57: 0 | F57: 0 | G57: 0 | H57: 0 | I57: 0 | J57: 0 | K57: 0 | L57: 0 | M57: 0 | N57: 0 | O57: 0
B60: Anticipos de Clientes Exentos de IVA | C60: S.I. | D60: Enero | E60: Febrero | F60: Marzo | G60: Abril | H60: Mayo | I60: Junio | J60: Julio | K60: Agosto | L60: Septiembre | M60: Octubre | N60: Noviembre | O60: Diciembre
C62: =IF($B62="",0,SUMIF(CUENTA_NOMBRE,$B62,SALDOS_ENE)) -> 0 | D62: 0 | E62: =IF(B62="",0,SUMIF(CUENTA_NOMBRE,$B62,SALDOS_FEB)) -> 0 | F62: =IF(B62="",0,SUMIF(CUENTA_NOMBRE,$B62,SALDOS_MAR)) -> 0 | G62: =IF(B62="",0,SUMIF(CUENTA_NOMBRE,$B62,SALDOS_ABR)) -> 0 | H62: =IF(B62="",0,SUMIF(CUENTA_NOMBRE,$B62,SALDOS_MAY)) -> 0 | I62: =IF(B62="",0,SUMIF(CUENTA_NOMBRE,$B62,SALDOS_JUN)) -> 0 | J62: =IF(B62="",0,SUMIF(CUENTA_NOMBRE,$B62,SALDOS_JUL)) -> 0 | K62: =IF(B62="",0,SUMIF(CUENTA_NOMBRE,$B62,SALDOS_AGO)) -> 0 | L62: =IF(B62="",0,SUMIF(CUENTA_NOMBRE,$B62,SALDOS_SEP)) -> 0 | M62: =IF(B62="",0,SUMIF(CUENTA_NOMBRE,$B62,SALDOS_OCT)) -> 0 | N62: =IF(B62="",0,SUMIF(CUENTA_NOMBRE,$B62,SALDOS_NOV)) -> 0 | O62: =IF(B62="",0,SUMIF(CUENTA_NOMBRE,$B62,SALDOS_FINALES)) -> 0
C63: =IF($B63="",0,SUMIF(CUENTA_NOMBRE,$B63,SALDOS_INICIALES)) -> 0 | D63: 0 | E63: 0 | F63: 0 | G63: 0 | H63: 0 | I63: 0 | J63: 0 | K63: 0 | L63: 0 | M63: 0 | N63: 0 | O63: 0 | P63: EX
C64: 0 | D64: 0 | E64: 0 | F64: 0 | G64: 0 | H64: 0 | I64: 0 | J64: 0 | K64: 0 | L64: 0 | M64: 0 | N64: 0 | O64: 0
C65: 0 | D65: 0 | E65: 0 | F65: 0 | G65: 0 | H65: 0 | I65: 0 | J65: 0 | K65: 0 | L65: 0 | M65: 0 | N65: 0 | O65: 0
C66: 0 | D66: 0 | E66: 0 | F66: 0 | G66: 0 | H66: 0 | I66: 0 | J66: 0 | K66: 0 | L66: 0 | M66: 0 | N66: 0 | O66: 0
C67: =IF($B67="",0,SUMIF(CUENTA_NOMBRE,$B67,SALDOS_ENE)) -> 0 | D67: 0 | E67: 0 | F67: 0 | G67: 0 | H67: 0 | I67: 0 | J67: 0 | K67: 0 | L67: 0 | M67: 0 | N67: 0 | O67: 0
B70: Saldos de Anticipos de Clientes Exentos | C70: =ABS(SUM(C62:C69)) -> 0 | D70: 0 | E70: 0 | F70: 0 | G70: 0 | H70: 0 | I70: 0 | J70: 0 | K70: 0 | L70: 0 | M70: 0 | N70: 0 | O70: 0
B72: Otros Cargos
B73: Otros Abonos
B75: Total de Anticipos de Clientes Exentos | C75: =C70+C73-C72 -> 0 | D75: =D70+D73-D72 -> 0 | E75: 0 | F75: 0 | G75: 0 | H75: 0 | I75: 0 | J75: 0 | K75: 0 | L75: 0 | M75: 0 | N75: 0 | O75: 0
B77: Total de Anticipos de Clientes | C77: =C20+C38+C57+C75 -> 0 | D77: 0 | E77: 0 | F77: 0 | G77: 0 | H77: 0 | I77: 0 | J77: 0 | K77: 0 | L77: 0 | M77: 0 | N77: 0 | O77: 0
B79: Importe Clasificado en la balanza | C79: =Balance!C50+Balance!C51 -> 0
B80: Diferencia | C80: =O77-C79 -> 0

Sheet P. Prov. ISR (hidden)
B1: =Empresa!$D$8 -> EMPRESA EJEMPLO | P1: =Empresa!$D$8 -> EMPRESA EJEMPLO
B2: Determinación de los Pagos Provisionales de ISR | P2: Notas o Comentarios
B3: ="Ejercicio "&Empresa!$D$13 -> Ejercicio 2024
B5: Concepto | C5: Enero | D5: Febrero | E5: Marzo | F5: Abril | G5: Mayo | H5: Junio | I5: Julio | J5: Agosto | K5: Septiembre | L5: Octubre | M5: Noviembre | N5: Diciembre
C7: =IF($B7="",0,SUMIF(CUENTA_NOMBRE,$B7,SALDOS_ENE)) -> 0 | D7: =IF(B7="",0,SUMIF(CUENTA_NOMBRE,$B7,SALDOS_FEB)) -> 0 | E7: =IF(B7="",0,SUMIF(CUENTA_NOMBRE,$B7,SALDOS_MAR)) -> 0 | F7: =IF(B7="",0,SUMIF(CUENTA_NOMBRE,$B7,SALDOS_ABR)) -> 0 | G7: =IF(B7="",0,SUMIF(CUENTA_NOMBRE,$B7,SALDOS_MAY)) -> 0 | H7: =IF(B7="",0,SUMIF(CUENTA_NOMBRE,$B7,SALDOS_JUN)) -> 0 | I7: =IF(B7="",0,SUMIF(CUENTA_NOMBRE,$B7,SALDOS_JUL)) -> 0 | J7: =IF(B7="",0,SUMIF(CUENTA_NOMBRE,$B7,SALDOS_AGO)) -> 0 | K7: =IF(B7="",0,SUMIF(CUENTA_NOMBRE,$B7,SALDOS_SEP)) -> 0 | L7: =IF(B7="",0,SUMIF(CUENTA_NOMBRE,$B7,SALDOS_OCT)) -> 0 | M7: =IF(B7="",0,SUMIF(CUENTA_NOMBRE,$B7,SALDOS_NOV)) -> 0 | N7: =IF(B7="",0,SUMIF(CUENTA_NOMBRE,$B7,SALDOS_FINALES)) -> 0
B8: Ingresos Normales | P8: =SUM(C8:N8) -> 0
B20: Ingresos Totales Acumulados | C20: =ABS(SUM(C7:C18)) -> 0 | D20: =ABS(SUM(D7:D18))+C20 -> 0 | E20: =ABS(SUM(E7:E18))+D20 -> 0 | F20: 0 | G20: 0 | H20: 0 | I20: 0 | J20: 0 | K20: 0 | L20: 0 | M20: 0 | N20: 0
B21: Ingresos Mensuales | C21: =ABS(SUM(C7:C18)) -> 0 | D21: =ABS(SUM(D7:D18)) -> 0 | E21: 0 | F21: 0 | G21: 0 | H21: 0 | I21: 0 | J21: 0 | K21: 0 | L21: 0 | M21: 0 | N21: 0
B23: (-) INGRESOS NO ACUMULABLES
B25: (+) OTROS INGRESOS ACUMULABLES
B27: (+) Saldo Final de Anticipos de Clientes | C27: 0 | D27: 0 | E27: 0 | F27: 0 | G27: 0 | H27: 0 | I27: 0 | J27: 0 | K27: 0 | L27: 0 | M27: 0 | N27: 0
B28: (-) Saldo Inicial de anticipos de Clientes | C28: 0 | D28: 0 | E28: 0 | F28: 0 | G28: 0 | H28: 0 | I28: 0 | J28: 0 | K28: 0 | L28: 0 | M28: 0 | N28: 0
B30: (=) Ingresos Nominales | C30: =C20+C25-C23+C27-C28 -> 0 | D30: 0 | E30: 0 | F30: 0 | G30: 0 | H30: 0 | I30: 0 | J30: 0 | K30: 0 | L30: 0 | M30: 0 | N30: 0
B32: (*) Coeficiente de Utilidad | C32: =+'Coeficiente de Utilidad'!E18 -> 0 | D32: =+C32 -> 0 | E32: =+'Coeficiente de Utilidad'!D18 -> 0 | F32: =E32 -> 0 | G32: =F32 -> 0 | H32: 0 | I32: 0 | J32: 0 | K32: 0 | L32: 0 | M32: 0 | N32: 0
B34: (=) Utilidad Fiscal Estimada | C34: =C30*C32 -> 0 | D34: =D30*D32 -> 0 | E34: 0 | F34: 0 | G34: 0 | H34: 0 | I34: 0 | J34: 0 | K34: 0 | L34: 0 | M34: 0 | N34: 0
B36: (+) Inventario Acumulable | C36: 0 | D36: 0 | E36: 0 | F36: 0 | G36: 0 | H36: 0 | I36: 0 | J36: 0 | K36: 0 | L36: 0 | M36: 0 | N36: 0
B38: (-) Pérdidas Fiscales
B40: (-) PTU Pagada | C40: 0 | D40: 0 | E40: 0 | F40: 0 | G40: 0 | H40: 0 | I40: 0 | J40: 0 | K40: 0 | L40: 0 | M40: 0 | N40: 0
B41: (-) Anticipos y Rendimientos de S.C. o A.C. | C41: 0 | D41: 0 | E41: 0 | F41: 0 | G41: 0 | H41: 0 | I41: 0 | J41: 0 | K41: 0 | L41: 0 | M41: 0 | N41: 0
B43: (=) Base Para Pago Provisional | C43: =C34+C36-C38-C40-C41 -> 0 | D43: =D34+D36-D38-D40-D41 -> 0 | E43: 0 | F43: 0 | G43: 0 | H43: 0 | I43: 0 | J43: 0 | K43: 0 | L43: 0 | M43: 0 | N43: 0
B44: (*) Tasa de ISR | C44: =VLOOKUP(Empresa!$D$13,TASAS_ISR,2) -> 0.3 | D44: =VLOOKUP(Empresa!$D$13,TASAS_ISR,2) -> 0.3 | E44: =VLOOKUP(Empresa!$D$13,TASAS_ISR,2) -> 0.3 | F44: =VLOOKUP(Empresa!$D$13,TASAS_ISR,2) -> 0.3 | G44: =VLOOKUP(Empresa!$D$13,TASAS_ISR,2) -> 0.3 | H44: =VLOOKUP(Empresa!$D$13,TASAS_ISR,2) -> 0.3 | I44: =VLOOKUP(Empresa!$D$13,TASAS_ISR,2) -> 0.3 | J44: =VLOOKUP(Empresa!$D$13,TASAS_ISR,2) -> 0.3 | K44: =VLOOKUP(Empresa!$D$13,TASAS_ISR,2) -> 0.3 | L44: =VLOOKUP(Empresa!$D$13,TASAS_ISR,2) -> 0.3 | M44: =VLOOKUP(Empresa!$D$13,TASAS_ISR,2) -> 0.3 | N44: =VLOOKUP(Empresa!$D$13,TASAS_ISR,2) -> 0.3
B45: (=) Impuesto Causado | C45: =C43*C44 -> 0 | D45: =D43*D44 -> 0 | E45: 0 | F45: 0 | G45: 0 | H45: 0 | I45: 0 | J45: 0 | K45: 0 | L45: 0 | M45: 0 | N45: 0
B47: (-) Reducciones
B49: (-) ISR Retenido Acumulado
B51: (-) Pagos Provisionales de Meses Anteriores | D51: =C59 -> 0 | E51: =D51+D59 -> 0 | F51: 0 | G51: 0 | H51: 0 | I51: 0 | J51: 0 | K51: 0 | L51: 0 | M51: 0 | N51: 0
B53: (+) Otras Cantidades a Cargo
B55: (-) OTRAS Cantidades a Favor
B57: (=) Impuesto Por Pagar | C57: =C45-C47-C49-C51+C53-C55 -> 0 | D57: =D45-D47-D49-D51+D53-D55 -> 0 | E57: 0 | F57: 0 | G57: 0 | H57: 0 | I57: 0 | J57: 0 | K57: 0 | L57: 0 | M57: 0 | N57: 0
B59: (-) Impuesto Pagado | P59: =SUM(C59:N59) -> 0
B61: (=) Diferencia | C61: =C57-C59 -> 0 | D61: =D57-D59 -> 0 | E61: 0 | F61: 0 | G61: 0 | H61: 0 | I61: 0 | J61: 0 | K61: 0 | L61: 0 | M61: 0 | N61: 0

Sheet Ingresos (hidden)
B1: =Empresa!$D$8 -> EMPRESA EJEMPLO | Q1: =B1 -> EMPRESA EJEMPLO
B2: Ventas o Ingresos para IVA | Q2: Notas o Comentarios
B3: ="Ejercicio "&Empresa!$D$13 -> Ejercicio 2024
B5: Ventas o Ingresos al 16% de IVA | C5: Enero | D5: Febrero | E5: Marzo | F5: Abril | G5: Mayo | H5: Junio | I5: Julio | J5: Agosto | K5: Septiembre | L5: Octubre | M5: Noviembre | N5: Diciembre
C7: =IF($B7="",0,SUMIF(CUENTA_NOMBRE,$B7,SALDOS_ENE)) -> 0 | D7: =IF(B7="",0,SUMIF(CUENTA_NOMBRE,$B7,SALDOS_FEB)) -> 0 | E7: =IF(B7="",0,SUMIF(CUENTA_NOMBRE,$B7,SALDOS_MAR)) -> 0 | F7: =IF(B7="",0,SUMIF(CUENTA_NOMBRE,$B7,SALDOS_ABR)) -> 0 | G7: =IF(B7="",0,SUMIF(CUENTA_NOMBRE,$B7,SALDOS_MAY)) -> 0 | H7: =IF(B7="",0,SUMIF(CUENTA_NOMBRE,$B7,SALDOS_JUN)) -> 0 | I7: =IF(B7="",0,SUMIF(CUENTA_NOMBRE,$B7,SALDOS_JUL)) -> 0 | J7: =IF(B7="",0,SUMIF(CUENTA_NOMBRE,$B7,SALDOS_AGO)) -> 0 | K7: =IF(B7="",0,SUMIF(CUENTA_NOMBRE,$B7,SALDOS_SEP)) -> 0 | L7: =IF(B7="",0,SUMIF(CUENTA_NOMBRE,$B7,SALDOS_OCT)) -> 0 | M7: =IF(B7="",0,SUMIF(CUENTA_NOMBRE,$B7,SALDOS_NOV)) -> 0 | N7: =IF(B7="",0,SUMIF(CUENTA_NOMBRE,$B7,SALDOS_FINALES)) -> 0
C8: 0 | D8: 0 | E8: 0 | F8: 0 | G8: 0 | H8: 0 | I8: 0 | J8: 0 | K8: 0 | L8: 0 | M8: 0 | N8: 0 | O8: 16
C9: 0 | D9: 0 | E9: 0 | F9: 0 | G9: 0 | H9: 0 | I9: 0 | J9: 0 | K9: 0 | L9: 0 | M9: 0 | N9: 0
C10: 0 | D10: 0 | E10: 0 | F10: 0 | G10: 0 | H10: 0 | I10: 0 | J10: 0 | K10: 0 | L10: 0 | M10: 0 | N10: 0
C11: 0 | D11: =IF(B11="",0,SUMIF(CUENTA_NOMBRE,$B11,SALDOS_FEB)) -> 0 | E11: =IF(B11="",0,SUMIF(CUENTA_NOMBRE,$B11,SALDOS_MAR)) -> 0 | F11: =IF(B11="",0,SUMIF(CUENTA_NOMBRE,$B11,SALDOS_ABR)) -> 0 | G11: =IF(B11="",0,SUMIF(CUENTA_NOMBRE,$B11,SALDOS_MAY)) -> 0 | H11: =IF(B11="",0,SUMIF(CUENTA_NOMBRE,$B11,SALDOS_JUN)) -> 0 | I11: =IF(B11="",0,SUMIF(CUENTA_NOMBRE,$B11,SALDOS_JUL)) -> 0 | J11: =IF(B11="",0,SUMIF(CUENTA_NOMBRE,$B11,SALDOS_AGO)) -> 0 | K11: =IF(B11="",0,SUMIF(CUENTA_NOMBRE,$B11,SALDOS_SEP)) -> 0 | L11: =IF(B11="",0,SUMIF(CUENTA_NOMBRE,$B11,SALDOS_OCT)) -> 0 | M11: =IF(B11="",0,SUMIF(CUENTA_NOMBRE,$B11,SALDOS_NOV)) -> 0 | N11: =IF(B11="",0,SUMIF(CUENTA_NOMBRE,$B11,SALDOS_FINALES)) -> 0
C12: 0 | D12: 0 | E12: 0 | F12: 0 | G12: 0 | H12: 0 | I12: 0 | J12: 0 | K12: 0 | L12: 0 | M12: 0 | N12: 0
C13: 0 | D13: 0 | E13: 0 | F13: 0 | G13: 0 | H13: 0 | I13: 0 | J13: 0 | K13: 0 | L13: 0 | M13: 0 | N13: 0
C14: 0 | D14: 0 | E14: 0 | F14: 0 | G14: 0 | H14: 0 | I14: 0 | J14: 0 | K14: 0 | L14: 0 | M14: 0 | N14: 0
C15: 0 | D15: 0 | E15: 0 | F15: 0 | G15: 0 | H15: 0 | I15: 0 | J15: 0 | K15: 0 | L15: 0 | M15: 0 | N15: 0
B18: Total de ventas o Ingresos al 16% | C18: =ABS(SUM(C7:C17)) -> 0 | D18: 0 | E18: 0 | F18: 0 | G18: 0 | H18: 0 | I18: 0 | J18: 0 | K18: 0 | L18: 0 | M18: 0 | N18: 0
B20: Otros Cargos
B21: Otros Abonos
B23: Totales | C23: =C18-C20+C21 -> 0 | D23: 0 | E23: 0 | F23: 0 | G23: 0 | H23: 0 | I23: 0 | J23: 0 | K23: 0 | L23: 0 | M23: 0 | N23: 0
B24: Saldos Mensuales | C24: =C23 -> 0 | D24: =D23-C23 -> 0 | E24: =E23-D23 -> 0 | F24: 0 | G24: 0 | H24: 0 | I24: 0 | J24: 0 | K24: 0 | L24: 0 | M24: 0 | N24: 0 | O24: 0
B27: Ventas o Ingresos al 11% | C27: Enero | D27: Febrero | E27: Marzo | F27: Abril | G27: Mayo | H27: Junio | I27: Julio | J27: Agosto | K27: Septiembre | L27: Octubre | M27: Noviembre | N27: Diciembre
C29: =IF($B29="",0,SUMIF(CUENTA_NOMBRE,$B29,SALDOS_ENE)) -> 0 | D29: =IF(B29="",0,SUMIF(CUENTA_NOMBRE,$B29,SALDOS_FEB)) -> 0 | E29: =IF(B29="",0,SUMIF(CUENTA_NOMBRE,$B29,SALDOS_MAR)) -> 0 | F29: =IF(B29="",0,SUMIF(CUENTA_NOMBRE,$B29,SALDOS_ABR)) -> 0 | G29: =IF(B29="",0,SUMIF(CUENTA_NOMBRE,$B29,SALDOS_MAY)) -> 0 | H29: =IF(B29="",0,SUMIF(CUENTA_NOMBRE,$B29,SALDOS_JUN)) -> 0 | I29: =IF(B29="",0,SUMIF(CUENTA_NOMBRE,$B29,SALDOS_JUL)) -> 0 | J29: =IF(B29="",0,SUMIF(CUENTA_NOMBRE,$B29,SALDOS_AGO)) -> 0 | K29: =IF(B29="",0,SUMIF(CUENTA_NOMBRE,$B29,SALDOS_SEP)) -> 0 | L29: =IF(B29="",0,SUMIF(CUENTA_NOMBRE,$B29,SALDOS_OCT)) -> 0 | M29: =IF(B29="",0,SUMIF(CUENTA_NOMBRE,$B29,SALDOS_NOV)) -> 0 | N29: =IF(B29="",0,SUMIF(CUENTA_NOMBRE,$B29,SALDOS_FINALES)) -> 0
C30: 0 | D30: 0 | E30: 0 | F30: 0 | G30: 0 | H30: 0 | I30: 0 | J30: 0 | K30: 0 | L30: 0 | M30: 0 | N30: 0 | O30: 11
C31: 0 | D31: 0 | E31: 0 | F31: 0 | G31: 0 | H31: 0 | I31: 0 | J31: 0 | K31: 0 | L31: 0 | M31: 0 | N31: 0
C32: 0 | D32: 0 | E32: 0 | F32: 0 | G32: 0 | H32: 0 | I32: 0 | J32: 0 | K32: 0 | L32: 0 | M32: 0 | N32: 0
C33: 0 | D33: 0 | E33: 0 | F33: 0 | G33: 0 | H33: 0 | I33: 0 | J33: 0 | K33: 0 | L33: 0 | M33: 0 | N33: 0
C34: 0 | D34: 0 | E34: 0 | F34: 0 | G34: 0 | H34: 0 | I34: 0 | J34: 0 | K34: 0 | L34: 0 | M34: 0 | N34: 0
B37: Total de ventas o Ingresos al 11% | C37: =ABS(SUM(C29:C35)) -> 0 | D37: 0 | E37: 0 | F37: 0 | G37: 0 | H37: 0 | I37: 0 | J37: 0 | K37: 0 | L37: 0 | M37: 0 | N37: 0
B39: Otros Cargos
B40: Otros Abonos
B42: Totales | C42: =C37-C39+C40 -> 0 | D42: 0 | E42: 0 | F42: 0 | G42: 0 | H42: 0 | I42: 0 | J42: 0 | K42: 0 | L42: 0 | M42: 0 | N42: 0
B43: Saldos Mensuales | C43: =C42 -> 0 | D43: =D42-C42 -> 0 | E43: =E42-D42 -> 0 | F43: =F42-E42 -> 0 | G43: =G42-F42 -> 0 | H43: =H42-G42 -> 0 | I43: =I42-H42 -> 0 | J43: =J42-I42 -> 0 | K43: =K42-J42 -> 0 | L43: =L42-K42 -> 0 | M43: =M42-L42 -> 0 | N43: =N42-M42 -> 0
B46: Ventas o Ingresos al 0% de IVA | C46: Enero | D46: Febrero | E46: Marzo | F46: Abril | G46: Mayo | H46: Junio | I46: Julio | J46: Agosto | K46: Septiembre | L46: Octubre | M46: Noviembre | N46: Diciembre
C48: =IF($B48="",0,SUMIF(CUENTA_NOMBRE,$B48,SALDOS_ENE)) -> 0 | D48: =IF(B48="",0,SUMIF(CUENTA_NOMBRE,$B48,SALDOS_FEB)) -> 0 | E48: =IF(B48="",0,SUMIF(CUENTA_NOMBRE,$B48,SALDOS_MAR)) -> 0 | F48: =IF(B48="",0,SUMIF(CUENTA_NOMBRE,$B48,SALDOS_ABR)) -> 0 | G48: =IF(B48="",0,SUMIF(CUENTA_NOMBRE,$B48,SALDOS_MAY)) -> 0 | H48: =IF(B48="",0,SUMIF(CUENTA_NOMBRE,$B48,SALDOS_JUN)) -> 0 | I48: =IF(B48="",0,SUMIF(CUENTA_NOMBRE,$B48,SALDOS_JUL)) -> 0 | J48: =IF(B48="",0,SUMIF(CUENTA_NOMBRE,$B48,SALDOS_AGO)) -> 0 | K48: =IF(B48="",0,SUMIF(CUENTA_NOMBRE,$B48,SALDOS_SEP)) -> 0 | L48: =IF(B48="",0,SUMIF(CUENTA_NOMBRE,$B48,SALDOS_OCT)) -> 0 | M48: =IF(B48="",0,SUMIF(CUENTA_NOMBRE,$B48,SALDOS_NOV)) -> 0 | N48: =IF(B48="",0,SUMIF(CUENTA_NOMBRE,$B48,SALDOS_FINALES)) -> 0
C49: 0 | D49: 0 | E49: 0 | F49: 0 | G49: 0 | H49: 0 | I49: 0 | J49: 0 | K49: 0 | L49: 0 | M49: 0 | N49: 0 | O49: 0
C50: 0 | D50: 0 | E50: 0 | F50: 0 | G50: 0 | H50: 0 | I50: 0 | J50: 0 | K50: 0 | L50: 0 | M50: 0 | N50: 0
C51: 0 | D51: 0 | E51: 0 | F51: 0 | G51: 0 | H51: 0 | I51: 0 | J51: 0 | K51: 0 | L51: 0 | M51: 0 | N51: 0
C52: 0 | D52: 0 | E52: 0 | F52: 0 | G52: 0 | H52: 0 | I52: 0 | J52: 0 | K52: 0 | L52: 0 | M52: 0 | N52: 0
C53: 0 | D53: 0 | E53: 0 | F53: 0 | G53: 0 | H53: 0 | I53: 0 | J53: 0 | K53: 0 | L53: 0 | M53: 0 | N53: 0
C54: 0 | D54: 0 | E54: 0 | F54: 0 | G54: 0 | H54: 0 | I54: 0 | J54: 0 | K54: 0 | L54: 0 | M54: 0 | N54: 0
C55: 0 | D55: 0 | E55: 0 | F55: 0 | G55: 0 | H55: 0 | I55: 0 | J55: 0 | K55: 0 | L55: 0 | M55: 0 | N55: 0
B58: Total de ventas o Ingresos al 0% | C58: =ABS(SUM(C48:C56)) -> 0 | D58: 0 | E58: 0 | F58: 0 | G58: 0 | H58: 0 | I58: 0 | J58: 0 | K58: 0 | L58: 0 | M58: 0 | N58: 0
B60: Otros Cargos
B61: Otros Abonos
B63: Totales | C63: =C58-C60+C61 -> 0 | D63: 0 | E63: 0 | F63: 0 | G63: 0 | H63: 0 | I63: 0 | J63: 0 | K63: 0 | L63: 0 | M63: 0 | N63: 0
B64: Saldos Mensuales | C64: =C63 -> 0 | D64: =D63-C63 -> 0 | E64: =E63-D63 -> 0 | F64: =F63-E63 -> 0 | G64: =G63-F63 -> 0 | H64: =H63-G63 -> 0 | I64: =I63-H63 -> 0 | J64: =J63-I63 -> 0 | K64: =K63-J63 -> 0 | L64: =L63-K63 -> 0 | M64: =M63-L63 -> 0 | N64: =N63-M63 -> 0
B67: Ventas o Ingresos Exentos de IVA | C67: Enero | D67: Febrero | E67: Marzo | F67: Abril | G67: Mayo | H67: Junio | I67: Julio | J67: Agosto | K67: Septiembre | L67: Octubre | M67: Noviembre | N67: Diciembre
C69: =IF($B69="",0,SUMIF(CUENTA_NOMBRE,$B69,SALDOS_ENE)) -> 0 | D69: =IF(B69="",0,SUMIF(CUENTA_NOMBRE,$B69,SALDOS_FEB)) -> 0 | E69: =IF(B69="",0,SUMIF(CUENTA_NOMBRE,$B69,SALDOS_MAR)) -> 0 | F69: =IF(B69="",0,SUMIF(CUENTA_NOMBRE,$B69,SALDOS_ABR)) -> 0 | G69: =IF(B69="",0,SUMIF(CUENTA_NOMBRE,$B69,SALDOS_MAY)) -> 0 | H69: =IF(B69="",0,SUMIF(CUENTA_NOMBRE,$B69,SALDOS_JUN)) -> 0 | I69: =IF(B69="",0,SUMIF(CUENTA_NOMBRE,$B69,SALDOS_JUL)) -> 0 | J69: =IF(B69="",0,SUMIF(CUENTA_NOMBRE,$B69,SALDOS_AGO)) -> 0 | K69: =IF(B69="",0,SUMIF(CUENTA_NOMBRE,$B69,SALDOS_SEP)) -> 0 | L69: =IF(B69="",0,SUMIF(CUENTA_NOMBRE,$B69,SALDOS_OCT)) -> 0 | M69: =IF(B69="",0,SUMIF(CUENTA_NOMBRE,$B69,SALDOS_NOV)) -> 0 | N69: =IF(B69="",0,SUMIF(CUENTA_NOMBRE,$B69,SALDOS_FINALES)) -> 0
C70: 0 | D70: 0 | E70: 0 | F70: 0 | G70: 0 | H70: 0 | I70: 0 | J70: 0 | K70: 0 | L70: 0 | M70: 0 | N70: 0 | O70: EX
C71: 0 | D71: 0 | E71: 0 | F71: 0 | G71: 0 | H71: 0 | I71: 0 | J71: 0 | K71: 0 | L71: 0 | M71: 0 | N71: 0
C72: 0 | D72: 0 | E72: 0 | F72: 0 | G72: 0 | H72: 0 | I72: 0 | J72: 0 | K72: 0 | L72: 0 | M72: 0 | N72: 0
C73: 0 | D73: 0 | E73: 0 | F73: 0 | G73: 0 | H73: 0 | I73: 0 | J73: 0 | K73: 0 | L73: 0 | M73: 0 | N73: 0
C74: 0 | D74: 0 | E74: 0 | F74: 0 | G74: 0 | H74: 0 | I74: 0 | J74: 0 | K74: 0 | L74: 0 | M74: 0 | N74: 0
C75: 0 | D75: 0 | E75: 0 | F75: 0 | G75: 0 | H75: 0 | I75: 0 | J75: 0 | K75: 0 | L75: 0 | M75: 0 | N75: 0
B78: Total de ventas o Ingresos Exentos | C78: =ABS(SUM(C69:C76)) -> 0 | D78: 0 | E78: 0 | F78: 0 | G78: 0 | H78: 0 | I78: 0 | J78: 0 | K78: 0 | L78: 0 | M78: 0 | N78: 0
B80: Otros Cargos
B81: Otros Abonos
B83: Totales | C83: =C78-C80+C81 -> 0 | D83: 0 | E83: 0 | F83: 0 | G83: 0 | H83: 0 | I83: 0 | J83: 0 | K83: 0 | L83: 0 | M83: 0 | N83: 0
B84: Saldos Mensuales | C84: =C83 -> 0 | D84: =D83-C83 -> 0 | E84: =E83-D83 -> 0 | F84: =F83-E83 -> 0 | G84: =G83-F83 -> 0 | H84: =H83-G83 -> 0 | I84: =I83-H83 -> 0 | J84: =J83-I83 -> 0 | K84: =K83-J83 -> 0 | L84: =L83-K83 -> 0 | M84: =M83-L83 -> 0 | N84: =N83-M83 -> 0
B86: Ingresos Totales | C86: =C83+C63+C42+C23 -> 0 | D86: 0 | E86: 0 | F86: 0 | G86: 0 | H86: 0 | I86: 0 | J86: 0 | K86: 0 | L86: 0 | M86: 0 | N86: 0
B87: Saldos Mensuales | C87: =C86 -> 0 | D87: =D86-C86 -> 0 | E87: =E86-D86 -> 0 | F87: =F86-E86 -> 0 | G87: =G86-F86 -> 0 | H87: =H86-G86 -> 0 | I87: =I86-H86 -> 0 | J87: =J86-I86 -> 0 | K87: =K86-J86 -> 0 | L87: =L86-K86 -> 0 | M87: =M86-L86 -> 0 | N87: =N86-M86 -> 0

Sheet Clientes (hidden)
B1: =Empresa!$D$8 -> EMPRESA EJEMPLO | R1: =B1 -> EMPRESA EJEMPLO
B2: Saldos de Clientes | R2: Notas o Comentarios
B3: ="Ejercicio "&Empresa!$D$13 -> Ejercicio 2024
B5: Clientes al 16% | C5: S.I. | D5: Enero | E5: Febrero | F5: Marzo | G5: Abril | H5: Mayo | I5: Junio | J5: Julio | K5: Agosto | L5: Septiembre | M5: Octubre | N5: Noviembre | O5: Diciembre
C7: =IF($B7="",0,SUMIF(CUENTA_NOMBRE,$B7,SALDOS_ENE)) -> 0 | D7: 0 | E7: =IF(B7="",0,SUMIF(CUENTA_NOMBRE,$B7,SALDOS_FEB)) -> 0 | F7: =IF(B7="",0,SUMIF(CUENTA_NOMBRE,$B7,SALDOS_MAR)) -> 0 | G7: =IF(B7="",0,SUMIF(CUENTA_NOMBRE,$B7,SALDOS_ABR)) -> 0 | H7: =IF(B7="",0,SUMIF(CUENTA_NOMBRE,$B7,SALDOS_MAY)) -> 0 | I7: =IF(B7="",0,SUMIF(CUENTA_NOMBRE,$B7,SALDOS_JUN)) -> 0 | J7: =IF(B7="",0,SUMIF(CUENTA_NOMBRE,$B7,SALDOS_JUL)) -> 0 | K7: =IF(B7="",0,SUMIF(CUENTA_NOMBRE,$B7,SALDOS_AGO)) -> 0 | L7: =IF(B7="",0,SUMIF(CUENTA_NOMBRE,$B7,SALDOS_SEP)) -> 0 | M7: =IF(B7="",0,SUMIF(CUENTA_NOMBRE,$B7,SALDOS_OCT)) -> 0 | N7: =IF(B7="",0,SUMIF(CUENTA_NOMBRE,$B7,SALDOS_NOV)) -> 0 | O7: =IF(B7="",0,SUMIF(CUENTA_NOMBRE,$B7,SALDOS_FINALES)) -> 0
C8: =IF($B8="",0,SUMIF(CUENTA_NOMBRE,$B8,SALDOS_INICIALES)) -> 0 | D8: 0 | E8: 0 | F8: 0 | G8: 0 | H8: 0 | I8: 0 | J8: 0 | K8: 0 | L8: 0 | M8: 0 | N8: 0 | O8: 0 | P8: 16
C9: 0 | D9: 0 | E9: 0 | F9: 0 | G9: 0 | H9: 0 | I9: 0 | J9: 0 | K9: 0 | L9: 0 | M9: 0 | N9: 0 | O9: 0
C10: 0 | D10: 0 | E10: 0 | F10: 0 | G10: 0 | H10: 0 | I10: 0 | J10: 0 | K10: 0 | L10: 0 | M10: 0 | N10: 0 | O10: 0
C11: 0 | D11: 0 | E11: 0 | F11: 0 | G11: 0 | H11: 0 | I11: 0 | J11: 0 | K11: 0 | L11: 0 | M11: 0 | N11: 0 | O11: 0
B14: Saldos de clientes al 16% | C14: =ABS(SUM(C7:C13)) -> 0 | D14: 0 | E14: 0 | F14: 0 | G14: 0 | H14: 0 | I14: 0 | J14: 0 | K14: 0 | L14: 0 | M14: 0 | N14: 0 | O14: 0
B16: Otros Cargos
B17: Otros Abonos
B19: Total de Clientes al 16% | C19: =C14+C16-C17 -> 0 | D19: 0 | E19: 0 | F19: 0 | G19: 0 | H19: 0 | I19: 0 | J19: 0 | K19: 0 | L19: 0 | M19: 0 | N19: 0 | O19: 0
B20: Saldos sin IVA | C20: =C19/1.16 -> 0 | D20: =D19/1.16 -> 0 | E20: 0 | F20: 0 | G20: 0 | H20: 0 | I20: 0 | J20: 0 | K20: 0 | L20: 0 | M20: 0 | N20: 0 | O20: 0
B24: Clientes al 11% (2013 y anteriores) | C24: S.I. | D24: Enero | E24: Febrero | F24: Marzo | G24: Abril | H24: Mayo | I24: Junio | J24: Julio | K24: Agosto | L24: Septiembre | M24: Octubre | N24: Noviembre | O24: Diciembre
C26: =IF($B26="",0,SUMIF(CUENTA_NOMBRE,$B26,SALDOS_ENE)) -> 0 | D26: 0 | E26: =IF(B26="",0,SUMIF(CUENTA_NOMBRE,$B26,SALDOS_FEB)) -> 0 | F26: =IF(B26="",0,SUMIF(CUENTA_NOMBRE,$B26,SALDOS_MAR)) -> 0 | G26: =IF(B26="",0,SUMIF(CUENTA_NOMBRE,$B26,SALDOS_ABR)) -> 0 | H26: =IF(B26="",0,SUMIF(CUENTA_NOMBRE,$B26,SALDOS_MAY)) -> 0 | I26: =IF(B26="",0,SUMIF(CUENTA_NOMBRE,$B26,SALDOS_JUN)) -> 0 | J26: =IF(B26="",0,SUMIF(CUENTA_NOMBRE,$B26,SALDOS_JUL)) -> 0 | K26: =IF(B26="",0,SUMIF(CUENTA_NOMBRE,$B26,SALDOS_AGO)) -> 0 | L26: =IF(B26="",0,SUMIF(CUENTA_NOMBRE,$B26,SALDOS_SEP)) -> 0 | M26: =IF(B26="",0,SUMIF(CUENTA_NOMBRE,$B26,SALDOS_OCT)) -> 0 | N26: =IF(B26="",0,SUMIF(CUENTA_NOMBRE,$B26,SALDOS_NOV)) -> 0 | O26: =IF(B26="",0,SUMIF(CUENTA_NOMBRE,$B26,SALDOS_FINALES)) -> 0
C27: =IF($B27="",0,SUMIF(CUENTA_NOMBRE,$B27,SALDOS_INICIALES)) -> 0 | D27: 0 | E27: 0 | F27: 0 | G27: 0 | H27: 0 | I27: 0 | J27: 0 | K27: 0 | L27: 0 | M27: 0 | N27: 0 | O27: 0 | P27: 11
C28: 0 | D28: 0 | E28: 0 | F28: 0 | G28: 0 | H28: 0 | I28: 0 | J28: 0 | K28: 0 | L28: 0 | M28: 0 | N28: 0 | O28: 0
C29: 0 | D29: 0 | E29: 0 | F29: 0 | G29: 0 | H29: 0 | I29: 0 | J29: 0 | K29: 0 | L29: 0 | M29: 0 | N29: 0 | O29: 0
C30: 0 | D30: 0 | E30: 0 | F30: 0 | G30: 0 | H30: 0 | I30: 0 | J30: 0 | K30: 0 | L30: 0 | M30: 0 | N30: 0 | O30: 0
B33: Saldos de clientes al 11% | C33: =ABS(SUM(C26:C32)) -> 0 | D33: 0 | E33: 0 | F33: 0 | G33: 0 | H33: 0 | I33: 0 | J33: 0 | K33: 0 | L33: 0 | M33: 0 | N33: 0 | O33: 0
B35: Otros Cargos
B36: Otros Abonos
B38: Total de Clientes al 11% | C38: =C33+C35-C36 -> 0 | D38: =D33+D35-D36 -> 0 | E38: 0 | F38: 0 | G38: 0 | H38: 0 | I38: 0 | J38: 0 | K38: 0 | L38: 0 | M38: 0 | N38: 0 | O38: 0
B39: Saldos sin IVA | C39: =C38/1.11 -> 0 | D39: =D38/1.11 -> 0 | E39: 0 | F39: 0 | G39: 0 | H39: 0 | I39: 0 | J39: 0 | K39: 0 | L39: 0 | M39: 0 | N39: 0 | O39: 0
B42: Total de Clientes | C42: =C20+C39 -> 0 | D42: 0 | E42: 0 | F42: 0 | G42: 0 | H42: 0 | I42: 0 | J42: 0 | K42: 0 | L42: 0 | M42: 0 | N42: 0 | O42: 0

Sheet IVA Mensual (hidden)
B1: =Empresa!$D$8 -> EMPRESA EJEMPLO | Q1: =Empresa!$D$8 -> EMPRESA EJEMPLO
B2: Determinación de los Pagos Mensuales de IVA | Q2: Notas o Comentarios
B3: =+Clientes!B3 -> Ejercicio 2024
B5: Concepto | C5: Enero | D5: Febrero | E5: Marzo | F5: Abril | G5: Mayo | H5: Junio | I5: Julio | J5: Agosto | K5: Septiembre | L5: Octubre | M5: Noviembre | N5: Diciembre | O5: Total
C7: =IF($B7="",0,SUMIF(CUENTA_NOMBRE,$B7,SALDOS_ENE)) -> 0 | D7: =IF(B7="",0,SUMIF(CUENTA_NOMBRE,$B7,SALDOS_FEB)) -> 0 | E7: =IF(B7="",0,SUMIF(CUENTA_NOMBRE,$B7,SALDOS_MAR)) -> 0 | F7: =IF(B7="",0,SUMIF(CUENTA_NOMBRE,$B7,SALDOS_ABR)) -> 0 | G7: =IF(B7="",0,SUMIF(CUENTA_NOMBRE,$B7,SALDOS_MAY)) -> 0 | H7: =IF(B7="",0,SUMIF(CUENTA_NOMBRE,$B7,SALDOS_JUN)) -> 0 | I7: =IF(B7="",0,SUMIF(CUENTA_NOMBRE,$B7,SALDOS_JUL)) -> 0 | J7: =IF(B7="",0,SUMIF(CUENTA_NOMBRE,$B7,SALDOS_AGO)) -> 0 | K7: =IF(B7="",0,SUMIF(CUENTA_NOMBRE,$B7,SALDOS_SEP)) -> 0 | L7: =IF(B7="",0,SUMIF(CUENTA_NOMBRE,$B7,SALDOS_OCT)) -> 0 | M7: =IF(B7="",0,SUMIF(CUENTA_NOMBRE,$B7,SALDOS_NOV)) -> 0 | N7: =IF(B7="",0,SUMIF(CUENTA_NOMBRE,$B7,SALDOS_FINALES)) -> 0
B8: Actos o Actividades Gravadas al 16% | C8: =Ingresos!C24 -> 0 | D8: =Ingresos!D24 -> 0 | E8: =Ingresos!E24 -> 0 | F8: =Ingresos!F24 -> 0 | G8: =Ingresos!G24 -> 0 | H8: =Ingresos!H24 -> 0 | I8: =Ingresos!I24 -> 0 | J8: =Ingresos!J24 -> 0 | K8: =Ingresos!K24 -> 0 | L8: =Ingresos!L24 -> 0 | M8: =Ingresos!M24 -> 0 | N8: =Ingresos!N24 -> 0 | O8: =SUM(C8:N8) -> 0
B9: Actos o Actividades Gravadas al 11% | C9: =Ingresos!C43 -> 0 | D9: =Ingresos!D43 -> 0 | E9: =Ingresos!E43 -> 0 | F9: =Ingresos!F43 -> 0 | G9: =Ingresos!G43 -> 0 | H9: =Ingresos!H43 -> 0 | I9: =Ingresos!I43 -> 0 | J9: =Ingresos!J43 -> 0 | K9: =Ingresos!K43 -> 0 | L9: =Ingresos!L43 -> 0 | M9: =Ingresos!M43 -> 0 | N9: =Ingresos!N43 -> 0 | O9: =SUM(C9:N9) -> 0
B10: Actos o Actividades Gravadas al 0% | C10: =Ingresos!C64 -> 0 | D10: =Ingresos!D64 -> 0 | E10: =Ingresos!E64 -> 0 | F10: =Ingresos!F64 -> 0 | G10: =Ingresos!G64 -> 0 | H10: =Ingresos!H64 -> 0 | I10: =Ingresos!I64 -> 0 | J10: =Ingresos!J64 -> 0 | K10: =Ingresos!K64 -> 0 | L10: =Ingresos!L64 -> 0 | M10: =Ingresos!M64 -> 0 | N10: =Ingresos!N64 -> 0 | O10: 0
B11: Exentos | C11: =Ingresos!C84 -> 0 | D11: =Ingresos!D84 -> 0 | E11: =Ingresos!E84 -> 0 | F11: =Ingresos!F84 -> 0 | G11: =Ingresos!G84 -> 0 | H11: =Ingresos!H84 -> 0 | I11: =Ingresos!I84 -> 0 | J11: =Ingresos!J84 -> 0 | K11: =Ingresos!K84 -> 0 | L11: =Ingresos!L84 -> 0 | M11: =Ingresos!M84 -> 0 | N11: =Ingresos!N84 -> 0 | O11: 0
B14: Ingresos totales Acumulados | C14: =ABS(SUM(C7:C13)) -> 0 | D14: 0 | E14: 0 | F14: 0 | G14: 0 | H14: 0 | I14: 0 | J14: 0 | K14: 0 | L14: 0 | M14: 0 | N14: 0 | O14: =SUM(C14:N14) -> 0
B16: (-) Saldo final de clientes al 16% | C16: =Clientes!D20 -> 0 | D16: =Clientes!E20 -> 0 | E16: =Clientes!F20 -> 0 | F16: =Clientes!G20 -> 0 | G16: =Clientes!H20 -> 0 | H16: =Clientes!I20 -> 0 | I16: =Clientes!J20 -> 0 | J16: =Clientes!K20 -> 0 | K16: =Clientes!L20 -> 0 | L16: =Clientes!M20 -> 0 | M16: =Clientes!N20 -> 0 | N16: =Clientes!O20 -> 0 | O16: =SUM(C16:N16) -> 0
B17: (+) Saldo Inicial de Clientes al 16% | C17: =Clientes!C20 -> 0 | D17: =Clientes!D20 -> 0 | E17: =Clientes!E20 -> 0 | F17: =Clientes!F20 -> 0 | G17: =Clientes!G20 -> 0 | H17: =Clientes!H20 -> 0 | I17: =Clientes!I20 -> 0 | J17: =Clientes!J20 -> 0 | K17: =Clientes!K20 -> 0 | L17: =Clientes!L20 -> 0 | M17: =Clientes!M20 -> 0 | N17: =Clientes!N20 -> 0 | O17: =SUM(C17:N17) -> 0
B18: (-) Saldo final de clientes al 11% | C18: =Clientes!D39 -> 0 | D18: =Clientes!E39 -> 0 | E18: =Clientes!F39 -> 0 | F18: =Clientes!G39 -> 0 | G18: =Clientes!H39 -> 0 | H18: =Clientes!I39 -> 0 | I18: =Clientes!J39 -> 0 | J18: =Clientes!K39 -> 0 | K18: =Clientes!L39 -> 0 | L18: =Clientes!M39 -> 0 | M18: =Clientes!N39 -> 0 | N18: =Clientes!O39 -> 0 | O18: =SUM(C18:N18) -> 0
B19: (+) Saldo Inicial de Clientes al 11% | C19: =Clientes!C39 -> 0 | D19: =Clientes!D39 -> 0 | E19: =Clientes!E39 -> 0 | F19: =Clientes!F39 -> 0 | G19: =Clientes!G39 -> 0 | H19: =Clientes!H39 -> 0 | I19: =Clientes!I39 -> 0 | J19: =Clientes!J39 -> 0 | K19: =Clientes!K39 -> 0 | L19: =Clientes!L39 -> 0 | M19: =Clientes!M39 -> 0 | N19: =Clientes!N39 -> 0 | O19: 0
B21: (+) Saldo final de Anticipos de Clientes al 16% | C21: ='Anticipos Clientes'!D20 -> 0 | D21: ='Anticipos Clientes'!E20 -> 0 | E21: ='Anticipos Clientes'!F20 -> 0 | F21: ='Anticipos Clientes'!G20 -> 0 | G21: ='Anticipos Clientes'!H20 -> 0 | H21: ='Anticipos Clientes'!I20 -> 0 | I21: ='Anticipos Clientes'!J20 -> 0 | J21: ='Anticipos Clientes'!K20 -> 0 | K21: ='Anticipos Clientes'!L20 -> 0 | L21: ='Anticipos Clientes'!M20 -> 0 | M21: ='Anticipos Clientes'!N20 -> 0 | N21: ='Anticipos Clientes'!O20 -> 0 | O21: 0
B22: (-) Saldo Inicial de Anticipos de Clientes al 16% | C22: ='Anticipos Clientes'!C20 -> 0 | D22: ='Anticipos Clientes'!D20 -> 0 | E22: ='Anticipos Clientes'!E20 -> 0 | F22: ='Anticipos Clientes'!F20 -> 0 | G22: ='Anticipos Clientes'!G20 -> 0 | H22: ='Anticipos Clientes'!H20 -> 0 | I22: ='Anticipos Clientes'!I20 -> 0 | J22: ='Anticipos Clientes'!J20 -> 0 | K22: ='Anticipos Clientes'!K20 -> 0 | L22: ='Anticipos Clientes'!L20 -> 0 | M22: ='Anticipos Clientes'!M20 -> 0 | N22: ='Anticipos Clientes'!N20 -> 0 | O22: 0
B23: (+) Saldo final de Anticipos de Clientes al 11% | C23: ='Anticipos Clientes'!D38 -> 0 | D23: ='Anticipos Clientes'!E38 -> 0 | E23: ='Anticipos Clientes'!F38 -> 0 | F23: ='Anticipos Clientes'!G38 -> 0 | G23: ='Anticipos Clientes'!H38 -> 0 | H23: ='Anticipos Clientes'!I38 -> 0 | I23: ='Anticipos Clientes'!J38 -> 0 | J23: ='Anticipos Clientes'!K38 -> 0 | K23: ='Anticipos Clientes'!L38 -> 0 | L23: ='Anticipos Clientes'!M38 -> 0 | M23: ='Anticipos Clientes'!N38 -> 0 | N23: ='Anticipos Clientes'!O38 -> 0 | O23: 0
B24: (-) Saldo Inicial de Anticipos de Clientes al 11% | C24: ='Anticipos Clientes'!C38 -> 0 | D24: ='Anticipos Clientes'!D38 -> 0 | E24: ='Anticipos Clientes'!E38 -> 0 | F24: ='Anticipos Clientes'!F38 -> 0 | G24: ='Anticipos Clientes'!G38 -> 0 | H24: ='Anticipos Clientes'!H38 -> 0 | I24: ='Anticipos Clientes'!I38 -> 0 | J24: ='Anticipos Clientes'!J38 -> 0 | K24: ='Anticipos Clientes'!K38 -> 0 | L24: ='Anticipos Clientes'!L38 -> 0 | M24: ='Anticipos Clientes'!M38 -> 0 | N24: ='Anticipos Clientes'!N38 -> 0 | O24: 0
B26: Base de IVA al 16% | C26: =C8-C16+C17+C21-C22 -> 0 | D26: 0 | E26: 0 | F26: 0 | G26: 0 | H26: 0 | I26: 0 | J26: 0 | K26: 0 | L26: 0 | M26: 0 | N26: 0 | O26: 0
B27: Base de IVA al 11% | C27: =C9-C18+C19+C23-C24 -> 0 | D27: 0 | E27: 0 | F27: 0 | G27: 0 | H27: 0 | I27: 0 | J27: 0 | K27: 0 | L27: 0 | M27: 0 | N27: 0 | O27: 0
B29: Total de Ingresos Gravados | C29: =C26+C27 -> 0 | D29: =D26+D27 -> 0 | E29: 0 | F29: 0 | G29: 0 | H29: 0 | I29: 0 | J29: 0 | K29: 0 | L29: 0 | M29: 0 | N29: 0 | O29: 0
B31: IVA al 16% | C31: =C26*0.16 -> 0 | D31: =D26*0.16 -> 0 | E31: 0 | F31: 0 | G31: 0 | H31: 0 | I31: 0 | J31: 0 | K31: 0 | L31: 0 | M31: 0 | N31: 0 | O31: 0
B32: IVA al 11% | C32: =C27*0.11 -> 0 | D32: =D27*0.11 -> 0 | E32: 0 | F32: 0 | G32: 0 | H32: 0 | I32: 0 | J32: 0 | K32: 0 | L32: 0 | M32: 0 | N32: 0 | O32: 0
B34: Total de IVA Causado | C34: =C31+C32 -> 0 | D34: =D31+D32 -> 0 | E34: 0 | F34: 0 | G34: 0 | H34: 0 | I34: 0 | J34: 0 | K34: 0 | L34: 0 | M34: 0 | N34: 0 | O34: 0
B36: IVA Retenido Acreditable | O36: =SUM(C36:N36) -> 0
B37: IVA Acreditable | O37: =SUM(C37:N37) -> 0
B38: IVA Acreditable por Importación | O38: =SUM(C38:N38) -> 0
B39: IVA Identificado con la Exportación | O39: 0
B40: IVA Obtenido de Aplicar el Prorrateo | O40: 0
B42: Total de IVA Acreditable | C42: =SUM(C36:C41) -> 0 | D42: =SUM(D36:D41) -> 0 | E42: 0 | F42: 0 | G42: 0 | H42: 0 | I42: 0 | J42: 0 | K42: 0 | L42: 0 | M42: 0 | N42: 0 | O42: 0
B44: IVA a Cargo a Favor | C44: =C34-C42 -> 0 | D44: =D34-D42 -> 0 | E44: 0 | F44: 0 | G44: 0 | H44: 0 | I44: 0 | J44: 0 | K44: 0 | L44: 0 | M44: 0 | N44: 0 | O44: 0
B46: IVA Retenido por enterar | O46: =SUM(C46:N46) -> 0
B47: IVA Retenido Enterado | O47: 0
B49: Impuesto antes de Acreditamiento | C49: =C44+C46-C47 -> 0 | D49: =D44+D46-D47 -> 0 | E49: 0 | F49: 0 | G49: 0 | H49: 0 | I49: 0 | J49: 0 | K49: 0 | L49: 0 | M49: 0 | N49: 0 | O49: =O34-O42+O46-O47 -> 0
B51: Saldo a Favor de Meses anteriores | O51: =SUM(C51:N51) -> 0
B53: IVA por pagar | C53: =IF(C49>0,C49-C51,0) -> 0 | D53: =IF(D49>0,D49-D51,0) -> 0 | E53: 0 | F53: 0 | G53: 0 | H53: 0 | I53: 0 | J53: 0 | K53: 0 | L53: 0 | M53: 0 | N53: 0 | O53: 0
B54: IVA a Favor | C54: =IF(C49<0,C49*-1,0) -> 0 | D54: =IF(D49<0,D49*-1,0) -> 0 | E54: 0 | F54: 0 | G54: 0 | H54: 0 | I54: 0 | J54: 0 | K54: 0 | L54: 0 | M54: 0 | N54: 0 | O54: 0
B56: IVA Declarado a Cargo | O56: =SUM(C56:N56) -> 0
B57: IVA Declarado a Favor | O57: =SUM(C57:N57) -> 0
B59: Diferencia en Declaración a Cargo | C59: =C53-C56 -> 0 | D59: =D53-D56 -> 0 | E59: 0 | F59: 0 | G59: 0 | H59: 0 | I59: 0 | J59: 0 | K59: =K53-K56 -> 0 | L59: 0 | M59: 0 | N59: 0 | O59: =SUM(C59:N59) -> 0
B60: Diferencia en Declaración a Favor | C60: =C54-C57 -> 0 | D60: =D54-D57 -> 0 | E60: 0 | F60: 0 | G60: 0 | H60: 0 | I60: 0 | J60: 0 | K60: =K54-K57 -> 0 | L60: 0 | M60: 0 | N60: 0 | O60: =SUM(C60:N60) -> 0

Sheet Costo de Ventas (hidden)
B1: =Empresa!D8 -> EMPRESA EJEMPLO | H1: =B1 -> EMPRESA EJEMPLO
B2: Costo de Ventas | H2: Notas o Comentarios
B3: ="Ejercicio "&Empresa!$D$13 -> Ejercicio 2024
B5: Concepto | C5: Parcial | D5: Importe a incluir en el costeo | E5: Porciento Aplicable | F5: Total
B7: Inventario Inicial | F7: =+Resultados!E11 -> 0
B8: (+) Compras Netas | F8: =F9+F10-F7 -> 0
B9: (-) Inventario Final | F9: =+Resultados!E14 -> 0 | I9: Revisar que coincida con el inventario registrado en contabilidad
B10: (=) Costo de Ventas | F10: =+Resultados!E15 -> 0
B12: (+) Mano de Obra | F12: 0
B13: (+) Maquilas | F13: 0
B14: (+) Gastos Indirectos de Fabricación | F14: 0
B15: (=) Costo de Ventas Contable | F15: =F10+F12+F13+F14 -> 0
B17: (-) Compras No Deducibles
B18: (-) Mano de Obra
B19: (-) Maquilas
B20: (-) Gastos Indirectos de Fabricación
B22: (=) Costo de Ventas Fiscal antes de Depreciaciones | F22: =F15-F17-F18-F19-F20 -> 0
B24: (-) Depreciaciones y Amortiz. Contables en Costos | C24: ='Resumen Deprec.'!F46+'Resumen Deprec.'!F50 -> 0 | D24: =C24 -> 0 | E24: 1 | F24: =D24*E24 -> 0
B25: (+) Depreciaciones y Amortiz. Fiscales en Costos | C25: ='Resumen Deprec.'!H46+'Resumen Deprec.'!H50 -> 0 | D25: =C25 -> 0 | E25: 1 | F25: =D25*E25 -> 0
B27: Depreciaciones y Amortiz. en Producción en Proceso
B28: (-) Fiscales en Proceso
B29: (+) Contables en Proceso
B30: (-) Contables en Proceso del Ejer. Anterior.
B31: (+) Fiscales en Proceso del Ejer. Anterior.
B33: Costo de Ventas Fiscal | F33: =F22-F24+F25-F28+F29-F30+F31 -> 0
B37: Comprobación de Compras netas:
B38: Compras Netas Determinadas | F38: =F8 -> 0
B39: Compras Netas Según Contabilidad o Papeles de Trabajo
B40: Diferencia | F40: =F38-F39 -> 0

Sheet Nómina Exenta (hidden)
A1: =+'Result. Contable Fiscal'!B1 -> EMPRESA EJEMPLO
A2: =+'Result. Contable Fiscal'!B2 -> Resultado Contable y Fiscal del Ejercicio 2024
B3: =+Empresa!D13 -> 2024 | D3: =+B3-1 -> 2023
A4: Conceptos | B4: Total Prestaciones | C4: Total Prestaciones y Remuneraciones | D4: Total Prestaciones | E4: Total Prestaciones y Remuneraciones
A5: 1. Sueldos y salarios.
A6: 2. Rayas y jornales.
A7: 3. Gratificaciones y aguinaldo.
A8: 4. Indemnizaciones.
A9: 5. Prima de vacaciones.
A10: 6. Prima dominical.
A11: 7. Premios por puntualidad o asistencia. | B11: =+C11 -> 0 | D11: =+E11 -> 0
A12: 8. Participación de los trabajadores en las utilidades.
A13: 9. Seguro de vida. | B13: =+C13 -> 0 | D13: =+E13 -> 0
A14: 10. Reembolso de gastos médicos, dentales y hospitalarios. | B14: 0 | D14: 0
A15: 11. Previsión social. | B15: 0 | D15: 0
A16: 12. Seguro de gastos médicos. | B16: 0 | D16: 0
A17: 13. Fondo y cajas de ahorro. | B17: 0 | D17: 0
A18: 14. Vales para despensa, restaurante, gasolina y para ropa. | B18: 0 | D18: 0
A19: 15. Ayuda de transporte. | B19: 0 | D19: 0
A20: 16. Cuotas sindicales pagadas por el patrón. | B20: 0 | D20: 0
A21: 17. Fondo de pensiones, aportaciones del patrón. | B21: 0 | D21: 0
A22: 18. Prima de antigüedad (aportaciones). | B22: 0 | D22: 0
A23: 19. Gastos por fiesta de fin de año y otros. | B23: 0 | D23: 0
A24: 20. Subsidios por incapacidad. | B24: 0 | D24: 0
A25: 21. Becas para trabajadores y/o sus hijos. | B25: 0 | D25: 0
A26: 22. Ayuda de renta, artículos escolares y dotación de anteojos. | B26: 0 | D26: 0
A27: 23. Ayuda a los trabajadores para gastos de funeral. | B27: 0 | D27: 0
A28: 24. Intereses subsidiados en créditos al personal. | B28: 0 | D28: 0
A29: 25. Horas extras.
A30: 26. Jubilaciones, pensiones y haberes de retiro.
A31: 27. Contribuciones a cargo del trabajador pagadas por el patrón. | B31: =+C31 -> 0 | D31: =+E31 -> 0
B32: =SUM(B5:B31) -> 0 | C32: =SUM(C5:C31) -> 0 | D32: 0 | E32: 0
B34: =B32/C32 ->  | D34: =D32/E32 -> 
A37: INGRESOS EXENTOS DE ACUERDO A NÓMINA (TOTAL) | C37: =IF(B34>D34,"53%","47%") -> 
A38: EXENTOS DEDUCIBLES | B38: =B37*C37 -> 
A39: EXENTOS NO DEDUCIBLES | B39: =+B37-B38 -> 

Sheet Depreciaciones (hidden)
A1: =Empresa!D8 -> EMPRESA EJEMPLO | CG1: =A1 -> EMPRESA EJEMPLO
A2: Activos Fijos y Depreciaciones | CG2: Notas o Comentarios
A3: ="Ejercicio "&Empresa!D13 -> Ejercicio 2024
F5: Depreciación Contable | AH5: Depreciación Fiscal | BW5: Venta de Activos Fijos
A6: Tipo de AF | B6: Sub-Cuenta | C6: Descripción | D6: Moi | E6: Fecha de Adquisición | F6: % Contable | G6: =VALUE("1/1/"&Empresa!$D$13) -> 2024-01-01 | H6: =VALUE("1/2/"&Empresa!$D$13) -> 2024-02-01 | I6: =VALUE("1/3/"&Empresa!$D$13) -> 2024-03-01 | J6: =VALUE("1/4/"&Empresa!$D$13) -> 2024-04-01 | K6: =VALUE("1/5/"&Empresa!$D$13) -> 2024-05-01 | L6: =VALUE("1/6/"&Empresa!$D$13) -> 2024-06-01 | M6: =VALUE("1/7/"&Empresa!$D$13) -> 2024-07-01 | N6: =VALUE("1/8/"&Empresa!$D$13) -> 2024-08-01 | O6: =VALUE("1/9/"&Empresa!$D$13) -> 2024-09-01 | P6: =VALUE("1/10/"&Empresa!$D$13) -> 2024-10-01 | Q6: =VALUE("1/11/"&Empresa!$D$13) -> 2024-11-01 | R6: =VALUE("1/12/"&Empresa!$D$13) -> 2024-12-01 | S6: Depreciación Contable | T6: Deprec. Acum. al Inicio del Ejercicio. | U6: Depreciación Acumulada | V6: MOI por Depreciar | W6: MESES A DEPRECIAR | X6: DEPRECIACION MENSUAL | Y6: TOTAL DE MESES TRANSC. INI | Z6: MESES DE USO ACUMULADOS AL INICIO DEL EJERC. | AA6: TOTAL DE MESES TRANSC. FIN | AB6: MESES DE USO ACUMULADOS AL FINAL DEL EJERC. | AC6: ADQUISICIONES TOTALE DEL EJERCICIO | AD6: MES INICIO DEL EJERCICIO | AE6: MES FINAL DEL EJERCICIO | AF6: FECHA INICIO | AG6: FECHA FINAL | AH6: MOI Deducible | AI6: Fecha de Inicio | AJ6: % Fiscal | AK6: Se le Aplicó Deducción Inmed.? | AL6: =VALUE("1/1/"&Empresa!$D$13) -> 45292 | AM6: =VALUE("1/2/"&Empresa!$D$13) -> 45323 | AN6: =VALUE("1/3/"&Empresa!$D$13) -> 45352 | AO6: =VALUE("1/4/"&Empresa!$D$13) -> 45383 | AP6: =VALUE("1/5/"&Empresa!$D$13) -> 45413 | AQ6: =VALUE("1/6/"&Empresa!$D$13) -> 45444 | AR6: =VALUE("1/7/"&Empresa!$D$13) -> 45474 | AS6: =VALUE("1/8/"&Empresa!$D$13) -> 45505 | AT6: =VALUE("1/9/"&Empresa!$D$13) -> 45536 | AU6: =VALUE("1/10/"&Empresa!$D$13) -> 45566 | AV6: =VALUE("1/11/"&Empresa!$D$13) -> 45597 | AW6: =VALUE("1/12/"&Empresa!$D$13) -> 45627 | AX6: Depreciación Histórica | AY6: INPC de Mes de Adquisición | AZ6: INPC de Mitad de Periodo | BA6: Factor de Actualización | BB6: Depreciación Fiscal | BC6: Depreciación Acumulada al Inicio del Ejerc. | BD6: Depreciación Acumulada | BE6: MOI por Depreciar | BF6: MESES A DEPRECIAR | BG6: DEPRECIACION MENSUAL | BH6: TOTAL DE MESES TRANSC. INI | BI6: MESES DE USO ACUMULADOS AL INICIO DEL EJERC. | BJ6: TOTAL DE MESES TRANSC. FIN | BK6: MESES DE USO ACUMULADOS AL FINAL DEL EJERC. | BL6: ADQUISICIONES TOTALE DEL EJERCICIO | BM6: MES INICIO DEL EJERCICIO | BN6: MES FINAL DEL EJERCICIO | BO6: FECHA INICIO | BP6: FECHA FINAL | BQ6: MES DE INICIO DE USO | BR6: MES DE FIN DE USO | BS6: MESES DE USO EN EL EJERCICIO | BT6: MES DE FIN DE MITAD DE PERIODO | BU6: FECHA DE VENTA O BAJA | BV6: IMPORTE DE VENTA | BW6: Fecha de Venta o Baja | BX6: Importe de la Venta | BY6: MOI | BZ6: Costo Contable | CA6: Utilidad Contable | CB6: Pérdida Contable | CC6: Costo Fiscal | CD6: Utilidad Fiscal | CE6: Pérdida Fiscal
F7: =IF($E7="","",VLOOKUP($A7,PORCIENTOS,2)) ->  | G7: =IF($E7="","",IF($G$6<$AF7,0,(IF($G$6<$AG7,IF(D7-X7*Z7<X7,D7-X7*Z7,$X7),0)))) ->  | H7: =IF($E7="","",IF($H$6<$AF7,0,(IF($H$6<$AG7,IF(D7-G7-X7*Z7<X7,D7-G7-X7*Z7,$X7),0)))) ->  | I7: =IF($E7="","",IF($I$6<$AF7,0,(IF($I$6<$AG7,IF(D7-G7-H7-X7*Z7<X7,D7-G7-H7-X7*Z7,$X7),0)))) ->  | J7: =IF($E7="","",IF($J$6<$AF7,0,(IF($J$6<$AG7,IF(D7-G7-H7-I7-X7*Z7<X7,D7-G7-H7-I7-X7*Z7,$X7),0)))) ->  | K7: =IF($E7="","",IF($K$6<$AF7,0,(IF($K$6<$AG7,IF(D7-G7-H7-I7-J7-X7*Z7<X7,D7-G7-H7-I7-J7-X7*Z7,$X7),0)))) ->  | L7: =IF($E7="","",IF($L$6<$AF7,0,(IF($L$6<$AG7,IF(D7-G7-H7-I7-J7-K7-X7*Z7<X7,D7-G7-H7-I7-J7-K7-X7*Z7,$X7),0)))) ->  | M7: =IF($E7="","",IF($M$6<$AF7,0,(IF($M$6<$AG7,IF(D7-G7-H7-I7-J7-K7-L7-X7*Z7<X7,D7-G7-H7-I7-J7-K7-L7-X7*Z7,$X7),0)))) ->  | N7: =IF($E7="","",IF($N$6<$AF7,0,(IF($N$6<$AG7,IF(D7-G7-H7-I7-J7-K7-L7-M7-X7*Z7<X7,D7-G7-H7-I7-J7-K7-L7-M7-X7*Z7,$X7),0)))) ->  | O7: =IF($E7="","",IF($O$6<$AF7,0,(IF($O$6<$AG7,IF(D7-G7-H7-I7-J7-K7-L7-M7-N7-X7*Z7<X7,D7-G7-H7-I7-J7-K7-L7-M7-N7-X7*Z7,$X7),0)))) ->  | P7: =IF($E7="","",IF($P$6<$AF7,0,(IF($P$6<$AG7,IF(D7-G7-H7-I7-J7-K7-L7-M7-N7-O7-X7*Z7<X7,D7-G7-H7-I7-J7-K7-L7-M7-N7-O7-X7*Z7,$X7),0)))) ->  | Q7: =IF($E7="","",IF($Q$6<$AF7,0,(IF($Q$6<$AG7,IF(D7-G7-H7-I7-J7-K7-L7-M7-N7-O7-P7-X7*Z7<X7,D7-G7-H7-I7-J7-K7-L7-M7-N7-O7-P7-X7*Z7,$X7),0)))) ->  | R7: =IF($E7="","",IF($R$6<$AF7,0,(IF($R$6<$AG7,IF(D7-G7-H7-I7-J7-K7-L7-M7-N7-O7-P7-Q7-X7*Z7<X7,D7-G7-H7-I7-J7-K7-L7-M7-N7-O7-P7-Q7-X7*Z7,$X7),0)))) ->  | S7: =IF($E7="","",SUM(G7:R7)) ->  | T7: =IF(Z7="","",IF(Y7>W7,D7,Z7*X7)) ->  | U7: =IF(S7="","",S7+T7) ->  | V7: =IF($E7="","",D7-U7-IF(BZ7="",0,BZ7)) ->  | W7: =IF($E7="","",IF(F7=0,"",12/F7)) ->  | X7: =IF($E7="","",IF(W7="",0,D7/W7)) ->  | Y7: =IF(D7="","",IF(AD7<AF7,0,DATEDIF(AF7,AD7,"M"))) ->  | Z7: =IF(F7="","",IF(F7=0,0,IF(TRUNC(W7,0)<Y7,TRUNC(W7,0),Y7))) ->  | AA7: =IF(D7="","",IF(AE7+1<AF7,0,DATEDIF(AF7,AE7+1,"M"))) ->  | AB7: =IF(F7="","",IF(F7=0,0,IF(TRUNC(W7,0)<AA7,TRUNC(W7,0),AA7))) ->  | AC7: =IF(E7="","",IF(E7>AD7-1,D7,"")) ->  | AD7: =IF($E7="","",VALUE(CONCATENATE("1/1/",Empresa!$D$13))) ->  | AE7: =IF($E7="","",VALUE(CONCATENATE("31/12/",Empresa!$D$13))) ->  | AF7: =IF(W7="","",IF(E7="","",EOMONTH(E7,0)+1)) ->  | AG7: =IF(W7="","",IF(BW7="",EOMONTH(AF7,W7-1)+((12/F7)-ROUND(12/F7,0))*30.4375,IF(BW7>EOMONTH(AF7,W7-1)+((12/F7)-ROUND(12/F7,0))*30.4375,EOMONTH(AF7,W7-1)+((12/F7)-ROUND(12/F7,0))*30.4375,EOMONTH(BW7,-1)))) ->  | AH7: =IF(D7="","",IF(A7="EQUIPO DE TRANSPORTE (AUTOMOVILES)",IF(VLOOKUP(YEAR(E7),'Tablas de AF'!$H$10:$I$49,2)>D7,D7,VLOOKUP(YEAR(E7),'Tablas de AF'!$H$10:$I$49,2)),D7)) ->  | AI7: =IF(E7="","",E7) ->  | AJ7: =IF($E7="","",VLOOKUP($A7,PORCIENTOS,3)) ->  | AL7: =IF($E7="","",IF($AL$6<$BO7,0,(IF($AL$6<$BP7,IF(AH7-BG7*BI7<BG7,AH7-BG7*BI7,$BG7),0)))) ->  | AM7: =IF($E7="","",IF($AM$6<$BO7,0,(IF($AM$6<$BP7,IF(AH7-AL7-BG7*BI7<BG7,AH7-AL7-BG7*BI7,$BG7),0)))) ->  | AN7: =IF($E7="","",IF($AN$6<$BO7,0,(IF($AN$6<$BP7,IF(AH7-AL7-AM7-BG7*BI7<BG7,AH7-AL7-AM7-BG7*BI7,$BG7),0)))) ->  | AO7: =IF($E7="","",IF($AO$6<$BO7,0,(IF($AO$6<$BP7,IF(AH7-AL7-AM7-AN7-BG7*BI7<BG7,AH7-AL7-AM7-AN7-BG7*BI7,$BG7),0)))) ->  | AP7: =IF($E7="","",IF($AP$6<$BO7,0,(IF($AP$6<$BP7,IF(AH7-AL7-AM7-AN7-AO7-BG7*BI7<BG7,AH7-AL7-AM7-AN7-AO7-BG7*BI7,$BG7),0)))) ->  | AQ7: =IF($E7="","",IF($AQ$6<$BO7,0,(IF($AQ$6<$BP7,IF(AH7-AL7-AM7-AN7-AO7-AP7-BG7*BI7<BG7,AH7-AL7-AM7-AN7-AO7-AP7-BG7*BI7,$BG7),0)))) ->  | AR7: =IF($E7="","",IF($AR$6<$BO7,0,(IF($AR$6<$BP7,IF(AH7-AL7-AM7-AN7-AO7-AP7-AQ7-BG7*BI7<BG7,AH7-AL7-AM7-AN7-AO7-AP7-AQ7-BG7*BI7,$BG7),0)))) ->  | AS7: =IF($E7="","",IF($AS$6<$BO7,0,(IF($AS$6<$BP7,IF(AH7-AL7-AM7-AN7-AO7-AP7-AQ7-AR7-BG7*BI7<BG7,AH7-AL7-AM7-AN7-AO7-AP7-AQ7-AR7-BG7*BI7,$BG7),0)))) ->  | AT7: =IF($E7="","",IF($AT$6<$BO7,0,(IF($AT$6<$BP7,IF(AH7-AL7-AM7-AN7-AO7-AP7-AQ7-AR7-AS7-BG7*BI7<BG7,AH7-AL7-AM7-AN7-AO7-AP7-AQ7-AR7-AS7-BG7*BI7,$BG7),0)))) ->  | AU7: =IF($E7="","",IF($AU$6<$BO7,0,(IF($AU$6<$BP7,IF(AH7-AL7-AM7-AN7-AO7-AP7-AQ7-AR7-AS7-AT7-BG7*BI7<BG7,AH7-AL7-AM7-AN7-AO7-AP7-AQ7-AR7-AS7-AT7-BG7*BI7,$BG7),0)))) ->  | AV7: =IF($E7="","",IF($AV$6<$BO7,0,(IF($AV$6<$BP7,IF(AH7-AL7-AM7-AN7-AO7-AP7-AQ7-AR7-AS7-AT7-AU7-BG7*BI7<BG7,AH7-AL7-AM7-AN7-AO7-AP7-AQ7-AR7-AS7-AT7-AU7-BG7*BI7,$BG7),0)))) ->  | AW7: =IF($E7="","",IF($AW$6<$BO7,0,(IF($AW$6<$BP7,IF(AH7-AL7-AM7-AN7-AO7-AP7-AQ7-AR7-AS7-AT7-AU7-AV7-BG7*BI7<BG7,AH7-AL7-AM7-AN7-AO7-AP7-AQ7-AR7-AS7-AT7-AU7-AV7-BG7*BI7,$BG7),0)))) ->  | AX7: =IF($E7="","",SUM(AL7:AW7)) ->  | AY7: =IF(E7="","",VLOOKUP(YEAR(E7),INPC,MONTH(E7)+1)) ->  | AZ7: =IF(E7="","",IF(BT7=0,AY7,VLOOKUP(Empresa!$D$13,INPC,Depreciaciones!BT7+1))) ->  | BA7: =IF(E7="","",IF(AZ7<AY7,1,TRUNC(AZ7/AY7,4))) ->  | BB7: =IF(E7="","",IF(AK7="si",0,AX7*BA7)) ->  | BC7: =IF(BI7="","",IF(BH7>BF7,AH7,BI7*BG7)) ->  | BD7: =IF(AX7="","",AX7+BC7) ->  | BE7: =IF($E7="","",AH7-BD7-IF(CC7="",0,CC7/BA7)) ->  | BF7: =IF($E7="","",IF(AJ7=0,"",12/AJ7)) ->  | BG7: =IF($E7="","",IF(BF7="",0,AH7/BF7)) ->  | BH7: =IF(AH7="","",IF(BM7<BO7,0,DATEDIF(BO7,BM7,"M"))) ->  | BI7: =IF(AJ7="","",IF(AJ7=0,0,IF(TRUNC(BF7,0)<BH7,TRUNC(BF7,0),BH7))) ->  | BJ7: =IF(AH7="","",IF(BN7+1<BO7,0,DATEDIF(BO7,BN7+1,"M"))) ->  | BK7: =IF(AJ7="","",IF(AJ7=0,0,IF(TRUNC(BF7,0)<BJ7,TRUNC(BF7,0),BJ7))) ->  | BL7: =IF(AI7="","",IF(AI7>BM7-1,AH7,"")) ->  | BM7: =IF($E7="","",VALUE(CONCATENATE("1/1/",Empresa!$D$13))) ->  | BN7: =IF($E7="","",VALUE(CONCATENATE("31/12/",Empresa!$D$13))) ->  | BO7: =IF(BF7="","",IF(AI7="","",EOMONTH(AI7,0)+1)) ->  | BP7: =IF(BF7="","",IF(BU7="",EOMONTH(BO7,BF7-1)+((12/AJ7)-ROUND(12/AJ7,0))*30.4375,IF(BU7>EOMONTH(BO7,BF7-1)+((12/AJ7)-ROUND(12/AJ7,0))*30.4375,EOMONTH(BO7,BF7-1)+((12/AJ7)-ROUND(12/AJ7,0))*30.4375,EOMONTH(BU7,-1)))) ->  | BQ7: =IF(E7="","",IF(AL7>0,1,IF(AM7>0,2,IF(AN7>0,3,IF(AO7>0,4,IF(AP7>0,5,IF(AQ7>0,6,IF(AR7>0,7,IF(AS7>0,8,IF(AT7>0,9,IF(AU7>0,10,IF(AV7>0,11,IF(AW7>0,12,0))))))))))))) ->  | BR7: =IF(E7="","",IF(AW7>0,12,IF(AV7>0,11,IF(AU7>0,10,IF(AT7>0,9,IF(AS7>0,8,IF(AR7>0,7,IF(AQ7>0,6,IF(AP7>0,5,IF(AO7>0,4,IF(AN7>0,3,IF(AM7>0,2,IF(AL7>0,1,0))))))))))))) ->  | BS7: =IF(E7="","",IF(BQ7+BR7=0,0,BR7-BQ7+1)) ->  | BT7: =IF(E7="","",(TRUNC(BS7/2,0)+IF(BR7=1,1,0)+IF(BQ7>1,BQ7-1,0))+IF(BQ7=12,0,0)) ->  | BU7: =IF(BW7="","",BW7) ->  | BV7: =IF(BX7="","",BX7) ->  | BY7: =IF(BW7="","",D7) ->  | BZ7: =IF(BW7="","",IF(BW7<AD7,"",IF(BW7>AE7,"",D7-U7))) ->  | CA7: =IF(BZ7="","",IF(BX7>BZ7,BX7-BZ7,0)) ->  | CB7: =IF(BZ7="","",IF(BX7<BZ7,BZ7-BX7,0)) ->  | CC7: =IF(E7="","",IF(BU7="","",IF(AK7="si",0,IF(BU7<BM7,"",IF(BU7>BN7,"",(AH7-BD7)*BA7))))) ->  | CD7: =IF(CC7="","",IF(BV7="",0,IF(BV7>CC7,BV7-CC7,0))) ->  | CE7: =IF(CC7="","",IF(BV7<CC7,CC7-BV7,0)) -> 
G8: =IF($E8="","",IF($G$6<$AF8,0,(IF($G$6<$AG8,IF(D8-X8*Z8<X8,D8-X8*Z8,$X8),0)))) ->  | H8: =IF($E8="","",IF($H$6<$AF8,0,(IF($H$6<$AG8,IF(D8-G8-X8*Z8<X8,D8-G8-X8*Z8,$X8),0)))) ->  | I8: =IF($E8="","",IF($I$6<$AF8,0,(IF($I$6<$AG8,IF(D8-G8-H8-X8*Z8<X8,D8-G8-H8-X8*Z8,$X8),0)))) ->  | J8: =IF($E8="","",IF($J$6<$AF8,0,(IF($J$6<$AG8,IF(D8-G8-H8-I8-X8*Z8<X8,D8-G8-H8-I8-X8*Z8,$X8),0)))) ->  | K8: =IF($E8="","",IF($K$6<$AF8,0,(IF($K$6<$AG8,IF(D8-G8-H8-I8-J8-X8*Z8<X8,D8-G8-H8-I8-J8-X8*Z8,$X8),0)))) ->  | L8: =IF($E8="","",IF($L$6<$AF8,0,(IF($L$6<$AG8,IF(D8-G8-H8-I8-J8-K8-X8*Z8<X8,D8-G8-H8-I8-J8-K8-X8*Z8,$X8),0)))) ->  | M8: =IF($E8="","",IF($M$6<$AF8,0,(IF($M$6<$AG8,IF(D8-G8-H8-I8-J8-K8-L8-X8*Z8<X8,D8-G8-H8-I8-J8-K8-L8-X8*Z8,$X8),0)))) ->  | N8: =IF($E8="","",IF($N$6<$AF8,0,(IF($N$6<$AG8,IF(D8-G8-H8-I8-J8-K8-L8-M8-X8*Z8<X8,D8-G8-H8-I8-J8-K8-L8-M8-X8*Z8,$X8),0)))) ->  | O8: =IF($E8="","",IF($O$6<$AF8,0,(IF($O$6<$AG8,IF(D8-G8-H8-I8-J8-K8-L8-M8-N8-X8*Z8<X8,D8-G8-H8-I8-J8-K8-L8-M8-N8-X8*Z8,$X8),0)))) ->  | P8: =IF($E8="","",IF($P$6<$AF8,0,(IF($P$6<$AG8,IF(D8-G8-H8-I8-J8-K8-L8-M8-N8-O8-X8*Z8<X8,D8-G8-H8-I8-J8-K8-L8-M8-N8-O8-X8*Z8,$X8),0)))) ->  | Q8: =IF($E8="","",IF($Q$6<$AF8,0,(IF($Q$6<$AG8,IF(D8-G8-H8-I8-J8-K8-L8-M8-N8-O8-P8-X8*Z8<X8,D8-G8-H8-I8-J8-K8-L8-M8-N8-O8-P8-X8*Z8,$X8),0)))) ->  | R8: =IF($E8="","",IF($R$6<$AF8,0,(IF($R$6<$AG8,IF(D8-G8-H8-I8-J8-K8-L8-M8-N8-O8-P8-Q8-X8*Z8<X8,D8-G8-H8-I8-J8-K8-L8-M8-N8-O8-P8-Q8-X8*Z8,$X8),0)))) ->  | S8: =IF($E8="","",SUM(G8:R8)) ->  | T8: =IF(Z8="","",IF(Y8>W8,D8,Z8*X8)) ->  | U8: =IF(S8="","",S8+T8) ->  | V8: =IF($E8="","",D8-U8-IF(BZ8="",0,BZ8)) ->  | W8: =IF($E8="","",IF(F8=0,"",12/F8)) ->  | X8: =IF($E8="","",IF(W8="",0,D8/W8)) ->  | Y8: =IF(D8="","",IF(AD8<AF8,0,DATEDIF(AF8,AD8,"M"))) ->  | Z8: =IF(F8="","",IF(F8=0,0,IF(TRUNC(W8,0)<Y8,TRUNC(W8,0),Y8))) ->  | AA8: =IF(D8="","",IF(AE8+1<AF8,0,DATEDIF(AF8,AE8+1,"M"))) ->  | AB8: =IF(F8="","",IF(F8=0,0,IF(TRUNC(W8,0)<AA8,TRUNC(W8,0),AA8))) ->  | AC8: =IF(E8="","",IF(E8>AD8-1,D8,"")) ->  | AD8: =IF($E8="","",VALUE(CONCATENATE("1/1/",Empresa!$D$13))) ->  | AE8: =IF($E8="","",VALUE(CONCATENATE("31/12/",Empresa!$D$13))) ->  | AF8: =IF(W8="","",IF(E8="","",EOMONTH(E8,0)+1)) ->  | AG8: =IF(W8="","",IF(BW8="",EOMONTH(AF8,W8-1)+((12/F8)-ROUND(12/F8,0))*30.4375,IF(BW8>EOMONTH(AF8,W8-1)+((12/F8)-ROUND(12/F8,0))*30.4375,EOMONTH(AF8,W8-1)+((12/F8)-ROUND(12/F8,0))*30.4375,EOMONTH(BW8,-1)))) ->  | AH8: =IF(D8="","",IF(A8="EQUIPO DE TRANSPORTE (AUTOMOVILES)",IF(VLOOKUP(YEAR(E8),'Tablas de AF'!$H$10:$I$49,2)>D8,D8,VLOOKUP(YEAR(E8),'Tablas de AF'!$H$10:$I$49,2)),D8)) ->  | AI8: =IF(E8="","",E8) ->  | AL8: =IF($E8="","",IF($AL$6<$BO8,0,(IF($AL$6<$BP8,IF(AH8-BG8*BI8<BG8,AH8-BG8*BI8,$BG8),0)))) ->  | AM8: =IF($E8="","",IF($AM$6<$BO8,0,(IF($AM$6<$BP8,IF(AH8-AL8-BG8*BI8<BG8,AH8-AL8-BG8*BI8,$BG8),0)))) ->  | AN8: =IF($E8="","",IF($AN$6<$BO8,0,(IF($AN$6<$BP8,IF(AH8-AL8-AM8-BG8*BI8<BG8,AH8-AL8-AM8-BG8*BI8,$BG8),0)))) ->  | AO8: =IF($E8="","",IF($AO$6<$BO8,0,(IF($AO$6<$BP8,IF(AH8-AL8-AM8-AN8-BG8*BI8<BG8,AH8-AL8-AM8-AN8-BG8*BI8,$BG8),0)))) ->  | AP8: =IF($E8="","",IF($AP$6<$BO8,0,(IF($AP$6<$BP8,IF(AH8-AL8-AM8-AN8-AO8-BG8*BI8<BG8,AH8-AL8-AM8-AN8-AO8-BG8*BI8,$BG8),0)))) ->  | AQ8: =IF($E8="","",IF($AQ$6<$BO8,0,(IF($AQ$6<$BP8,IF(AH8-AL8-AM8-AN8-AO8-AP8-BG8*BI8<BG8,AH8-AL8-AM8-AN8-AO8-AP8-BG8*BI8,$BG8),0)))) ->  | AR8: =IF($E8="","",IF($AR$6<$BO8,0,(IF($AR$6<$BP8,IF(AH8-AL8-AM8-AN8-AO8-AP8-AQ8-BG8*BI8<BG8,AH8-AL8-AM8-AN8-AO8-AP8-AQ8-BG8*BI8,$BG8),0)))) ->  | AS8: =IF($E8="","",IF($AS$6<$BO8,0,(IF($AS$6<$BP8,IF(AH8-AL8-AM8-AN8-AO8-AP8-AQ8-AR8-BG8*BI8<BG8,AH8-AL8-AM8-AN8-AO8-AP8-AQ8-AR8-BG8*BI8,$BG8),0)))) ->  | AT8: =IF($E8="","",IF($AT$6<$BO8,0,(IF($AT$6<$BP8,IF(AH8-AL8-AM8-AN8-AO8-AP8-AQ8-AR8-AS8-BG8*BI8<BG8,AH8-AL8-AM8-AN8-AO8-AP8-AQ8-AR8-AS8-BG8*BI8,$BG8),0)))) ->  | AU8: =IF($E8="","",IF($AU$6<$BO8,0,(IF($AU$6<$BP8,IF(AH8-AL8-AM8-AN8-AO8-AP8-AQ8-AR8-AS8-AT8-BG8*BI8<BG8,AH8-AL8-AM8-AN8-AO8-AP8-AQ8-AR8-AS8-AT8-BG8*BI8,$BG8),0)))) ->  | AV8: =IF($E8="","",IF($AV$6<$BO8,0,(IF($AV$6<$BP8,IF(AH8-AL8-AM8-AN8-AO8-AP8-AQ8-AR8-AS8-AT8-AU8-BG8*BI8<BG8,AH8-AL8-AM8-AN8-AO8-AP8-AQ8-AR8-AS8-AT8-AU8-BG8*BI8,$BG8),0)))) ->  | AW8: =IF($E8="","",IF($AW$6<$BO8,0,(IF($AW$6<$BP8,IF(AH8-AL8-AM8-AN8-AO8-AP8-AQ8-AR8-AS8-AT8-AU8-AV8-BG8*BI8<BG8,AH8-AL8-AM8-AN8-AO8-AP8-AQ8-AR8-AS8-AT8-AU8-AV8-BG8*BI8,$BG8),0)))) ->  | AX8: =IF($E8="","",SUM(AL8:AW8)) ->  | AY8: =IF(E8="","",VLOOKUP(YEAR(E8),INPC,MONTH(E8)+1)) ->  | AZ8: =IF(E8="","",IF(BT8=0,AY8,VLOOKUP(Empresa!$D$13,INPC,Depreciaciones!BT8+1))) ->  | BA8: =IF(E8="","",IF(AZ8<AY8,1,TRUNC(AZ8/AY8,4))) ->  | BB8: =IF(E8="","",IF(AK8="si",0,AX8*BA8)) ->  | BC8: =IF(BI8="","",IF(BH8>BF8,AH8,BI8*BG8)) ->  | BD8: =IF(AX8="","",AX8+BC8) ->  | BE8: =IF($E8="","",AH8-BD8-IF(CC8="",0,CC8/BA8)) ->  | BF8: =IF($E8="","",IF(AJ8=0,"",12/AJ8)) ->  | BG8: =IF($E8="","",IF(BF8="",0,AH8/BF8)) ->  | BH8: =IF(AH8="","",IF(BM8<BO8,0,DATEDIF(BO8,BM8,"M"))) ->  | BI8: =IF(AJ8="","",IF(AJ8=0,0,IF(TRUNC(BF8,0)<BH8,TRUNC(BF8,0),BH8))) ->  | BJ8: =IF(AH8="","",IF(BN8+1<BO8,0,DATEDIF(BO8,BN8+1,"M"))) ->  | BK8: =IF(AJ8="","",IF(AJ8=0,0,IF(TRUNC(BF8,0)<BJ8,TRUNC(BF8,0),BJ8))) ->  | BL8: =IF(AI8="","",IF(AI8>BM8-1,AH8,"")) ->  | BM8: =IF($E8="","",VALUE(CONCATENATE("1/1/",Empresa!$D$13))) ->  | BN8: =IF($E8="","",VALUE(CONCATENATE("31/12/",Empresa!$D$13))) ->  | BO8: =IF(BF8="","",IF(AI8="","",EOMONTH(AI8,0)+1)) ->  | BP8: =IF(BF8="","",IF(BU8="",EOMONTH(BO8,BF8-1)+((12/AJ8)-ROUND(12/AJ8,0))*30.4375,IF(BU8>EOMONTH(BO8,BF8-1)+((12/AJ8)-ROUND(12/AJ8,0))*30.4375,EOMONTH(BO8,BF8-1)+((12/AJ8)-ROUND(12/AJ8,0))*30.4375,EOMONTH(BU8,-1)))) ->  | BQ8: =IF(E8="","",IF(AL8>0,1,IF(AM8>0,2,IF(AN8>0,3,IF(AO8>0,4,IF(AP8>0,5,IF(AQ8>0,6,IF(AR8>0,7,IF(AS8>0,8,IF(AT8>0,9,IF(AU8>0,10,IF(AV8>0,11,IF(AW8>0,12,0))))))))))))) ->  | BR8: =IF(E8="","",IF(AW8>0,12,IF(AV8>0,11,IF(AU8>0,10,IF(AT8>0,9,IF(AS8>0,8,IF(AR8>0,7,IF(AQ8>0,6,IF(AP8>0,5,IF(AO8>0,4,IF(AN8>0,3,IF(AM8>0,2,IF(AL8>0,1,0))))))))))))) ->  | BS8: =IF(E8="","",IF(BQ8+BR8=0,0,BR8-BQ8+1)) ->  | BU8: =IF(BW8="","",BW8) ->  | BV8: =IF(BX8="","",BX8) ->  | BY8: =IF(BW8="","",D8) ->  | BZ8: =IF(BW8="","",IF(BW8<AD8,"",IF(BW8>AE8,"",D8-U8))) ->  | CA8: =IF(BZ8="","",IF(BX8>BZ8,BX8-BZ8,0)) ->  | CB8: =IF(BZ8="","",IF(BX8<BZ8,BZ8-BX8,0)) ->  | CC8: =IF(E8="","",IF(BU8="","",IF(AK8="si",0,IF(BU8<BM8,"",IF(BU8>BN8,"",(AH8-BD8)*BA8))))) ->  | CD8: =IF(CC8="","",IF(BV8="",0,IF(BV8>CC8,BV8-CC8,0))) ->  | CE8: =IF(CC8="","",IF(BV8<CC8,CC8-BV8,0)) -> 
S9: =IF($E9="","",SUM(G9:R9)) ->  | AD9: =IF($E9="","",VALUE(CONCATENATE("1/1/",Empresa!$D$13))) ->  | AE9: =IF($E9="","",VALUE(CONCATENATE("31/12/",Empresa!$D$13))) ->  | AH9: =IF(D9="","",IF(A9="EQUIPO DE TRANSPORTE (AUTOMOVILES)",IF(VLOOKUP(YEAR(E9),'Tablas de AF'!$H$10:$I$49,2)>D9,D9,VLOOKUP(YEAR(E9),'Tablas de AF'!$H$10:$I$49,2)),D9)) ->  | AZ9: =IF(E9="","",IF(BT9=0,AY9,VLOOKUP(Empresa!$D$13,INPC,Depreciaciones!BT9+1))) ->  | BM9: =IF($E9="","",VALUE(CONCATENATE("1/1/",Empresa!$D$13))) ->  | BN9: =IF($E9="","",VALUE(CONCATENATE("31/12/",Empresa!$D$13))) ->  | BT9: =IF(E9="","",(TRUNC(BS9/2,0)+IF(BR9=1,1,0)+IF(BQ9>1,BQ9-1,0))+IF(BQ9=12,0,0)) -> 
AD10: =IF($E10="","",VALUE(CONCATENATE("1/1/",Empresa!$D$13))) ->  | AE10: =IF($E10="","",VALUE(CONCATENATE("31/12/",Empresa!$D$13))) ->  | AH10: =IF(D10="","",IF(A10="EQUIPO DE TRANSPORTE (AUTOMOVILES)",IF(VLOOKUP(YEAR(E10),'Tablas de AF'!$H$10:$I$49,2)>D10,D10,VLOOKUP(YEAR(E10),'Tablas de AF'!$H$10:$I$49,2)),D10)) ->  | AZ10: =IF(E10="","",IF(BT10=0,AY10,VLOOKUP(Empresa!$D$13,INPC,Depreciaciones!BT10+1))) ->  | BM10: =IF($E10="","",VALUE(CONCATENATE("1/1/",Empresa!$D$13))) ->  | BN10: =IF($E10="","",VALUE(CONCATENATE("31/12/",Empresa!$D$13))) ->  | BT10: =IF(E10="","",(TRUNC(BS10/2,0)+IF(BR10=1,1,0)+IF(BQ10>1,BQ10-1,0))+IF(BQ10=12,0,0)) -> 
AD11: =IF($E11="","",VALUE(CONCATENATE("1/1/",Empresa!$D$13))) ->  | AE11: =IF($E11="","",VALUE(CONCATENATE("31/12/",Empresa!$D$13))) ->  | AH11: =IF(D11="","",IF(A11="EQUIPO DE TRANSPORTE (AUTOMOVILES)",IF(VLOOKUP(YEAR(E11),'Tablas de AF'!$H$10:$I$49,2)>D11,D11,VLOOKUP(YEAR(E11),'Tablas de AF'!$H$10:$I$49,2)),D11)) ->  | AZ11: =IF(E11="","",IF(BT11=0,AY11,VLOOKUP(Empresa!$D$13,INPC,Depreciaciones!BT11+1))) ->  | BM11: =IF($E11="","",VALUE(CONCATENATE("1/1/",Empresa!$D$13))) ->  | BN11: =IF($E11="","",VALUE(CONCATENATE("31/12/",Empresa!$D$13))) -> 
AD12: =IF($E12="","",VALUE(CONCATENATE("1/1/",Empresa!$D$13))) ->  | AE12: =IF($E12="","",VALUE(CONCATENATE("31/12/",Empresa!$D$13))) ->  | AH12: =IF(D12="","",IF(A12="EQUIPO DE TRANSPORTE (AUTOMOVILES)",IF(VLOOKUP(YEAR(E12),'Tablas de AF'!$H$10:$I$49,2)>D12,D12,VLOOKUP(YEAR(E12),'Tablas de AF'!$H$10:$I$49,2)),D12)) ->  | AZ12: =IF(E12="","",IF(BT12=0,AY12,VLOOKUP(Empresa!$D$13,INPC,Depreciaciones!BT12+1))) ->  | BM12: =IF($E12="","",VALUE(CONCATENATE("1/1/",Empresa!$D$13))) ->  | BN12: =IF($E12="","",VALUE(CONCATENATE("31/12/",Empresa!$D$13))) -> 
AD13: =IF($E13="","",VALUE(CONCATENATE("1/1/",Empresa!$D$13))) ->  | AE13: =IF($E13="","",VALUE(CONCATENATE("31/12/",Empresa!$D$13))) ->  | AH13: =IF(D13="","",IF(A13="EQUIPO DE TRANSPORTE (AUTOMOVILES)",IF(VLOOKUP(YEAR(E13),'Tablas de AF'!$H$10:$I$49,2)>D13,D13,VLOOKUP(YEAR(E13),'Tablas de AF'!$H$10:$I$49,2)),D13)) ->  | AZ13: =IF(E13="","",IF(BT13=0,AY13,VLOOKUP(Empresa!$D$13,INPC,Depreciaciones!BT13+1))) ->  | BM13: =IF($E13="","",VALUE(CONCATENATE("1/1/",Empresa!$D$13))) ->  | BN13: =IF($E13="","",VALUE(CONCATENATE("31/12/",Empresa!$D$13))) -> 
AD14: =IF($E14="","",VALUE(CONCATENATE("1/1/",Empresa!$D$13))) ->  | AE14: =IF($E14="","",VALUE(CONCATENATE("31/12/",Empresa!$D$13))) ->  | AH14: =IF(D14="","",IF(A14="EQUIPO DE TRANSPORTE (AUTOMOVILES)",IF(VLOOKUP(YEAR(E14),'Tablas de AF'!$H$10:$I$49,2)>D14,D14,VLOOKUP(YEAR(E14),'Tablas de AF'!$H$10:$I$49,2)),D14)) ->  | AZ14: =IF(E14="","",IF(BT14=0,AY14,VLOOKUP(Empresa!$D$13,INPC,Depreciaciones!BT14+1))) ->  | BM14: =IF($E14="","",VALUE(CONCATENATE("1/1/",Empresa!$D$13))) ->  | BN14: =IF($E14="","",VALUE(CONCATENATE("31/12/",Empresa!$D$13))) -> 
AD15: =IF($E15="","",VALUE(CONCATENATE("1/1/",Empresa!$D$13))) ->  | AE15: =IF($E15="","",VALUE(CONCATENATE("31/12/",Empresa!$D$13))) ->  | AH15: =IF(D15="","",IF(A15="EQUIPO DE TRANSPORTE (AUTOMOVILES)",IF(VLOOKUP(YEAR(E15),'Tablas de AF'!$H$10:$I$49,2)>D15,D15,VLOOKUP(YEAR(E15),'Tablas de AF'!$H$10:$I$49,2)),D15)) ->  | AZ15: =IF(E15="","",IF(BT15=0,AY15,VLOOKUP(Empresa!$D$13,INPC,Depreciaciones!BT15+1))) ->  | BM15: =IF($E15="","",VALUE(CONCATENATE("1/1/",Empresa!$D$13))) ->  | BN15: =IF($E15="","",VALUE(CONCATENATE("31/12/",Empresa!$D$13))) -> 
AD16: =IF($E16="","",VALUE(CONCATENATE("1/1/",Empresa!$D$13))) ->  | AE16: =IF($E16="","",VALUE(CONCATENATE("31/12/",Empresa!$D$13))) ->  | AH16: =IF(D16="","",IF(A16="EQUIPO DE TRANSPORTE (AUTOMOVILES)",IF(VLOOKUP(YEAR(E16),'Tablas de AF'!$H$10:$I$49,2)>D16,D16,VLOOKUP(YEAR(E16),'Tablas de AF'!$H$10:$I$49,2)),D16)) ->  | AZ16: =IF(E16="","",IF(BT16=0,AY16,VLOOKUP(Empresa!$D$13,INPC,Depreciaciones!BT16+1))) ->  | BM16: =IF($E16="","",VALUE(CONCATENATE("1/1/",Empresa!$D$13))) ->  | BN16: =IF($E16="","",VALUE(CONCATENATE("31/12/",Empresa!$D$13))) -> 
AD17: =IF($E17="","",VALUE(CONCATENATE("1/1/",Empresa!$D$13))) ->  | AE17: =IF($E17="","",VALUE(CONCATENATE("31/12/",Empresa!$D$13))) ->  | AH17: =IF(D17="","",IF(A17="EQUIPO DE TRANSPORTE (AUTOMOVILES)",IF(VLOOKUP(YEAR(E17),'Tablas de AF'!$H$10:$I$49,2)>D17,D17,VLOOKUP(YEAR(E17),'Tablas de AF'!$H$10:$I$49,2)),D17)) ->  | AZ17: =IF(E17="","",IF(BT17=0,AY17,VLOOKUP(Empresa!$D$13,INPC,Depreciaciones!BT17+1))) ->  | BM17: =IF($E17="","",VALUE(CONCATENATE("1/1/",Empresa!$D$13))) ->  | BN17: =IF($E17="","",VALUE(CONCATENATE("31/12/",Empresa!$D$13))) -> 
AD18: =IF($E18="","",VALUE(CONCATENATE("1/1/",Empresa!$D$13))) ->  | AE18: =IF($E18="","",VALUE(CONCATENATE("31/12/",Empresa!$D$13))) ->  | AH18: =IF(D18="","",IF(A18="EQUIPO DE TRANSPORTE (AUTOMOVILES)",IF(VLOOKUP(YEAR(E18),'Tablas de AF'!$H$10:$I$49,2)>D18,D18,VLOOKUP(YEAR(E18),'Tablas de AF'!$H$10:$I$49,2)),D18)) ->  | AZ18: =IF(E18="","",IF(BT18=0,AY18,VLOOKUP(Empresa!$D$13,INPC,Depreciaciones!BT18+1))) ->  | BM18: =IF($E18="","",VALUE(CONCATENATE("1/1/",Empresa!$D$13))) ->  | BN18: =IF($E18="","",VALUE(CONCATENATE("31/12/",Empresa!$D$13))) -> 
AD19: =IF($E19="","",VALUE(CONCATENATE("1/1/",Empresa!$D$13))) ->  | AE19: =IF($E19="","",VALUE(CONCATENATE("31/12/",Empresa!$D$13))) ->  | AH19: =IF(D19="","",IF(A19="EQUIPO DE TRANSPORTE (AUTOMOVILES)",IF(VLOOKUP(YEAR(E19),'Tablas de AF'!$H$10:$I$49,2)>D19,D19,VLOOKUP(YEAR(E19),'Tablas de AF'!$H$10:$I$49,2)),D19)) ->  | AZ19: =IF(E19="","",IF(BT19=0,AY19,VLOOKUP(Empresa!$D$13,INPC,Depreciaciones!BT19+1))) ->  | BM19: =IF($E19="","",VALUE(CONCATENATE("1/1/",Empresa!$D$13))) ->  | BN19: =IF($E19="","",VALUE(CONCATENATE("31/12/",Empresa!$D$13))) -> 
AD20: =IF($E20="","",VALUE(CONCATENATE("1/1/",Empresa!$D$13))) ->  | AE20: =IF($E20="","",VALUE(CONCATENATE("31/12/",Empresa!$D$13))) ->  | AH20: =IF(D20="","",IF(A20="EQUIPO DE TRANSPORTE (AUTOMOVILES)",IF(VLOOKUP(YEAR(E20),'Tablas de AF'!$H$10:$I$49,2)>D20,D20,VLOOKUP(YEAR(E20),'Tablas de AF'!$H$10:$I$49,2)),D20)) ->  | AZ20: =IF(E20="","",IF(BT20=0,AY20,VLOOKUP(Empresa!$D$13,INPC,Depreciaciones!BT20+1))) ->  | BM20: =IF($E20="","",VALUE(CONCATENATE("1/1/",Empresa!$D$13))) ->  | BN20: =IF($E20="","",VALUE(CONCATENATE("31/12/",Empresa!$D$13))) -> 
AD21: =IF($E21="","",VALUE(CONCATENATE("1/1/",Empresa!$D$13))) ->  | AE21: =IF($E21="","",VALUE(CONCATENATE("31/12/",Empresa!$D$13))) ->  | AH21: =IF(D21="","",IF(A21="EQUIPO DE TRANSPORTE (AUTOMOVILES)",IF(VLOOKUP(YEAR(E21),'Tablas de AF'!$H$10:$I$49,2)>D21,D21,VLOOKUP(YEAR(E21),'Tablas de AF'!$H$10:$I$49,2)),D21)) ->  | AZ21: =IF(E21="","",IF(BT21=0,AY21,VLOOKUP(Empresa!$D$13,INPC,Depreciaciones!BT21+1))) ->  | BM21: =IF($E21="","",VALUE(CONCATENATE("1/1/",Empresa!$D$13))) ->  | BN21: =IF($E21="","",VALUE(CONCATENATE("31/12/",Empresa!$D$13))) -> 
AD22: =IF($E22="","",VALUE(CONCATENATE("1/1/",Empresa!$D$13))) ->  | AE22: =IF($E22="","",VALUE(CONCATENATE("31/12/",Empresa!$D$13))) ->  | AH22: =IF(D22="","",IF(A22="EQUIPO DE TRANSPORTE (AUTOMOVILES)",IF(VLOOKUP(YEAR(E22),'Tablas de AF'!$H$10:$I$49,2)>D22,D22,VLOOKUP(YEAR(E22),'Tablas de AF'!$H$10:$I$49,2)),D22)) ->  | AZ22: =IF(E22="","",IF(BT22=0,AY22,VLOOKUP(Empresa!$D$13,INPC,Depreciaciones!BT22+1))) ->  | BM22: =IF($E22="","",VALUE(CONCATENATE("1/1/",Empresa!$D$13))) ->  | BN22: =IF($E22="","",VALUE(CONCATENATE("31/12/",Empresa!$D$13))) -> 
AD23: =IF($E23="","",VALUE(CONCATENATE("1/1/",Empresa!$D$13))) ->  | AE23: =IF($E23="","",VALUE(CONCATENATE("31/12/",Empresa!$D$13))) ->  | AH23: =IF(D23="","",IF(A23="EQUIPO DE TRANSPORTE (AUTOMOVILES)",IF(VLOOKUP(YEAR(E23),'Tablas de AF'!$H$10:$I$49,2)>D23,D23,VLOOKUP(YEAR(E23),'Tablas de AF'!$H$10:$I$49,2)),D23)) ->  | AZ23: =IF(E23="","",IF(BT23=0,AY23,VLOOKUP(Empresa!$D$13,INPC,Depreciaciones!BT23+1))) ->  | BM23: =IF($E23="","",VALUE(CONCATENATE("1/1/",Empresa!$D$13))) ->  | BN23: =IF($E23="","",VALUE(CONCATENATE("31/12/",Empresa!$D$13))) -> 
AD24: =IF($E24="","",VALUE(CONCATENATE("1/1/",Empresa!$D$13))) ->  | AE24: =IF($E24="","",VALUE(CONCATENATE("31/12/",Empresa!$D$13))) ->  | AH24: =IF(D24="","",IF(A24="EQUIPO DE TRANSPORTE (AUTOMOVILES)",IF(VLOOKUP(YEAR(E24),'Tablas de AF'!$H$10:$I$49,2)>D24,D24,VLOOKUP(YEAR(E24),'Tablas de AF'!$H$10:$I$49,2)),D24)) ->  | AZ24: =IF(E24="","",IF(BT24=0,AY24,VLOOKUP(Empresa!$D$13,INPC,Depreciaciones!BT24+1))) ->  | BM24: =IF($E24="","",VALUE(CONCATENATE("1/1/",Empresa!$D$13))) ->  | BN24: =IF($E24="","",VALUE(CONCATENATE("31/12/",Empresa!$D$13))) -> 
AD25: =IF($E25="","",VALUE(CONCATENATE("1/1/",Empresa!$D$13))) ->  | AE25: =IF($E25="","",VALUE(CONCATENATE("31/12/",Empresa!$D$13))) ->  | AH25: =IF(D25="","",IF(A25="EQUIPO DE TRANSPORTE (AUTOMOVILES)",IF(VLOOKUP(YEAR(E25),'Tablas de AF'!$H$10:$I$49,2)>D25,D25,VLOOKUP(YEAR(E25),'Tablas de AF'!$H$10:$I$49,2)),D25)) ->  | AZ25: =IF(E25="","",IF(BT25=0,AY25,VLOOKUP(Empresa!$D$13,INPC,Depreciaciones!BT25+1))) ->  | BM25: =IF($E25="","",VALUE(CONCATENATE("1/1/",Empresa!$D$13))) ->  | BN25: =IF($E25="","",VALUE(CONCATENATE("31/12/",Empresa!$D$13))) -> 
AD26: =IF($E26="","",VALUE(CONCATENATE("1/1/",Empresa!$D$13))) ->  | AE26: =IF($E26="","",VALUE(CONCATENATE("31/12/",Empresa!$D$13))) ->  | AH26: =IF(D26="","",IF(A26="EQUIPO DE TRANSPORTE (AUTOMOVILES)",IF(VLOOKUP(YEAR(E26),'Tablas de AF'!$H$10:$I$49,2)>D26,D26,VLOOKUP(YEAR(E26),'Tablas de AF'!$H$10:$I$49,2)),D26)) ->  | AZ26: =IF(E26="","",IF(BT26=0,AY26,VLOOKUP(Empresa!$D$13,INPC,Depreciaciones!BT26+1))) ->  | BM26: =IF($E26="","",VALUE(CONCATENATE("1/1/",Empresa!$D$13))) ->  | BN26: =IF($E26="","",VALUE(CONCATENATE("31/12/",Empresa!$D$13))) -> 
AD27: =IF($E27="","",VALUE(CONCATENATE("1/1/",Empresa!$D$13))) ->  | AE27: =IF($E27="","",VALUE(CONCATENATE("31/12/",Empresa!$D$13))) ->  | AH27: =IF(D27="","",IF(A27="EQUIPO DE TRANSPORTE (AUTOMOVILES)",IF(VLOOKUP(YEAR(E27),'Tablas de AF'!$H$10:$I$49,2)>D27,D27,VLOOKUP(YEAR(E27),'Tablas de AF'!$H$10:$I$49,2)),D27)) ->  | AZ27: =IF(E27="","",IF(BT27=0,AY27,VLOOKUP(Empresa!$D$13,INPC,Depreciaciones!BT27+1))) ->  | BM27: =IF($E27="","",VALUE(CONCATENATE("1/1/",Empresa!$D$13))) ->  | BN27: =IF($E27="","",VALUE(CONCATENATE("31/12/",Empresa!$D$13))) -> 
AD28: =IF($E28="","",VALUE(CONCATENATE("1/1/",Empresa!$D$13))) ->  | AE28: =IF($E28="","",VALUE(CONCATENATE("31/12/",Empresa!$D$13))) ->  | AH28: =IF(D28="","",IF(A28="EQUIPO DE TRANSPORTE (AUTOMOVILES)",IF(VLOOKUP(YEAR(E28),'Tablas de AF'!$H$10:$I$49,2)>D28,D28,VLOOKUP(YEAR(E28),'Tablas de AF'!$H$10:$I$49,2)),D28)) ->  | AZ28: =IF(E28="","",IF(BT28=0,AY28,VLOOKUP(Empresa!$D$13,INPC,Depreciaciones!BT28+1))) ->  | BM28: =IF($E28="","",VALUE(CONCATENATE("1/1/",Empresa!$D$13))) ->  | BN28: =IF($E28="","",VALUE(CONCATENATE("31/12/",Empresa!$D$13))) -> 
AD29: =IF($E29="","",VALUE(CONCATENATE("1/1/",Empresa!$D$13))) ->  | AE29: =IF($E29="","",VALUE(CONCATENATE("31/12/",Empresa!$D$13))) ->  | AH29: =IF(D29="","",IF(A29="EQUIPO DE TRANSPORTE (AUTOMOVILES)",IF(VLOOKUP(YEAR(E29),'Tablas de AF'!$H$10:$I$49,2)>D29,D29,VLOOKUP(YEAR(E29),'Tablas de AF'!$H$10:$I$49,2)),D29)) ->  | AZ29: =IF(E29="","",IF(BT29=0,AY29,VLOOKUP(Empresa!$D$13,INPC,Depreciaciones!BT29+1))) ->  | BM29: =IF($E29="","",VALUE(CONCATENATE("1/1/",Empresa!$D$13))) ->  | BN29: =IF($E29="","",VALUE(CONCATENATE("31/12/",Empresa!$D$13))) -> 
AD30: =IF($E30="","",VALUE(CONCATENATE("1/1/",Empresa!$D$13))) ->  | AE30: =IF($E30="","",VALUE(CONCATENATE("31/12/",Empresa!$D$13))) ->  | AH30: =IF(D30="","",IF(A30="EQUIPO DE TRANSPORTE (AUTOMOVILES)",IF(VLOOKUP(YEAR(E30),'Tablas de AF'!$H$10:$I$49,2)>D30,D30,VLOOKUP(YEAR(E30),'Tablas de AF'!$H$10:$I$49,2)),D30)) ->  | AZ30: =IF(E30="","",IF(BT30=0,AY30,VLOOKUP(Empresa!$D$13,INPC,Depreciaciones!BT30+1))) ->  | BM30: =IF($E30="","",VALUE(CONCATENATE("1/1/",Empresa!$D$13))) ->  | BN30: =IF($E30="","",VALUE(CONCATENATE("31/12/",Empresa!$D$13))) -> 
AD31: =IF($E31="","",VALUE(CONCATENATE("1/1/",Empresa!$D$13))) ->  | AE31: =IF($E31="","",VALUE(CONCATENATE("31/12/",Empresa!$D$13))) ->  | AH31: =IF(D31="","",IF(A31="EQUIPO DE TRANSPORTE (AUTOMOVILES)",IF(VLOOKUP(YEAR(E31),'Tablas de AF'!$H$10:$I$49,2)>D31,D31,VLOOKUP(YEAR(E31),'Tablas de AF'!$H$10:$I$49,2)),D31)) ->  | AZ31: =IF(E31="","",IF(BT31=0,AY31,VLOOKUP(Empresa!$D$13,INPC,Depreciaciones!BT31+1))) ->  | BM31: =IF($E31="","",VALUE(CONCATENATE("1/1/",Empresa!$D$13))) ->  | BN31: =IF($E31="","",VALUE(CONCATENATE("31/12/",Empresa!$D$13))) -> 
AD32: =IF($E32="","",VALUE(CONCATENATE("1/1/",Empresa!$D$13))) ->  | AE32: =IF($E32="","",VALUE(CONCATENATE("31/12/",Empresa!$D$13))) ->  | AH32: =IF(D32="","",IF(A32="EQUIPO DE TRANSPORTE (AUTOMOVILES)",IF(VLOOKUP(YEAR(E32),'Tablas de AF'!$H$10:$I$49,2)>D32,D32,VLOOKUP(YEAR(E32),'Tablas de AF'!$H$10:$I$49,2)),D32)) ->  | AZ32: =IF(E32="","",IF(BT32=0,AY32,VLOOKUP(Empresa!$D$13,INPC,Depreciaciones!BT32+1))) ->  | BM32: =IF($E32="","",VALUE(CONCATENATE("1/1/",Empresa!$D$13))) ->  | BN32: =IF($E32="","",VALUE(CONCATENATE("31/12/",Empresa!$D$13))) -> 
AD33: =IF($E33="","",VALUE(CONCATENATE("1/1/",Empresa!$D$13))) ->  | AE33: =IF($E33="","",VALUE(CONCATENATE("31/12/",Empresa!$D$13))) ->  | AH33: =IF(D33="","",IF(A33="EQUIPO DE TRANSPORTE (AUTOMOVILES)",IF(VLOOKUP(YEAR(E33),'Tablas de AF'!$H$10:$I$49,2)>D33,D33,VLOOKUP(YEAR(E33),'Tablas de AF'!$H$10:$I$49,2)),D33)) ->  | AZ33: =IF(E33="","",IF(BT33=0,AY33,VLOOKUP(Empresa!$D$13,INPC,Depreciaciones!BT33+1))) ->  | BM33: =IF($E33="","",VALUE(CONCATENATE("1/1/",Empresa!$D$13))) ->  | BN33: =IF($E33="","",VALUE(CONCATENATE("31/12/",Empresa!$D$13))) -> 
AD34: =IF($E34="","",VALUE(CONCATENATE("1/1/",Empresa!$D$13))) ->  | AE34: =IF($E34="","",VALUE(CONCATENATE("31/12/",Empresa!$D$13))) ->  | AH34: =IF(D34="","",IF(A34="EQUIPO DE TRANSPORTE (AUTOMOVILES)",IF(VLOOKUP(YEAR(E34),'Tablas de AF'!$H$10:$I$49,2)>D34,D34,VLOOKUP(YEAR(E34),'Tablas de AF'!$H$10:$I$49,2)),D34)) ->  | AZ34: =IF(E34="","",IF(BT34=0,AY34,VLOOKUP(Empresa!$D$13,INPC,Depreciaciones!BT34+1))) ->  | BM34: =IF($E34="","",VALUE(CONCATENATE("1/1/",Empresa!$D$13))) ->  | BN34: =IF($E34="","",VALUE(CONCATENATE("31/12/",Empresa!$D$13))) -> 
AD35: =IF($E35="","",VALUE(CONCATENATE("1/1/",Empresa!$D$13))) ->  | AE35: =IF($E35="","",VALUE(CONCATENATE("31/12/",Empresa!$D$13))) ->  | AH35: =IF(D35="","",IF(A35="EQUIPO DE TRANSPORTE (AUTOMOVILES)",IF(VLOOKUP(YEAR(E35),'Tablas de AF'!$H$10:$I$49,2)>D35,D35,VLOOKUP(YEAR(E35),'Tablas de AF'!$H$10:$I$49,2)),D35)) ->  | AZ35: =IF(E35="","",IF(BT35=0,AY35,VLOOKUP(Empresa!$D$13,INPC,Depreciaciones!BT35+1))) ->  | BM35: =IF($E35="","",VALUE(CONCATENATE("1/1/",Empresa!$D$13))) ->  | BN35: =IF($E35="","",VALUE(CONCATENATE("31/12/",Empresa!$D$13))) -> 
AD36: =IF($E36="","",VALUE(CONCATENATE("1/1/",Empresa!$D$13))) ->  | AE36: =IF($E36="","",VALUE(CONCATENATE("31/12/",Empresa!$D$13))) ->  | AH36: =IF(D36="","",IF(A36="EQUIPO DE TRANSPORTE (AUTOMOVILES)",IF(VLOOKUP(YEAR(E36),'Tablas de AF'!$H$10:$I$49,2)>D36,D36,VLOOKUP(YEAR(E36),'Tablas de AF'!$H$10:$I$49,2)),D36)) ->  | AZ36: =IF(E36="","",IF(BT36=0,AY36,VLOOKUP(Empresa!$D$13,INPC,Depreciaciones!BT36+1))) ->  | BM36: =IF($E36="","",VALUE(CONCATENATE("1/1/",Empresa!$D$13))) ->  | BN36: =IF($E36="","",VALUE(CONCATENATE("31/12/",Empresa!$D$13))) -> 
G37: =IF($E37="","",IF($G$6<$AF37,0,(IF($G$6<$AG37,IF(D37-X37*Z37<X37,D37-X37*Z37,$X37),0)))) ->  | H37: =IF($E37="","",IF($H$6<$AF37,0,(IF($H$6<$AG37,IF(D37-G37-X37*Z37<X37,D37-G37-X37*Z37,$X37),0)))) ->  | I37: =IF($E37="","",IF($I$6<$AF37,0,(IF($I$6<$AG37,IF(D37-G37-H37-X37*Z37<X37,D37-G37-H37-X37*Z37,$X37),0)))) ->  | J37: =IF($E37="","",IF($J$6<$AF37,0,(IF($J$6<$AG37,IF(D37-G37-H37-I37-X37*Z37<X37,D37-G37-H37-I37-X37*Z37,$X37),0)))) ->  | K37: =IF($E37="","",IF($K$6<$AF37,0,(IF($K$6<$AG37,IF(D37-G37-H37-I37-J37-X37*Z37<X37,D37-G37-H37-I37-J37-X37*Z37,$X37),0)))) ->  | L37: =IF($E37="","",IF($L$6<$AF37,0,(IF($L$6<$AG37,IF(D37-G37-H37-I37-J37-K37-X37*Z37<X37,D37-G37-H37-I37-J37-K37-X37*Z37,$X37),0)))) ->  | M37: =IF($E37="","",IF($M$6<$AF37,0,(IF($M$6<$AG37,IF(D37-G37-H37-I37-J37-K37-L37-X37*Z37<X37,D37-G37-H37-I37-J37-K37-L37-X37*Z37,$X37),0)))) ->  | N37: =IF($E37="","",IF($N$6<$AF37,0,(IF($N$6<$AG37,IF(D37-G37-H37-I37-J37-K37-L37-M37-X37*Z37<X37,D37-G37-H37-I37-J37-K37-L37-M37-X37*Z37,$X37),0)))) ->  | O37: =IF($E37="","",IF($O$6<$AF37,0,(IF($O$6<$AG37,IF(D37-G37-H37-I37-J37-K37-L37-M37-N37-X37*Z37<X37,D37-G37-H37-I37-J37-K37-L37-M37-N37-X37*Z37,$X37),0)))) ->  | P37: =IF($E37="","",IF($P$6<$AF37,0,(IF($P$6<$AG37,IF(D37-G37-H37-I37-J37-K37-L37-M37-N37-O37-X37*Z37<X37,D37-G37-H37-I37-J37-K37-L37-M37-N37-O37-X37*Z37,$X37),0)))) ->  | Q37: =IF($E37="","",IF($Q$6<$AF37,0,(IF($Q$6<$AG37,IF(D37-G37-H37-I37-J37-K37-L37-M37-N37-O37-P37-X37*Z37<X37,D37-G37-H37-I37-J37-K37-L37-M37-N37-O37-P37-X37*Z37,$X37),0)))) ->  | R37: =IF($E37="","",IF($R$6<$AF37,0,(IF($R$6<$AG37,IF(D37-G37-H37-I37-J37-K37-L37-M37-N37-O37-P37-Q37-X37*Z37<X37,D37-G37-H37-I37-J37-K37-L37-M37-N37-O37-P37-Q37-X37*Z37,$X37),0)))) ->  | S37: =IF($E37="","",SUM(G37:R37)) ->  | T37: =IF(Z37="","",IF(Y37>W37,D37,Z37*X37)) ->  | U37: =IF(S37="","",S37+T37) ->  | V37: =IF($E37="","",D37-U37-IF(BZ37="",0,BZ37)) ->  | W37: =IF($E37="","",IF(F37=0,"",12/F37)) ->  | X37: =IF($E37="","",IF(W37="",0,D37/W37)) ->  | Y37: =IF(D37="","",IF(AD37<AF37,0,DATEDIF(AF37,AD37,"M"))) ->  | Z37: =IF(F37="","",IF(F37=0,0,IF(TRUNC(W37,0)<Y37,TRUNC(W37,0),Y37))) ->  | AA37: =IF(D37="","",IF(AE37+1<AF37,0,DATEDIF(AF37,AE37+1,"M"))) ->  | AB37: =IF(F37="","",IF(F37=0,0,IF(TRUNC(W37,0)<AA37,TRUNC(W37,0),AA37))) ->  | AC37: =IF(E37="","",IF(E37>AD37-1,D37,"")) ->  | AD37: =IF($E37="","",VALUE(CONCATENATE("1/1/",Empresa!$D$13))) ->  | AE37: =IF($E37="","",VALUE(CONCATENATE("31/12/",Empresa!$D$13))) ->  | AF37: =IF(W37="","",IF(E37="","",EOMONTH(E37,0)+1)) ->  | AG37: =IF(W37="","",IF(BW37="",EOMONTH(AF37,W37-1)+((12/F37)-ROUND(12/F37,0))*30.4375,IF(BW37>EOMONTH(AF37,W37-1)+((12/F37)-ROUND(12/F37,0))*30.4375,EOMONTH(AF37,W37-1)+((12/F37)-ROUND(12/F37,0))*30.4375,EOMONTH(BW37,-1)))) ->  | AH37: =IF(D37="","",IF(A37="EQUIPO DE TRANSPORTE (AUTOMOVILES)",IF(VLOOKUP(YEAR(E37),'Tablas de AF'!$H$10:$I$49,2)>D37,D37,VLOOKUP(YEAR(E37),'Tablas de AF'!$H$10:$I$49,2)),D37)) ->  | AI37: =IF(E37="","",E37) ->  | AL37: =IF($E37="","",IF($AL$6<$BO37,0,(IF($AL$6<$BP37,IF(AH37-BG37*BI37<BG37,AH37-BG37*BI37,$BG37),0)))) ->  | AM37: =IF($E37="","",IF($AM$6<$BO37,0,(IF($AM$6<$BP37,IF(AH37-AL37-BG37*BI37<BG37,AH37-AL37-BG37*BI37,$BG37),0)))) ->  | AN37: =IF($E37="","",IF($AN$6<$BO37,0,(IF($AN$6<$BP37,IF(AH37-AL37-AM37-BG37*BI37<BG37,AH37-AL37-AM37-BG37*BI37,$BG37),0)))) ->  | AO37: =IF($E37="","",IF($AO$6<$BO37,0,(IF($AO$6<$BP37,IF(AH37-AL37-AM37-AN37-BG37*BI37<BG37,AH37-AL37-AM37-AN37-BG37*BI37,$BG37),0)))) ->  | AP37: =IF($E37="","",IF($AP$6<$BO37,0,(IF($AP$6<$BP37,IF(AH37-AL37-AM37-AN37-AO37-BG37*BI37<BG37,AH37-AL37-AM37-AN37-AO37-BG37*BI37,$BG37),0)))) ->  | AQ37: =IF($E37="","",IF($AQ$6<$BO37,0,(IF($AQ$6<$BP37,IF(AH37-AL37-AM37-AN37-AO37-AP37-BG37*BI37<BG37,AH37-AL37-AM37-AN37-AO37-AP37-BG37*BI37,$BG37),0)))) ->  | AR37: =IF($E37="","",IF($AR$6<$BO37,0,(IF($AR$6<$BP37,IF(AH37-AL37-AM37-AN37-AO37-AP37-AQ37-BG37*BI37<BG37,AH37-AL37-AM37-AN37-AO37-AP37-AQ37-BG37*BI37,$BG37),0)))) ->  | AS37: =IF($E37="","",IF($AS$6<$BO37,0,(IF($AS$6<$BP37,IF(AH37-AL37-AM37-AN37-AO37-AP37-AQ37-AR37-BG37*BI37<BG37,AH37-AL37-AM37-AN37-AO37-AP37-AQ37-AR37-BG37*BI37,$BG37),0)))) ->  | AT37: =IF($E37="","",IF($AT$6<$BO37,0,(IF($AT$6<$BP37,IF(AH37-AL37-AM37-AN37-AO37-AP37-AQ37-AR37-AS37-BG37*BI37<BG37,AH37-AL37-AM37-AN37-AO37-AP37-AQ37-AR37-AS37-BG37*BI37,$BG37),0)))) ->  | AU37: =IF($E37="","",IF($AU$6<$BO37,0,(IF($AU$6<$BP37,IF(AH37-AL37-AM37-AN37-AO37-AP37-AQ37-AR37-AS37-AT37-BG37*BI37<BG37,AH37-AL37-AM37-AN37-AO37-AP37-AQ37-AR37-AS37-AT37-BG37*BI37,$BG37),0)))) ->  | AV37: =IF($E37="","",IF($AV$6<$BO37,0,(IF($AV$6<$BP37,IF(AH37-AL37-AM37-AN37-AO37-AP37-AQ37-AR37-AS37-AT37-AU37-BG37*BI37<BG37,AH37-AL37-AM37-AN37-AO37-AP37-AQ37-AR37-AS37-AT37-AU37-BG37*BI37,$BG37),0)))) ->  | AW37: =IF($E37="","",IF($AW$6<$BO37,0,(IF($AW$6<$BP37,IF(AH37-AL37-AM37-AN37-AO37-AP37-AQ37-AR37-AS37-AT37-AU37-AV37-BG37*BI37<BG37,AH37-AL37-AM37-AN37-AO37-AP37-AQ37-AR37-AS37-AT37-AU37-AV37-BG37*BI37,$BG37),0)))) ->  | AX37: =IF($E37="","",SUM(AL37:AW37)) ->  | AY37: =IF(E37="","",VLOOKUP(YEAR(E37),INPC,MONTH(E37)+1)) ->  | AZ37: =IF(E37="","",IF(BT37=0,AY37,VLOOKUP(Empresa!$D$13,INPC,Depreciaciones!BT37+1))) ->  | BB37: =IF(E37="","",IF(AK37="si",0,AX37*BA37)) ->  | BC37: =IF(BI37="","",IF(BH37>BF37,AH37,BI37*BG37)) ->  | BD37: =IF(AX37="","",AX37+BC37) ->  | BE37: =IF($E37="","",AH37-BD37-IF(CC37="",0,CC37/BA37)) ->  | BF37: =IF($E37="","",IF(AJ37=0,"",12/AJ37)) ->  | BG37: =IF($E37="","",IF(BF37="",0,AH37/BF37)) ->  | BH37: =IF(AH37="","",IF(BM37<BO37,0,DATEDIF(BO37,BM37,"M"))) ->  | BI37: =IF(AJ37="","",IF(AJ37=0,0,IF(TRUNC(BF37,0)<BH37,TRUNC(BF37,0),BH37))) ->  | BJ37: =IF(AH37="","",IF(BN37+1<BO37,0,DATEDIF(BO37,BN37+1,"M"))) ->  | BK37: =IF(AJ37="","",IF(AJ37=0,0,IF(TRUNC(BF37,0)<BJ37,TRUNC(BF37,0),BJ37))) ->  | BL37: =IF(AI37="","",IF(AI37>BM37-1,AH37,"")) ->  | BM37: =IF($E37="","",VALUE(CONCATENATE("1/1/",Empresa!$D$13))) ->  | BN37: =IF($E37="","",VALUE(CONCATENATE("31/12/",Empresa!$D$13))) ->  | BO37: =IF(BF37="","",IF(AI37="","",EOMONTH(AI37,0)+1)) ->  | BP37: =IF(BF37="","",IF(BU37="",EOMONTH(BO37,BF37-1)+((12/AJ37)-ROUND(12/AJ37,0))*30.4375,IF(BU37>EOMONTH(BO37,BF37-1)+((12/AJ37)-ROUND(12/AJ37,0))*30.4375,EOMONTH(BO37,BF37-1)+((12/AJ37)-ROUND(12/AJ37,0))*30.4375,EOMONTH(BU37,-1)))) ->  | BQ37: =IF(E37="","",IF(AL37>0,1,IF(AM37>0,2,IF(AN37>0,3,IF(AO37>0,4,IF(AP37>0,5,IF(AQ37>0,6,IF(AR37>0,7,IF(AS37>0,8,IF(AT37>0,9,IF(AU37>0,10,IF(AV37>0,11,IF(AW37>0,12,0))))))))))))) ->  | BR37: =IF(E37="","",IF(AW37>0,12,IF(AV37>0,11,IF(AU37>0,10,IF(AT37>0,9,IF(AS37>0,8,IF(AR37>0,7,IF(AQ37>0,6,IF(AP37>0,5,IF(AO37>0,4,IF(AN37>0,3,IF(AM37>0,2,IF(AL37>0,1,0))))))))))))) ->  | BS37: =IF(E37="","",IF(BQ37+BR37=0,0,BR37-BQ37+1)) ->  | BU37: =IF(BW37="","",BW37) ->  | BV37: =IF(BX37="","",BX37) ->  | BZ37: =IF(BW37="","",IF(BW37<AD37,"",IF(BW37>AE37,"",D37-U37))) ->  | CA37: =IF(BZ37="","",IF(BX37>BZ37,BX37-BZ37,0)) ->  | CB37: =IF(BZ37="","",IF(BX37<BZ37,BZ37-BX37,0)) ->  | CC37: =IF(E37="","",IF(BU37="","",IF(AK37="si",0,IF(BU37<BM37,"",IF(BU37>BN37,"",(AH37-BD37)*BA37))))) ->  | CD37: =IF(CC37="","",IF(BV37="",0,IF(BV37>CC37,BV37-CC37,0))) ->  | CE37: =IF(CC37="","",IF(BV37<CC37,CC37-BV37,0)) -> 
AD38: =IF($E38="","",VALUE(CONCATENATE("1/1/",Empresa!$D$13))) ->  | AE38: =IF($E38="","",VALUE(CONCATENATE("31/12/",Empresa!$D$13))) ->  | AH38: =IF(D38="","",IF(A38="EQUIPO DE TRANSPORTE (AUTOMOVILES)",IF(VLOOKUP(YEAR(E38),'Tablas de AF'!$H$10:$I$49,2)>D38,D38,VLOOKUP(YEAR(E38),'Tablas de AF'!$H$10:$I$49,2)),D38)) ->  | AZ38: =IF(E38="","",IF(BT38=0,AY38,VLOOKUP(Empresa!$D$13,INPC,Depreciaciones!BT38+1))) ->  | BM38: =IF($E38="","",VALUE(CONCATENATE("1/1/",Empresa!$D$13))) ->  | BN38: =IF($E38="","",VALUE(CONCATENATE("31/12/",Empresa!$D$13))) -> 
AD39: =IF($E39="","",VALUE(CONCATENATE("1/1/",Empresa!$D$13))) ->  | AE39: =IF($E39="","",VALUE(CONCATENATE("31/12/",Empresa!$D$13))) ->  | AH39: =IF(D39="","",IF(A39="EQUIPO DE TRANSPORTE (AUTOMOVILES)",IF(VLOOKUP(YEAR(E39),'Tablas de AF'!$H$10:$I$49,2)>D39,D39,VLOOKUP(YEAR(E39),'Tablas de AF'!$H$10:$I$49,2)),D39)) ->  | AZ39: =IF(E39="","",IF(BT39=0,AY39,VLOOKUP(Empresa!$D$13,INPC,Depreciaciones!BT39+1))) ->  | BM39: =IF($E39="","",VALUE(CONCATENATE("1/1/",Empresa!$D$13))) ->  | BN39: =IF($E39="","",VALUE(CONCATENATE("31/12/",Empresa!$D$13))) -> 
AD40: =IF($E40="","",VALUE(CONCATENATE("1/1/",Empresa!$D$13))) ->  | AE40: =IF($E40="","",VALUE(CONCATENATE("31/12/",Empresa!$D$13))) ->  | AH40: =IF(D40="","",IF(A40="EQUIPO DE TRANSPORTE (AUTOMOVILES)",IF(VLOOKUP(YEAR(E40),'Tablas de AF'!$H$10:$I$49,2)>D40,D40,VLOOKUP(YEAR(E40),'Tablas de AF'!$H$10:$I$49,2)),D40)) ->  | AZ40: =IF(E40="","",IF(BT40=0,AY40,VLOOKUP(Empresa!$D$13,INPC,Depreciaciones!BT40+1))) ->  | BM40: =IF($E40="","",VALUE(CONCATENATE("1/1/",Empresa!$D$13))) ->  | BN40: =IF($E40="","",VALUE(CONCATENATE("31/12/",Empresa!$D$13))) -> 
AD41: =IF($E41="","",VALUE(CONCATENATE("1/1/",Empresa!$D$13))) ->  | AE41: =IF($E41="","",VALUE(CONCATENATE("31/12/",Empresa!$D$13))) ->  | AH41: =IF(D41="","",IF(A41="EQUIPO DE TRANSPORTE (AUTOMOVILES)",IF(VLOOKUP(YEAR(E41),'Tablas de AF'!$H$10:$I$49,2)>D41,D41,VLOOKUP(YEAR(E41),'Tablas de AF'!$H$10:$I$49,2)),D41)) ->  | AZ41: =IF(E41="","",IF(BT41=0,AY41,VLOOKUP(Empresa!$D$13,INPC,Depreciaciones!BT41+1))) ->  | BM41: =IF($E41="","",VALUE(CONCATENATE("1/1/",Empresa!$D$13))) ->  | BN41: =IF($E41="","",VALUE(CONCATENATE("31/12/",Empresa!$D$13))) -> 
AD42: =IF($E42="","",VALUE(CONCATENATE("1/1/",Empresa!$D$13))) ->  | AE42: =IF($E42="","",VALUE(CONCATENATE("31/12/",Empresa!$D$13))) ->  | AH42: =IF(D42="","",IF(A42="EQUIPO DE TRANSPORTE (AUTOMOVILES)",IF(VLOOKUP(YEAR(E42),'Tablas de AF'!$H$10:$I$49,2)>D42,D42,VLOOKUP(YEAR(E42),'Tablas de AF'!$H$10:$I$49,2)),D42)) ->  | AZ42: =IF(E42="","",IF(BT42=0,AY42,VLOOKUP(Empresa!$D$13,INPC,Depreciaciones!BT42+1))) ->  | BM42: =IF($E42="","",VALUE(CONCATENATE("1/1/",Empresa!$D$13))) ->  | BN42: =IF($E42="","",VALUE(CONCATENATE("31/12/",Empresa!$D$13))) -> 
AD43: =IF($E43="","",VALUE(CONCATENATE("1/1/",Empresa!$D$13))) ->  | AE43: =IF($E43="","",VALUE(CONCATENATE("31/12/",Empresa!$D$13))) ->  | AH43: =IF(D43="","",IF(A43="EQUIPO DE TRANSPORTE (AUTOMOVILES)",IF(VLOOKUP(YEAR(E43),'Tablas de AF'!$H$10:$I$49,2)>D43,D43,VLOOKUP(YEAR(E43),'Tablas de AF'!$H$10:$I$49,2)),D43)) ->  | AZ43: =IF(E43="","",IF(BT43=0,AY43,VLOOKUP(Empresa!$D$13,INPC,Depreciaciones!BT43+1))) ->  | BM43: =IF($E43="","",VALUE(CONCATENATE("1/1/",Empresa!$D$13))) ->  | BN43: =IF($E43="","",VALUE(CONCATENATE("31/12/",Empresa!$D$13))) -> 
AD44: =IF($E44="","",VALUE(CONCATENATE("1/1/",Empresa!$D$13))) ->  | AE44: =IF($E44="","",VALUE(CONCATENATE("31/12/",Empresa!$D$13))) ->  | AH44: =IF(D44="","",IF(A44="EQUIPO DE TRANSPORTE (AUTOMOVILES)",IF(VLOOKUP(YEAR(E44),'Tablas de AF'!$H$10:$I$49,2)>D44,D44,VLOOKUP(YEAR(E44),'Tablas de AF'!$H$10:$I$49,2)),D44)) ->  | AZ44: =IF(E44="","",IF(BT44=0,AY44,VLOOKUP(Empresa!$D$13,INPC,Depreciaciones!BT44+1))) ->  | BM44: =IF($E44="","",VALUE(CONCATENATE("1/1/",Empresa!$D$13))) ->  | BN44: =IF($E44="","",VALUE(CONCATENATE("31/12/",Empresa!$D$13))) -> 
AD45: =IF($E45="","",VALUE(CONCATENATE("1/1/",Empresa!$D$13))) ->  | AE45: =IF($E45="","",VALUE(CONCATENATE("31/12/",Empresa!$D$13))) ->  | AH45: =IF(D45="","",IF(A45="EQUIPO DE TRANSPORTE (AUTOMOVILES)",IF(VLOOKUP(YEAR(E45),'Tablas de AF'!$H$10:$I$49,2)>D45,D45,VLOOKUP(YEAR(E45),'Tablas de AF'!$H$10:$I$49,2)),D45)) ->  | AZ45: =IF(E45="","",IF(BT45=0,AY45,VLOOKUP(Empresa!$D$13,INPC,Depreciaciones!BT45+1))) ->  | BM45: =IF($E45="","",VALUE(CONCATENATE("1/1/",Empresa!$D$13))) ->  | BN45: =IF($E45="","",VALUE(CONCATENATE("31/12/",Empresa!$D$13))) -> 
AD46: =IF($E46="","",VALUE(CONCATENATE("1/1/",Empresa!$D$13))) ->  | AE46: =IF($E46="","",VALUE(CONCATENATE("31/12/",Empresa!$D$13))) ->  | AH46: =IF(D46="","",IF(A46="EQUIPO DE TRANSPORTE (AUTOMOVILES)",IF(VLOOKUP(YEAR(E46),'Tablas de AF'!$H$10:$I$49,2)>D46,D46,VLOOKUP(YEAR(E46),'Tablas de AF'!$H$10:$I$49,2)),D46)) ->  | AZ46: =IF(E46="","",IF(BT46=0,AY46,VLOOKUP(Empresa!$D$13,INPC,Depreciaciones!BT46+1))) ->  | BM46: =IF($E46="","",VALUE(CONCATENATE("1/1/",Empresa!$D$13))) ->  | BN46: =IF($E46="","",VALUE(CONCATENATE("31/12/",Empresa!$D$13))) -> 
AD47: =IF($E47="","",VALUE(CONCATENATE("1/1/",Empresa!$D$13))) ->  | AE47: =IF($E47="","",VALUE(CONCATENATE("31/12/",Empresa!$D$13))) ->  | AH47: =IF(D47="","",IF(A47="EQUIPO DE TRANSPORTE (AUTOMOVILES)",IF(VLOOKUP(YEAR(E47),'Tablas de AF'!$H$10:$I$49,2)>D47,D47,VLOOKUP(YEAR(E47),'Tablas de AF'!$H$10:$I$49,2)),D47)) ->  | AZ47: =IF(E47="","",IF(BT47=0,AY47,VLOOKUP(Empresa!$D$13,INPC,Depreciaciones!BT47+1))) ->  | BM47: =IF($E47="","",VALUE(CONCATENATE("1/1/",Empresa!$D$13))) ->  | BN47: =IF($E47="","",VALUE(CONCATENATE("31/12/",Empresa!$D$13))) -> 
AD48: =IF($E48="","",VALUE(CONCATENATE("1/1/",Empresa!$D$13))) ->  | AE48: =IF($E48="","",VALUE(CONCATENATE("31/12/",Empresa!$D$13))) ->  | AH48: =IF(D48="","",IF(A48="EQUIPO DE TRANSPORTE (AUTOMOVILES)",IF(VLOOKUP(YEAR(E48),'Tablas de AF'!$H$10:$I$49,2)>D48,D48,VLOOKUP(YEAR(E48),'Tablas de AF'!$H$10:$I$49,2)),D48)) ->  | AZ48: =IF(E48="","",IF(BT48=0,AY48,VLOOKUP(Empresa!$D$13,INPC,Depreciaciones!BT48+1))) ->  | BM48: =IF($E48="","",VALUE(CONCATENATE("1/1/",Empresa!$D$13))) ->  | BN48: =IF($E48="","",VALUE(CONCATENATE("31/12/",Empresa!$D$13))) -> 
AD49: =IF($E49="","",VALUE(CONCATENATE("1/1/",Empresa!$D$13))) ->  | AE49: =IF($E49="","",VALUE(CONCATENATE("31/12/",Empresa!$D$13))) ->  | AH49: =IF(D49="","",IF(A49="EQUIPO DE TRANSPORTE (AUTOMOVILES)",IF(VLOOKUP(YEAR(E49),'Tablas de AF'!$H$10:$I$49,2)>D49,D49,VLOOKUP(YEAR(E49),'Tablas de AF'!$H$10:$I$49,2)),D49)) ->  | AZ49: =IF(E49="","",IF(BT49=0,AY49,VLOOKUP(Empresa!$D$13,INPC,Depreciaciones!BT49+1))) ->  | BM49: =IF($E49="","",VALUE(CONCATENATE("1/1/",Empresa!$D$13))) ->  | BN49: =IF($E49="","",VALUE(CONCATENATE("31/12/",Empresa!$D$13))) -> 
AD50: =IF($E50="","",VALUE(CONCATENATE("1/1/",Empresa!$D$13))) ->  | AE50: =IF($E50="","",VALUE(CONCATENATE("31/12/",Empresa!$D$13))) ->  | AH50: =IF(D50="","",IF(A50="EQUIPO DE TRANSPORTE (AUTOMOVILES)",IF(VLOOKUP(YEAR(E50),'Tablas de AF'!$H$10:$I$49,2)>D50,D50,VLOOKUP(YEAR(E50),'Tablas de AF'!$H$10:$I$49,2)),D50)) ->  | AZ50: =IF(E50="","",IF(BT50=0,AY50,VLOOKUP(Empresa!$D$13,INPC,Depreciaciones!BT50+1))) ->  | BM50: =IF($E50="","",VALUE(CONCATENATE("1/1/",Empresa!$D$13))) ->  | BN50: =IF($E50="","",VALUE(CONCATENATE("31/12/",Empresa!$D$13))) -> 
AD51: =IF($E51="","",VALUE(CONCATENATE("1/1/",Empresa!$D$13))) ->  | AE51: =IF($E51="","",VALUE(CONCATENATE("31/12/",Empresa!$D$13))) ->  | AH51: =IF(D51="","",IF(A51="EQUIPO DE TRANSPORTE (AUTOMOVILES)",IF(VLOOKUP(YEAR(E51),'Tablas de AF'!$H$10:$I$49,2)>D51,D51,VLOOKUP(YEAR(E51),'Tablas de AF'!$H$10:$I$49,2)),D51)) ->  | AZ51: =IF(E51="","",IF(BT51=0,AY51,VLOOKUP(Empresa!$D$13,INPC,Depreciaciones!BT51+1))) ->  | BM51: =IF($E51="","",VALUE(CONCATENATE("1/1/",Empresa!$D$13))) ->  | BN51: =IF($E51="","",VALUE(CONCATENATE("31/12/",Empresa!$D$13))) -> 
AD52: =IF($E52="","",VALUE(CONCATENATE("1/1/",Empresa!$D$13))) ->  | AE52: =IF($E52="","",VALUE(CONCATENATE("31/12/",Empresa!$D$13))) ->  | AH52: =IF(D52="","",IF(A52="EQUIPO DE TRANSPORTE (AUTOMOVILES)",IF(VLOOKUP(YEAR(E52),'Tablas de AF'!$H$10:$I$49,2)>D52,D52,VLOOKUP(YEAR(E52),'Tablas de AF'!$H$10:$I$49,2)),D52)) ->  | AZ52: =IF(E52="","",IF(BT52=0,AY52,VLOOKUP(Empresa!$D$13,INPC,Depreciaciones!BT52+1))) ->  | BM52: =IF($E52="","",VALUE(CONCATENATE("1/1/",Empresa!$D$13))) ->  | BN52: =IF($E52="","",VALUE(CONCATENATE("31/12/",Empresa!$D$13))) -> 
AD53: =IF($E53="","",VALUE(CONCATENATE("1/1/",Empresa!$D$13))) ->  | AE53: =IF($E53="","",VALUE(CONCATENATE("31/12/",Empresa!$D$13))) ->  | AH53: =IF(D53="","",IF(A53="EQUIPO DE TRANSPORTE (AUTOMOVILES)",IF(VLOOKUP(YEAR(E53),'Tablas de AF'!$H$10:$I$49,2)>D53,D53,VLOOKUP(YEAR(E53),'Tablas de AF'!$H$10:$I$49,2)),D53)) ->  | AZ53: =IF(E53="","",IF(BT53=0,AY53,VLOOKUP(Empresa!$D$13,INPC,Depreciaciones!BT53+1))) ->  | BM53: =IF($E53="","",VALUE(CONCATENATE("1/1/",Empresa!$D$13))) ->  | BN53: =IF($E53="","",VALUE(CONCATENATE("31/12/",Empresa!$D$13))) -> 
AD54: =IF($E54="","",VALUE(CONCATENATE("1/1/",Empresa!$D$13))) ->  | AE54: =IF($E54="","",VALUE(CONCATENATE("31/12/",Empresa!$D$13))) ->  | AH54: =IF(D54="","",IF(A54="EQUIPO DE TRANSPORTE (AUTOMOVILES)",IF(VLOOKUP(YEAR(E54),'Tablas de AF'!$H$10:$I$49,2)>D54,D54,VLOOKUP(YEAR(E54),'Tablas de AF'!$H$10:$I$49,2)),D54)) ->  | AZ54: =IF(E54="","",IF(BT54=0,AY54,VLOOKUP(Empresa!$D$13,INPC,Depreciaciones!BT54+1))) ->  | BM54: =IF($E54="","",VALUE(CONCATENATE("1/1/",Empresa!$D$13))) ->  | BN54: =IF($E54="","",VALUE(CONCATENATE("31/12/",Empresa!$D$13))) -> 
AD55: =IF($E55="","",VALUE(CONCATENATE("1/1/",Empresa!$D$13))) ->  | AE55: =IF($E55="","",VALUE(CONCATENATE("31/12/",Empresa!$D$13))) ->  | AH55: =IF(D55="","",IF(A55="EQUIPO DE TRANSPORTE (AUTOMOVILES)",IF(VLOOKUP(YEAR(E55),'Tablas de AF'!$H$10:$I$49,2)>D55,D55,VLOOKUP(YEAR(E55),'Tablas de AF'!$H$10:$I$49,2)),D55)) ->  | AZ55: =IF(E55="","",IF(BT55=0,AY55,VLOOKUP(Empresa!$D$13,INPC,Depreciaciones!BT55+1))) ->  | BM55: =IF($E55="","",VALUE(CONCATENATE("1/1/",Empresa!$D$13))) ->  | BN55: =IF($E55="","",VALUE(CONCATENATE("31/12/",Empresa!$D$13))) -> 
AD56: =IF($E56="","",VALUE(CONCATENATE("1/1/",Empresa!$D$13))) ->  | AE56: =IF($E56="","",VALUE(CONCATENATE("31/12/",Empresa!$D$13))) ->  | AH56: =IF(D56="","",IF(A56="EQUIPO DE TRANSPORTE (AUTOMOVILES)",IF(VLOOKUP(YEAR(E56),'Tablas de AF'!$H$10:$I$49,2)>D56,D56,VLOOKUP(YEAR(E56),'Tablas de AF'!$H$10:$I$49,2)),D56)) ->  | AZ56: =IF(E56="","",IF(BT56=0,AY56,VLOOKUP(Empresa!$D$13,INPC,Depreciaciones!BT56+1))) ->  | BM56: =IF($E56="","",VALUE(CONCATENATE("1/1/",Empresa!$D$13))) ->  | BN56: =IF($E56="","",VALUE(CONCATENATE("31/12/",Empresa!$D$13))) -> 
AD57: =IF($E57="","",VALUE(CONCATENATE("1/1/",Empresa!$D$13))) ->  | AE57: =IF($E57="","",VALUE(CONCATENATE("31/12/",Empresa!$D$13))) ->  | AH57: =IF(D57="","",IF(A57="EQUIPO DE TRANSPORTE (AUTOMOVILES)",IF(VLOOKUP(YEAR(E57),'Tablas de AF'!$H$10:$I$49,2)>D57,D57,VLOOKUP(YEAR(E57),'Tablas de AF'!$H$10:$I$49,2)),D57)) ->  | AZ57: =IF(E57="","",IF(BT57=0,AY57,VLOOKUP(Empresa!$D$13,INPC,Depreciaciones!BT57+1))) ->  | BM57: =IF($E57="","",VALUE(CONCATENATE("1/1/",Empresa!$D$13))) ->  | BN57: =IF($E57="","",VALUE(CONCATENATE("31/12/",Empresa!$D$13))) -> 
AD58: =IF($E58="","",VALUE(CONCATENATE("1/1/",Empresa!$D$13))) ->  | AE58: =IF($E58="","",VALUE(CONCATENATE("31/12/",Empresa!$D$13))) ->  | AH58: =IF(D58="","",IF(A58="EQUIPO DE TRANSPORTE (AUTOMOVILES)",IF(VLOOKUP(YEAR(E58),'Tablas de AF'!$H$10:$I$49,2)>D58,D58,VLOOKUP(YEAR(E58),'Tablas de AF'!$H$10:$I$49,2)),D58)) ->  | AZ58: =IF(E58="","",IF(BT58=0,AY58,VLOOKUP(Empresa!$D$13,INPC,Depreciaciones!BT58+1))) ->  | BM58: =IF($E58="","",VALUE(CONCATENATE("1/1/",Empresa!$D$13))) ->  | BN58: =IF($E58="","",VALUE(CONCATENATE("31/12/",Empresa!$D$13))) -> 
AD59: =IF($E59="","",VALUE(CONCATENATE("1/1/",Empresa!$D$13))) ->  | AE59: =IF($E59="","",VALUE(CONCATENATE("31/12/",Empresa!$D$13))) ->  | AH59: =IF(D59="","",IF(A59="EQUIPO DE TRANSPORTE (AUTOMOVILES)",IF(VLOOKUP(YEAR(E59),'Tablas de AF'!$H$10:$I$49,2)>D59,D59,VLOOKUP(YEAR(E59),'Tablas de AF'!$H$10:$I$49,2)),D59)) ->  | AZ59: =IF(E59="","",IF(BT59=0,AY59,VLOOKUP(Empresa!$D$13,INPC,Depreciaciones!BT59+1))) ->  | BM59: =IF($E59="","",VALUE(CONCATENATE("1/1/",Empresa!$D$13))) ->  | BN59: =IF($E59="","",VALUE(CONCATENATE("31/12/",Empresa!$D$13))) -> 
AD60: =IF($E60="","",VALUE(CONCATENATE("1/1/",Empresa!$D$13))) ->  | AE60: =IF($E60="","",VALUE(CONCATENATE("31/12/",Empresa!$D$13))) ->  | AH60: =IF(D60="","",IF(A60="EQUIPO DE TRANSPORTE (AUTOMOVILES)",IF(VLOOKUP(YEAR(E60),'Tablas de AF'!$H$10:$I$49,2)>D60,D60,VLOOKUP(YEAR(E60),'Tablas de AF'!$H$10:$I$49,2)),D60)) ->  | AZ60: =IF(E60="","",IF(BT60=0,AY60,VLOOKUP(Empresa!$D$13,INPC,Depreciaciones!BT60+1))) ->  | BM60: =IF($E60="","",VALUE(CONCATENATE("1/1/",Empresa!$D$13))) ->  | BN60: =IF($E60="","",VALUE(CONCATENATE("31/12/",Empresa!$D$13))) -> 
AD61: =IF($E61="","",VALUE(CONCATENATE("1/1/",Empresa!$D$13))) ->  | AE61: =IF($E61="","",VALUE(CONCATENATE("31/12/",Empresa!$D$13))) ->  | AH61: =IF(D61="","",IF(A61="EQUIPO DE TRANSPORTE (AUTOMOVILES)",IF(VLOOKUP(YEAR(E61),'Tablas de AF'!$H$10:$I$49,2)>D61,D61,VLOOKUP(YEAR(E61),'Tablas de AF'!$H$10:$I$49,2)),D61)) ->  | AZ61: =IF(E61="","",IF(BT61=0,AY61,VLOOKUP(Empresa!$D$13,INPC,Depreciaciones!BT61+1))) ->  | BM61: =IF($E61="","",VALUE(CONCATENATE("1/1/",Empresa!$D$13))) ->  | BN61: =IF($E61="","",VALUE(CONCATENATE("31/12/",Empresa!$D$13))) -> 
AD62: =IF($E62="","",VALUE(CONCATENATE("1/1/",Empresa!$D$13))) ->  | AE62: =IF($E62="","",VALUE(CONCATENATE("31/12/",Empresa!$D$13))) ->  | AH62: =IF(D62="","",IF(A62="EQUIPO DE TRANSPORTE (AUTOMOVILES)",IF(VLOOKUP(YEAR(E62),'Tablas de AF'!$H$10:$I$49,2)>D62,D62,VLOOKUP(YEAR(E62),'Tablas de AF'!$H$10:$I$49,2)),D62)) ->  | AZ62: =IF(E62="","",IF(BT62=0,AY62,VLOOKUP(Empresa!$D$13,INPC,Depreciaciones!BT62+1))) ->  | BM62: =IF($E62="","",VALUE(CONCATENATE("1/1/",Empresa!$D$13))) ->  | BN62: =IF($E62="","",VALUE(CONCATENATE("31/12/",Empresa!$D$13))) -> 
AD63: =IF($E63="","",VALUE(CONCATENATE("1/1/",Empresa!$D$13))) ->  | AE63: =IF($E63="","",VALUE(CONCATENATE("31/12/",Empresa!$D$13))) ->  | AH63: =IF(D63="","",IF(A63="EQUIPO DE TRANSPORTE (AUTOMOVILES)",IF(VLOOKUP(YEAR(E63),'Tablas de AF'!$H$10:$I$49,2)>D63,D63,VLOOKUP(YEAR(E63),'Tablas de AF'!$H$10:$I$49,2)),D63)) ->  | AZ63: =IF(E63="","",IF(BT63=0,AY63,VLOOKUP(Empresa!$D$13,INPC,Depreciaciones!BT63+1))) ->  | BM63: =IF($E63="","",VALUE(CONCATENATE("1/1/",Empresa!$D$13))) ->  | BN63: =IF($E63="","",VALUE(CONCATENATE("31/12/",Empresa!$D$13))) -> 
AD64: =IF($E64="","",VALUE(CONCATENATE("1/1/",Empresa!$D$13))) ->  | AE64: =IF($E64="","",VALUE(CONCATENATE("31/12/",Empresa!$D$13))) ->  | AH64: =IF(D64="","",IF(A64="EQUIPO DE TRANSPORTE (AUTOMOVILES)",IF(VLOOKUP(YEAR(E64),'Tablas de AF'!$H$10:$I$49,2)>D64,D64,VLOOKUP(YEAR(E64),'Tablas de AF'!$H$10:$I$49,2)),D64)) ->  | AZ64: =IF(E64="","",IF(BT64=0,AY64,VLOOKUP(Empresa!$D$13,INPC,Depreciaciones!BT64+1))) ->  | BM64: =IF($E64="","",VALUE(CONCATENATE("1/1/",Empresa!$D$13))) ->  | BN64: =IF($E64="","",VALUE(CONCATENATE("31/12/",Empresa!$D$13))) -> 
AD65: =IF($E65="","",VALUE(CONCATENATE("1/1/",Empresa!$D$13))) ->  | AE65: =IF($E65="","",VALUE(CONCATENATE("31/12/",Empresa!$D$13))) ->  | AH65: =IF(D65="","",IF(A65="EQUIPO DE TRANSPORTE (AUTOMOVILES)",IF(VLOOKUP(YEAR(E65),'Tablas de AF'!$H$10:$I$49,2)>D65,D65,VLOOKUP(YEAR(E65),'Tablas de AF'!$H$10:$I$49,2)),D65)) ->  | AZ65: =IF(E65="","",IF(BT65=0,AY65,VLOOKUP(Empresa!$D$13,INPC,Depreciaciones!BT65+1))) ->  | BM65: =IF($E65="","",VALUE(CONCATENATE("1/1/",Empresa!$D$13))) ->  | BN65: =IF($E65="","",VALUE(CONCATENATE("31/12/",Empresa!$D$13))) -> 
AD66: =IF($E66="","",VALUE(CONCATENATE("1/1/",Empresa!$D$13))) ->  | AE66: =IF($E66="","",VALUE(CONCATENATE("31/12/",Empresa!$D$13))) ->  | AH66: =IF(D66="","",IF(A66="EQUIPO DE TRANSPORTE (AUTOMOVILES)",IF(VLOOKUP(YEAR(E66),'Tablas de AF'!$H$10:$I$49,2)>D66,D66,VLOOKUP(YEAR(E66),'Tablas de AF'!$H$10:$I$49,2)),D66)) ->  | AZ66: =IF(E66="","",IF(BT66=0,AY66,VLOOKUP(Empresa!$D$13,INPC,Depreciaciones!BT66+1))) ->  | BM66: =IF($E66="","",VALUE(CONCATENATE("1/1/",Empresa!$D$13))) ->  | BN66: =IF($E66="","",VALUE(CONCATENATE("31/12/",Empresa!$D$13))) -> 
AD67: =IF($E67="","",VALUE(CONCATENATE("1/1/",Empresa!$D$13))) ->  | AE67: =IF($E67="","",VALUE(CONCATENATE("31/12/",Empresa!$D$13))) ->  | AH67: =IF(D67="","",IF(A67="EQUIPO DE TRANSPORTE (AUTOMOVILES)",IF(VLOOKUP(YEAR(E67),'Tablas de AF'!$H$10:$I$49,2)>D67,D67,VLOOKUP(YEAR(E67),'Tablas de AF'!$H$10:$I$49,2)),D67)) ->  | AZ67: =IF(E67="","",IF(BT67=0,AY67,VLOOKUP(Empresa!$D$13,INPC,Depreciaciones!BT67+1))) ->  | BM67: =IF($E67="","",VALUE(CONCATENATE("1/1/",Empresa!$D$13))) ->  | BN67: =IF($E67="","",VALUE(CONCATENATE("31/12/",Empresa!$D$13))) -> 
AD68: =IF($E68="","",VALUE(CONCATENATE("1/1/",Empresa!$D$13))) ->  | AE68: =IF($E68="","",VALUE(CONCATENATE("31/12/",Empresa!$D$13))) ->  | AH68: =IF(D68="","",IF(A68="EQUIPO DE TRANSPORTE (AUTOMOVILES)",IF(VLOOKUP(YEAR(E68),'Tablas de AF'!$H$10:$I$49,2)>D68,D68,VLOOKUP(YEAR(E68),'Tablas de AF'!$H$10:$I$49,2)),D68)) ->  | AZ68: =IF(E68="","",IF(BT68=0,AY68,VLOOKUP(Empresa!$D$13,INPC,Depreciaciones!BT68+1))) ->  | BM68: =IF($E68="","",VALUE(CONCATENATE("1/1/",Empresa!$D$13))) ->  | BN68: =IF($E68="","",VALUE(CONCATENATE("31/12/",Empresa!$D$13))) -> 
AD69: =IF($E69="","",VALUE(CONCATENATE("1/1/",Empresa!$D$13))) ->  | AE69: =IF($E69="","",VALUE(CONCATENATE("31/12/",Empresa!$D$13))) ->  | AH69: =IF(D69="","",IF(A69="EQUIPO DE TRANSPORTE (AUTOMOVILES)",IF(VLOOKUP(YEAR(E69),'Tablas de AF'!$H$10:$I$49,2)>D69,D69,VLOOKUP(YEAR(E69),'Tablas de AF'!$H$10:$I$49,2)),D69)) ->  | AZ69: =IF(E69="","",IF(BT69=0,AY69,VLOOKUP(Empresa!$D$13,INPC,Depreciaciones!BT69+1))) ->  | BM69: =IF($E69="","",VALUE(CONCATENATE("1/1/",Empresa!$D$13))) ->  | BN69: =IF($E69="","",VALUE(CONCATENATE("31/12/",Empresa!$D$13))) ->  | CA69: =IF(BZ69="","",IF(BX69>BZ69,BX69-BZ69,0)) ->  | CB69: =IF(BZ69="","",IF(BX69<BZ69,BZ69-BX69,0)) ->  | CE69: =IF(CC69="","",IF(BV69<CC69,CC69-BV69,0)) -> 
AD70: =IF($E70="","",VALUE(CONCATENATE("1/1/",Empresa!$D$13))) ->  | AE70: =IF($E70="","",VALUE(CONCATENATE("31/12/",Empresa!$D$13))) ->  | AH70: =IF(D70="","",IF(A70="EQUIPO DE TRANSPORTE (AUTOMOVILES)",IF(VLOOKUP(YEAR(E70),'Tablas de AF'!$H$10:$I$49,2)>D70,D70,VLOOKUP(YEAR(E70),'Tablas de AF'!$H$10:$I$49,2)),D70)) ->  | AZ70: =IF(E70="","",IF(BT70=0,AY70,VLOOKUP(Empresa!$D$13,INPC,Depreciaciones!BT70+1))) ->  | BM70: =IF($E70="","",VALUE(CONCATENATE("1/1/",Empresa!$D$13))) ->  | BN70: =IF($E70="","",VALUE(CONCATENATE("31/12/",Empresa!$D$13))) -> 
F71: =IF($E71="","",VLOOKUP($A71,PORCIENTOS,2)) ->  | AD71: =IF($E71="","",VALUE(CONCATENATE("1/1/",Empresa!$D$13))) ->  | AE71: =IF($E71="","",VALUE(CONCATENATE("31/12/",Empresa!$D$13))) ->  | AH71: =IF(D71="","",IF(A71="EQUIPO DE TRANSPORTE (AUTOMOVILES)",IF(VLOOKUP(YEAR(E71),'Tablas de AF'!$H$10:$I$49,2)>D71,D71,VLOOKUP(YEAR(E71),'Tablas de AF'!$H$10:$I$49,2)),D71)) ->  | AZ71: =IF(E71="","",IF(BT71=0,AY71,VLOOKUP(Empresa!$D$13,INPC,Depreciaciones!BT71+1))) ->  | BM71: =IF($E71="","",VALUE(CONCATENATE("1/1/",Empresa!$D$13))) ->  | BN71: =IF($E71="","",VALUE(CONCATENATE("31/12/",Empresa!$D$13))) ->  | BY71: =IF(BW71="","",D71) -> 
AD72: =IF($E72="","",VALUE(CONCATENATE("1/1/",Empresa!$D$13))) ->  | AE72: =IF($E72="","",VALUE(CONCATENATE("31/12/",Empresa!$D$13))) ->  | AH72: =IF(D72="","",IF(A72="EQUIPO DE TRANSPORTE (AUTOMOVILES)",IF(VLOOKUP(YEAR(E72),'Tablas de AF'!$H$10:$I$49,2)>D72,D72,VLOOKUP(YEAR(E72),'Tablas de AF'!$H$10:$I$49,2)),D72)) ->  | AJ72: =IF($E72="","",VLOOKUP($A72,PORCIENTOS,3)) ->  | AZ72: =IF(E72="","",IF(BT72=0,AY72,VLOOKUP(Empresa!$D$13,INPC,Depreciaciones!BT72+1))) ->  | BA72: =IF(E72="","",IF(AZ72<AY72,1,TRUNC(AZ72/AY72,4))) ->  | BM72: =IF($E72="","",VALUE(CONCATENATE("1/1/",Empresa!$D$13))) ->  | BN72: =IF($E72="","",VALUE(CONCATENATE("31/12/",Empresa!$D$13))) -> 
AD73: =IF($E73="","",VALUE(CONCATENATE("1/1/",Empresa!$D$13))) ->  | AE73: =IF($E73="","",VALUE(CONCATENATE("31/12/",Empresa!$D$13))) ->  | AH73: =IF(D73="","",IF(A73="EQUIPO DE TRANSPORTE (AUTOMOVILES)",IF(VLOOKUP(YEAR(E73),'Tablas de AF'!$H$10:$I$49,2)>D73,D73,VLOOKUP(YEAR(E73),'Tablas de AF'!$H$10:$I$49,2)),D73)) ->  | AZ73: =IF(E73="","",IF(BT73=0,AY73,VLOOKUP(Empresa!$D$13,INPC,Depreciaciones!BT73+1))) ->  | BM73: =IF($E73="","",VALUE(CONCATENATE("1/1/",Empresa!$D$13))) ->  | BN73: =IF($E73="","",VALUE(CONCATENATE("31/12/",Empresa!$D$13))) -> 
AD74: =IF($E74="","",VALUE(CONCATENATE("1/1/",Empresa!$D$13))) ->  | AE74: =IF($E74="","",VALUE(CONCATENATE("31/12/",Empresa!$D$13))) ->  | AH74: =IF(D74="","",IF(A74="EQUIPO DE TRANSPORTE (AUTOMOVILES)",IF(VLOOKUP(YEAR(E74),'Tablas de AF'!$H$10:$I$49,2)>D74,D74,VLOOKUP(YEAR(E74),'Tablas de AF'!$H$10:$I$49,2)),D74)) ->  | AZ74: =IF(E74="","",IF(BT74=0,AY74,VLOOKUP(Empresa!$D$13,INPC,Depreciaciones!BT74+1))) ->  | BM74: =IF($E74="","",VALUE(CONCATENATE("1/1/",Empresa!$D$13))) ->  | BN74: =IF($E74="","",VALUE(CONCATENATE("31/12/",Empresa!$D$13))) ->  | BT74: =IF(E74="","",(TRUNC(BS74/2,0)+IF(BR74=1,1,0)+IF(BQ74>1,BQ74-1,0))+IF(BQ74=12,0,0)) -> 
AD75: =IF($E75="","",VALUE(CONCATENATE("1/1/",Empresa!$D$13))) ->  | AE75: =IF($E75="","",VALUE(CONCATENATE("31/12/",Empresa!$D$13))) ->  | AH75: =IF(D75="","",IF(A75="EQUIPO DE TRANSPORTE (AUTOMOVILES)",IF(VLOOKUP(YEAR(E75),'Tablas de AF'!$H$10:$I$49,2)>D75,D75,VLOOKUP(YEAR(E75),'Tablas de AF'!$H$10:$I$49,2)),D75)) ->  | AZ75: =IF(E75="","",IF(BT75=0,AY75,VLOOKUP(Empresa!$D$13,INPC,Depreciaciones!BT75+1))) ->  | BM75: =IF($E75="","",VALUE(CONCATENATE("1/1/",Empresa!$D$13))) ->  | BN75: =IF($E75="","",VALUE(CONCATENATE("31/12/",Empresa!$D$13))) -> 
AD76: =IF($E76="","",VALUE(CONCATENATE("1/1/",Empresa!$D$13))) ->  | AE76: =IF($E76="","",VALUE(CONCATENATE("31/12/",Empresa!$D$13))) ->  | AH76: =IF(D76="","",IF(A76="EQUIPO DE TRANSPORTE (AUTOMOVILES)",IF(VLOOKUP(YEAR(E76),'Tablas de AF'!$H$10:$I$49,2)>D76,D76,VLOOKUP(YEAR(E76),'Tablas de AF'!$H$10:$I$49,2)),D76)) ->  | AZ76: =IF(E76="","",IF(BT76=0,AY76,VLOOKUP(Empresa!$D$13,INPC,Depreciaciones!BT76+1))) ->  | BM76: =IF($E76="","",VALUE(CONCATENATE("1/1/",Empresa!$D$13))) ->  | BN76: =IF($E76="","",VALUE(CONCATENATE("31/12/",Empresa!$D$13))) -> 
AD77: =IF($E77="","",VALUE(CONCATENATE("1/1/",Empresa!$D$13))) ->  | AE77: =IF($E77="","",VALUE(CONCATENATE("31/12/",Empresa!$D$13))) ->  | AH77: =IF(D77="","",IF(A77="EQUIPO DE TRANSPORTE (AUTOMOVILES)",IF(VLOOKUP(YEAR(E77),'Tablas de AF'!$H$10:$I$49,2)>D77,D77,VLOOKUP(YEAR(E77),'Tablas de AF'!$H$10:$I$49,2)),D77)) ->  | AZ77: =IF(E77="","",IF(BT77=0,AY77,VLOOKUP(Empresa!$D$13,INPC,Depreciaciones!BT77+1))) ->  | BM77: =IF($E77="","",VALUE(CONCATENATE("1/1/",Empresa!$D$13))) ->  | BN77: =IF($E77="","",VALUE(CONCATENATE("31/12/",Empresa!$D$13))) -> 
AD78: =IF($E78="","",VALUE(CONCATENATE("1/1/",Empresa!$D$13))) ->  | AE78: =IF($E78="","",VALUE(CONCATENATE("31/12/",Empresa!$D$13))) ->  | AH78: =IF(D78="","",IF(A78="EQUIPO DE TRANSPORTE (AUTOMOVILES)",IF(VLOOKUP(YEAR(E78),'Tablas de AF'!$H$10:$I$49,2)>D78,D78,VLOOKUP(YEAR(E78),'Tablas de AF'!$H$10:$I$49,2)),D78)) ->  | AZ78: =IF(E78="","",IF(BT78=0,AY78,VLOOKUP(Empresa!$D$13,INPC,Depreciaciones!BT78+1))) ->  | BM78: =IF($E78="","",VALUE(CONCATENATE("1/1/",Empresa!$D$13))) ->  | BN78: =IF($E78="","",VALUE(CONCATENATE("31/12/",Empresa!$D$13))) -> 
AD79: =IF($E79="","",VALUE(CONCATENATE("1/1/",Empresa!$D$13))) ->  | AE79: =IF($E79="","",VALUE(CONCATENATE("31/12/",Empresa!$D$13))) ->  | AH79: =IF(D79="","",IF(A79="EQUIPO DE TRANSPORTE (AUTOMOVILES)",IF(VLOOKUP(YEAR(E79),'Tablas de AF'!$H$10:$I$49,2)>D79,D79,VLOOKUP(YEAR(E79),'Tablas de AF'!$H$10:$I$49,2)),D79)) ->  | AZ79: =IF(E79="","",IF(BT79=0,AY79,VLOOKUP(Empresa!$D$13,INPC,Depreciaciones!BT79+1))) ->  | BM79: =IF($E79="","",VALUE(CONCATENATE("1/1/",Empresa!$D$13))) ->  | BN79: =IF($E79="","",VALUE(CONCATENATE("31/12/",Empresa!$D$13))) -> 
AD80: =IF($E80="","",VALUE(CONCATENATE("1/1/",Empresa!$D$13))) ->  | AE80: =IF($E80="","",VALUE(CONCATENATE("31/12/",Empresa!$D$13))) ->  | AH80: =IF(D80="","",IF(A80="EQUIPO DE TRANSPORTE (AUTOMOVILES)",IF(VLOOKUP(YEAR(E80),'Tablas de AF'!$H$10:$I$49,2)>D80,D80,VLOOKUP(YEAR(E80),'Tablas de AF'!$H$10:$I$49,2)),D80)) ->  | AZ80: =IF(E80="","",IF(BT80=0,AY80,VLOOKUP(Empresa!$D$13,INPC,Depreciaciones!BT80+1))) ->  | BM80: =IF($E80="","",VALUE(CONCATENATE("1/1/",Empresa!$D$13))) ->  | BN80: =IF($E80="","",VALUE(CONCATENATE("31/12/",Empresa!$D$13))) -> 
AD81: =IF($E81="","",VALUE(CONCATENATE("1/1/",Empresa!$D$13))) ->  | AE81: =IF($E81="","",VALUE(CONCATENATE("31/12/",Empresa!$D$13))) ->  | AH81: =IF(D81="","",IF(A81="EQUIPO DE TRANSPORTE (AUTOMOVILES)",IF(VLOOKUP(YEAR(E81),'Tablas de AF'!$H$10:$I$49,2)>D81,D81,VLOOKUP(YEAR(E81),'Tablas de AF'!$H$10:$I$49,2)),D81)) ->  | AZ81: =IF(E81="","",IF(BT81=0,AY81,VLOOKUP(Empresa!$D$13,INPC,Depreciaciones!BT81+1))) ->  | BM81: =IF($E81="","",VALUE(CONCATENATE("1/1/",Empresa!$D$13))) ->  | BN81: =IF($E81="","",VALUE(CONCATENATE("31/12/",Empresa!$D$13))) -> 
AD82: =IF($E82="","",VALUE(CONCATENATE("1/1/",Empresa!$D$13))) ->  | AE82: =IF($E82="","",VALUE(CONCATENATE("31/12/",Empresa!$D$13))) ->  | AH82: =IF(D82="","",IF(A82="EQUIPO DE TRANSPORTE (AUTOMOVILES)",IF(VLOOKUP(YEAR(E82),'Tablas de AF'!$H$10:$I$49,2)>D82,D82,VLOOKUP(YEAR(E82),'Tablas de AF'!$H$10:$I$49,2)),D82)) ->  | AZ82: =IF(E82="","",IF(BT82=0,AY82,VLOOKUP(Empresa!$D$13,INPC,Depreciaciones!BT82+1))) ->  | BM82: =IF($E82="","",VALUE(CONCATENATE("1/1/",Empresa!$D$13))) ->  | BN82: =IF($E82="","",VALUE(CONCATENATE("31/12/",Empresa!$D$13))) -> 
AD83: =IF($E83="","",VALUE(CONCATENATE("1/1/",Empresa!$D$13))) ->  | AE83: =IF($E83="","",VALUE(CONCATENATE("31/12/",Empresa!$D$13))) ->  | AH83: =IF(D83="","",IF(A83="EQUIPO DE TRANSPORTE (AUTOMOVILES)",IF(VLOOKUP(YEAR(E83),'Tablas de AF'!$H$10:$I$49,2)>D83,D83,VLOOKUP(YEAR(E83),'Tablas de AF'!$H$10:$I$49,2)),D83)) ->  | AZ83: =IF(E83="","",IF(BT83=0,AY83,VLOOKUP(Empresa!$D$13,INPC,Depreciaciones!BT83+1))) ->  | BM83: =IF($E83="","",VALUE(CONCATENATE("1/1/",Empresa!$D$13))) ->  | BN83: =IF($E83="","",VALUE(CONCATENATE("31/12/",Empresa!$D$13))) -> 
AD84: =IF($E84="","",VALUE(CONCATENATE("1/1/",Empresa!$D$13))) ->  | AE84: =IF($E84="","",VALUE(CONCATENATE("31/12/",Empresa!$D$13))) ->  | AH84: =IF(D84="","",IF(A84="EQUIPO DE TRANSPORTE (AUTOMOVILES)",IF(VLOOKUP(YEAR(E84),'Tablas de AF'!$H$10:$I$49,2)>D84,D84,VLOOKUP(YEAR(E84),'Tablas de AF'!$H$10:$I$49,2)),D84)) ->  | AZ84: =IF(E84="","",IF(BT84=0,AY84,VLOOKUP(Empresa!$D$13,INPC,Depreciaciones!BT84+1))) ->  | BM84: =IF($E84="","",VALUE(CONCATENATE("1/1/",Empresa!$D$13))) ->  | BN84: =IF($E84="","",VALUE(CONCATENATE("31/12/",Empresa!$D$13))) -> 
AD85: =IF($E85="","",VALUE(CONCATENATE("1/1/",Empresa!$D$13))) ->  | AE85: =IF($E85="","",VALUE(CONCATENATE("31/12/",Empresa!$D$13))) ->  | AH85: =IF(D85="","",IF(A85="EQUIPO DE TRANSPORTE (AUTOMOVILES)",IF(VLOOKUP(YEAR(E85),'Tablas de AF'!$H$10:$I$49,2)>D85,D85,VLOOKUP(YEAR(E85),'Tablas de AF'!$H$10:$I$49,2)),D85)) ->  | AZ85: =IF(E85="","",IF(BT85=0,AY85,VLOOKUP(Empresa!$D$13,INPC,Depreciaciones!BT85+1))) ->  | BM85: =IF($E85="","",VALUE(CONCATENATE("1/1/",Empresa!$D$13))) ->  | BN85: =IF($E85="","",VALUE(CONCATENATE("31/12/",Empresa!$D$13))) -> 
AD86: =IF($E86="","",VALUE(CONCATENATE("1/1/",Empresa!$D$13))) ->  | AE86: =IF($E86="","",VALUE(CONCATENATE("31/12/",Empresa!$D$13))) ->  | AH86: =IF(D86="","",IF(A86="EQUIPO DE TRANSPORTE (AUTOMOVILES)",IF(VLOOKUP(YEAR(E86),'Tablas de AF'!$H$10:$I$49,2)>D86,D86,VLOOKUP(YEAR(E86),'Tablas de AF'!$H$10:$I$49,2)),D86)) ->  | AZ86: =IF(E86="","",IF(BT86=0,AY86,VLOOKUP(Empresa!$D$13,INPC,Depreciaciones!BT86+1))) ->  | BM86: =IF($E86="","",VALUE(CONCATENATE("1/1/",Empresa!$D$13))) ->  | BN86: =IF($E86="","",VALUE(CONCATENATE("31/12/",Empresa!$D$13))) -> 
AD87: =IF($E87="","",VALUE(CONCATENATE("1/1/",Empresa!$D$13))) ->  | AE87: =IF($E87="","",VALUE(CONCATENATE("31/12/",Empresa!$D$13))) ->  | AH87: =IF(D87="","",IF(A87="EQUIPO DE TRANSPORTE (AUTOMOVILES)",IF(VLOOKUP(YEAR(E87),'Tablas de AF'!$H$10:$I$49,2)>D87,D87,VLOOKUP(YEAR(E87),'Tablas de AF'!$H$10:$I$49,2)),D87)) ->  | AZ87: =IF(E87="","",IF(BT87=0,AY87,VLOOKUP(Empresa!$D$13,INPC,Depreciaciones!BT87+1))) ->  | BM87: =IF($E87="","",VALUE(CONCATENATE("1/1/",Empresa!$D$13))) ->  | BN87: =IF($E87="","",VALUE(CONCATENATE("31/12/",Empresa!$D$13))) -> 
AD88: =IF($E88="","",VALUE(CONCATENATE("1/1/",Empresa!$D$13))) ->  | AE88: =IF($E88="","",VALUE(CONCATENATE("31/12/",Empresa!$D$13))) ->  | AH88: =IF(D88="","",IF(A88="EQUIPO DE TRANSPORTE (AUTOMOVILES)",IF(VLOOKUP(YEAR(E88),'Tablas de AF'!$H$10:$I$49,2)>D88,D88,VLOOKUP(YEAR(E88),'Tablas de AF'!$H$10:$I$49,2)),D88)) ->  | AZ88: =IF(E88="","",IF(BT88=0,AY88,VLOOKUP(Empresa!$D$13,INPC,Depreciaciones!BT88+1))) ->  | BM88: =IF($E88="","",VALUE(CONCATENATE("1/1/",Empresa!$D$13))) ->  | BN88: =IF($E88="","",VALUE(CONCATENATE("31/12/",Empresa!$D$13))) -> 
AD89: =IF($E89="","",VALUE(CONCATENATE("1/1/",Empresa!$D$13))) ->  | AE89: =IF($E89="","",VALUE(CONCATENATE("31/12/",Empresa!$D$13))) ->  | AH89: =IF(D89="","",IF(A89="EQUIPO DE TRANSPORTE (AUTOMOVILES)",IF(VLOOKUP(YEAR(E89),'Tablas de AF'!$H$10:$I$49,2)>D89,D89,VLOOKUP(YEAR(E89),'Tablas de AF'!$H$10:$I$49,2)),D89)) ->  | AZ89: =IF(E89="","",IF(BT89=0,AY89,VLOOKUP(Empresa!$D$13,INPC,Depreciaciones!BT89+1))) ->  | BM89: =IF($E89="","",VALUE(CONCATENATE("1/1/",Empresa!$D$13))) ->  | BN89: =IF($E89="","",VALUE(CONCATENATE("31/12/",Empresa!$D$13))) -> 
AD90: =IF($E90="","",VALUE(CONCATENATE("1/1/",Empresa!$D$13))) ->  | AE90: =IF($E90="","",VALUE(CONCATENATE("31/12/",Empresa!$D$13))) ->  | AH90: =IF(D90="","",IF(A90="EQUIPO DE TRANSPORTE (AUTOMOVILES)",IF(VLOOKUP(YEAR(E90),'Tablas de AF'!$H$10:$I$49,2)>D90,D90,VLOOKUP(YEAR(E90),'Tablas de AF'!$H$10:$I$49,2)),D90)) ->  | AZ90: =IF(E90="","",IF(BT90=0,AY90,VLOOKUP(Empresa!$D$13,INPC,Depreciaciones!BT90+1))) ->  | BM90: =IF($E90="","",VALUE(CONCATENATE("1/1/",Empresa!$D$13))) ->  | BN90: =IF($E90="","",VALUE(CONCATENATE("31/12/",Empresa!$D$13))) -> 
AD91: =IF($E91="","",VALUE(CONCATENATE("1/1/",Empresa!$D$13))) ->  | AE91: =IF($E91="","",VALUE(CONCATENATE("31/12/",Empresa!$D$13))) ->  | AH91: =IF(D91="","",IF(A91="EQUIPO DE TRANSPORTE (AUTOMOVILES)",IF(VLOOKUP(YEAR(E91),'Tablas de AF'!$H$10:$I$49,2)>D91,D91,VLOOKUP(YEAR(E91),'Tablas de AF'!$H$10:$I$49,2)),D91)) ->  | AZ91: =IF(E91="","",IF(BT91=0,AY91,VLOOKUP(Empresa!$D$13,INPC,Depreciaciones!BT91+1))) ->  | BM91: =IF($E91="","",VALUE(CONCATENATE("1/1/",Empresa!$D$13))) ->  | BN91: =IF($E91="","",VALUE(CONCATENATE("31/12/",Empresa!$D$13))) -> 
AD92: =IF($E92="","",VALUE(CONCATENATE("1/1/",Empresa!$D$13))) ->  | AE92: =IF($E92="","",VALUE(CONCATENATE("31/12/",Empresa!$D$13))) ->  | AH92: =IF(D92="","",IF(A92="EQUIPO DE TRANSPORTE (AUTOMOVILES)",IF(VLOOKUP(YEAR(E92),'Tablas de AF'!$H$10:$I$49,2)>D92,D92,VLOOKUP(YEAR(E92),'Tablas de AF'!$H$10:$I$49,2)),D92)) ->  | AZ92: =IF(E92="","",IF(BT92=0,AY92,VLOOKUP(Empresa!$D$13,INPC,Depreciaciones!BT92+1))) ->  | BM92: =IF($E92="","",VALUE(CONCATENATE("1/1/",Empresa!$D$13))) ->  | BN92: =IF($E92="","",VALUE(CONCATENATE("31/12/",Empresa!$D$13))) -> 
AD93: =IF($E93="","",VALUE(CONCATENATE("1/1/",Empresa!$D$13))) ->  | AE93: =IF($E93="","",VALUE(CONCATENATE("31/12/",Empresa!$D$13))) ->  | AH93: =IF(D93="","",IF(A93="EQUIPO DE TRANSPORTE (AUTOMOVILES)",IF(VLOOKUP(YEAR(E93),'Tablas de AF'!$H$10:$I$49,2)>D93,D93,VLOOKUP(YEAR(E93),'Tablas de AF'!$H$10:$I$49,2)),D93)) ->  | AZ93: =IF(E93="","",IF(BT93=0,AY93,VLOOKUP(Empresa!$D$13,INPC,Depreciaciones!BT93+1))) ->  | BM93: =IF($E93="","",VALUE(CONCATENATE("1/1/",Empresa!$D$13))) ->  | BN93: =IF($E93="","",VALUE(CONCATENATE("31/12/",Empresa!$D$13))) -> 
AD94: =IF($E94="","",VALUE(CONCATENATE("1/1/",Empresa!$D$13))) ->  | AE94: =IF($E94="","",VALUE(CONCATENATE("31/12/",Empresa!$D$13))) ->  | AH94: =IF(D94="","",IF(A94="EQUIPO DE TRANSPORTE (AUTOMOVILES)",IF(VLOOKUP(YEAR(E94),'Tablas de AF'!$H$10:$I$49,2)>D94,D94,VLOOKUP(YEAR(E94),'Tablas de AF'!$H$10:$I$49,2)),D94)) ->  | AZ94: =IF(E94="","",IF(BT94=0,AY94,VLOOKUP(Empresa!$D$13,INPC,Depreciaciones!BT94+1))) ->  | BM94: =IF($E94="","",VALUE(CONCATENATE("1/1/",Empresa!$D$13))) ->  | BN94: =IF($E94="","",VALUE(CONCATENATE("31/12/",Empresa!$D$13))) -> 
AD95: =IF($E95="","",VALUE(CONCATENATE("1/1/",Empresa!$D$13))) ->  | AE95: =IF($E95="","",VALUE(CONCATENATE("31/12/",Empresa!$D$13))) ->  | AH95: =IF(D95="","",IF(A95="EQUIPO DE TRANSPORTE (AUTOMOVILES)",IF(VLOOKUP(YEAR(E95),'Tablas de AF'!$H$10:$I$49,2)>D95,D95,VLOOKUP(YEAR(E95),'Tablas de AF'!$H$10:$I$49,2)),D95)) ->  | AZ95: =IF(E95="","",IF(BT95=0,AY95,VLOOKUP(Empresa!$D$13,INPC,Depreciaciones!BT95+1))) ->  | BM95: =IF($E95="","",VALUE(CONCATENATE("1/1/",Empresa!$D$13))) ->  | BN95: =IF($E95="","",VALUE(CONCATENATE("31/12/",Empresa!$D$13))) -> 
AD96: =IF($E96="","",VALUE(CONCATENATE("1/1/",Empresa!$D$13))) ->  | AE96: =IF($E96="","",VALUE(CONCATENATE("31/12/",Empresa!$D$13))) ->  | AH96: =IF(D96="","",IF(A96="EQUIPO DE TRANSPORTE (AUTOMOVILES)",IF(VLOOKUP(YEAR(E96),'Tablas de AF'!$H$10:$I$49,2)>D96,D96,VLOOKUP(YEAR(E96),'Tablas de AF'!$H$10:$I$49,2)),D96)) ->  | AZ96: =IF(E96="","",IF(BT96=0,AY96,VLOOKUP(Empresa!$D$13,INPC,Depreciaciones!BT96+1))) ->  | BM96: =IF($E96="","",VALUE(CONCATENATE("1/1/",Empresa!$D$13))) ->  | BN96: =IF($E96="","",VALUE(CONCATENATE("31/12/",Empresa!$D$13))) -> 
AD97: =IF($E97="","",VALUE(CONCATENATE("1/1/",Empresa!$D$13))) ->  | AE97: =IF($E97="","",VALUE(CONCATENATE("31/12/",Empresa!$D$13))) ->  | AH97: =IF(D97="","",IF(A97="EQUIPO DE TRANSPORTE (AUTOMOVILES)",IF(VLOOKUP(YEAR(E97),'Tablas de AF'!$H$10:$I$49,2)>D97,D97,VLOOKUP(YEAR(E97),'Tablas de AF'!$H$10:$I$49,2)),D97)) ->  | AZ97: =IF(E97="","",IF(BT97=0,AY97,VLOOKUP(Empresa!$D$13,INPC,Depreciaciones!BT97+1))) ->  | BM97: =IF($E97="","",VALUE(CONCATENATE("1/1/",Empresa!$D$13))) ->  | BN97: =IF($E97="","",VALUE(CONCATENATE("31/12/",Empresa!$D$13))) -> 
AD98: =IF($E98="","",VALUE(CONCATENATE("1/1/",Empresa!$D$13))) ->  | AE98: =IF($E98="","",VALUE(CONCATENATE("31/12/",Empresa!$D$13))) ->  | AH98: =IF(D98="","",IF(A98="EQUIPO DE TRANSPORTE (AUTOMOVILES)",IF(VLOOKUP(YEAR(E98),'Tablas de AF'!$H$10:$I$49,2)>D98,D98,VLOOKUP(YEAR(E98),'Tablas de AF'!$H$10:$I$49,2)),D98)) ->  | AZ98: =IF(E98="","",IF(BT98=0,AY98,VLOOKUP(Empresa!$D$13,INPC,Depreciaciones!BT98+1))) ->  | BM98: =IF($E98="","",VALUE(CONCATENATE("1/1/",Empresa!$D$13))) ->  | BN98: =IF($E98="","",VALUE(CONCATENATE("31/12/",Empresa!$D$13))) -> 
AD99: =IF($E99="","",VALUE(CONCATENATE("1/1/",Empresa!$D$13))) ->  | AE99: =IF($E99="","",VALUE(CONCATENATE("31/12/",Empresa!$D$13))) ->  | AH99: =IF(D99="","",IF(A99="EQUIPO DE TRANSPORTE (AUTOMOVILES)",IF(VLOOKUP(YEAR(E99),'Tablas de AF'!$H$10:$I$49,2)>D99,D99,VLOOKUP(YEAR(E99),'Tablas de AF'!$H$10:$I$49,2)),D99)) ->  | AZ99: =IF(E99="","",IF(BT99=0,AY99,VLOOKUP(Empresa!$D$13,INPC,Depreciaciones!BT99+1))) ->  | BM99: =IF($E99="","",VALUE(CONCATENATE("1/1/",Empresa!$D$13))) ->  | BN99: =IF($E99="","",VALUE(CONCATENATE("31/12/",Empresa!$D$13))) -> 
AD100: =IF($E100="","",VALUE(CONCATENATE("1/1/",Empresa!$D$13))) ->  | AE100: =IF($E100="","",VALUE(CONCATENATE("31/12/",Empresa!$D$13))) ->  | AH100: =IF(D100="","",IF(A100="EQUIPO DE TRANSPORTE (AUTOMOVILES)",IF(VLOOKUP(YEAR(E100),'Tablas de AF'!$H$10:$I$49,2)>D100,D100,VLOOKUP(YEAR(E100),'Tablas de AF'!$H$10:$I$49,2)),D100)) ->  | AZ100: =IF(E100="","",IF(BT100=0,AY100,VLOOKUP(Empresa!$D$13,INPC,Depreciaciones!BT100+1))) ->  | BM100: =IF($E100="","",VALUE(CONCATENATE("1/1/",Empresa!$D$13))) ->  | BN100: =IF($E100="","",VALUE(CONCATENATE("31/12/",Empresa!$D$13))) -> 
G101: =IF($E101="","",IF($G$6<$AF101,0,(IF($G$6<$AG101,IF(D101-X101*Z101<X101,D101-X101*Z101,$X101),0)))) ->  | H101: =IF($E101="","",IF($H$6<$AF101,0,(IF($H$6<$AG101,IF(D101-G101-X101*Z101<X101,D101-G101-X101*Z101,$X101),0)))) ->  | I101: =IF($E101="","",IF($I$6<$AF101,0,(IF($I$6<$AG101,IF(D101-G101-H101-X101*Z101<X101,D101-G101-H101-X101*Z101,$X101),0)))) ->  | J101: =IF($E101="","",IF($J$6<$AF101,0,(IF($J$6<$AG101,IF(D101-G101-H101-I101-X101*Z101<X101,D101-G101-H101-I101-X101*Z101,$X101),0)))) ->  | K101: =IF($E101="","",IF($K$6<$AF101,0,(IF($K$6<$AG101,IF(D101-G101-H101-I101-J101-X101*Z101<X101,D101-G101-H101-I101-J101-X101*Z101,$X101),0)))) ->  | L101: =IF($E101="","",IF($L$6<$AF101,0,(IF($L$6<$AG101,IF(D101-G101-H101-I101-J101-K101-X101*Z101<X101,D101-G101-H101-I101-J101-K101-X101*Z101,$X101),0)))) ->  | M101: =IF($E101="","",IF($M$6<$AF101,0,(IF($M$6<$AG101,IF(D101-G101-H101-I101-J101-K101-L101-X101*Z101<X101,D101-G101-H101-I101-J101-K101-L101-X101*Z101,$X101),0)))) ->  | N101: =IF($E101="","",IF($N$6<$AF101,0,(IF($N$6<$AG101,IF(D101-G101-H101-I101-J101-K101-L101-M101-X101*Z101<X101,D101-G101-H101-I101-J101-K101-L101-M101-X101*Z101,$X101),0)))) ->  | O101: =IF($E101="","",IF($O$6<$AF101,0,(IF($O$6<$AG101,IF(D101-G101-H101-I101-J101-K101-L101-M101-N101-X101*Z101<X101,D101-G101-H101-I101-J101-K101-L101-M101-N101-X101*Z101,$X101),0)))) ->  | P101: =IF($E101="","",IF($P$6<$AF101,0,(IF($P$6<$AG101,IF(D101-G101-H101-I101-J101-K101-L101-M101-N101-O101-X101*Z101<X101,D101-G101-H101-I101-J101-K101-L101-M101-N101-O101-X101*Z101,$X101),0)))) ->  | Q101: =IF($E101="","",IF($Q$6<$AF101,0,(IF($Q$6<$AG101,IF(D101-G101-H101-I101-J101-K101-L101-M101-N101-O101-P101-X101*Z101<X101,D101-G101-H101-I101-J101-K101-L101-M101-N101-O101-P101-X101*Z101,$X101),0)))) ->  | R101: =IF($E101="","",IF($R$6<$AF101,0,(IF($R$6<$AG101,IF(D101-G101-H101-I101-J101-K101-L101-M101-N101-O101-P101-Q101-X101*Z101<X101,D101-G101-H101-I101-J101-K101-L101-M101-N101-O101-P101-Q101-X101*Z101,$X101),0)))) ->  | S101: =IF($E101="","",SUM(G101:R101)) ->  | T101: =IF(Z101="","",IF(Y101>W101,D101,Z101*X101)) ->  | U101: =IF(S101="","",S101+T101) ->  | V101: =IF($E101="","",D101-U101-IF(BZ101="",0,BZ101)) ->  | W101: =IF($E101="","",IF(F101=0,"",12/F101)) ->  | X101: =IF($E101="","",IF(W101="",0,D101/W101)) ->  | Y101: =IF(D101="","",IF(AD101<AF101,0,DATEDIF(AF101,AD101,"M"))) ->  | Z101: =IF(F101="","",IF(F101=0,0,IF(TRUNC(W101,0)<Y101,TRUNC(W101,0),Y101))) ->  | AA101: =IF(D101="","",IF(AE101+1<AF101,0,DATEDIF(AF101,AE101+1,"M"))) ->  | AB101: =IF(F101="","",IF(F101=0,0,IF(TRUNC(W101,0)<AA101,TRUNC(W101,0),AA101))) ->  | AC101: =IF(E101="","",IF(E101>AD101-1,D101,"")) ->  | AD101: =IF($E101="","",VALUE(CONCATENATE("1/1/",Empresa!$D$13))) ->  | AE101: =IF($E101="","",VALUE(CONCATENATE("31/12/",Empresa!$D$13))) ->  | AF101: =IF(W101="","",IF(E101="","",EOMONTH(E101,0)+1)) ->  | AG101: =IF(W101="","",IF(BW101="",EOMONTH(AF101,W101-1)+((12/F101)-ROUND(12/F101,0))*30.4375,IF(BW101>EOMONTH(AF101,W101-1)+((12/F101)-ROUND(12/F101,0))*30.4375,EOMONTH(AF101,W101-1)+((12/F101)-ROUND(12/F101,0))*30.4375,EOMONTH(BW101,-1)))) ->  | AH101: =IF(D101="","",IF(A101="EQUIPO DE TRANSPORTE (AUTOMOVILES)",IF(VLOOKUP(YEAR(E101),'Tablas de AF'!$H$10:$I$49,2)>D101,D101,VLOOKUP(YEAR(E101),'Tablas de AF'!$H$10:$I$49,2)),D101)) ->  | AI101: =IF(E101="","",E101) ->  | AL101: =IF($E101="","",IF($AL$6<$BO101,0,(IF($AL$6<$BP101,IF(AH101-BG101*BI101<BG101,AH101-BG101*BI101,$BG101),0)))) ->  | AM101: =IF($E101="","",IF($AM$6<$BO101,0,(IF($AM$6<$BP101,IF(AH101-AL101-BG101*BI101<BG101,AH101-AL101-BG101*BI101,$BG101),0)))) ->  | AN101: =IF($E101="","",IF($AN$6<$BO101,0,(IF($AN$6<$BP101,IF(AH101-AL101-AM101-BG101*BI101<BG101,AH101-AL101-AM101-BG101*BI101,$BG101),0)))) ->  | AO101: =IF($E101="","",IF($AO$6<$BO101,0,(IF($AO$6<$BP101,IF(AH101-AL101-AM101-AN101-BG101*BI101<BG101,AH101-AL101-AM101-AN101-BG101*BI101,$BG101),0)))) ->  | AP101: =IF($E101="","",IF($AP$6<$BO101,0,(IF($AP$6<$BP101,IF(AH101-AL101-AM101-AN101-AO101-BG101*BI101<BG101,AH101-AL101-AM101-AN101-AO101-BG101*BI101,$BG101),0)))) ->  | AQ101: =IF($E101="","",IF($AQ$6<$BO101,0,(IF($AQ$6<$BP101,IF(AH101-AL101-AM101-AN101-AO101-AP101-BG101*BI101<BG101,AH101-AL101-AM101-AN101-AO101-AP101-BG101*BI101,$BG101),0)))) ->  | AR101: =IF($E101="","",IF($AR$6<$BO101,0,(IF($AR$6<$BP101,IF(AH101-AL101-AM101-AN101-AO101-AP101-AQ101-BG101*BI101<BG101,AH101-AL101-AM101-AN101-AO101-AP101-AQ101-BG101*BI101,$BG101),0)))) ->  | AS101: =IF($E101="","",IF($AS$6<$BO101,0,(IF($AS$6<$BP101,IF(AH101-AL101-AM101-AN101-AO101-AP101-AQ101-AR101-BG101*BI101<BG101,AH101-AL101-AM101-AN101-AO101-AP101-AQ101-AR101-BG101*BI101,$BG101),0)))) ->  | AT101: =IF($E101="","",IF($AT$6<$BO101,0,(IF($AT$6<$BP101,IF(AH101-AL101-AM101-AN101-AO101-AP101-AQ101-AR101-AS101-BG101*BI101<BG101,AH101-AL101-AM101-AN101-AO101-AP101-AQ101-AR101-AS101-BG101*BI101,$BG101),0)))) ->  | AU101: =IF($E101="","",IF($AU$6<$BO101,0,(IF($AU$6<$BP101,IF(AH101-AL101-AM101-AN101-AO101-AP101-AQ101-AR101-AS101-AT101-BG101*BI101<BG101,AH101-AL101-AM101-AN101-AO101-AP101-AQ101-AR101-AS101-AT101-BG101*BI101,$BG101),0)))) ->  | AV101: =IF($E101="","",IF($AV$6<$BO101,0,(IF($AV$6<$BP101,IF(AH101-AL101-AM101-AN101-AO101-AP101-AQ101-AR101-AS101-AT101-AU101-BG101*BI101<BG101,AH101-AL101-AM101-AN101-AO101-AP101-AQ101-AR101-AS101-AT101-AU101-BG101*BI101,$BG101),0)))) ->  | AW101: =IF($E101="","",IF($AW$6<$BO101,0,(IF($AW$6<$BP101,IF(AH101-AL101-AM101-AN101-AO101-AP101-AQ101-AR101-AS101-AT101-AU101-AV101-BG101*BI101<BG101,AH101-AL101-AM101-AN101-AO101-AP101-AQ101-AR101-AS101-AT101-AU101-AV101-BG101*BI101,$BG101),0)))) ->  | AX101: =IF($E101="","",SUM(AL101:AW101)) ->  | AY101: =IF(E101="","",VLOOKUP(YEAR(E101),INPC,MONTH(E101)+1)) ->  | AZ101: =IF(E101="","",IF(BT101=0,AY101,VLOOKUP(Empresa!$D$13,INPC,Depreciaciones!BT101+1))) ->  | BB101: =IF(E101="","",IF(AK101="si",0,AX101*BA101)) ->  | BC101: =IF(BI101="","",IF(BH101>BF101,AH101,BI101*BG101)) ->  | BD101: =IF(AX101="","",AX101+BC101) ->  | BE101: =IF($E101="","",AH101-BD101-IF(CC101="",0,CC101/BA101)) ->  | BF101: =IF($E101="","",IF(AJ101=0,"",12/AJ101)) ->  | BG101: =IF($E101="","",IF(BF101="",0,AH101/BF101)) ->  | BH101: =IF(AH101="","",IF(BM101<BO101,0,DATEDIF(BO101,BM101,"M"))) ->  | BI101: =IF(AJ101="","",IF(AJ101=0,0,IF(TRUNC(BF101,0)<BH101,TRUNC(BF101,0),BH101))) ->  | BJ101: =IF(AH101="","",IF(BN101+1<BO101,0,DATEDIF(BO101,BN101+1,"M"))) ->  | BK101: =IF(AJ101="","",IF(AJ101=0,0,IF(TRUNC(BF101,0)<BJ101,TRUNC(BF101,0),BJ101))) ->  | BL101: =IF(AI101="","",IF(AI101>BM101-1,AH101,"")) ->  | BM101: =IF($E101="","",VALUE(CONCATENATE("1/1/",Empresa!$D$13))) ->  | BN101: =IF($E101="","",VALUE(CONCATENATE("31/12/",Empresa!$D$13))) ->  | BO101: =IF(BF101="","",IF(AI101="","",EOMONTH(AI101,0)+1)) ->  | BP101: =IF(BF101="","",IF(BU101="",EOMONTH(BO101,BF101-1)+((12/AJ101)-ROUND(12/AJ101,0))*30.4375,IF(BU101>EOMONTH(BO101,BF101-1)+((12/AJ101)-ROUND(12/AJ101,0))*30.4375,EOMONTH(BO101,BF101-1)+((12/AJ101)-ROUND(12/AJ101,0))*30.4375,EOMONTH(BU101,-1)))) ->  | BQ101: =IF(E101="","",IF(AL101>0,1,IF(AM101>0,2,IF(AN101>0,3,IF(AO101>0,4,IF(AP101>0,5,IF(AQ101>0,6,IF(AR101>0,7,IF(AS101>0,8,IF(AT101>0,9,IF(AU101>0,10,IF(AV101>0,11,IF(AW101>0,12,0))))))))))))) ->  | BR101: =IF(E101="","",IF(AW101>0,12,IF(AV101>0,11,IF(AU101>0,10,IF(AT101>0,9,IF(AS101>0,8,IF(AR101>0,7,IF(AQ101>0,6,IF(AP101>0,5,IF(AO101>0,4,IF(AN101>0,3,IF(AM101>0,2,IF(AL101>0,1,0))))))))))))) ->  | BS101: =IF(E101="","",IF(BQ101+BR101=0,0,BR101-BQ101+1)) ->  | BU101: =IF(BW101="","",BW101) ->  | BV101: =IF(BX101="","",BX101) ->  | BZ101: =IF(BW101="","",IF(BW101<AD101,"",IF(BW101>AE101,"",D101-U101))) ->  | CA101: =IF(BZ101="","",IF(BX101>BZ101,BX101-BZ101,0)) ->  | CB101: =IF(BZ101="","",IF(BX101<BZ101,BZ101-BX101,0)) ->  | CC101: =IF(E101="","",IF(BU101="","",IF(AK101="si",0,IF(BU101<BM101,"",IF(BU101>BN101,"",(AH101-BD101)*BA101))))) ->  | CD101: =IF(CC101="","",IF(BV101="",0,IF(BV101>CC101,BV101-CC101,0))) ->  | CE101: =IF(CC101="","",IF(BV101<CC101,CC101-BV101,0)) -> 
AD102: =IF($E102="","",VALUE(CONCATENATE("1/1/",Empresa!$D$13))) ->  | AE102: =IF($E102="","",VALUE(CONCATENATE("31/12/",Empresa!$D$13))) ->  | AH102: =IF(D102="","",IF(A102="EQUIPO DE TRANSPORTE (AUTOMOVILES)",IF(VLOOKUP(YEAR(E102),'Tablas de AF'!$H$10:$I$49,2)>D102,D102,VLOOKUP(YEAR(E102),'Tablas de AF'!$H$10:$I$49,2)),D102)) ->  | AZ102: =IF(E102="","",IF(BT102=0,AY102,VLOOKUP(Empresa!$D$13,INPC,Depreciaciones!BT102+1))) ->  | BM102: =IF($E102="","",VALUE(CONCATENATE("1/1/",Empresa!$D$13))) ->  | BN102: =IF($E102="","",VALUE(CONCATENATE("31/12/",Empresa!$D$13))) -> 
AD103: =IF($E103="","",VALUE(CONCATENATE("1/1/",Empresa!$D$13))) ->  | AE103: =IF($E103="","",VALUE(CONCATENATE("31/12/",Empresa!$D$13))) ->  | AH103: =IF(D103="","",IF(A103="EQUIPO DE TRANSPORTE (AUTOMOVILES)",IF(VLOOKUP(YEAR(E103),'Tablas de AF'!$H$10:$I$49,2)>D103,D103,VLOOKUP(YEAR(E103),'Tablas de AF'!$H$10:$I$49,2)),D103)) ->  | AZ103: =IF(E103="","",IF(BT103=0,AY103,VLOOKUP(Empresa!$D$13,INPC,Depreciaciones!BT103+1))) ->  | BM103: =IF($E103="","",VALUE(CONCATENATE("1/1/",Empresa!$D$13))) ->  | BN103: =IF($E103="","",VALUE(CONCATENATE("31/12/",Empresa!$D$13))) -> 
AD104: =IF($E104="","",VALUE(CONCATENATE("1/1/",Empresa!$D$13))) ->  | AE104: =IF($E104="","",VALUE(CONCATENATE("31/12/",Empresa!$D$13))) ->  | AH104: =IF(D104="","",IF(A104="EQUIPO DE TRANSPORTE (AUTOMOVILES)",IF(VLOOKUP(YEAR(E104),'Tablas de AF'!$H$10:$I$49,2)>D104,D104,VLOOKUP(YEAR(E104),'Tablas de AF'!$H$10:$I$49,2)),D104)) ->  | AZ104: =IF(E104="","",IF(BT104=0,AY104,VLOOKUP(Empresa!$D$13,INPC,Depreciaciones!BT104+1))) ->  | BM104: =IF($E104="","",VALUE(CONCATENATE("1/1/",Empresa!$D$13))) ->  | BN104: =IF($E104="","",VALUE(CONCATENATE("31/12/",Empresa!$D$13))) -> 
AD105: =IF($E105="","",VALUE(CONCATENATE("1/1/",Empresa!$D$13))) ->  | AE105: =IF($E105="","",VALUE(CONCATENATE("31/12/",Empresa!$D$13))) ->  | AH105: =IF(D105="","",IF(A105="EQUIPO DE TRANSPORTE (AUTOMOVILES)",IF(VLOOKUP(YEAR(E105),'Tablas de AF'!$H$10:$I$49,2)>D105,D105,VLOOKUP(YEAR(E105),'Tablas de AF'!$H$10:$I$49,2)),D105)) ->  | AZ105: =IF(E105="","",IF(BT105=0,AY105,VLOOKUP(Empresa!$D$13,INPC,Depreciaciones!BT105+1))) ->  | BM105: =IF($E105="","",VALUE(CONCATENATE("1/1/",Empresa!$D$13))) ->  | BN105: =IF($E105="","",VALUE(CONCATENATE("31/12/",Empresa!$D$13))) -> 
AD106: =IF($E106="","",VALUE(CONCATENATE("1/1/",Empresa!$D$13))) ->  | AE106: =IF($E106="","",VALUE(CONCATENATE("31/12/",Empresa!$D$13))) ->  | AH106: =IF(D106="","",IF(A106="EQUIPO DE TRANSPORTE (AUTOMOVILES)",IF(VLOOKUP(YEAR(E106),'Tablas de AF'!$H$10:$I$49,2)>D106,D106,VLOOKUP(YEAR(E106),'Tablas de AF'!$H$10:$I$49,2)),D106)) ->  | AZ106: =IF(E106="","",IF(BT106=0,AY106,VLOOKUP(Empresa!$D$13,INPC,Depreciaciones!BT106+1))) ->  | BM106: =IF($E106="","",VALUE(CONCATENATE("1/1/",Empresa!$D$13))) ->  | BN106: =IF($E106="","",VALUE(CONCATENATE("31/12/",Empresa!$D$13))) -> 
AD107: =IF($E107="","",VALUE(CONCATENATE("1/1/",Empresa!$D$13))) ->  | AE107: =IF($E107="","",VALUE(CONCATENATE("31/12/",Empresa!$D$13))) ->  | AH107: =IF(D107="","",IF(A107="EQUIPO DE TRANSPORTE (AUTOMOVILES)",IF(VLOOKUP(YEAR(E107),'Tablas de AF'!$H$10:$I$49,2)>D107,D107,VLOOKUP(YEAR(E107),'Tablas de AF'!$H$10:$I$49,2)),D107)) ->  | AZ107: =IF(E107="","",IF(BT107=0,AY107,VLOOKUP(Empresa!$D$13,INPC,Depreciaciones!BT107+1))) ->  | BM107: =IF($E107="","",VALUE(CONCATENATE("1/1/",Empresa!$D$13))) ->  | BN107: =IF($E107="","",VALUE(CONCATENATE("31/12/",Empresa!$D$13))) -> 
AD108: =IF($E108="","",VALUE(CONCATENATE("1/1/",Empresa!$D$13))) ->  | AE108: =IF($E108="","",VALUE(CONCATENATE("31/12/",Empresa!$D$13))) ->  | AH108: =IF(D108="","",IF(A108="EQUIPO DE TRANSPORTE (AUTOMOVILES)",IF(VLOOKUP(YEAR(E108),'Tablas de AF'!$H$10:$I$49,2)>D108,D108,VLOOKUP(YEAR(E108),'Tablas de AF'!$H$10:$I$49,2)),D108)) ->  | AZ108: =IF(E108="","",IF(BT108=0,AY108,VLOOKUP(Empresa!$D$13,INPC,Depreciaciones!BT108+1))) ->  | BM108: =IF($E108="","",VALUE(CONCATENATE("1/1/",Empresa!$D$13))) ->  | BN108: =IF($E108="","",VALUE(CONCATENATE("31/12/",Empresa!$D$13))) -> 
AD109: =IF($E109="","",VALUE(CONCATENATE("1/1/",Empresa!$D$13))) ->  | AE109: =IF($E109="","",VALUE(CONCATENATE("31/12/",Empresa!$D$13))) ->  | AH109: =IF(D109="","",IF(A109="EQUIPO DE TRANSPORTE (AUTOMOVILES)",IF(VLOOKUP(YEAR(E109),'Tablas de AF'!$H$10:$I$49,2)>D109,D109,VLOOKUP(YEAR(E109),'Tablas de AF'!$H$10:$I$49,2)),D109)) ->  | AZ109: =IF(E109="","",IF(BT109=0,AY109,VLOOKUP(Empresa!$D$13,INPC,Depreciaciones!BT109+1))) ->  | BM109: =IF($E109="","",VALUE(CONCATENATE("1/1/",Empresa!$D$13))) ->  | BN109: =IF($E109="","",VALUE(CONCATENATE("31/12/",Empresa!$D$13))) -> 
AD110: =IF($E110="","",VALUE(CONCATENATE("1/1/",Empresa!$D$13))) ->  | AE110: =IF($E110="","",VALUE(CONCATENATE("31/12/",Empresa!$D$13))) ->  | AH110: =IF(D110="","",IF(A110="EQUIPO DE TRANSPORTE (AUTOMOVILES)",IF(VLOOKUP(YEAR(E110),'Tablas de AF'!$H$10:$I$49,2)>D110,D110,VLOOKUP(YEAR(E110),'Tablas de AF'!$H$10:$I$49,2)),D110)) ->  | AZ110: =IF(E110="","",IF(BT110=0,AY110,VLOOKUP(Empresa!$D$13,INPC,Depreciaciones!BT110+1))) ->  | BM110: =IF($E110="","",VALUE(CONCATENATE("1/1/",Empresa!$D$13))) ->  | BN110: =IF($E110="","",VALUE(CONCATENATE("31/12/",Empresa!$D$13))) -> 
AD111: =IF($E111="","",VALUE(CONCATENATE("1/1/",Empresa!$D$13))) ->  | AE111: =IF($E111="","",VALUE(CONCATENATE("31/12/",Empresa!$D$13))) ->  | AH111: =IF(D111="","",IF(A111="EQUIPO DE TRANSPORTE (AUTOMOVILES)",IF(VLOOKUP(YEAR(E111),'Tablas de AF'!$H$10:$I$49,2)>D111,D111,VLOOKUP(YEAR(E111),'Tablas de AF'!$H$10:$I$49,2)),D111)) ->  | AZ111: =IF(E111="","",IF(BT111=0,AY111,VLOOKUP(Empresa!$D$13,INPC,Depreciaciones!BT111+1))) ->  | BM111: =IF($E111="","",VALUE(CONCATENATE("1/1/",Empresa!$D$13))) ->  | BN111: =IF($E111="","",VALUE(CONCATENATE("31/12/",Empresa!$D$13))) -> 
AD112: =IF($E112="","",VALUE(CONCATENATE("1/1/",Empresa!$D$13))) ->  | AE112: =IF($E112="","",VALUE(CONCATENATE("31/12/",Empresa!$D$13))) ->  | AH112: =IF(D112="","",IF(A112="EQUIPO DE TRANSPORTE (AUTOMOVILES)",IF(VLOOKUP(YEAR(E112),'Tablas de AF'!$H$10:$I$49,2)>D112,D112,VLOOKUP(YEAR(E112),'Tablas de AF'!$H$10:$I$49,2)),D112)) ->  | AZ112: =IF(E112="","",IF(BT112=0,AY112,VLOOKUP(Empresa!$D$13,INPC,Depreciaciones!BT112+1))) ->  | BM112: =IF($E112="","",VALUE(CONCATENATE("1/1/",Empresa!$D$13))) ->  | BN112: =IF($E112="","",VALUE(CONCATENATE("31/12/",Empresa!$D$13))) -> 
AD113: =IF($E113="","",VALUE(CONCATENATE("1/1/",Empresa!$D$13))) ->  | AE113: =IF($E113="","",VALUE(CONCATENATE("31/12/",Empresa!$D$13))) ->  | AH113: =IF(D113="","",IF(A113="EQUIPO DE TRANSPORTE (AUTOMOVILES)",IF(VLOOKUP(YEAR(E113),'Tablas de AF'!$H$10:$I$49,2)>D113,D113,VLOOKUP(YEAR(E113),'Tablas de AF'!$H$10:$I$49,2)),D113)) ->  | AZ113: =IF(E113="","",IF(BT113=0,AY113,VLOOKUP(Empresa!$D$13,INPC,Depreciaciones!BT113+1))) ->  | BM113: =IF($E113="","",VALUE(CONCATENATE("1/1/",Empresa!$D$13))) ->  | BN113: =IF($E113="","",VALUE(CONCATENATE("31/12/",Empresa!$D$13))) -> 
AD114: =IF($E114="","",VALUE(CONCATENATE("1/1/",Empresa!$D$13))) ->  | AE114: =IF($E114="","",VALUE(CONCATENATE("31/12/",Empresa!$D$13))) ->  | AH114: =IF(D114="","",IF(A114="EQUIPO DE TRANSPORTE (AUTOMOVILES)",IF(VLOOKUP(YEAR(E114),'Tablas de AF'!$H$10:$I$49,2)>D114,D114,VLOOKUP(YEAR(E114),'Tablas de AF'!$H$10:$I$49,2)),D114)) ->  | AZ114: =IF(E114="","",IF(BT114=0,AY114,VLOOKUP(Empresa!$D$13,INPC,Depreciaciones!BT114+1))) ->  | BM114: =IF($E114="","",VALUE(CONCATENATE("1/1/",Empresa!$D$13))) ->  | BN114: =IF($E114="","",VALUE(CONCATENATE("31/12/",Empresa!$D$13))) -> 
AD115: =IF($E115="","",VALUE(CONCATENATE("1/1/",Empresa!$D$13))) ->  | AE115: =IF($E115="","",VALUE(CONCATENATE("31/12/",Empresa!$D$13))) ->  | AH115: =IF(D115="","",IF(A115="EQUIPO DE TRANSPORTE (AUTOMOVILES)",IF(VLOOKUP(YEAR(E115),'Tablas de AF'!$H$10:$I$49,2)>D115,D115,VLOOKUP(YEAR(E115),'Tablas de AF'!$H$10:$I$49,2)),D115)) ->  | AZ115: =IF(E115="","",IF(BT115=0,AY115,VLOOKUP(Empresa!$D$13,INPC,Depreciaciones!BT115+1))) ->  | BM115: =IF($E115="","",VALUE(CONCATENATE("1/1/",Empresa!$D$13))) ->  | BN115: =IF($E115="","",VALUE(CONCATENATE("31/12/",Empresa!$D$13))) -> 
AD116: =IF($E116="","",VALUE(CONCATENATE("1/1/",Empresa!$D$13))) ->  | AE116: =IF($E116="","",VALUE(CONCATENATE("31/12/",Empresa!$D$13))) ->  | AH116: =IF(D116="","",IF(A116="EQUIPO DE TRANSPORTE (AUTOMOVILES)",IF(VLOOKUP(YEAR(E116),'Tablas de AF'!$H$10:$I$49,2)>D116,D116,VLOOKUP(YEAR(E116),'Tablas de AF'!$H$10:$I$49,2)),D116)) ->  | AZ116: =IF(E116="","",IF(BT116=0,AY116,VLOOKUP(Empresa!$D$13,INPC,Depreciaciones!BT116+1))) ->  | BM116: =IF($E116="","",VALUE(CONCATENATE("1/1/",Empresa!$D$13))) ->  | BN116: =IF($E116="","",VALUE(CONCATENATE("31/12/",Empresa!$D$13))) -> 
AD117: =IF($E117="","",VALUE(CONCATENATE("1/1/",Empresa!$D$13))) ->  | AE117: =IF($E117="","",VALUE(CONCATENATE("31/12/",Empresa!$D$13))) ->  | AH117: =IF(D117="","",IF(A117="EQUIPO DE TRANSPORTE (AUTOMOVILES)",IF(VLOOKUP(YEAR(E117),'Tablas de AF'!$H$10:$I$49,2)>D117,D117,VLOOKUP(YEAR(E117),'Tablas de AF'!$H$10:$I$49,2)),D117)) ->  | AZ117: =IF(E117="","",IF(BT117=0,AY117,VLOOKUP(Empresa!$D$13,INPC,Depreciaciones!BT117+1))) ->  | BM117: =IF($E117="","",VALUE(CONCATENATE("1/1/",Empresa!$D$13))) ->  | BN117: =IF($E117="","",VALUE(CONCATENATE("31/12/",Empresa!$D$13))) -> 
AD118: =IF($E118="","",VALUE(CONCATENATE("1/1/",Empresa!$D$13))) ->  | AE118: =IF($E118="","",VALUE(CONCATENATE("31/12/",Empresa!$D$13))) ->  | AH118: =IF(D118="","",IF(A118="EQUIPO DE TRANSPORTE (AUTOMOVILES)",IF(VLOOKUP(YEAR(E118),'Tablas de AF'!$H$10:$I$49,2)>D118,D118,VLOOKUP(YEAR(E118),'Tablas de AF'!$H$10:$I$49,2)),D118)) ->  | AZ118: =IF(E118="","",IF(BT118=0,AY118,VLOOKUP(Empresa!$D$13,INPC,Depreciaciones!BT118+1))) ->  | BM118: =IF($E118="","",VALUE(CONCATENATE("1/1/",Empresa!$D$13))) ->  | BN118: =IF($E118="","",VALUE(CONCATENATE("31/12/",Empresa!$D$13))) -> 
AD119: =IF($E119="","",VALUE(CONCATENATE("1/1/",Empresa!$D$13))) ->  | AE119: =IF($E119="","",VALUE(CONCATENATE("31/12/",Empresa!$D$13))) ->  | AH119: =IF(D119="","",IF(A119="EQUIPO DE TRANSPORTE (AUTOMOVILES)",IF(VLOOKUP(YEAR(E119),'Tablas de AF'!$H$10:$I$49,2)>D119,D119,VLOOKUP(YEAR(E119),'Tablas de AF'!$H$10:$I$49,2)),D119)) ->  | AZ119: =IF(E119="","",IF(BT119=0,AY119,VLOOKUP(Empresa!$D$13,INPC,Depreciaciones!BT119+1))) ->  | BM119: =IF($E119="","",VALUE(CONCATENATE("1/1/",Empresa!$D$13))) ->  | BN119: =IF($E119="","",VALUE(CONCATENATE("31/12/",Empresa!$D$13))) -> 
AD120: =IF($E120="","",VALUE(CONCATENATE("1/1/",Empresa!$D$13))) ->  | AE120: =IF($E120="","",VALUE(CONCATENATE("31/12/",Empresa!$D$13))) ->  | AH120: =IF(D120="","",IF(A120="EQUIPO DE TRANSPORTE (AUTOMOVILES)",IF(VLOOKUP(YEAR(E120),'Tablas de AF'!$H$10:$I$49,2)>D120,D120,VLOOKUP(YEAR(E120),'Tablas de AF'!$H$10:$I$49,2)),D120)) ->  | AZ120: =IF(E120="","",IF(BT120=0,AY120,VLOOKUP(Empresa!$D$13,INPC,Depreciaciones!BT120+1))) ->  | BM120: =IF($E120="","",VALUE(CONCATENATE("1/1/",Empresa!$D$13))) ->  | BN120: =IF($E120="","",VALUE(CONCATENATE("31/12/",Empresa!$D$13))) -> 
AD121: =IF($E121="","",VALUE(CONCATENATE("1/1/",Empresa!$D$13))) ->  | AE121: =IF($E121="","",VALUE(CONCATENATE("31/12/",Empresa!$D$13))) ->  | AH121: =IF(D121="","",IF(A121="EQUIPO DE TRANSPORTE (AUTOMOVILES)",IF(VLOOKUP(YEAR(E121),'Tablas de AF'!$H$10:$I$49,2)>D121,D121,VLOOKUP(YEAR(E121),'Tablas de AF'!$H$10:$I$49,2)),D121)) ->  | AZ121: =IF(E121="","",IF(BT121=0,AY121,VLOOKUP(Empresa!$D$13,INPC,Depreciaciones!BT121+1))) ->  | BM121: =IF($E121="","",VALUE(CONCATENATE("1/1/",Empresa!$D$13))) ->  | BN121: =IF($E121="","",VALUE(CONCATENATE("31/12/",Empresa!$D$13))) -> 
AD122: =IF($E122="","",VALUE(CONCATENATE("1/1/",Empresa!$D$13))) ->  | AE122: =IF($E122="","",VALUE(CONCATENATE("31/12/",Empresa!$D$13))) ->  | AH122: =IF(D122="","",IF(A122="EQUIPO DE TRANSPORTE (AUTOMOVILES)",IF(VLOOKUP(YEAR(E122),'Tablas de AF'!$H$10:$I$49,2)>D122,D122,VLOOKUP(YEAR(E122),'Tablas de AF'!$H$10:$I$49,2)),D122)) ->  | AZ122: =IF(E122="","",IF(BT122=0,AY122,VLOOKUP(Empresa!$D$13,INPC,Depreciaciones!BT122+1))) ->  | BM122: =IF($E122="","",VALUE(CONCATENATE("1/1/",Empresa!$D$13))) ->  | BN122: =IF($E122="","",VALUE(CONCATENATE("31/12/",Empresa!$D$13))) -> 
AD123: =IF($E123="","",VALUE(CONCATENATE("1/1/",Empresa!$D$13))) ->  | AE123: =IF($E123="","",VALUE(CONCATENATE("31/12/",Empresa!$D$13))) ->  | AH123: =IF(D123="","",IF(A123="EQUIPO DE TRANSPORTE (AUTOMOVILES)",IF(VLOOKUP(YEAR(E123),'Tablas de AF'!$H$10:$I$49,2)>D123,D123,VLOOKUP(YEAR(E123),'Tablas de AF'!$H$10:$I$49,2)),D123)) ->  | AZ123: =IF(E123="","",IF(BT123=0,AY123,VLOOKUP(Empresa!$D$13,INPC,Depreciaciones!BT123+1))) ->  | BM123: =IF($E123="","",VALUE(CONCATENATE("1/1/",Empresa!$D$13))) ->  | BN123: =IF($E123="","",VALUE(CONCATENATE("31/12/",Empresa!$D$13))) -> 
AD124: =IF($E124="","",VALUE(CONCATENATE("1/1/",Empresa!$D$13))) ->  | AE124: =IF($E124="","",VALUE(CONCATENATE("31/12/",Empresa!$D$13))) ->  | AH124: =IF(D124="","",IF(A124="EQUIPO DE TRANSPORTE (AUTOMOVILES)",IF(VLOOKUP(YEAR(E124),'Tablas de AF'!$H$10:$I$49,2)>D124,D124,VLOOKUP(YEAR(E124),'Tablas de AF'!$H$10:$I$49,2)),D124)) ->  | AZ124: =IF(E124="","",IF(BT124=0,AY124,VLOOKUP(Empresa!$D$13,INPC,Depreciaciones!BT124+1))) ->  | BM124: =IF($E124="","",VALUE(CONCATENATE("1/1/",Empresa!$D$13))) ->  | BN124: =IF($E124="","",VALUE(CONCATENATE("31/12/",Empresa!$D$13))) -> 
AD125: =IF($E125="","",VALUE(CONCATENATE("1/1/",Empresa!$D$13))) ->  | AE125: =IF($E125="","",VALUE(CONCATENATE("31/12/",Empresa!$D$13))) ->  | AH125: =IF(D125="","",IF(A125="EQUIPO DE TRANSPORTE (AUTOMOVILES)",IF(VLOOKUP(YEAR(E125),'Tablas de AF'!$H$10:$I$49,2)>D125,D125,VLOOKUP(YEAR(E125),'Tablas de AF'!$H$10:$I$49,2)),D125)) ->  | AZ125: =IF(E125="","",IF(BT125=0,AY125,VLOOKUP(Empresa!$D$13,INPC,Depreciaciones!BT125+1))) ->  | BM125: =IF($E125="","",VALUE(CONCATENATE("1/1/",Empresa!$D$13))) ->  | BN125: =IF($E125="","",VALUE(CONCATENATE("31/12/",Empresa!$D$13))) -> 
AD126: =IF($E126="","",VALUE(CONCATENATE("1/1/",Empresa!$D$13))) ->  | AE126: =IF($E126="","",VALUE(CONCATENATE("31/12/",Empresa!$D$13))) ->  | AH126: =IF(D126="","",IF(A126="EQUIPO DE TRANSPORTE (AUTOMOVILES)",IF(VLOOKUP(YEAR(E126),'Tablas de AF'!$H$10:$I$49,2)>D126,D126,VLOOKUP(YEAR(E126),'Tablas de AF'!$H$10:$I$49,2)),D126)) ->  | AZ126: =IF(E126="","",IF(BT126=0,AY126,VLOOKUP(Empresa!$D$13,INPC,Depreciaciones!BT126+1))) ->  | BM126: =IF($E126="","",VALUE(CONCATENATE("1/1/",Empresa!$D$13))) ->  | BN126: =IF($E126="","",VALUE(CONCATENATE("31/12/",Empresa!$D$13))) -> 
AD127: =IF($E127="","",VALUE(CONCATENATE("1/1/",Empresa!$D$13))) ->  | AE127: =IF($E127="","",VALUE(CONCATENATE("31/12/",Empresa!$D$13))) ->  | AH127: =IF(D127="","",IF(A127="EQUIPO DE TRANSPORTE (AUTOMOVILES)",IF(VLOOKUP(YEAR(E127),'Tablas de AF'!$H$10:$I$49,2)>D127,D127,VLOOKUP(YEAR(E127),'Tablas de AF'!$H$10:$I$49,2)),D127)) ->  | AZ127: =IF(E127="","",IF(BT127=0,AY127,VLOOKUP(Empresa!$D$13,INPC,Depreciaciones!BT127+1))) ->  | BM127: =IF($E127="","",VALUE(CONCATENATE("1/1/",Empresa!$D$13))) ->  | BN127: =IF($E127="","",VALUE(CONCATENATE("31/12/",Empresa!$D$13))) -> 
AD128: =IF($E128="","",VALUE(CONCATENATE("1/1/",Empresa!$D$13))) ->  | AE128: =IF($E128="","",VALUE(CONCATENATE("31/12/",Empresa!$D$13))) ->  | AH128: =IF(D128="","",IF(A128="EQUIPO DE TRANSPORTE (AUTOMOVILES)",IF(VLOOKUP(YEAR(E128),'Tablas de AF'!$H$10:$I$49,2)>D128,D128,VLOOKUP(YEAR(E128),'Tablas de AF'!$H$10:$I$49,2)),D128)) ->  | AZ128: =IF(E128="","",IF(BT128=0,AY128,VLOOKUP(Empresa!$D$13,INPC,Depreciaciones!BT128+1))) ->  | BM128: =IF($E128="","",VALUE(CONCATENATE("1/1/",Empresa!$D$13))) ->  | BN128: =IF($E128="","",VALUE(CONCATENATE("31/12/",Empresa!$D$13))) -> 
AD129: =IF($E129="","",VALUE(CONCATENATE("1/1/",Empresa!$D$13))) ->  | AE129: =IF($E129="","",VALUE(CONCATENATE("31/12/",Empresa!$D$13))) ->  | AH129: =IF(D129="","",IF(A129="EQUIPO DE TRANSPORTE (AUTOMOVILES)",IF(VLOOKUP(YEAR(E129),'Tablas de AF'!$H$10:$I$49,2)>D129,D129,VLOOKUP(YEAR(E129),'Tablas de AF'!$H$10:$I$49,2)),D129)) ->  | AZ129: =IF(E129="","",IF(BT129=0,AY129,VLOOKUP(Empresa!$D$13,INPC,Depreciaciones!BT129+1))) ->  | BM129: =IF($E129="","",VALUE(CONCATENATE("1/1/",Empresa!$D$13))) ->  | BN129: =IF($E129="","",VALUE(CONCATENATE("31/12/",Empresa!$D$13))) -> 
AD130: =IF($E130="","",VALUE(CONCATENATE("1/1/",Empresa!$D$13))) ->  | AE130: =IF($E130="","",VALUE(CONCATENATE("31/12/",Empresa!$D$13))) ->  | AH130: =IF(D130="","",IF(A130="EQUIPO DE TRANSPORTE (AUTOMOVILES)",IF(VLOOKUP(YEAR(E130),'Tablas de AF'!$H$10:$I$49,2)>D130,D130,VLOOKUP(YEAR(E130),'Tablas de AF'!$H$10:$I$49,2)),D130)) ->  | AZ130: =IF(E130="","",IF(BT130=0,AY130,VLOOKUP(Empresa!$D$13,INPC,Depreciaciones!BT130+1))) ->  | BM130: =IF($E130="","",VALUE(CONCATENATE("1/1/",Empresa!$D$13))) ->  | BN130: =IF($E130="","",VALUE(CONCATENATE("31/12/",Empresa!$D$13))) -> 
AD131: =IF($E131="","",VALUE(CONCATENATE("1/1/",Empresa!$D$13))) ->  | AE131: =IF($E131="","",VALUE(CONCATENATE("31/12/",Empresa!$D$13))) ->  | AH131: =IF(D131="","",IF(A131="EQUIPO DE TRANSPORTE (AUTOMOVILES)",IF(VLOOKUP(YEAR(E131),'Tablas de AF'!$H$10:$I$49,2)>D131,D131,VLOOKUP(YEAR(E131),'Tablas de AF'!$H$10:$I$49,2)),D131)) ->  | AZ131: =IF(E131="","",IF(BT131=0,AY131,VLOOKUP(Empresa!$D$13,INPC,Depreciaciones!BT131+1))) ->  | BM131: =IF($E131="","",VALUE(CONCATENATE("1/1/",Empresa!$D$13))) ->  | BN131: =IF($E131="","",VALUE(CONCATENATE("31/12/",Empresa!$D$13))) -> 
AD132: =IF($E132="","",VALUE(CONCATENATE("1/1/",Empresa!$D$13))) ->  | AE132: =IF($E132="","",VALUE(CONCATENATE("31/12/",Empresa!$D$13))) ->  | AH132: =IF(D132="","",IF(A132="EQUIPO DE TRANSPORTE (AUTOMOVILES)",IF(VLOOKUP(YEAR(E132),'Tablas de AF'!$H$10:$I$49,2)>D132,D132,VLOOKUP(YEAR(E132),'Tablas de AF'!$H$10:$I$49,2)),D132)) ->  | AZ132: =IF(E132="","",IF(BT132=0,AY132,VLOOKUP(Empresa!$D$13,INPC,Depreciaciones!BT132+1))) ->  | BM132: =IF($E132="","",VALUE(CONCATENATE("1/1/",Empresa!$D$13))) ->  | BN132: =IF($E132="","",VALUE(CONCATENATE("31/12/",Empresa!$D$13))) -> 
AD133: =IF($E133="","",VALUE(CONCATENATE("1/1/",Empresa!$D$13))) ->  | AE133: =IF($E133="","",VALUE(CONCATENATE("31/12/",Empresa!$D$13))) ->  | AH133: =IF(D133="","",IF(A133="EQUIPO DE TRANSPORTE (AUTOMOVILES)",IF(VLOOKUP(YEAR(E133),'Tablas de AF'!$H$10:$I$49,2)>D133,D133,VLOOKUP(YEAR(E133),'Tablas de AF'!$H$10:$I$49,2)),D133)) ->  | AZ133: =IF(E133="","",IF(BT133=0,AY133,VLOOKUP(Empresa!$D$13,INPC,Depreciaciones!BT133+1))) ->  | BM133: =IF($E133="","",VALUE(CONCATENATE("1/1/",Empresa!$D$13))) ->  | BN133: =IF($E133="","",VALUE(CONCATENATE("31/12/",Empresa!$D$13))) ->  | CA133: =IF(BZ133="","",IF(BX133>BZ133,BX133-BZ133,0)) ->  | CB133: =IF(BZ133="","",IF(BX133<BZ133,BZ133-BX133,0)) ->  | CE133: =IF(CC133="","",IF(BV133<CC133,CC133-BV133,0)) -> 
AD134: =IF($E134="","",VALUE(CONCATENATE("1/1/",Empresa!$D$13))) ->  | AE134: =IF($E134="","",VALUE(CONCATENATE("31/12/",Empresa!$D$13))) ->  | AH134: =IF(D134="","",IF(A134="EQUIPO DE TRANSPORTE (AUTOMOVILES)",IF(VLOOKUP(YEAR(E134),'Tablas de AF'!$H$10:$I$49,2)>D134,D134,VLOOKUP(YEAR(E134),'Tablas de AF'!$H$10:$I$49,2)),D134)) ->  | AZ134: =IF(E134="","",IF(BT134=0,AY134,VLOOKUP(Empresa!$D$13,INPC,Depreciaciones!BT134+1))) ->  | BM134: =IF($E134="","",VALUE(CONCATENATE("1/1/",Empresa!$D$13))) ->  | BN134: =IF($E134="","",VALUE(CONCATENATE("31/12/",Empresa!$D$13))) -> 
F135: =IF($E135="","",VLOOKUP($A135,PORCIENTOS,2)) ->  | AD135: =IF($E135="","",VALUE(CONCATENATE("1/1/",Empresa!$D$13))) ->  | AE135: =IF($E135="","",VALUE(CONCATENATE("31/12/",Empresa!$D$13))) ->  | AH135: =IF(D135="","",IF(A135="EQUIPO DE TRANSPORTE (AUTOMOVILES)",IF(VLOOKUP(YEAR(E135),'Tablas de AF'!$H$10:$I$49,2)>D135,D135,VLOOKUP(YEAR(E135),'Tablas de AF'!$H$10:$I$49,2)),D135)) ->  | AZ135: =IF(E135="","",IF(BT135=0,AY135,VLOOKUP(Empresa!$D$13,INPC,Depreciaciones!BT135+1))) ->  | BM135: =IF($E135="","",VALUE(CONCATENATE("1/1/",Empresa!$D$13))) ->  | BN135: =IF($E135="","",VALUE(CONCATENATE("31/12/",Empresa!$D$13))) ->  | BY135: =IF(BW135="","",D135) -> 
AD136: =IF($E136="","",VALUE(CONCATENATE("1/1/",Empresa!$D$13))) ->  | AE136: =IF($E136="","",VALUE(CONCATENATE("31/12/",Empresa!$D$13))) ->  | AH136: =IF(D136="","",IF(A136="EQUIPO DE TRANSPORTE (AUTOMOVILES)",IF(VLOOKUP(YEAR(E136),'Tablas de AF'!$H$10:$I$49,2)>D136,D136,VLOOKUP(YEAR(E136),'Tablas de AF'!$H$10:$I$49,2)),D136)) ->  | AJ136: =IF($E136="","",VLOOKUP($A136,PORCIENTOS,3)) ->  | AZ136: =IF(E136="","",IF(BT136=0,AY136,VLOOKUP(Empresa!$D$13,INPC,Depreciaciones!BT136+1))) ->  | BA136: =IF(E136="","",IF(AZ136<AY136,1,TRUNC(AZ136/AY136,4))) ->  | BM136: =IF($E136="","",VALUE(CONCATENATE("1/1/",Empresa!$D$13))) ->  | BN136: =IF($E136="","",VALUE(CONCATENATE("31/12/",Empresa!$D$13))) -> 
AD137: =IF($E137="","",VALUE(CONCATENATE("1/1/",Empresa!$D$13))) ->  | AE137: =IF($E137="","",VALUE(CONCATENATE("31/12/",Empresa!$D$13))) ->  | AH137: =IF(D137="","",IF(A137="EQUIPO DE TRANSPORTE (AUTOMOVILES)",IF(VLOOKUP(YEAR(E137),'Tablas de AF'!$H$10:$I$49,2)>D137,D137,VLOOKUP(YEAR(E137),'Tablas de AF'!$H$10:$I$49,2)),D137)) ->  | AZ137: =IF(E137="","",IF(BT137=0,AY137,VLOOKUP(Empresa!$D$13,INPC,Depreciaciones!BT137+1))) ->  | BM137: =IF($E137="","",VALUE(CONCATENATE("1/1/",Empresa!$D$13))) ->  | BN137: =IF($E137="","",VALUE(CONCATENATE("31/12/",Empresa!$D$13))) -> 
AD138: =IF($E138="","",VALUE(CONCATENATE("1/1/",Empresa!$D$13))) ->  | AE138: =IF($E138="","",VALUE(CONCATENATE("31/12/",Empresa!$D$13))) ->  | AH138: =IF(D138="","",IF(A138="EQUIPO DE TRANSPORTE (AUTOMOVILES)",IF(VLOOKUP(YEAR(E138),'Tablas de AF'!$H$10:$I$49,2)>D138,D138,VLOOKUP(YEAR(E138),'Tablas de AF'!$H$10:$I$49,2)),D138)) ->  | AZ138: =IF(E138="","",IF(BT138=0,AY138,VLOOKUP(Empresa!$D$13,INPC,Depreciaciones!BT138+1))) ->  | BM138: =IF($E138="","",VALUE(CONCATENATE("1/1/",Empresa!$D$13))) ->  | BN138: =IF($E138="","",VALUE(CONCATENATE("31/12/",Empresa!$D$13))) ->  | BT138: =IF(E138="","",(TRUNC(BS138/2,0)+IF(BR138=1,1,0)+IF(BQ138>1,BQ138-1,0))+IF(BQ138=12,0,0)) -> 
AD139: =IF($E139="","",VALUE(CONCATENATE("1/1/",Empresa!$D$13))) ->  | AE139: =IF($E139="","",VALUE(CONCATENATE("31/12/",Empresa!$D$13))) ->  | AH139: =IF(D139="","",IF(A139="EQUIPO DE TRANSPORTE (AUTOMOVILES)",IF(VLOOKUP(YEAR(E139),'Tablas de AF'!$H$10:$I$49,2)>D139,D139,VLOOKUP(YEAR(E139),'Tablas de AF'!$H$10:$I$49,2)),D139)) ->  | AZ139: =IF(E139="","",IF(BT139=0,AY139,VLOOKUP(Empresa!$D$13,INPC,Depreciaciones!BT139+1))) ->  | BM139: =IF($E139="","",VALUE(CONCATENATE("1/1/",Empresa!$D$13))) ->  | BN139: =IF($E139="","",VALUE(CONCATENATE("31/12/",Empresa!$D$13))) -> 
AD140: =IF($E140="","",VALUE(CONCATENATE("1/1/",Empresa!$D$13))) ->  | AE140: =IF($E140="","",VALUE(CONCATENATE("31/12/",Empresa!$D$13))) ->  | AH140: =IF(D140="","",IF(A140="EQUIPO DE TRANSPORTE (AUTOMOVILES)",IF(VLOOKUP(YEAR(E140),'Tablas de AF'!$H$10:$I$49,2)>D140,D140,VLOOKUP(YEAR(E140),'Tablas de AF'!$H$10:$I$49,2)),D140)) ->  | AZ140: =IF(E140="","",IF(BT140=0,AY140,VLOOKUP(Empresa!$D$13,INPC,Depreciaciones!BT140+1))) ->  | BM140: =IF($E140="","",VALUE(CONCATENATE("1/1/",Empresa!$D$13))) ->  | BN140: =IF($E140="","",VALUE(CONCATENATE("31/12/",Empresa!$D$13))) -> 
AD141: =IF($E141="","",VALUE(CONCATENATE("1/1/",Empresa!$D$13))) ->  | AE141: =IF($E141="","",VALUE(CONCATENATE("31/12/",Empresa!$D$13))) ->  | AH141: =IF(D141="","",IF(A141="EQUIPO DE TRANSPORTE (AUTOMOVILES)",IF(VLOOKUP(YEAR(E141),'Tablas de AF'!$H$10:$I$49,2)>D141,D141,VLOOKUP(YEAR(E141),'Tablas de AF'!$H$10:$I$49,2)),D141)) ->  | AZ141: =IF(E141="","",IF(BT141=0,AY141,VLOOKUP(Empresa!$D$13,INPC,Depreciaciones!BT141+1))) ->  | BM141: =IF($E141="","",VALUE(CONCATENATE("1/1/",Empresa!$D$13))) ->  | BN141: =IF($E141="","",VALUE(CONCATENATE("31/12/",Empresa!$D$13))) -> 
AD142: =IF($E142="","",VALUE(CONCATENATE("1/1/",Empresa!$D$13))) ->  | AE142: =IF($E142="","",VALUE(CONCATENATE("31/12/",Empresa!$D$13))) ->  | AH142: =IF(D142="","",IF(A142="EQUIPO DE TRANSPORTE (AUTOMOVILES)",IF(VLOOKUP(YEAR(E142),'Tablas de AF'!$H$10:$I$49,2)>D142,D142,VLOOKUP(YEAR(E142),'Tablas de AF'!$H$10:$I$49,2)),D142)) ->  | AZ142: =IF(E142="","",IF(BT142=0,AY142,VLOOKUP(Empresa!$D$13,INPC,Depreciaciones!BT142+1))) ->  | BM142: =IF($E142="","",VALUE(CONCATENATE("1/1/",Empresa!$D$13))) ->  | BN142: =IF($E142="","",VALUE(CONCATENATE("31/12/",Empresa!$D$13))) -> 
AD143: =IF($E143="","",VALUE(CONCATENATE("1/1/",Empresa!$D$13))) ->  | AE143: =IF($E143="","",VALUE(CONCATENATE("31/12/",Empresa!$D$13))) ->  | AH143: =IF(D143="","",IF(A143="EQUIPO DE TRANSPORTE (AUTOMOVILES)",IF(VLOOKUP(YEAR(E143),'Tablas de AF'!$H$10:$I$49,2)>D143,D143,VLOOKUP(YEAR(E143),'Tablas de AF'!$H$10:$I$49,2)),D143)) ->  | AZ143: =IF(E143="","",IF(BT143=0,AY143,VLOOKUP(Empresa!$D$13,INPC,Depreciaciones!BT143+1))) ->  | BM143: =IF($E143="","",VALUE(CONCATENATE("1/1/",Empresa!$D$13))) ->  | BN143: =IF($E143="","",VALUE(CONCATENATE("31/12/",Empresa!$D$13))) -> 
AD144: =IF($E144="","",VALUE(CONCATENATE("1/1/",Empresa!$D$13))) ->  | AE144: =IF($E144="","",VALUE(CONCATENATE("31/12/",Empresa!$D$13))) ->  | AH144: =IF(D144="","",IF(A144="EQUIPO DE TRANSPORTE (AUTOMOVILES)",IF(VLOOKUP(YEAR(E144),'Tablas de AF'!$H$10:$I$49,2)>D144,D144,VLOOKUP(YEAR(E144),'Tablas de AF'!$H$10:$I$49,2)),D144)) ->  | AZ144: =IF(E144="","",IF(BT144=0,AY144,VLOOKUP(Empresa!$D$13,INPC,Depreciaciones!BT144+1))) ->  | BM144: =IF($E144="","",VALUE(CONCATENATE("1/1/",Empresa!$D$13))) ->  | BN144: =IF($E144="","",VALUE(CONCATENATE("31/12/",Empresa!$D$13))) -> 
AD145: =IF($E145="","",VALUE(CONCATENATE("1/1/",Empresa!$D$13))) ->  | AE145: =IF($E145="","",VALUE(CONCATENATE("31/12/",Empresa!$D$13))) ->  | AH145: =IF(D145="","",IF(A145="EQUIPO DE TRANSPORTE (AUTOMOVILES)",IF(VLOOKUP(YEAR(E145),'Tablas de AF'!$H$10:$I$49,2)>D145,D145,VLOOKUP(YEAR(E145),'Tablas de AF'!$H$10:$I$49,2)),D145)) ->  | AZ145: =IF(E145="","",IF(BT145=0,AY145,VLOOKUP(Empresa!$D$13,INPC,Depreciaciones!BT145+1))) ->  | BM145: =IF($E145="","",VALUE(CONCATENATE("1/1/",Empresa!$D$13))) ->  | BN145: =IF($E145="","",VALUE(CONCATENATE("31/12/",Empresa!$D$13))) -> 
AD146: =IF($E146="","",VALUE(CONCATENATE("1/1/",Empresa!$D$13))) ->  | AE146: =IF($E146="","",VALUE(CONCATENATE("31/12/",Empresa!$D$13))) ->  | AH146: =IF(D146="","",IF(A146="EQUIPO DE TRANSPORTE (AUTOMOVILES)",IF(VLOOKUP(YEAR(E146),'Tablas de AF'!$H$10:$I$49,2)>D146,D146,VLOOKUP(YEAR(E146),'Tablas de AF'!$H$10:$I$49,2)),D146)) ->  | AZ146: =IF(E146="","",IF(BT146=0,AY146,VLOOKUP(Empresa!$D$13,INPC,Depreciaciones!BT146+1))) ->  | BM146: =IF($E146="","",VALUE(CONCATENATE("1/1/",Empresa!$D$13))) ->  | BN146: =IF($E146="","",VALUE(CONCATENATE("31/12/",Empresa!$D$13))) -> 
AD147: =IF($E147="","",VALUE(CONCATENATE("1/1/",Empresa!$D$13))) ->  | AE147: =IF($E147="","",VALUE(CONCATENATE("31/12/",Empresa!$D$13))) ->  | AH147: =IF(D147="","",IF(A147="EQUIPO DE TRANSPORTE (AUTOMOVILES)",IF(VLOOKUP(YEAR(E147),'Tablas de AF'!$H$10:$I$49,2)>D147,D147,VLOOKUP(YEAR(E147),'Tablas de AF'!$H$10:$I$49,2)),D147)) ->  | AZ147: =IF(E147="","",IF(BT147=0,AY147,VLOOKUP(Empresa!$D$13,INPC,Depreciaciones!BT147+1))) ->  | BM147: =IF($E147="","",VALUE(CONCATENATE("1/1/",Empresa!$D$13))) ->  | BN147: =IF($E147="","",VALUE(CONCATENATE("31/12/",Empresa!$D$13))) -> 
AD148: =IF($E148="","",VALUE(CONCATENATE("1/1/",Empresa!$D$13))) ->  | AE148: =IF($E148="","",VALUE(CONCATENATE("31/12/",Empresa!$D$13))) ->  | AH148: =IF(D148="","",IF(A148="EQUIPO DE TRANSPORTE (AUTOMOVILES)",IF(VLOOKUP(YEAR(E148),'Tablas de AF'!$H$10:$I$49,2)>D148,D148,VLOOKUP(YEAR(E148),'Tablas de AF'!$H$10:$I$49,2)),D148)) ->  | AZ148: =IF(E148="","",IF(BT148=0,AY148,VLOOKUP(Empresa!$D$13,INPC,Depreciaciones!BT148+1))) ->  | BM148: =IF($E148="","",VALUE(CONCATENATE("1/1/",Empresa!$D$13))) ->  | BN148: =IF($E148="","",VALUE(CONCATENATE("31/12/",Empresa!$D$13))) -> 
AD149: =IF($E149="","",VALUE(CONCATENATE("1/1/",Empresa!$D$13))) ->  | AE149: =IF($E149="","",VALUE(CONCATENATE("31/12/",Empresa!$D$13))) ->  | AH149: =IF(D149="","",IF(A149="EQUIPO DE TRANSPORTE (AUTOMOVILES)",IF(VLOOKUP(YEAR(E149),'Tablas de AF'!$H$10:$I$49,2)>D149,D149,VLOOKUP(YEAR(E149),'Tablas de AF'!$H$10:$I$49,2)),D149)) ->  | AZ149: =IF(E149="","",IF(BT149=0,AY149,VLOOKUP(Empresa!$D$13,INPC,Depreciaciones!BT149+1))) ->  | BM149: =IF($E149="","",VALUE(CONCATENATE("1/1/",Empresa!$D$13))) ->  | BN149: =IF($E149="","",VALUE(CONCATENATE("31/12/",Empresa!$D$13))) -> 
AD150: =IF($E150="","",VALUE(CONCATENATE("1/1/",Empresa!$D$13))) ->  | AE150: =IF($E150="","",VALUE(CONCATENATE("31/12/",Empresa!$D$13))) ->  | AH150: =IF(D150="","",IF(A150="EQUIPO DE TRANSPORTE (AUTOMOVILES)",IF(VLOOKUP(YEAR(E150),'Tablas de AF'!$H$10:$I$49,2)>D150,D150,VLOOKUP(YEAR(E150),'Tablas de AF'!$H$10:$I$49,2)),D150)) ->  | AZ150: =IF(E150="","",IF(BT150=0,AY150,VLOOKUP(Empresa!$D$13,INPC,Depreciaciones!BT150+1))) ->  | BM150: =IF($E150="","",VALUE(CONCATENATE("1/1/",Empresa!$D$13))) ->  | BN150: =IF($E150="","",VALUE(CONCATENATE("31/12/",Empresa!$D$13))) -> 
AD151: =IF($E151="","",VALUE(CONCATENATE("1/1/",Empresa!$D$13))) ->  | AE151: =IF($E151="","",VALUE(CONCATENATE("31/12/",Empresa!$D$13))) ->  | AH151: =IF(D151="","",IF(A151="EQUIPO DE TRANSPORTE (AUTOMOVILES)",IF(VLOOKUP(YEAR(E151),'Tablas de AF'!$H$10:$I$49,2)>D151,D151,VLOOKUP(YEAR(E151),'Tablas de AF'!$H$10:$I$49,2)),D151)) ->  | AZ151: =IF(E151="","",IF(BT151=0,AY151,VLOOKUP(Empresa!$D$13,INPC,Depreciaciones!BT151+1))) ->  | BM151: =IF($E151="","",VALUE(CONCATENATE("1/1/",Empresa!$D$13))) ->  | BN151: =IF($E151="","",VALUE(CONCATENATE("31/12/",Empresa!$D$13))) -> 
AD152: =IF($E152="","",VALUE(CONCATENATE("1/1/",Empresa!$D$13))) ->  | AE152: =IF($E152="","",VALUE(CONCATENATE("31/12/",Empresa!$D$13))) ->  | AH152: =IF(D152="","",IF(A152="EQUIPO DE TRANSPORTE (AUTOMOVILES)",IF(VLOOKUP(YEAR(E152),'Tablas de AF'!$H$10:$I$49,2)>D152,D152,VLOOKUP(YEAR(E152),'Tablas de AF'!$H$10:$I$49,2)),D152)) ->  | AZ152: =IF(E152="","",IF(BT152=0,AY152,VLOOKUP(Empresa!$D$13,INPC,Depreciaciones!BT152+1))) ->  | BM152: =IF($E152="","",VALUE(CONCATENATE("1/1/",Empresa!$D$13))) ->  | BN152: =IF($E152="","",VALUE(CONCATENATE("31/12/",Empresa!$D$13))) -> 
AD153: =IF($E153="","",VALUE(CONCATENATE("1/1/",Empresa!$D$13))) ->  | AE153: =IF($E153="","",VALUE(CONCATENATE("31/12/",Empresa!$D$13))) ->  | AH153: =IF(D153="","",IF(A153="EQUIPO DE TRANSPORTE (AUTOMOVILES)",IF(VLOOKUP(YEAR(E153),'Tablas de AF'!$H$10:$I$49,2)>D153,D153,VLOOKUP(YEAR(E153),'Tablas de AF'!$H$10:$I$49,2)),D153)) ->  | AZ153: =IF(E153="","",IF(BT153=0,AY153,VLOOKUP(Empresa!$D$13,INPC,Depreciaciones!BT153+1))) ->  | BM153: =IF($E153="","",VALUE(CONCATENATE("1/1/",Empresa!$D$13))) ->  | BN153: =IF($E153="","",VALUE(CONCATENATE("31/12/",Empresa!$D$13))) -> 
AD154: =IF($E154="","",VALUE(CONCATENATE("1/1/",Empresa!$D$13))) ->  | AE154: =IF($E154="","",VALUE(CONCATENATE("31/12/",Empresa!$D$13))) ->  | AH154: =IF(D154="","",IF(A154="EQUIPO DE TRANSPORTE (AUTOMOVILES)",IF(VLOOKUP(YEAR(E154),'Tablas de AF'!$H$10:$I$49,2)>D154,D154,VLOOKUP(YEAR(E154),'Tablas de AF'!$H$10:$I$49,2)),D154)) ->  | AZ154: =IF(E154="","",IF(BT154=0,AY154,VLOOKUP(Empresa!$D$13,INPC,Depreciaciones!BT154+1))) ->  | BM154: =IF($E154="","",VALUE(CONCATENATE("1/1/",Empresa!$D$13))) ->  | BN154: =IF($E154="","",VALUE(CONCATENATE("31/12/",Empresa!$D$13))) -> 
AD155: =IF($E155="","",VALUE(CONCATENATE("1/1/",Empresa!$D$13))) ->  | AE155: =IF($E155="","",VALUE(CONCATENATE("31/12/",Empresa!$D$13))) ->  | AH155: =IF(D155="","",IF(A155="EQUIPO DE TRANSPORTE (AUTOMOVILES)",IF(VLOOKUP(YEAR(E155),'Tablas de AF'!$H$10:$I$49,2)>D155,D155,VLOOKUP(YEAR(E155),'Tablas de AF'!$H$10:$I$49,2)),D155)) ->  | AZ155: =IF(E155="","",IF(BT155=0,AY155,VLOOKUP(Empresa!$D$13,INPC,Depreciaciones!BT155+1))) ->  | BM155: =IF($E155="","",VALUE(CONCATENATE("1/1/",Empresa!$D$13))) ->  | BN155: =IF($E155="","",VALUE(CONCATENATE("31/12/",Empresa!$D$13))) -> 
AD156: =IF($E156="","",VALUE(CONCATENATE("1/1/",Empresa!$D$13))) ->  | AE156: =IF($E156="","",VALUE(CONCATENATE("31/12/",Empresa!$D$13))) ->  | AH156: =IF(D156="","",IF(A156="EQUIPO DE TRANSPORTE (AUTOMOVILES)",IF(VLOOKUP(YEAR(E156),'Tablas de AF'!$H$10:$I$49,2)>D156,D156,VLOOKUP(YEAR(E156),'Tablas de AF'!$H$10:$I$49,2)),D156)) ->  | AZ156: =IF(E156="","",IF(BT156=0,AY156,VLOOKUP(Empresa!$D$13,INPC,Depreciaciones!BT156+1))) ->  | BM156: =IF($E156="","",VALUE(CONCATENATE("1/1/",Empresa!$D$13))) ->  | BN156: =IF($E156="","",VALUE(CONCATENATE("31/12/",Empresa!$D$13))) -> 
AD157: =IF($E157="","",VALUE(CONCATENATE("1/1/",Empresa!$D$13))) ->  | AE157: =IF($E157="","",VALUE(CONCATENATE("31/12/",Empresa!$D$13))) ->  | AH157: =IF(D157="","",IF(A157="EQUIPO DE TRANSPORTE (AUTOMOVILES)",IF(VLOOKUP(YEAR(E157),'Tablas de AF'!$H$10:$I$49,2)>D157,D157,VLOOKUP(YEAR(E157),'Tablas de AF'!$H$10:$I$49,2)),D157)) ->  | AZ157: =IF(E157="","",IF(BT157=0,AY157,VLOOKUP(Empresa!$D$13,INPC,Depreciaciones!BT157+1))) ->  | BM157: =IF($E157="","",VALUE(CONCATENATE("1/1/",Empresa!$D$13))) ->  | BN157: =IF($E157="","",VALUE(CONCATENATE("31/12/",Empresa!$D$13))) -> 
AD158: =IF($E158="","",VALUE(CONCATENATE("1/1/",Empresa!$D$13))) ->  | AE158: =IF($E158="","",VALUE(CONCATENATE("31/12/",Empresa!$D$13))) ->  | AH158: =IF(D158="","",IF(A158="EQUIPO DE TRANSPORTE (AUTOMOVILES)",IF(VLOOKUP(YEAR(E158),'Tablas de AF'!$H$10:$I$49,2)>D158,D158,VLOOKUP(YEAR(E158),'Tablas de AF'!$H$10:$I$49,2)),D158)) ->  | AZ158: =IF(E158="","",IF(BT158=0,AY158,VLOOKUP(Empresa!$D$13,INPC,Depreciaciones!BT158+1))) ->  | BM158: =IF($E158="","",VALUE(CONCATENATE("1/1/",Empresa!$D$13))) ->  | BN158: =IF($E158="","",VALUE(CONCATENATE("31/12/",Empresa!$D$13))) -> 
AD159: =IF($E159="","",VALUE(CONCATENATE("1/1/",Empresa!$D$13))) ->  | AE159: =IF($E159="","",VALUE(CONCATENATE("31/12/",Empresa!$D$13))) ->  | AH159: =IF(D159="","",IF(A159="EQUIPO DE TRANSPORTE (AUTOMOVILES)",IF(VLOOKUP(YEAR(E159),'Tablas de AF'!$H$10:$I$49,2)>D159,D159,VLOOKUP(YEAR(E159),'Tablas de AF'!$H$10:$I$49,2)),D159)) ->  | AZ159: =IF(E159="","",IF(BT159=0,AY159,VLOOKUP(Empresa!$D$13,INPC,Depreciaciones!BT159+1))) ->  | BM159: =IF($E159="","",VALUE(CONCATENATE("1/1/",Empresa!$D$13))) ->  | BN159: =IF($E159="","",VALUE(CONCATENATE("31/12/",Empresa!$D$13))) -> 
AD160: =IF($E160="","",VALUE(CONCATENATE("1/1/",Empresa!$D$13))) ->  | AE160: =IF($E160="","",VALUE(CONCATENATE("31/12/",Empresa!$D$13))) ->  | AH160: =IF(D160="","",IF(A160="EQUIPO DE TRANSPORTE (AUTOMOVILES)",IF(VLOOKUP(YEAR(E160),'Tablas de AF'!$H$10:$I$49,2)>D160,D160,VLOOKUP(YEAR(E160),'Tablas de AF'!$H$10:$I$49,2)),D160)) ->  | AZ160: =IF(E160="","",IF(BT160=0,AY160,VLOOKUP(Empresa!$D$13,INPC,Depreciaciones!BT160+1))) ->  | BM160: =IF($E160="","",VALUE(CONCATENATE("1/1/",Empresa!$D$13))) ->  | BN160: =IF($E160="","",VALUE(CONCATENATE("31/12/",Empresa!$D$13))) -> 
AD161: =IF($E161="","",VALUE(CONCATENATE("1/1/",Empresa!$D$13))) ->  | AE161: =IF($E161="","",VALUE(CONCATENATE("31/12/",Empresa!$D$13))) ->  | AH161: =IF(D161="","",IF(A161="EQUIPO DE TRANSPORTE (AUTOMOVILES)",IF(VLOOKUP(YEAR(E161),'Tablas de AF'!$H$10:$I$49,2)>D161,D161,VLOOKUP(YEAR(E161),'Tablas de AF'!$H$10:$I$49,2)),D161)) ->  | AZ161: =IF(E161="","",IF(BT161=0,AY161,VLOOKUP(Empresa!$D$13,INPC,Depreciaciones!BT161+1))) ->  | BM161: =IF($E161="","",VALUE(CONCATENATE("1/1/",Empresa!$D$13))) ->  | BN161: =IF($E161="","",VALUE(CONCATENATE("31/12/",Empresa!$D$13))) -> 
AD162: =IF($E162="","",VALUE(CONCATENATE("1/1/",Empresa!$D$13))) ->  | AE162: =IF($E162="","",VALUE(CONCATENATE("31/12/",Empresa!$D$13))) ->  | AH162: =IF(D162="","",IF(A162="EQUIPO DE TRANSPORTE (AUTOMOVILES)",IF(VLOOKUP(YEAR(E162),'Tablas de AF'!$H$10:$I$49,2)>D162,D162,VLOOKUP(YEAR(E162),'Tablas de AF'!$H$10:$I$49,2)),D162)) ->  | AZ162: =IF(E162="","",IF(BT162=0,AY162,VLOOKUP(Empresa!$D$13,INPC,Depreciaciones!BT162+1))) ->  | BM162: =IF($E162="","",VALUE(CONCATENATE("1/1/",Empresa!$D$13))) ->  | BN162: =IF($E162="","",VALUE(CONCATENATE("31/12/",Empresa!$D$13))) -> 
AD163: =IF($E163="","",VALUE(CONCATENATE("1/1/",Empresa!$D$13))) ->  | AE163: =IF($E163="","",VALUE(CONCATENATE("31/12/",Empresa!$D$13))) ->  | AH163: =IF(D163="","",IF(A163="EQUIPO DE TRANSPORTE (AUTOMOVILES)",IF(VLOOKUP(YEAR(E163),'Tablas de AF'!$H$10:$I$49,2)>D163,D163,VLOOKUP(YEAR(E163),'Tablas de AF'!$H$10:$I$49,2)),D163)) ->  | AZ163: =IF(E163="","",IF(BT163=0,AY163,VLOOKUP(Empresa!$D$13,INPC,Depreciaciones!BT163+1))) ->  | BM163: =IF($E163="","",VALUE(CONCATENATE("1/1/",Empresa!$D$13))) ->  | BN163: =IF($E163="","",VALUE(CONCATENATE("31/12/",Empresa!$D$13))) -> 
AD164: =IF($E164="","",VALUE(CONCATENATE("1/1/",Empresa!$D$13))) ->  | AE164: =IF($E164="","",VALUE(CONCATENATE("31/12/",Empresa!$D$13))) ->  | AH164: =IF(D164="","",IF(A164="EQUIPO DE TRANSPORTE (AUTOMOVILES)",IF(VLOOKUP(YEAR(E164),'Tablas de AF'!$H$10:$I$49,2)>D164,D164,VLOOKUP(YEAR(E164),'Tablas de AF'!$H$10:$I$49,2)),D164)) ->  | AZ164: =IF(E164="","",IF(BT164=0,AY164,VLOOKUP(Empresa!$D$13,INPC,Depreciaciones!BT164+1))) ->  | BM164: =IF($E164="","",VALUE(CONCATENATE("1/1/",Empresa!$D$13))) ->  | BN164: =IF($E164="","",VALUE(CONCATENATE("31/12/",Empresa!$D$13))) -> 
G165: =IF($E165="","",IF($G$6<$AF165,0,(IF($G$6<$AG165,IF(D165-X165*Z165<X165,D165-X165*Z165,$X165),0)))) ->  | H165: =IF($E165="","",IF($H$6<$AF165,0,(IF($H$6<$AG165,IF(D165-G165-X165*Z165<X165,D165-G165-X165*Z165,$X165),0)))) ->  | I165: =IF($E165="","",IF($I$6<$AF165,0,(IF($I$6<$AG165,IF(D165-G165-H165-X165*Z165<X165,D165-G165-H165-X165*Z165,$X165),0)))) ->  | J165: =IF($E165="","",IF($J$6<$AF165,0,(IF($J$6<$AG165,IF(D165-G165-H165-I165-X165*Z165<X165,D165-G165-H165-I165-X165*Z165,$X165),0)))) ->  | K165: =IF($E165="","",IF($K$6<$AF165,0,(IF($K$6<$AG165,IF(D165-G165-H165-I165-J165-X165*Z165<X165,D165-G165-H165-I165-J165-X165*Z165,$X165),0)))) ->  | L165: =IF($E165="","",IF($L$6<$AF165,0,(IF($L$6<$AG165,IF(D165-G165-H165-I165-J165-K165-X165*Z165<X165,D165-G165-H165-I165-J165-K165-X165*Z165,$X165),0)))) ->  | M165: =IF($E165="","",IF($M$6<$AF165,0,(IF($M$6<$AG165,IF(D165-G165-H165-I165-J165-K165-L165-X165*Z165<X165,D165-G165-H165-I165-J165-K165-L165-X165*Z165,$X165),0)))) ->  | N165: =IF($E165="","",IF($N$6<$AF165,0,(IF($N$6<$AG165,IF(D165-G165-H165-I165-J165-K165-L165-M165-X165*Z165<X165,D165-G165-H165-I165-J165-K165-L165-M165-X165*Z165,$X165),0)))) ->  | O165: =IF($E165="","",IF($O$6<$AF165,0,(IF($O$6<$AG165,IF(D165-G165-H165-I165-J165-K165-L165-M165-N165-X165*Z165<X165,D165-G165-H165-I165-J165-K165-L165-M165-N165-X165*Z165,$X165),0)))) ->  | P165: =IF($E165="","",IF($P$6<$AF165,0,(IF($P$6<$AG165,IF(D165-G165-H165-I165-J165-K165-L165-M165-N165-O165-X165*Z165<X165,D165-G165-H165-I165-J165-K165-L165-M165-N165-O165-X165*Z165,$X165),0)))) ->  | Q165: =IF($E165="","",IF($Q$6<$AF165,0,(IF($Q$6<$AG165,IF(D165-G165-H165-I165-J165-K165-L165-M165-N165-O165-P165-X165*Z165<X165,D165-G165-H165-I165-J165-K165-L165-M165-N165-O165-P165-X165*Z165,$X165),0)))) ->  | R165: =IF($E165="","",IF($R$6<$AF165,0,(IF($R$6<$AG165,IF(D165-G165-H165-I165-J165-K165-L165-M165-N165-O165-P165-Q165-X165*Z165<X165,D165-G165-H165-I165-J165-K165-L165-M165-N165-O165-P165-Q165-X165*Z165,$X165),0)))) ->  | S165: =IF($E165="","",SUM(G165:R165)) ->  | T165: =IF(Z165="","",IF(Y165>W165,D165,Z165*X165)) ->  | U165: =IF(S165="","",S165+T165) ->  | V165: =IF($E165="","",D165-U165-IF(BZ165="",0,BZ165)) ->  | W165: =IF($E165="","",IF(F165=0,"",12/F165)) ->  | X165: =IF($E165="","",IF(W165="",0,D165/W165)) ->  | Y165: =IF(D165="","",IF(AD165<AF165,0,DATEDIF(AF165,AD165,"M"))) ->  | Z165: =IF(F165="","",IF(F165=0,0,IF(TRUNC(W165,0)<Y165,TRUNC(W165,0),Y165))) ->  | AA165: =IF(D165="","",IF(AE165+1<AF165,0,DATEDIF(AF165,AE165+1,"M"))) ->  | AB165: =IF(F165="","",IF(F165=0,0,IF(TRUNC(W165,0)<AA165,TRUNC(W165,0),AA165))) ->  | AC165: =IF(E165="","",IF(E165>AD165-1,D165,"")) ->  | AD165: =IF($E165="","",VALUE(CONCATENATE("1/1/",Empresa!$D$13))) ->  | AE165: =IF($E165="","",VALUE(CONCATENATE("31/12/",Empresa!$D$13))) ->  | AF165: =IF(W165="","",IF(E165="","",EOMONTH(E165,0)+1)) ->  | AG165: =IF(W165="","",IF(BW165="",EOMONTH(AF165,W165-1)+((12/F165)-ROUND(12/F165,0))*30.4375,IF(BW165>EOMONTH(AF165,W165-1)+((12/F165)-ROUND(12/F165,0))*30.4375,EOMONTH(AF165,W165-1)+((12/F165)-ROUND(12/F165,0))*30.4375,EOMONTH(BW165,-1)))) ->  | AH165: =IF(D165="","",IF(A165="EQUIPO DE TRANSPORTE (AUTOMOVILES)",IF(VLOOKUP(YEAR(E165),'Tablas de AF'!$H$10:$I$49,2)>D165,D165,VLOOKUP(YEAR(E165),'Tablas de AF'!$H$10:$I$49,2)),D165)) ->  | AI165: =IF(E165="","",E165) ->  | AL165: =IF($E165="","",IF($AL$6<$BO165,0,(IF($AL$6<$BP165,IF(AH165-BG165*BI165<BG165,AH165-BG165*BI165,$BG165),0)))) ->  | AM165: =IF($E165="","",IF($AM$6<$BO165,0,(IF($AM$6<$BP165,IF(AH165-AL165-BG165*BI165<BG165,AH165-AL165-BG165*BI165,$BG165),0)))) ->  | AN165: =IF($E165="","",IF($AN$6<$BO165,0,(IF($AN$6<$BP165,IF(AH165-AL165-AM165-BG165*BI165<BG165,AH165-AL165-AM165-BG165*BI165,$BG165),0)))) ->  | AO165: =IF($E165="","",IF($AO$6<$BO165,0,(IF($AO$6<$BP165,IF(AH165-AL165-AM165-AN165-BG165*BI165<BG165,AH165-AL165-AM165-AN165-BG165*BI165,$BG165),0)))) ->  | AP165: =IF($E165="","",IF($AP$6<$BO165,0,(IF($AP$6<$BP165,IF(AH165-AL165-AM165-AN165-AO165-BG165*BI165<BG165,AH165-AL165-AM165-AN165-AO165-BG165*BI165,$BG165),0)))) ->  | AQ165: =IF($E165="","",IF($AQ$6<$BO165,0,(IF($AQ$6<$BP165,IF(AH165-AL165-AM165-AN165-AO165-AP165-BG165*BI165<BG165,AH165-AL165-AM165-AN165-AO165-AP165-BG165*BI165,$BG165),0)))) ->  | AR165: =IF($E165="","",IF($AR$6<$BO165,0,(IF($AR$6<$BP165,IF(AH165-AL165-AM165-AN165-AO165-AP165-AQ165-BG165*BI165<BG165,AH165-AL165-AM165-AN165-AO165-AP165-AQ165-BG165*BI165,$BG165),0)))) ->  | AS165: =IF($E165="","",IF($AS$6<$BO165,0,(IF($AS$6<$BP165,IF(AH165-AL165-AM165-AN165-AO165-AP165-AQ165-AR165-BG165*BI165<BG165,AH165-AL165-AM165-AN165-AO165-AP165-AQ165-AR165-BG165*BI165,$BG165),0)))) ->  | AT165: =IF($E165="","",IF($AT$6<$BO165,0,(IF($AT$6<$BP165,IF(AH165-AL165-AM165-AN165-AO165-AP165-AQ165-AR165-AS165-BG165*BI165<BG165,AH165-AL165-AM165-AN165-AO165-AP165-AQ165-AR165-AS165-BG165*BI165,$BG165),0)))) ->  | AU165: =IF($E165="","",IF($AU$6<$BO165,0,(IF($AU$6<$BP165,IF(AH165-AL165-AM165-AN165-AO165-AP165-AQ165-AR165-AS165-AT165-BG165*BI165<BG165,AH165-AL165-AM165-AN165-AO165-AP165-AQ165-AR165-AS165-AT165-BG165*BI165,$BG165),0)))) ->  | AV165: =IF($E165="","",IF($AV$6<$BO165,0,(IF($AV$6<$BP165,IF(AH165-AL165-AM165-AN165-AO165-AP165-AQ165-AR165-AS165-AT165-AU165-BG165*BI165<BG165,AH165-AL165-AM165-AN165-AO165-AP165-AQ165-AR165-AS165-AT165-AU165-BG165*BI165,$BG165),0)))) ->  | AW165: =IF($E165="","",IF($AW$6<$BO165,0,(IF($AW$6<$BP165,IF(AH165-AL165-AM165-AN165-AO165-AP165-AQ165-AR165-AS165-AT165-AU165-AV165-BG165*BI165<BG165,AH165-AL165-AM165-AN165-AO165-AP165-AQ165-AR165-AS165-AT165-AU165-AV165-BG165*BI165,$BG165),0)))) ->  | AX165: =IF($E165="","",SUM(AL165:AW165)) ->  | AY165: =IF(E165="","",VLOOKUP(YEAR(E165),INPC,MONTH(E165)+1)) ->  | AZ165: =IF(E165="","",IF(BT165=0,AY165,VLOOKUP(Empresa!$D$13,INPC,Depreciaciones!BT165+1))) ->  | BB165: =IF(E165="","",IF(AK165="si",0,AX165*BA165)) ->  | BC165: =IF(BI165="","",IF(BH165>BF165,AH165,BI165*BG165)) ->  | BD165: =IF(AX165="","",AX165+BC165) ->  | BE165: =IF($E165="","",AH165-BD165-IF(CC165="",0,CC165/BA165)) ->  | BF165: =IF($E165="","",IF(AJ165=0,"",12/AJ165)) ->  | BG165: =IF($E165="","",IF(BF165="",0,AH165/BF165)) ->  | BH165: =IF(AH165="","",IF(BM165<BO165,0,DATEDIF(BO165,BM165,"M"))) ->  | BI165: =IF(AJ165="","",IF(AJ165=0,0,IF(TRUNC(BF165,0)<BH165,TRUNC(BF165,0),BH165))) ->  | BJ165: =IF(AH165="","",IF(BN165+1<BO165,0,DATEDIF(BO165,BN165+1,"M"))) ->  | BK165: =IF(AJ165="","",IF(AJ165=0,0,IF(TRUNC(BF165,0)<BJ165,TRUNC(BF165,0),BJ165))) ->  | BL165: =IF(AI165="","",IF(AI165>BM165-1,AH165,"")) ->  | BM165: =IF($E165="","",VALUE(CONCATENATE("1/1/",Empresa!$D$13))) ->  | BN165: =IF($E165="","",VALUE(CONCATENATE("31/12/",Empresa!$D$13))) ->  | BO165: =IF(BF165="","",IF(AI165="","",EOMONTH(AI165,0)+1)) ->  | BP165: =IF(BF165="","",IF(BU165="",EOMONTH(BO165,BF165-1)+((12/AJ165)-ROUND(12/AJ165,0))*30.4375,IF(BU165>EOMONTH(BO165,BF165-1)+((12/AJ165)-ROUND(12/AJ165,0))*30.4375,EOMONTH(BO165,BF165-1)+((12/AJ165)-ROUND(12/AJ165,0))*30.4375,EOMONTH(BU165,-1)))) ->  | BQ165: =IF(E165="","",IF(AL165>0,1,IF(AM165>0,2,IF(AN165>0,3,IF(AO165>0,4,IF(AP165>0,5,IF(AQ165>0,6,IF(AR165>0,7,IF(AS165>0,8,IF(AT165>0,9,IF(AU165>0,10,IF(AV165>0,11,IF(AW165>0,12,0))))))))))))) ->  | BR165: =IF(E165="","",IF(AW165>0,12,IF(AV165>0,11,IF(AU165>0,10,IF(AT165>0,9,IF(AS165>0,8,IF(AR165>0,7,IF(AQ165>0,6,IF(AP165>0,5,IF(AO165>0,4,IF(AN165>0,3,IF(AM165>0,2,IF(AL165>0,1,0))))))))))))) ->  | BS165: =IF(E165="","",IF(BQ165+BR165=0,0,BR165-BQ165+1)) ->  | BU165: =IF(BW165="","",BW165) ->  | BV165: =IF(BX165="","",BX165) ->  | BZ165: =IF(BW165="","",IF(BW165<AD165,"",IF(BW165>AE165,"",D165-U165))) ->  | CA165: =IF(BZ165="","",IF(BX165>BZ165,BX165-BZ165,0)) ->  | CB165: =IF(BZ165="","",IF(BX165<BZ165,BZ165-BX165,0)) ->  | CC165: =IF(E165="","",IF(BU165="","",IF(AK165="si",0,IF(BU165<BM165,"",IF(BU165>BN165,"",(AH165-BD165)*BA165))))) ->  | CD165: =IF(CC165="","",IF(BV165="",0,IF(BV165>CC165,BV165-CC165,0))) ->  | CE165: =IF(CC165="","",IF(BV165<CC165,CC165-BV165,0)) -> 
AD166: =IF($E166="","",VALUE(CONCATENATE("1/1/",Empresa!$D$13))) ->  | AE166: =IF($E166="","",VALUE(CONCATENATE("31/12/",Empresa!$D$13))) ->  | AH166: =IF(D166="","",IF(A166="EQUIPO DE TRANSPORTE (AUTOMOVILES)",IF(VLOOKUP(YEAR(E166),'Tablas de AF'!$H$10:$I$49,2)>D166,D166,VLOOKUP(YEAR(E166),'Tablas de AF'!$H$10:$I$49,2)),D166)) ->  | AZ166: =IF(E166="","",IF(BT166=0,AY166,VLOOKUP(Empresa!$D$13,INPC,Depreciaciones!BT166+1))) ->  | BM166: =IF($E166="","",VALUE(CONCATENATE("1/1/",Empresa!$D$13))) ->  | BN166: =IF($E166="","",VALUE(CONCATENATE("31/12/",Empresa!$D$13))) -> 
AD167: =IF($E167="","",VALUE(CONCATENATE("1/1/",Empresa!$D$13))) ->  | AE167: =IF($E167="","",VALUE(CONCATENATE("31/12/",Empresa!$D$13))) ->  | AH167: =IF(D167="","",IF(A167="EQUIPO DE TRANSPORTE (AUTOMOVILES)",IF(VLOOKUP(YEAR(E167),'Tablas de AF'!$H$10:$I$49,2)>D167,D167,VLOOKUP(YEAR(E167),'Tablas de AF'!$H$10:$I$49,2)),D167)) ->  | AZ167: =IF(E167="","",IF(BT167=0,AY167,VLOOKUP(Empresa!$D$13,INPC,Depreciaciones!BT167+1))) ->  | BM167: =IF($E167="","",VALUE(CONCATENATE("1/1/",Empresa!$D$13))) ->  | BN167: =IF($E167="","",VALUE(CONCATENATE("31/12/",Empresa!$D$13))) -> 
AD168: =IF($E168="","",VALUE(CONCATENATE("1/1/",Empresa!$D$13))) ->  | AE168: =IF($E168="","",VALUE(CONCATENATE("31/12/",Empresa!$D$13))) ->  | AH168: =IF(D168="","",IF(A168="EQUIPO DE TRANSPORTE (AUTOMOVILES)",IF(VLOOKUP(YEAR(E168),'Tablas de AF'!$H$10:$I$49,2)>D168,D168,VLOOKUP(YEAR(E168),'Tablas de AF'!$H$10:$I$49,2)),D168)) ->  | AZ168: =IF(E168="","",IF(BT168=0,AY168,VLOOKUP(Empresa!$D$13,INPC,Depreciaciones!BT168+1))) ->  | BM168: =IF($E168="","",VALUE(CONCATENATE("1/1/",Empresa!$D$13))) ->  | BN168: =IF($E168="","",VALUE(CONCATENATE("31/12/",Empresa!$D$13))) -> 
AD169: =IF($E169="","",VALUE(CONCATENATE("1/1/",Empresa!$D$13))) ->  | AE169: =IF($E169="","",VALUE(CONCATENATE("31/12/",Empresa!$D$13))) ->  | AH169: =IF(D169="","",IF(A169="EQUIPO DE TRANSPORTE (AUTOMOVILES)",IF(VLOOKUP(YEAR(E169),'Tablas de AF'!$H$10:$I$49,2)>D169,D169,VLOOKUP(YEAR(E169),'Tablas de AF'!$H$10:$I$49,2)),D169)) ->  | AZ169: =IF(E169="","",IF(BT169=0,AY169,VLOOKUP(Empresa!$D$13,INPC,Depreciaciones!BT169+1))) ->  | BM169: =IF($E169="","",VALUE(CONCATENATE("1/1/",Empresa!$D$13))) ->  | BN169: =IF($E169="","",VALUE(CONCATENATE("31/12/",Empresa!$D$13))) -> 
AD170: =IF($E170="","",VALUE(CONCATENATE("1/1/",Empresa!$D$13))) ->  | AE170: =IF($E170="","",VALUE(CONCATENATE("31/12/",Empresa!$D$13))) ->  | AH170: =IF(D170="","",IF(A170="EQUIPO DE TRANSPORTE (AUTOMOVILES)",IF(VLOOKUP(YEAR(E170),'Tablas de AF'!$H$10:$I$49,2)>D170,D170,VLOOKUP(YEAR(E170),'Tablas de AF'!$H$10:$I$49,2)),D170)) ->  | AZ170: =IF(E170="","",IF(BT170=0,AY170,VLOOKUP(Empresa!$D$13,INPC,Depreciaciones!BT170+1))) ->  | BM170: =IF($E170="","",VALUE(CONCATENATE("1/1/",Empresa!$D$13))) ->  | BN170: =IF($E170="","",VALUE(CONCATENATE("31/12/",Empresa!$D$13))) -> 
AD171: =IF($E171="","",VALUE(CONCATENATE("1/1/",Empresa!$D$13))) ->  | AE171: =IF($E171="","",VALUE(CONCATENATE("31/12/",Empresa!$D$13))) ->  | AH171: =IF(D171="","",IF(A171="EQUIPO DE TRANSPORTE (AUTOMOVILES)",IF(VLOOKUP(YEAR(E171),'Tablas de AF'!$H$10:$I$49,2)>D171,D171,VLOOKUP(YEAR(E171),'Tablas de AF'!$H$10:$I$49,2)),D171)) ->  | AZ171: =IF(E171="","",IF(BT171=0,AY171,VLOOKUP(Empresa!$D$13,INPC,Depreciaciones!BT171+1))) ->  | BM171: =IF($E171="","",VALUE(CONCATENATE("1/1/",Empresa!$D$13))) ->  | BN171: =IF($E171="","",VALUE(CONCATENATE("31/12/",Empresa!$D$13))) -> 
AD172: =IF($E172="","",VALUE(CONCATENATE("1/1/",Empresa!$D$13))) ->  | AE172: =IF($E172="","",VALUE(CONCATENATE("31/12/",Empresa!$D$13))) ->  | AH172: =IF(D172="","",IF(A172="EQUIPO DE TRANSPORTE (AUTOMOVILES)",IF(VLOOKUP(YEAR(E172),'Tablas de AF'!$H$10:$I$49,2)>D172,D172,VLOOKUP(YEAR(E172),'Tablas de AF'!$H$10:$I$49,2)),D172)) ->  | AZ172: =IF(E172="","",IF(BT172=0,AY172,VLOOKUP(Empresa!$D$13,INPC,Depreciaciones!BT172+1))) ->  | BM172: =IF($E172="","",VALUE(CONCATENATE("1/1/",Empresa!$D$13))) ->  | BN172: =IF($E172="","",VALUE(CONCATENATE("31/12/",Empresa!$D$13))) -> 
AD173: =IF($E173="","",VALUE(CONCATENATE("1/1/",Empresa!$D$13))) ->  | AE173: =IF($E173="","",VALUE(CONCATENATE("31/12/",Empresa!$D$13))) ->  | AH173: =IF(D173="","",IF(A173="EQUIPO DE TRANSPORTE (AUTOMOVILES)",IF(VLOOKUP(YEAR(E173),'Tablas de AF'!$H$10:$I$49,2)>D173,D173,VLOOKUP(YEAR(E173),'Tablas de AF'!$H$10:$I$49,2)),D173)) ->  | AZ173: =IF(E173="","",IF(BT173=0,AY173,VLOOKUP(Empresa!$D$13,INPC,Depreciaciones!BT173+1))) ->  | BM173: =IF($E173="","",VALUE(CONCATENATE("1/1/",Empresa!$D$13))) ->  | BN173: =IF($E173="","",VALUE(CONCATENATE("31/12/",Empresa!$D$13))) -> 
AD174: =IF($E174="","",VALUE(CONCATENATE("1/1/",Empresa!$D$13))) ->  | AE174: =IF($E174="","",VALUE(CONCATENATE("31/12/",Empresa!$D$13))) ->  | AH174: =IF(D174="","",IF(A174="EQUIPO DE TRANSPORTE (AUTOMOVILES)",IF(VLOOKUP(YEAR(E174),'Tablas de AF'!$H$10:$I$49,2)>D174,D174,VLOOKUP(YEAR(E174),'Tablas de AF'!$H$10:$I$49,2)),D174)) ->  | AZ174: =IF(E174="","",IF(BT174=0,AY174,VLOOKUP(Empresa!$D$13,INPC,Depreciaciones!BT174+1))) ->  | BM174: =IF($E174="","",VALUE(CONCATENATE("1/1/",Empresa!$D$13))) ->  | BN174: =IF($E174="","",VALUE(CONCATENATE("31/12/",Empresa!$D$13))) -> 
AD175: =IF($E175="","",VALUE(CONCATENATE("1/1/",Empresa!$D$13))) ->  | AE175: =IF($E175="","",VALUE(CONCATENATE("31/12/",Empresa!$D$13))) ->  | AH175: =IF(D175="","",IF(A175="EQUIPO DE TRANSPORTE (AUTOMOVILES)",IF(VLOOKUP(YEAR(E175),'Tablas de AF'!$H$10:$I$49,2)>D175,D175,VLOOKUP(YEAR(E175),'Tablas de AF'!$H$10:$I$49,2)),D175)) ->  | AZ175: =IF(E175="","",IF(BT175=0,AY175,VLOOKUP(Empresa!$D$13,INPC,Depreciaciones!BT175+1))) ->  | BM175: =IF($E175="","",VALUE(CONCATENATE("1/1/",Empresa!$D$13))) ->  | BN175: =IF($E175="","",VALUE(CONCATENATE("31/12/",Empresa!$D$13))) -> 
AD176: =IF($E176="","",VALUE(CONCATENATE("1/1/",Empresa!$D$13))) ->  | AE176: =IF($E176="","",VALUE(CONCATENATE("31/12/",Empresa!$D$13))) ->  | AH176: =IF(D176="","",IF(A176="EQUIPO DE TRANSPORTE (AUTOMOVILES)",IF(VLOOKUP(YEAR(E176),'Tablas de AF'!$H$10:$I$49,2)>D176,D176,VLOOKUP(YEAR(E176),'Tablas de AF'!$H$10:$I$49,2)),D176)) ->  | AZ176: =IF(E176="","",IF(BT176=0,AY176,VLOOKUP(Empresa!$D$13,INPC,Depreciaciones!BT176+1))) ->  | BM176: =IF($E176="","",VALUE(CONCATENATE("1/1/",Empresa!$D$13))) ->  | BN176: =IF($E176="","",VALUE(CONCATENATE("31/12/",Empresa!$D$13))) -> 
AD177: =IF($E177="","",VALUE(CONCATENATE("1/1/",Empresa!$D$13))) ->  | AE177: =IF($E177="","",VALUE(CONCATENATE("31/12/",Empresa!$D$13))) ->  | AH177: =IF(D177="","",IF(A177="EQUIPO DE TRANSPORTE (AUTOMOVILES)",IF(VLOOKUP(YEAR(E177),'Tablas de AF'!$H$10:$I$49,2)>D177,D177,VLOOKUP(YEAR(E177),'Tablas de AF'!$H$10:$I$49,2)),D177)) ->  | AZ177: =IF(E177="","",IF(BT177=0,AY177,VLOOKUP(Empresa!$D$13,INPC,Depreciaciones!BT177+1))) ->  | BM177: =IF($E177="","",VALUE(CONCATENATE("1/1/",Empresa!$D$13))) ->  | BN177: =IF($E177="","",VALUE(CONCATENATE("31/12/",Empresa!$D$13))) -> 
AD178: =IF($E178="","",VALUE(CONCATENATE("1/1/",Empresa!$D$13))) ->  | AE178: =IF($E178="","",VALUE(CONCATENATE("31/12/",Empresa!$D$13))) ->  | AH178: =IF(D178="","",IF(A178="EQUIPO DE TRANSPORTE (AUTOMOVILES)",IF(VLOOKUP(YEAR(E178),'Tablas de AF'!$H$10:$I$49,2)>D178,D178,VLOOKUP(YEAR(E178),'Tablas de AF'!$H$10:$I$49,2)),D178)) ->  | AZ178: =IF(E178="","",IF(BT178=0,AY178,VLOOKUP(Empresa!$D$13,INPC,Depreciaciones!BT178+1))) ->  | BM178: =IF($E178="","",VALUE(CONCATENATE("1/1/",Empresa!$D$13))) ->  | BN178: =IF($E178="","",VALUE(CONCATENATE("31/12/",Empresa!$D$13))) -> 
AD179: =IF($E179="","",VALUE(CONCATENATE("1/1/",Empresa!$D$13))) ->  | AE179: =IF($E179="","",VALUE(CONCATENATE("31/12/",Empresa!$D$13))) ->  | AH179: =IF(D179="","",IF(A179="EQUIPO DE TRANSPORTE (AUTOMOVILES)",IF(VLOOKUP(YEAR(E179),'Tablas de AF'!$H$10:$I$49,2)>D179,D179,VLOOKUP(YEAR(E179),'Tablas de AF'!$H$10:$I$49,2)),D179)) ->  | AZ179: =IF(E179="","",IF(BT179=0,AY179,VLOOKUP(Empresa!$D$13,INPC,Depreciaciones!BT179+1))) ->  | BM179: =IF($E179="","",VALUE(CONCATENATE("1/1/",Empresa!$D$13))) ->  | BN179: =IF($E179="","",VALUE(CONCATENATE("31/12/",Empresa!$D$13))) -> 
AD180: =IF($E180="","",VALUE(CONCATENATE("1/1/",Empresa!$D$13))) ->  | AE180: =IF($E180="","",VALUE(CONCATENATE("31/12/",Empresa!$D$13))) ->  | AH180: =IF(D180="","",IF(A180="EQUIPO DE TRANSPORTE (AUTOMOVILES)",IF(VLOOKUP(YEAR(E180),'Tablas de AF'!$H$10:$I$49,2)>D180,D180,VLOOKUP(YEAR(E180),'Tablas de AF'!$H$10:$I$49,2)),D180)) ->  | AZ180: =IF(E180="","",IF(BT180=0,AY180,VLOOKUP(Empresa!$D$13,INPC,Depreciaciones!BT180+1))) ->  | BM180: =IF($E180="","",VALUE(CONCATENATE("1/1/",Empresa!$D$13))) ->  | BN180: =IF($E180="","",VALUE(CONCATENATE("31/12/",Empresa!$D$13))) -> 
AD181: =IF($E181="","",VALUE(CONCATENATE("1/1/",Empresa!$D$13))) ->  | AE181: =IF($E181="","",VALUE(CONCATENATE("31/12/",Empresa!$D$13))) ->  | AH181: =IF(D181="","",IF(A181="EQUIPO DE TRANSPORTE (AUTOMOVILES)",IF(VLOOKUP(YEAR(E181),'Tablas de AF'!$H$10:$I$49,2)>D181,D181,VLOOKUP(YEAR(E181),'Tablas de AF'!$H$10:$I$49,2)),D181)) ->  | AZ181: =IF(E181="","",IF(BT181=0,AY181,VLOOKUP(Empresa!$D$13,INPC,Depreciaciones!BT181+1))) ->  | BM181: =IF($E181="","",VALUE(CONCATENATE("1/1/",Empresa!$D$13))) ->  | BN181: =IF($E181="","",VALUE(CONCATENATE("31/12/",Empresa!$D$13))) -> 
AD182: =IF($E182="","",VALUE(CONCATENATE("1/1/",Empresa!$D$13))) ->  | AE182: =IF($E182="","",VALUE(CONCATENATE("31/12/",Empresa!$D$13))) ->  | AH182: =IF(D182="","",IF(A182="EQUIPO DE TRANSPORTE (AUTOMOVILES)",IF(VLOOKUP(YEAR(E182),'Tablas de AF'!$H$10:$I$49,2)>D182,D182,VLOOKUP(YEAR(E182),'Tablas de AF'!$H$10:$I$49,2)),D182)) ->  | AZ182: =IF(E182="","",IF(BT182=0,AY182,VLOOKUP(Empresa!$D$13,INPC,Depreciaciones!BT182+1))) ->  | BM182: =IF($E182="","",VALUE(CONCATENATE("1/1/",Empresa!$D$13))) ->  | BN182: =IF($E182="","",VALUE(CONCATENATE("31/12/",Empresa!$D$13))) -> 
AD183: =IF($E183="","",VALUE(CONCATENATE("1/1/",Empresa!$D$13))) ->  | AE183: =IF($E183="","",VALUE(CONCATENATE("31/12/",Empresa!$D$13))) ->  | AH183: =IF(D183="","",IF(A183="EQUIPO DE TRANSPORTE (AUTOMOVILES)",IF(VLOOKUP(YEAR(E183),'Tablas de AF'!$H$10:$I$49,2)>D183,D183,VLOOKUP(YEAR(E183),'Tablas de AF'!$H$10:$I$49,2)),D183)) ->  | AZ183: =IF(E183="","",IF(BT183=0,AY183,VLOOKUP(Empresa!$D$13,INPC,Depreciaciones!BT183+1))) ->  | BM183: =IF($E183="","",VALUE(CONCATENATE("1/1/",Empresa!$D$13))) ->  | BN183: =IF($E183="","",VALUE(CONCATENATE("31/12/",Empresa!$D$13))) -> 
AD184: =IF($E184="","",VALUE(CONCATENATE("1/1/",Empresa!$D$13))) ->  | AE184: =IF($E184="","",VALUE(CONCATENATE("31/12/",Empresa!$D$13))) ->  | AH184: =IF(D184="","",IF(A184="EQUIPO DE TRANSPORTE (AUTOMOVILES)",IF(VLOOKUP(YEAR(E184),'Tablas de AF'!$H$10:$I$49,2)>D184,D184,VLOOKUP(YEAR(E184),'Tablas de AF'!$H$10:$I$49,2)),D184)) ->  | AZ184: =IF(E184="","",IF(BT184=0,AY184,VLOOKUP(Empresa!$D$13,INPC,Depreciaciones!BT184+1))) ->  | BM184: =IF($E184="","",VALUE(CONCATENATE("1/1/",Empresa!$D$13))) ->  | BN184: =IF($E184="","",VALUE(CONCATENATE("31/12/",Empresa!$D$13))) -> 
AD185: =IF($E185="","",VALUE(CONCATENATE("1/1/",Empresa!$D$13))) ->  | AE185: =IF($E185="","",VALUE(CONCATENATE("31/12/",Empresa!$D$13))) ->  | AH185: =IF(D185="","",IF(A185="EQUIPO DE TRANSPORTE (AUTOMOVILES)",IF(VLOOKUP(YEAR(E185),'Tablas de AF'!$H$10:$I$49,2)>D185,D185,VLOOKUP(YEAR(E185),'Tablas de AF'!$H$10:$I$49,2)),D185)) ->  | AZ185: =IF(E185="","",IF(BT185=0,AY185,VLOOKUP(Empresa!$D$13,INPC,Depreciaciones!BT185+1))) ->  | BM185: =IF($E185="","",VALUE(CONCATENATE("1/1/",Empresa!$D$13))) ->  | BN185: =IF($E185="","",VALUE(CONCATENATE("31/12/",Empresa!$D$13))) -> 
AD186: =IF($E186="","",VALUE(CONCATENATE("1/1/",Empresa!$D$13))) ->  | AE186: =IF($E186="","",VALUE(CONCATENATE("31/12/",Empresa!$D$13))) ->  | AH186: =IF(D186="","",IF(A186="EQUIPO DE TRANSPORTE (AUTOMOVILES)",IF(VLOOKUP(YEAR(E186),'Tablas de AF'!$H$10:$I$49,2)>D186,D186,VLOOKUP(YEAR(E186),'Tablas de AF'!$H$10:$I$49,2)),D186)) ->  | AZ186: =IF(E186="","",IF(BT186=0,AY186,VLOOKUP(Empresa!$D$13,INPC,Depreciaciones!BT186+1))) ->  | BM186: =IF($E186="","",VALUE(CONCATENATE("1/1/",Empresa!$D$13))) ->  | BN186: =IF($E186="","",VALUE(CONCATENATE("31/12/",Empresa!$D$13))) -> 
AD187: =IF($E187="","",VALUE(CONCATENATE("1/1/",Empresa!$D$13))) ->  | AE187: =IF($E187="","",VALUE(CONCATENATE("31/12/",Empresa!$D$13))) ->  | AH187: =IF(D187="","",IF(A187="EQUIPO DE TRANSPORTE (AUTOMOVILES)",IF(VLOOKUP(YEAR(E187),'Tablas de AF'!$H$10:$I$49,2)>D187,D187,VLOOKUP(YEAR(E187),'Tablas de AF'!$H$10:$I$49,2)),D187)) ->  | AZ187: =IF(E187="","",IF(BT187=0,AY187,VLOOKUP(Empresa!$D$13,INPC,Depreciaciones!BT187+1))) ->  | BM187: =IF($E187="","",VALUE(CONCATENATE("1/1/",Empresa!$D$13))) ->  | BN187: =IF($E187="","",VALUE(CONCATENATE("31/12/",Empresa!$D$13))) -> 
AD188: =IF($E188="","",VALUE(CONCATENATE("1/1/",Empresa!$D$13))) ->  | AE188: =IF($E188="","",VALUE(CONCATENATE("31/12/",Empresa!$D$13))) ->  | AH188: =IF(D188="","",IF(A188="EQUIPO DE TRANSPORTE (AUTOMOVILES)",IF(VLOOKUP(YEAR(E188),'Tablas de AF'!$H$10:$I$49,2)>D188,D188,VLOOKUP(YEAR(E188),'Tablas de AF'!$H$10:$I$49,2)),D188)) ->  | AZ188: =IF(E188="","",IF(BT188=0,AY188,VLOOKUP(Empresa!$D$13,INPC,Depreciaciones!BT188+1))) ->  | BM188: =IF($E188="","",VALUE(CONCATENATE("1/1/",Empresa!$D$13))) ->  | BN188: =IF($E188="","",VALUE(CONCATENATE("31/12/",Empresa!$D$13))) -> 
AD189: =IF($E189="","",VALUE(CONCATENATE("1/1/",Empresa!$D$13))) ->  | AE189: =IF($E189="","",VALUE(CONCATENATE("31/12/",Empresa!$D$13))) ->  | AH189: =IF(D189="","",IF(A189="EQUIPO DE TRANSPORTE (AUTOMOVILES)",IF(VLOOKUP(YEAR(E189),'Tablas de AF'!$H$10:$I$49,2)>D189,D189,VLOOKUP(YEAR(E189),'Tablas de AF'!$H$10:$I$49,2)),D189)) ->  | AZ189: =IF(E189="","",IF(BT189=0,AY189,VLOOKUP(Empresa!$D$13,INPC,Depreciaciones!BT189+1))) ->  | BM189: =IF($E189="","",VALUE(CONCATENATE("1/1/",Empresa!$D$13))) ->  | BN189: =IF($E189="","",VALUE(CONCATENATE("31/12/",Empresa!$D$13))) -> 
AD190: =IF($E190="","",VALUE(CONCATENATE("1/1/",Empresa!$D$13))) ->  | AE190: =IF($E190="","",VALUE(CONCATENATE("31/12/",Empresa!$D$13))) ->  | AH190: =IF(D190="","",IF(A190="EQUIPO DE TRANSPORTE (AUTOMOVILES)",IF(VLOOKUP(YEAR(E190),'Tablas de AF'!$H$10:$I$49,2)>D190,D190,VLOOKUP(YEAR(E190),'Tablas de AF'!$H$10:$I$49,2)),D190)) ->  | AZ190: =IF(E190="","",IF(BT190=0,AY190,VLOOKUP(Empresa!$D$13,INPC,Depreciaciones!BT190+1))) ->  | BM190: =IF($E190="","",VALUE(CONCATENATE("1/1/",Empresa!$D$13))) ->  | BN190: =IF($E190="","",VALUE(CONCATENATE("31/12/",Empresa!$D$13))) -> 
AD191: =IF($E191="","",VALUE(CONCATENATE("1/1/",Empresa!$D$13))) ->  | AE191: =IF($E191="","",VALUE(CONCATENATE("31/12/",Empresa!$D$13))) ->  | AH191: =IF(D191="","",IF(A191="EQUIPO DE TRANSPORTE (AUTOMOVILES)",IF(VLOOKUP(YEAR(E191),'Tablas de AF'!$H$10:$I$49,2)>D191,D191,VLOOKUP(YEAR(E191),'Tablas de AF'!$H$10:$I$49,2)),D191)) ->  | AZ191: =IF(E191="","",IF(BT191=0,AY191,VLOOKUP(Empresa!$D$13,INPC,Depreciaciones!BT191+1))) ->  | BM191: =IF($E191="","",VALUE(CONCATENATE("1/1/",Empresa!$D$13))) ->  | BN191: =IF($E191="","",VALUE(CONCATENATE("31/12/",Empresa!$D$13))) -> 
AD192: =IF($E192="","",VALUE(CONCATENATE("1/1/",Empresa!$D$13))) ->  | AE192: =IF($E192="","",VALUE(CONCATENATE("31/12/",Empresa!$D$13))) ->  | AH192: =IF(D192="","",IF(A192="EQUIPO DE TRANSPORTE (AUTOMOVILES)",IF(VLOOKUP(YEAR(E192),'Tablas de AF'!$H$10:$I$49,2)>D192,D192,VLOOKUP(YEAR(E192),'Tablas de AF'!$H$10:$I$49,2)),D192)) ->  | AZ192: =IF(E192="","",IF(BT192=0,AY192,VLOOKUP(Empresa!$D$13,INPC,Depreciaciones!BT192+1))) ->  | BM192: =IF($E192="","",VALUE(CONCATENATE("1/1/",Empresa!$D$13))) ->  | BN192: =IF($E192="","",VALUE(CONCATENATE("31/12/",Empresa!$D$13))) -> 
AD193: =IF($E193="","",VALUE(CONCATENATE("1/1/",Empresa!$D$13))) ->  | AE193: =IF($E193="","",VALUE(CONCATENATE("31/12/",Empresa!$D$13))) ->  | AH193: =IF(D193="","",IF(A193="EQUIPO DE TRANSPORTE (AUTOMOVILES)",IF(VLOOKUP(YEAR(E193),'Tablas de AF'!$H$10:$I$49,2)>D193,D193,VLOOKUP(YEAR(E193),'Tablas de AF'!$H$10:$I$49,2)),D193)) ->  | AZ193: =IF(E193="","",IF(BT193=0,AY193,VLOOKUP(Empresa!$D$13,INPC,Depreciaciones!BT193+1))) ->  | BM193: =IF($E193="","",VALUE(CONCATENATE("1/1/",Empresa!$D$13))) ->  | BN193: =IF($E193="","",VALUE(CONCATENATE("31/12/",Empresa!$D$13))) -> 
AD194: =IF($E194="","",VALUE(CONCATENATE("1/1/",Empresa!$D$13))) ->  | AE194: =IF($E194="","",VALUE(CONCATENATE("31/12/",Empresa!$D$13))) ->  | AH194: =IF(D194="","",IF(A194="EQUIPO DE TRANSPORTE (AUTOMOVILES)",IF(VLOOKUP(YEAR(E194),'Tablas de AF'!$H$10:$I$49,2)>D194,D194,VLOOKUP(YEAR(E194),'Tablas de AF'!$H$10:$I$49,2)),D194)) ->  | AZ194: =IF(E194="","",IF(BT194=0,AY194,VLOOKUP(Empresa!$D$13,INPC,Depreciaciones!BT194+1))) ->  | BM194: =IF($E194="","",VALUE(CONCATENATE("1/1/",Empresa!$D$13))) ->  | BN194: =IF($E194="","",VALUE(CONCATENATE("31/12/",Empresa!$D$13))) -> 
AD195: =IF($E195="","",VALUE(CONCATENATE("1/1/",Empresa!$D$13))) ->  | AE195: =IF($E195="","",VALUE(CONCATENATE("31/12/",Empresa!$D$13))) ->  | AH195: =IF(D195="","",IF(A195="EQUIPO DE TRANSPORTE (AUTOMOVILES)",IF(VLOOKUP(YEAR(E195),'Tablas de AF'!$H$10:$I$49,2)>D195,D195,VLOOKUP(YEAR(E195),'Tablas de AF'!$H$10:$I$49,2)),D195)) ->  | AZ195: =IF(E195="","",IF(BT195=0,AY195,VLOOKUP(Empresa!$D$13,INPC,Depreciaciones!BT195+1))) ->  | BM195: =IF($E195="","",VALUE(CONCATENATE("1/1/",Empresa!$D$13))) ->  | BN195: =IF($E195="","",VALUE(CONCATENATE("31/12/",Empresa!$D$13))) ->  | CA195: =IF(BZ195="","",IF(BX195>BZ195,BX195-BZ195,0)) ->  | CB195: =IF(BZ195="","",IF(BX195<BZ195,BZ195-BX195,0)) ->  | CE195: =IF(CC195="","",IF(BV195<CC195,CC195-BV195,0)) -> 
AD196: =IF($E196="","",VALUE(CONCATENATE("1/1/",Empresa!$D$13))) ->  | AE196: =IF($E196="","",VALUE(CONCATENATE("31/12/",Empresa!$D$13))) ->  | AH196: =IF(D196="","",IF(A196="EQUIPO DE TRANSPORTE (AUTOMOVILES)",IF(VLOOKUP(YEAR(E196),'Tablas de AF'!$H$10:$I$49,2)>D196,D196,VLOOKUP(YEAR(E196),'Tablas de AF'!$H$10:$I$49,2)),D196)) ->  | AZ196: =IF(E196="","",IF(BT196=0,AY196,VLOOKUP(Empresa!$D$13,INPC,Depreciaciones!BT196+1))) ->  | BM196: =IF($E196="","",VALUE(CONCATENATE("1/1/",Empresa!$D$13))) ->  | BN196: =IF($E196="","",VALUE(CONCATENATE("31/12/",Empresa!$D$13))) -> 
AD197: =IF($E197="","",VALUE(CONCATENATE("1/1/",Empresa!$D$13))) ->  | AE197: =IF($E197="","",VALUE(CONCATENATE("31/12/",Empresa!$D$13))) ->  | AH197: =IF(D197="","",IF(A197="EQUIPO DE TRANSPORTE (AUTOMOVILES)",IF(VLOOKUP(YEAR(E197),'Tablas de AF'!$H$10:$I$49,2)>D197,D197,VLOOKUP(YEAR(E197),'Tablas de AF'!$H$10:$I$49,2)),D197)) ->  | AZ197: =IF(E197="","",IF(BT197=0,AY197,VLOOKUP(Empresa!$D$13,INPC,Depreciaciones!BT197+1))) ->  | BM197: =IF($E197="","",VALUE(CONCATENATE("1/1/",Empresa!$D$13))) ->  | BN197: =IF($E197="","",VALUE(CONCATENATE("31/12/",Empresa!$D$13))) -> 
AD198: =IF($E198="","",VALUE(CONCATENATE("1/1/",Empresa!$D$13))) ->  | AE198: =IF($E198="","",VALUE(CONCATENATE("31/12/",Empresa!$D$13))) ->  | AH198: =IF(D198="","",IF(A198="EQUIPO DE TRANSPORTE (AUTOMOVILES)",IF(VLOOKUP(YEAR(E198),'Tablas de AF'!$H$10:$I$49,2)>D198,D198,VLOOKUP(YEAR(E198),'Tablas de AF'!$H$10:$I$49,2)),D198)) ->  | AZ198: =IF(E198="","",IF(BT198=0,AY198,VLOOKUP(Empresa!$D$13,INPC,Depreciaciones!BT198+1))) ->  | BM198: =IF($E198="","",VALUE(CONCATENATE("1/1/",Empresa!$D$13))) ->  | BN198: =IF($E198="","",VALUE(CONCATENATE("31/12/",Empresa!$D$13))) -> 
F199: =IF($E199="","",VLOOKUP($A199,PORCIENTOS,2)) ->  | AD199: =IF($E199="","",VALUE(CONCATENATE("1/1/",Empresa!$D$13))) ->  | AE199: =IF($E199="","",VALUE(CONCATENATE("31/12/",Empresa!$D$13))) ->  | AH199: =IF(D199="","",IF(A199="EQUIPO DE TRANSPORTE (AUTOMOVILES)",IF(VLOOKUP(YEAR(E199),'Tablas de AF'!$H$10:$I$49,2)>D199,D199,VLOOKUP(YEAR(E199),'Tablas de AF'!$H$10:$I$49,2)),D199)) ->  | AZ199: =IF(E199="","",IF(BT199=0,AY199,VLOOKUP(Empresa!$D$13,INPC,Depreciaciones!BT199+1))) ->  | BM199: =IF($E199="","",VALUE(CONCATENATE("1/1/",Empresa!$D$13))) ->  | BN199: =IF($E199="","",VALUE(CONCATENATE("31/12/",Empresa!$D$13))) ->  | BY199: =IF(BW199="","",D199) -> 
AD200: =IF($E200="","",VALUE(CONCATENATE("1/1/",Empresa!$D$13))) ->  | AE200: =IF($E200="","",VALUE(CONCATENATE("31/12/",Empresa!$D$13))) ->  | AH200: =IF(D200="","",IF(A200="EQUIPO DE TRANSPORTE (AUTOMOVILES)",IF(VLOOKUP(YEAR(E200),'Tablas de AF'!$H$10:$I$49,2)>D200,D200,VLOOKUP(YEAR(E200),'Tablas de AF'!$H$10:$I$49,2)),D200)) ->  | AJ200: =IF($E200="","",VLOOKUP($A200,PORCIENTOS,3)) ->  | AZ200: =IF(E200="","",IF(BT200=0,AY200,VLOOKUP(Empresa!$D$13,INPC,Depreciaciones!BT200+1))) ->  | BA200: =IF(E200="","",IF(AZ200<AY200,1,TRUNC(AZ200/AY200,4))) ->  | BM200: =IF($E200="","",VALUE(CONCATENATE("1/1/",Empresa!$D$13))) ->  | BN200: =IF($E200="","",VALUE(CONCATENATE("31/12/",Empresa!$D$13))) -> 
AD201: =IF($E201="","",VALUE(CONCATENATE("1/1/",Empresa!$D$13))) ->  | AE201: =IF($E201="","",VALUE(CONCATENATE("31/12/",Empresa!$D$13))) ->  | AH201: =IF(D201="","",IF(A201="EQUIPO DE TRANSPORTE (AUTOMOVILES)",IF(VLOOKUP(YEAR(E201),'Tablas de AF'!$H$10:$I$49,2)>D201,D201,VLOOKUP(YEAR(E201),'Tablas de AF'!$H$10:$I$49,2)),D201)) ->  | AZ201: =IF(E201="","",IF(BT201=0,AY201,VLOOKUP(Empresa!$D$13,INPC,Depreciaciones!BT201+1))) ->  | BM201: =IF($E201="","",VALUE(CONCATENATE("1/1/",Empresa!$D$13))) ->  | BN201: =IF($E201="","",VALUE(CONCATENATE("31/12/",Empresa!$D$13))) -> 
... 126 more rows

Sheet Resumen Deprec. (hidden)
B1: =Empresa!D8 -> EMPRESA EJEMPLO | N1: =B1 -> EMPRESA EJEMPLO
B2: Resumen de Activos Fijos y Depreciaciones | N2: Notas o Comentarios
B3: ="Ejercicio "&Empresa!D13 -> Ejercicio 2024
B5: Descripción | D5: MOI | E5: Adquisiciones del Ejercicio | F5: Depreciación Contable | G5: Depreciacion Fiscal en Costo de Ventas | H5: Depreciación Fiscal | I5: Utilidad Contable en Venta de A.F. | J5: Pérdida Contable en Venta de A.F. | K5: Utilidad Fiscal en Venta de A.F. | L5: Pérdida Fiscal en Venta de A.F.
B6: =IF('Tablas de AF'!B10="","",'Tablas de AF'!B10) -> CONSTRUCCIONES (ADAPTAC. PARA PERS. CON CAPAC. DIFER.) | C6: =IF('Tablas de AF'!A10="","",'Tablas de AF'!A10) -> ADAPTACIÓN A INSTALACIONES PARA PERSONAS CON CAPACIDADES DIFERENTES | D6: =IF($B6="","",SUMIF(TIPOS_AF_DEPREC,$B6,MOI_DEPREC)-SUMIF(TIPOS_AF_DEPREC,$B6,BAJAS_AF_DEPREC)) -> 0 | E6: =IF($B6="","",SUMIF(TIPOS_AF_DEPREC,$B6,ALTAS_AF_DEPREC)) -> 0 | F6: =IF($B6="","",SUMIF(TIPOS_AF_DEPREC,$B6,DEP_CONT_DEPREC)) -> 0 | H6: =IF($B6="","",SUMIF(TIPOS_AF_DEPREC,$B6,DEP_FISC_DEPREC)) -> 0 | I6: =IF($B6="","",SUMIF(TIPOS_AF_DEPREC,$B6,UTIL_CONT_DEPREC)) -> 0 | J6: =IF($B6="","",SUMIF(TIPOS_AF_DEPREC,$B6,PERD_CONT_DEPREC)) -> 0 | K6: =IF($B6="","",SUMIF(TIPOS_AF_DEPREC,$B6,UTIL_FISC_DEPREC)) -> 0 | L6: =IF($B6="","",SUMIF(TIPOS_AF_DEPREC,$B6,PERD_FISC_DEPREC)) -> 0
B7: =IF('Tablas de AF'!B11="","",'Tablas de AF'!B11) -> CONSTRUCCIONES (EN GENERAL) | C7: =IF('Tablas de AF'!A11="","",'Tablas de AF'!A11) -> CONSTRUCCIONES | D7: 0 | E7: 0 | F7: 0 | H7: 0 | I7: 0 | J7: 0 | K7: 0 | L7: 0
B8: =IF('Tablas de AF'!B12="","",'Tablas de AF'!B12) -> CONSTRUCCIONES (MONUMENTOS HISTORICOS) | C8: =IF('Tablas de AF'!A12="","",'Tablas de AF'!A12) -> INVERSIONES EN INMUEBLES CONSIDERADOS HISTÓRICOS | D8: 0 | E8: 0 | F8: 0 | H8: 0 | I8: 0 | J8: 0 | K8: 0 | L8: 0
B9: =IF('Tablas de AF'!B13="","",'Tablas de AF'!B13) -> EQUIPO DE COMPUTO | C9: =IF('Tablas de AF'!A13="","",'Tablas de AF'!A13) -> EQUIPO DE COMPUTO | D9: 0 | E9: 0 | F9: 0 | H9: 0 | I9: 0 | J9: 0 | K9: 0 | L9: 0
B10: =IF('Tablas de AF'!B14="","",'Tablas de AF'!B14) -> EQUIPO DE COMUNICACION | C10: =IF('Tablas de AF'!A14="","",'Tablas de AF'!A14) -> MAQUINARIA Y EQUIPO | D10: 0 | E10: 0 | F10: 0 | H10: 0 | I10: 0 | J10: 0 | K10: 0 | L10: 0
B11: =IF('Tablas de AF'!B15="","",'Tablas de AF'!B15) -> EQUIPO DE RADIOCOMUNICACION | C11: =IF('Tablas de AF'!A15="","",'Tablas de AF'!A15) -> MAQUINARIA Y EQUIPO | D11: 0 | E11: 0 | F11: 0 | H11: 0 | I11: 0 | J11: 0 | K11: 0 | L11: 0
B12: =IF('Tablas de AF'!B16="","",'Tablas de AF'!B16) -> EQUIPO DE TRANSMISION DE DATOS | C12: =IF('Tablas de AF'!A16="","",'Tablas de AF'!A16) -> MAQUINARIA Y EQUIPO | D12: 0 | E12: 0 | F12: 0 | H12: 0 | I12: 0 | J12: 0 | K12: 0 | L12: 0
B13: =IF('Tablas de AF'!B17="","",'Tablas de AF'!B17) -> EQUIPO DE TRANSPORTE (AUTOMOVILES) | C13: =IF('Tablas de AF'!A17="","",'Tablas de AF'!A17) -> EQUIPO DE TRANSPORTE AUTOMOVILES | D13: 0 | E13: 0 | F13: 0 | H13: 0 | I13: 0 | J13: 0 | K13: 0 | L13: 0
B14: =IF('Tablas de AF'!B18="","",'Tablas de AF'!B18) -> EQUIPO DE TRANSPORTE (OTROS) | C14: =IF('Tablas de AF'!A18="","",'Tablas de AF'!A18) -> EQUIPO DE TRANSPORTE OTROS | D14: 0 | E14: 0 | F14: 0 | H14: 0 | I14: 0 | J14: 0 | K14: 0 | L14: 0
B15: =IF('Tablas de AF'!B19="","",'Tablas de AF'!B19) -> GASTOS PREOPERATIVOS | C15: =IF('Tablas de AF'!A19="","",'Tablas de AF'!A19) -> GASTOS, CARGOS DIFERIDOS Y EROGACIONES EN PERIODOS PREOPERATIVOS | D15: 0 | E15: 0 | F15: 0 | H15: 0 | I15: 0 | J15: 0 | K15: 0 | L15: 0
B16: =IF('Tablas de AF'!B20="","",'Tablas de AF'!B20) -> GASTOS Y CARGOS DIFERIDOS | C16: =IF('Tablas de AF'!A20="","",'Tablas de AF'!A20) -> GASTOS, CARGOS DIFERIDOS Y EROGACIONES EN PERIODOS PREOPERATIVOS | D16: 0 | E16: 0 | F16: 0 | H16: 0 | I16: 0 | J16: 0 | K16: 0 | L16: 0
B17: =IF('Tablas de AF'!B21="","",'Tablas de AF'!B21) -> HERRAMENTAL | C17: =IF('Tablas de AF'!A21="","",'Tablas de AF'!A21) -> OTRAS INVERSIONES EN ACTIVOS FIJOS | D17: 0 | E17: 0 | F17: 0 | H17: 0 | I17: 0 | J17: 0 | K17: 0 | L17: 0
B18: =IF('Tablas de AF'!B22="","",'Tablas de AF'!B22) -> MAQUINARIA Y EQUIPO (CONSTRUCTORAS) | C18: =IF('Tablas de AF'!A22="","",'Tablas de AF'!A22) -> MAQUINARIA Y EQUIPO | D18: 0 | E18: 0 | F18: 0 | H18: 0 | I18: 0 | J18: 0 | K18: 0 | L18: 0
B19: =IF('Tablas de AF'!B23="","",'Tablas de AF'!B23) -> MAQUINARIA Y EQUIPO (EN GENERAL) | C19: =IF('Tablas de AF'!A23="","",'Tablas de AF'!A23) -> MAQUINARIA Y EQUIPO | D19: 0 | E19: 0 | F19: 0 | H19: 0 | I19: 0 | J19: 0 | K19: 0 | L19: 0
B20: =IF('Tablas de AF'!B24="","",'Tablas de AF'!B24) -> MAQUINARIA Y EQUIPO (EN RESTAURANTES) | C20: =IF('Tablas de AF'!A24="","",'Tablas de AF'!A24) -> MAQUINARIA Y EQUIPO | D20: 0 | E20: 0 | F20: 0 | H20: 0 | I20: 0 | J20: 0 | K20: 0 | L20: 0
B21: =IF('Tablas de AF'!B25="","",'Tablas de AF'!B25) -> MAQUINARIA Y EQUIPO (GENERAC. ENERG FUENTES RENOV.) | C21: =IF('Tablas de AF'!A25="","",'Tablas de AF'!A25) -> MAQUINARIA Y EQUIPO PARA LA GENERACION DE ENERGÍA (FUENTES RENOVABLES) | D21: 0 | E21: 0 | F21: 0 | H21: 0 | I21: 0 | J21: 0 | K21: 0 | L21: 0
B22: =IF('Tablas de AF'!B26="","",'Tablas de AF'!B26) -> MOBILIARIO Y EQUIPO DE OFICINA | C22: =IF('Tablas de AF'!A26="","",'Tablas de AF'!A26) -> MOBILIARIO Y EQUIPO DE OFICINA | D22: 0 | E22: 0 | F22: 0 | H22: 0 | I22: 0 | J22: 0 | K22: 0 | L22: 0
B23: =IF('Tablas de AF'!B27="","",'Tablas de AF'!B27) -> MOLDES | C23: =IF('Tablas de AF'!A27="","",'Tablas de AF'!A27) -> MAQUINARIA Y EQUIPO | D23: 0 | E23: 0 | F23: 0 | H23: 0 | I23: 0 | J23: 0 | K23: 0 | L23: 0
B24: =IF('Tablas de AF'!B28="","",'Tablas de AF'!B28) ->  | C24: =IF('Tablas de AF'!A28="","",'Tablas de AF'!A28) -> 
B25: =IF('Tablas de AF'!B29="","",'Tablas de AF'!B29) ->  | C25: =IF('Tablas de AF'!A29="","",'Tablas de AF'!A29) -> 
B26: =IF('Tablas de AF'!B30="","",'Tablas de AF'!B30) ->  | C26: =IF('Tablas de AF'!A30="","",'Tablas de AF'!A30) -> 
B27: =IF('Tablas de AF'!B31="","",'Tablas de AF'!B31) ->  | C27: =IF('Tablas de AF'!A31="","",'Tablas de AF'!A31) -> 
B28: =IF('Tablas de AF'!B32="","",'Tablas de AF'!B32) ->  | C28: =IF('Tablas de AF'!A32="","",'Tablas de AF'!A32) -> 
B29: =IF('Tablas de AF'!B33="","",'Tablas de AF'!B33) ->  | C29: =IF('Tablas de AF'!A33="","",'Tablas de AF'!A33) -> 
B30: =IF('Tablas de AF'!B34="","",'Tablas de AF'!B34) ->  | C30: =IF('Tablas de AF'!A34="","",'Tablas de AF'!A34) -> 
B31: =IF('Tablas de AF'!B35="","",'Tablas de AF'!B35) ->  | C31: =IF('Tablas de AF'!A35="","",'Tablas de AF'!A35) -> 
B32: =IF('Tablas de AF'!B36="","",'Tablas de AF'!B36) ->  | C32: =IF('Tablas de AF'!A36="","",'Tablas de AF'!A36) -> 
B33: =IF('Tablas de AF'!B37="","",'Tablas de AF'!B37) ->  | C33: =IF('Tablas de AF'!A37="","",'Tablas de AF'!A37) -> 
B34: =IF('Tablas de AF'!B38="","",'Tablas de AF'!B38) ->  | C34: =IF('Tablas de AF'!A38="","",'Tablas de AF'!A38) -> 
B35: =IF('Tablas de AF'!B39="","",'Tablas de AF'!B39) ->  | C35: =IF('Tablas de AF'!A39="","",'Tablas de AF'!A39) -> 
B36: =IF('Tablas de AF'!B40="","",'Tablas de AF'!B40) ->  | C36: =IF('Tablas de AF'!A40="","",'Tablas de AF'!A40) -> 
B37: =IF('Tablas de AF'!B41="","",'Tablas de AF'!B41) ->  | C37: =IF('Tablas de AF'!A41="","",'Tablas de AF'!A41) -> 
B38: =IF('Tablas de AF'!B42="","",'Tablas de AF'!B42) ->  | C38: =IF('Tablas de AF'!A42="","",'Tablas de AF'!A42) -> 
B39: =IF('Tablas de AF'!B43="","",'Tablas de AF'!B43) ->  | C39: =IF('Tablas de AF'!A43="","",'Tablas de AF'!A43) -> 
B40: =IF('Tablas de AF'!B44="","",'Tablas de AF'!B44) ->  | C40: =IF('Tablas de AF'!A44="","",'Tablas de AF'!A44) -> 
B41: =IF('Tablas de AF'!B45="","",'Tablas de AF'!B45) ->  | C41: =IF('Tablas de AF'!A45="","",'Tablas de AF'!A45) -> 
B43: Totales | D43: =SUBTOTAL(9,D6:D42) -> 0 | E43: =SUBTOTAL(9,E6:E42) -> 0 | F43: 0 | G43: 0 | H43: 0 | I43: 0 | J43: 0 | K43: 0 | L43: 0
B45: Total Depreciaciones | F45: =F43-SUMIF($B$6:$B$42,"GASTOS PREOPERATIVOS",F6:F42)-SUMIF($B$6:$B$42,"GASTOS Y CARGOS DIFERIDOS",F6:F42) -> 0 | H45: =H43-SUMIF($B$6:$B$42,"GASTOS PREOPERATIVOS",H6:H42)-SUMIF($B$6:$B$42,"GASTOS Y CARGOS DIFERIDOS",H6:H42) -> 0
B46: Depreciaciones en Costo de Ventas
B47: Depreciaciones en Gastos de Operación | F47: =F45-F46 -> 0 | H47: =H45-H46 -> 0
B49: Total Amortizaciones | F49: =SUMIF($B$6:$B$42,"GASTOS PREOPERATIVOS",F6:F42)+SUMIF($B$6:$B$42,"GASTOS Y CARGOS DIFERIDOS",F6:F42) -> 0 | H49: =SUMIF($C$6:$C$42,"GASTOS, CARGOS DIFERIDOS Y EROGACIONES EN PERIODOS PREOPERATIVOS",H6:H42) -> 0
B50: Amortizaciones en Costo de Ventas
B51: Amortizaciones en Gastos de Operación | F51: =F49-F50 -> 0 | H51: =H49-H50 -> 0
B53: Depreciaciones y Amortizaciones en Gastos de Operación | F53: =F47+F51 -> 0 | H53: =H47+H51 -> 0

Sheet Prom. Créditos (hidden)
B1: =Empresa!$D$8 -> EMPRESA EJEMPLO | Q1: =B1 -> EMPRESA EJEMPLO
B2: Promedio de Créditos de la Balanza de Comprobación - Ajuste Anual por Inflación | Q2: Notas o Comentarios
B3: ="Ejercicio "&Empresa!$D$13 -> Ejercicio 2024
B5: Cuentas en Moneda Nacional | C5: Enero | D5: Febrero | E5: Marzo | F5: Abril | G5: Mayo | H5: Junio | I5: Julio | J5: Agosto | K5: Septiembre | L5: Octubre | M5: Noviembre | N5: Diciembre | O5: Promedio
C7: =IF($B7="",0,SUMIF(CUENTA_NOMBRE,$B7,SALDOS_ENE)) -> 0 | D7: =IF(B7="",0,SUMIF(CUENTA_NOMBRE,$B7,SALDOS_FEB)) -> 0 | E7: =IF(B7="",0,SUMIF(CUENTA_NOMBRE,$B7,SALDOS_MAR)) -> 0 | F7: =IF(B7="",0,SUMIF(CUENTA_NOMBRE,$B7,SALDOS_ABR)) -> 0 | G7: =IF(B7="",0,SUMIF(CUENTA_NOMBRE,$B7,SALDOS_MAY)) -> 0 | H7: =IF(B7="",0,SUMIF(CUENTA_NOMBRE,$B7,SALDOS_JUN)) -> 0 | I7: =IF(B7="",0,SUMIF(CUENTA_NOMBRE,$B7,SALDOS_JUL)) -> 0 | J7: =IF(B7="",0,SUMIF(CUENTA_NOMBRE,$B7,SALDOS_AGO)) -> 0 | K7: =IF(B7="",0,SUMIF(CUENTA_NOMBRE,$B7,SALDOS_SEP)) -> 0 | L7: =IF(B7="",0,SUMIF(CUENTA_NOMBRE,$B7,SALDOS_OCT)) -> 0 | M7: =IF(B7="",0,SUMIF(CUENTA_NOMBRE,$B7,SALDOS_NOV)) -> 0 | N7: =IF(B7="",0,SUMIF(CUENTA_NOMBRE,$B7,SALDOS_FINALES)) -> 0 | O7: =SUM(C7:N7)/12 -> 0
C8: 0 | D8: 0 | E8: 0 | F8: 0 | G8: 0 | H8: 0 | I8: 0 | J8: 0 | K8: 0 | L8: 0 | M8: 0 | N8: 0 | O8: =SUM(C8:N8)/12 -> 0
C9: 0 | D9: 0 | E9: 0 | F9: 0 | G9: 0 | H9: 0 | I9: 0 | J9: 0 | K9: 0 | L9: 0 | M9: 0 | N9: 0 | O9: =SUM(C9:N9)/12 -> 0
C10: 0 | D10: 0 | E10: 0 | F10: 0 | G10: 0 | H10: 0 | I10: 0 | J10: 0 | K10: 0 | L10: 0 | M10: 0 | N10: 0 | O10: 0
C11: 0 | D11: =IF(B11="",0,SUMIF(CUENTA_NOMBRE,$B11,SALDOS_FEB)) -> 0 | E11: =IF(B11="",0,SUMIF(CUENTA_NOMBRE,$B11,SALDOS_MAR)) -> 0 | F11: =IF(B11="",0,SUMIF(CUENTA_NOMBRE,$B11,SALDOS_ABR)) -> 0 | G11: =IF(B11="",0,SUMIF(CUENTA_NOMBRE,$B11,SALDOS_MAY)) -> 0 | H11: =IF(B11="",0,SUMIF(CUENTA_NOMBRE,$B11,SALDOS_JUN)) -> 0 | I11: =IF(B11="",0,SUMIF(CUENTA_NOMBRE,$B11,SALDOS_JUL)) -> 0 | J11: =IF(B11="",0,SUMIF(CUENTA_NOMBRE,$B11,SALDOS_AGO)) -> 0 | K11: =IF(B11="",0,SUMIF(CUENTA_NOMBRE,$B11,SALDOS_SEP)) -> 0 | L11: =IF(B11="",0,SUMIF(CUENTA_NOMBRE,$B11,SALDOS_OCT)) -> 0 | M11: =IF(B11="",0,SUMIF(CUENTA_NOMBRE,$B11,SALDOS_NOV)) -> 0 | N11: =IF(B11="",0,SUMIF(CUENTA_NOMBRE,$B11,SALDOS_FINALES)) -> 0 | O11: =SUM(C11:N11)/12 -> 0
C12: 0 | D12: 0 | E12: 0 | F12: 0 | G12: 0 | H12: 0 | I12: 0 | J12: 0 | K12: 0 | L12: 0 | M12: 0 | N12: 0 | O12: 0
C13: 0 | D13: 0 | E13: 0 | F13: 0 | G13: 0 | H13: 0 | I13: 0 | J13: 0 | K13: 0 | L13: 0 | M13: 0 | N13: 0 | O13: 0
C14: 0 | D14: 0 | E14: 0 | F14: 0 | G14: 0 | H14: 0 | I14: 0 | J14: 0 | K14: 0 | L14: 0 | M14: 0 | N14: 0 | O14: 0
C15: 0 | D15: 0 | E15: 0 | F15: 0 | G15: 0 | H15: 0 | I15: 0 | J15: 0 | K15: 0 | L15: 0 | M15: 0 | N15: 0 | O15: 0
C16: 0 | D16: 0 | E16: 0 | F16: 0 | G16: 0 | H16: 0 | I16: 0 | J16: 0 | K16: 0 | L16: 0 | M16: 0 | N16: 0 | O16: 0
C17: 0 | D17: 0 | E17: 0 | F17: 0 | G17: 0 | H17: 0 | I17: 0 | J17: 0 | K17: 0 | L17: 0 | M17: 0 | N17: 0 | O17: 0
C18: 0 | D18: 0 | E18: 0 | F18: 0 | G18: 0 | H18: 0 | I18: 0 | J18: 0 | K18: 0 | L18: 0 | M18: 0 | N18: 0 | O18: 0
C19: 0 | D19: 0 | E19: 0 | F19: 0 | G19: 0 | H19: 0 | I19: 0 | J19: 0 | K19: 0 | L19: 0 | M19: 0 | N19: 0 | O19: 0
C20: 0 | D20: 0 | E20: 0 | F20: 0 | G20: 0 | H20: 0 | I20: 0 | J20: 0 | K20: 0 | L20: 0 | M20: 0 | N20: 0 | O20: 0
B23: Totales | C23: =SUM(C7:C22) -> 0 | D23: 0 | E23: 0 | F23: 0 | G23: 0 | H23: 0 | I23: 0 | J23: 0 | K23: 0 | L23: 0 | M23: 0 | N23: 0 | O23: 0
N25: Comprobación | O25: =IF(O23=0,"",SUM('Ajuste Inflación'!C7:C11)) -> 
N26: Diferencia | O26: =IF(O23=0,"",O23-O25) -> 

Sheet Prom. Cred. M. E. (hidden)
A1: =Empresa!$D$8 -> EMPRESA EJEMPLO | P1: =A1 -> EMPRESA EJEMPLO
A2: Promedios de Créditos en Monedas Extranjeras para Ajuste Anual por Inflación | P2: Notas o Comentarios
A3: ="Ejercicio "&Empresa!$D$13 -> Ejercicio 2024
A6: Descripción | B6: Enero | C6: Febrero | D6: Marzo | E6: Abril | F6: Mayo | G6: Junio | H6: Julio | I6: Agosto | J6: Septiembre | K6: Octubre | L6: Noviembre | M6: Diciembre | N6: Promedio
A8: MONEDA:
A9: Seleccionar - Moneda | N9: =SUM(B9:M9)/12 -> 0
A10: Seleccionar - Moneda | N10: =SUM(B10:M10)/12 -> 0
A11: Estados Unidos de América - Dólar | N11: =SUM(B11:M11)/12 -> 0
A12: Estados Unidos de América - Dólar | N12: =SUM(B12:M12)/12 -> 0
A13: Seleccionar - Moneda | N13: =SUM(B13:M13)/12 -> 0
A15: EQUIVALENCIAS A DOLARES AMERICANOS:
A16: =A9 -> Seleccionar - Moneda | B16: =IF(ISNA(IF($A16="",0,VLOOKUP($A16,EQUIV_A_DOLAR,2))),0,IF($A16="",0,VLOOKUP($A16,EQUIV_A_DOLAR,2))) -> 0 | C16: =IF(ISNA(IF($A16="",0,VLOOKUP($A16,EQUIV_A_DOLAR,3))),0,IF($A16="",0,VLOOKUP($A16,EQUIV_A_DOLAR,3))) -> 0 | D16: =IF(ISNA(IF($A16="",0,VLOOKUP($A16,EQUIV_A_DOLAR,4))),0,IF($A16="",0,VLOOKUP($A16,EQUIV_A_DOLAR,4))) -> 0 | E16: =IF(ISNA(IF($A16="",0,VLOOKUP($A16,EQUIV_A_DOLAR,5))),0,IF($A16="",0,VLOOKUP($A16,EQUIV_A_DOLAR,5))) -> 0 | F16: =IF(ISNA(IF($A16="",0,VLOOKUP($A16,EQUIV_A_DOLAR,6))),0,IF($A16="",0,VLOOKUP($A16,EQUIV_A_DOLAR,6))) -> 0 | G16: =IF(ISNA(IF($A16="",0,VLOOKUP($A16,EQUIV_A_DOLAR,7))),0,IF($A16="",0,VLOOKUP($A16,EQUIV_A_DOLAR,7))) -> 0 | H16: =IF(ISNA(IF($A16="",0,VLOOKUP($A16,EQUIV_A_DOLAR,8))),0,IF($A16="",0,VLOOKUP($A16,EQUIV_A_DOLAR,8))) -> 0 | I16: =IF(ISNA(IF($A16="",0,VLOOKUP($A16,EQUIV_A_DOLAR,9))),0,IF($A16="",0,VLOOKUP($A16,EQUIV_A_DOLAR,9))) -> 0 | J16: =IF(ISNA(IF($A16="",0,VLOOKUP($A16,EQUIV_A_DOLAR,10))),0,IF($A16="",0,VLOOKUP($A16,EQUIV_A_DOLAR,10))) -> 0 | K16: =IF(ISNA(IF($A16="",0,VLOOKUP($A16,EQUIV_A_DOLAR,11))),0,IF($A16="",0,VLOOKUP($A16,EQUIV_A_DOLAR,11))) -> 0 | L16: =IF(ISNA(IF($A16="",0,VLOOKUP($A16,EQUIV_A_DOLAR,12))),0,IF($A16="",0,VLOOKUP($A16,EQUIV_A_DOLAR,12))) -> 0 | M16: =IF(ISNA(IF($A16="",0,VLOOKUP($A16,EQUIV_A_DOLAR,13))),0,IF($A16="",0,VLOOKUP($A16,EQUIV_A_DOLAR,13))) -> 0 | N16: 0
A17: =A10 -> Seleccionar - Moneda | B17: =IF(ISNA(IF($A17="",0,VLOOKUP($A17,EQUIV_A_DOLAR,2))),0,IF($A17="",0,VLOOKUP($A17,EQUIV_A_DOLAR,2))) -> 0 | C17: =IF(ISNA(IF($A17="",0,VLOOKUP($A17,EQUIV_A_DOLAR,3))),0,IF($A17="",0,VLOOKUP($A17,EQUIV_A_DOLAR,3))) -> 0 | D17: =IF(ISNA(IF($A17="",0,VLOOKUP($A17,EQUIV_A_DOLAR,4))),0,IF($A17="",0,VLOOKUP($A17,EQUIV_A_DOLAR,4))) -> 0 | E17: =IF(ISNA(IF($A17="",0,VLOOKUP($A17,EQUIV_A_DOLAR,5))),0,IF($A17="",0,VLOOKUP($A17,EQUIV_A_DOLAR,5))) -> 0 | F17: =IF(ISNA(IF($A17="",0,VLOOKUP($A17,EQUIV_A_DOLAR,6))),0,IF($A17="",0,VLOOKUP($A17,EQUIV_A_DOLAR,6))) -> 0 | G17: =IF(ISNA(IF($A17="",0,VLOOKUP($A17,EQUIV_A_DOLAR,7))),0,IF($A17="",0,VLOOKUP($A17,EQUIV_A_DOLAR,7))) -> 0 | H17: =IF(ISNA(IF($A17="",0,VLOOKUP($A17,EQUIV_A_DOLAR,8))),0,IF($A17="",0,VLOOKUP($A17,EQUIV_A_DOLAR,8))) -> 0 | I17: =IF(ISNA(IF($A17="",0,VLOOKUP($A17,EQUIV_A_DOLAR,9))),0,IF($A17="",0,VLOOKUP($A17,EQUIV_A_DOLAR,9))) -> 0 | J17: =IF(ISNA(IF($A17="",0,VLOOKUP($A17,EQUIV_A_DOLAR,10))),0,IF($A17="",0,VLOOKUP($A17,EQUIV_A_DOLAR,10))) -> 0 | K17: =IF(ISNA(IF($A17="",0,VLOOKUP($A17,EQUIV_A_DOLAR,11))),0,IF($A17="",0,VLOOKUP($A17,EQUIV_A_DOLAR,11))) -> 0 | L17: =IF(ISNA(IF($A17="",0,VLOOKUP($A17,EQUIV_A_DOLAR,12))),0,IF($A17="",0,VLOOKUP($A17,EQUIV_A_DOLAR,12))) -> 0 | M17: =IF(ISNA(IF($A17="",0,VLOOKUP($A17,EQUIV_A_DOLAR,13))),0,IF($A17="",0,VLOOKUP($A17,EQUIV_A_DOLAR,13))) -> 0 | N17: 0
A18: =A11 -> Estados Unidos de América - Dólar | B18: =IF(ISNA(IF($A18="",0,VLOOKUP($A18,EQUIV_A_DOLAR,2))),0,IF($A18="",0,VLOOKUP($A18,EQUIV_A_DOLAR,2))) -> 1 | C18: =IF(ISNA(IF($A18="",0,VLOOKUP($A18,EQUIV_A_DOLAR,3))),0,IF($A18="",0,VLOOKUP($A18,EQUIV_A_DOLAR,3))) -> 1 | D18: =IF(ISNA(IF($A18="",0,VLOOKUP($A18,EQUIV_A_DOLAR,4))),0,IF($A18="",0,VLOOKUP($A18,EQUIV_A_DOLAR,4))) -> 1 | E18: =IF(ISNA(IF($A18="",0,VLOOKUP($A18,EQUIV_A_DOLAR,5))),0,IF($A18="",0,VLOOKUP($A18,EQUIV_A_DOLAR,5))) -> 1 | F18: =IF(ISNA(IF($A18="",0,VLOOKUP($A18,EQUIV_A_DOLAR,6))),0,IF($A18="",0,VLOOKUP($A18,EQUIV_A_DOLAR,6))) -> 1 | G18: =IF(ISNA(IF($A18="",0,VLOOKUP($A18,EQUIV_A_DOLAR,7))),0,IF($A18="",0,VLOOKUP($A18,EQUIV_A_DOLAR,7))) -> 1 | H18: =IF(ISNA(IF($A18="",0,VLOOKUP($A18,EQUIV_A_DOLAR,8))),0,IF($A18="",0,VLOOKUP($A18,EQUIV_A_DOLAR,8))) -> 1 | I18: =IF(ISNA(IF($A18="",0,VLOOKUP($A18,EQUIV_A_DOLAR,9))),0,IF($A18="",0,VLOOKUP($A18,EQUIV_A_DOLAR,9))) -> 1 | J18: =IF(ISNA(IF($A18="",0,VLOOKUP($A18,EQUIV_A_DOLAR,10))),0,IF($A18="",0,VLOOKUP($A18,EQUIV_A_DOLAR,10))) -> 1 | K18: =IF(ISNA(IF($A18="",0,VLOOKUP($A18,EQUIV_A_DOLAR,11))),0,IF($A18="",0,VLOOKUP($A18,EQUIV_A_DOLAR,11))) -> 1 | L18: =IF(ISNA(IF($A18="",0,VLOOKUP($A18,EQUIV_A_DOLAR,12))),0,IF($A18="",0,VLOOKUP($A18,EQUIV_A_DOLAR,12))) -> 1 | M18: =IF(ISNA(IF($A18="",0,VLOOKUP($A18,EQUIV_A_DOLAR,13))),0,IF($A18="",0,VLOOKUP($A18,EQUIV_A_DOLAR,13))) -> 1 | N18: 0
A19: =A12 -> Estados Unidos de América - Dólar | B19: =IF(ISNA(IF($A19="",0,VLOOKUP($A19,EQUIV_A_DOLAR,2))),0,IF($A19="",0,VLOOKUP($A19,EQUIV_A_DOLAR,2))) -> 1 | C19: =IF(ISNA(IF($A19="",0,VLOOKUP($A19,EQUIV_A_DOLAR,3))),0,IF($A19="",0,VLOOKUP($A19,EQUIV_A_DOLAR,3))) -> 1 | D19: =IF(ISNA(IF($A19="",0,VLOOKUP($A19,EQUIV_A_DOLAR,4))),0,IF($A19="",0,VLOOKUP($A19,EQUIV_A_DOLAR,4))) -> 1 | E19: =IF(ISNA(IF($A19="",0,VLOOKUP($A19,EQUIV_A_DOLAR,5))),0,IF($A19="",0,VLOOKUP($A19,EQUIV_A_DOLAR,5))) -> 1 | F19: =IF(ISNA(IF($A19="",0,VLOOKUP($A19,EQUIV_A_DOLAR,6))),0,IF($A19="",0,VLOOKUP($A19,EQUIV_A_DOLAR,6))) -> 1 | G19: =IF(ISNA(IF($A19="",0,VLOOKUP($A19,EQUIV_A_DOLAR,7))),0,IF($A19="",0,VLOOKUP($A19,EQUIV_A_DOLAR,7))) -> 1 | H19: =IF(ISNA(IF($A19="",0,VLOOKUP($A19,EQUIV_A_DOLAR,8))),0,IF($A19="",0,VLOOKUP($A19,EQUIV_A_DOLAR,8))) -> 1 | I19: =IF(ISNA(IF($A19="",0,VLOOKUP($A19,EQUIV_A_DOLAR,9))),0,IF($A19="",0,VLOOKUP($A19,EQUIV_A_DOLAR,9))) -> 1 | J19: =IF(ISNA(IF($A19="",0,VLOOKUP($A19,EQUIV_A_DOLAR,10))),0,IF($A19="",0,VLOOKUP($A19,EQUIV_A_DOLAR,10))) -> 1 | K19: =IF(ISNA(IF($A19="",0,VLOOKUP($A19,EQUIV_A_DOLAR,11))),0,IF($A19="",0,VLOOKUP($A19,EQUIV_A_DOLAR,11))) -> 1 | L19: =IF(ISNA(IF($A19="",0,VLOOKUP($A19,EQUIV_A_DOLAR,12))),0,IF($A19="",0,VLOOKUP($A19,EQUIV_A_DOLAR,12))) -> 1 | M19: =IF(ISNA(IF($A19="",0,VLOOKUP($A19,EQUIV_A_DOLAR,13))),0,IF($A19="",0,VLOOKUP($A19,EQUIV_A_DOLAR,13))) -> 1 | N19: 0
A20: =A13 -> Seleccionar - Moneda | B20: =IF(ISNA(IF($A20="",0,VLOOKUP($A20,EQUIV_A_DOLAR,2))),0,IF($A20="",0,VLOOKUP($A20,EQUIV_A_DOLAR,2))) -> 0 | C20: =IF(ISNA(IF($A20="",0,VLOOKUP($A20,EQUIV_A_DOLAR,3))),0,IF($A20="",0,VLOOKUP($A20,EQUIV_A_DOLAR,3))) -> 0 | D20: =IF(ISNA(IF($A20="",0,VLOOKUP($A20,EQUIV_A_DOLAR,4))),0,IF($A20="",0,VLOOKUP($A20,EQUIV_A_DOLAR,4))) -> 0 | E20: =IF(ISNA(IF($A20="",0,VLOOKUP($A20,EQUIV_A_DOLAR,5))),0,IF($A20="",0,VLOOKUP($A20,EQUIV_A_DOLAR,5))) -> 0 | F20: =IF(ISNA(IF($A20="",0,VLOOKUP($A20,EQUIV_A_DOLAR,6))),0,IF($A20="",0,VLOOKUP($A20,EQUIV_A_DOLAR,6))) -> 0 | G20: =IF(ISNA(IF($A20="",0,VLOOKUP($A20,EQUIV_A_DOLAR,7))),0,IF($A20="",0,VLOOKUP($A20,EQUIV_A_DOLAR,7))) -> 0 | H20: =IF(ISNA(IF($A20="",0,VLOOKUP($A20,EQUIV_A_DOLAR,8))),0,IF($A20="",0,VLOOKUP($A20,EQUIV_A_DOLAR,8))) -> 0 | I20: =IF(ISNA(IF($A20="",0,VLOOKUP($A20,EQUIV_A_DOLAR,9))),0,IF($A20="",0,VLOOKUP($A20,EQUIV_A_DOLAR,9))) -> 0 | J20: =IF(ISNA(IF($A20="",0,VLOOKUP($A20,EQUIV_A_DOLAR,10))),0,IF($A20="",0,VLOOKUP($A20,EQUIV_A_DOLAR,10))) -> 0 | K20: =IF(ISNA(IF($A20="",0,VLOOKUP($A20,EQUIV_A_DOLAR,11))),0,IF($A20="",0,VLOOKUP($A20,EQUIV_A_DOLAR,11))) -> 0 | L20: =IF(ISNA(IF($A20="",0,VLOOKUP($A20,EQUIV_A_DOLAR,12))),0,IF($A20="",0,VLOOKUP($A20,EQUIV_A_DOLAR,12))) -> 0 | M20: =IF(ISNA(IF($A20="",0,VLOOKUP($A20,EQUIV_A_DOLAR,13))),0,IF($A20="",0,VLOOKUP($A20,EQUIV_A_DOLAR,13))) -> 0 | N20: 0
A22: IMPORTE EN DOLARES AMERICANOS:
A23: =A9 -> Seleccionar - Moneda | B23: =B9*B16 -> 0 | C23: 0 | D23: 0 | E23: 0 | F23: 0 | G23: 0 | H23: 0 | I23: 0 | J23: 0 | K23: 0 | L23: 0 | M23: 0 | N23: =SUM(B23:M23)/12 -> 0
A24: =A10 -> Seleccionar - Moneda | B24: =B10*B17 -> 0 | C24: 0 | D24: 0 | E24: 0 | F24: 0 | G24: 0 | H24: 0 | I24: 0 | J24: 0 | K24: 0 | L24: 0 | M24: 0 | N24: 0
A25: =A11 -> Estados Unidos de América - Dólar | B25: =B11*B18 -> 0 | C25: 0 | D25: 0 | E25: 0 | F25: 0 | G25: 0 | H25: 0 | I25: 0 | J25: 0 | K25: 0 | L25: 0 | M25: 0 | N25: 0
A26: =A12 -> Estados Unidos de América - Dólar | B26: =B12*B19 -> 0 | C26: 0 | D26: 0 | E26: 0 | F26: 0 | G26: 0 | H26: 0 | I26: 0 | J26: 0 | K26: 0 | L26: 0 | M26: 0 | N26: 0
A27: =A13 -> Seleccionar - Moneda | B27: =B13*B20 -> 0 | C27: 0 | D27: 0 | E27: 0 | F27: 0 | G27: 0 | H27: 0 | I27: 0 | J27: 0 | K27: 0 | L27: 0 | M27: 0 | N27: =SUM(B27:M27)/12 -> 0
A29: Total en Dólares Americanos | B29: =SUM(B24:B28) -> 0 | C29: 0 | D29: 0 | E29: 0 | F29: 0 | G29: 0 | H29: 0 | I29: 0 | J29: 0 | K29: 0 | L29: 0 | M29: 0 | N29: =SUM(B29:M29)/12 -> 0
A30: Tipo de Cambio a Pesos | N30: 0
A31: Créditos en Moneda Extranjera | B31: =B29*B30 -> 0 | C31: =C29*C30 -> 0 | D31: 0 | E31: 0 | F31: 0 | G31: 0 | H31: 0 | I31: 0 | J31: 0 | K31: 0 | L31: 0 | M31: 0 | N31: =SUM(B31:M31)/12 -> 0

Sheet Otros Imp. a Favor (hidden)
B1: =Empresa!$D$8 -> EMPRESA EJEMPLO | U1: =B1 -> EMPRESA EJEMPLO
B2: Promedio de Créditos de Saldos a Favor de Impuestos para Ajuste Anual por Inflación | U2: Notas o Comentarios
B3: ="Ejercicio "&Empresa!$D$13 -> Ejercicio 2024
B5: Tipo de impuesto que generó el Saldo a Favor | C5: Numero de Operación | D5: Saldo a Favor a Promediar | E5: Fecha Inicial | F5: Fecha Final | G5: =VALUE("31-1-"&Empresa!$D$13) -> 2024-01-31 | H5: =VALUE("28-2-"&Empresa!$D$13) -> 2024-02-28 | I5: =VALUE("31-3-"&Empresa!$D$13) -> 2024-03-31 | J5: =VALUE("30-4-"&Empresa!$D$13) -> 2024-04-30 | K5: =VALUE("31-5-"&Empresa!$D$13) -> 2024-05-31 | L5: =VALUE("30-6-"&Empresa!$D$13) -> 2024-06-30 | M5: =VALUE("31-7-"&Empresa!$D$13) -> 2024-07-31 | N5: =VALUE("31-8-"&Empresa!$D$13) -> 2024-08-31 | O5: =VALUE("30-9-"&Empresa!$D$13) -> 2024-09-30 | P5: =VALUE("31-10-"&Empresa!$D$13) -> 2024-10-31 | Q5: =VALUE("30-11-"&Empresa!$D$13) -> 2024-11-30 | R5: =VALUE("31-12-"&Empresa!$D$13) -> 2024-12-31 | S5: Promedio
G7: =IF($G$5<E7,0,IF($G$5>F7,0,D7)) -> 0 | H7: =IF($H$5<E7,0,IF($H$5>F7,0,D7)) -> 0 | I7: =IF($I$5<E7,0,IF($I$5>F7,0,D7)) -> 0 | J7: =IF($J$5<E7,0,IF($J$5>F7,0,D7)) -> 0 | K7: =IF($K$5<E7,0,IF($K$5>F7,0,D7)) -> 0 | L7: =IF($L$5<E7,0,IF($L$5>F7,0,D7)) -> 0 | M7: =IF($M$5<E7,0,IF($M$5>F7,0,D7)) -> 0 | N7: =IF($N$5<E7,0,IF($N$5>F7,0,D7)) -> 0 | O7: =IF($O$5<E7,0,IF($O$5>F7,0,D7)) -> 0 | P7: =IF($P$5<E7,0,IF($P$5>F7,0,D7)) -> 0 | Q7: =IF($Q$5<E7,0,IF($Q$5>F7,0,D7)) -> 0 | R7: =IF($R$5<E7,0,IF($R$5>F7,0,D7)) -> 0 | S7: =SUM(G7:R7)/12 -> 0
G8: 0 | H8: 0 | I8: 0 | J8: 0 | K8: 0 | L8: 0 | M8: 0 | N8: 0 | O8: 0 | P8: 0 | Q8: 0 | R8: 0 | S8: =SUM(G8:R8)/12 -> 0
G9: 0 | H9: 0 | I9: 0 | J9: 0 | K9: 0 | L9: 0 | M9: 0 | N9: 0 | O9: 0 | P9: 0 | Q9: 0 | R9: 0 | S9: 0
G10: 0 | H10: 0 | I10: 0 | J10: 0 | K10: 0 | L10: 0 | M10: 0 | N10: 0 | O10: 0 | P10: 0 | Q10: 0 | R10: 0 | S10: 0
G11: 0 | H11: 0 | I11: 0 | J11: 0 | K11: 0 | L11: 0 | M11: 0 | N11: 0 | O11: 0 | P11: 0 | Q11: 0 | R11: 0 | S11: 0
G12: 0 | H12: 0 | I12: 0 | J12: 0 | K12: 0 | L12: 0 | M12: 0 | N12: 0 | O12: 0 | P12: 0 | Q12: 0 | R12: 0 | S12: 0
G13: 0 | H13: 0 | I13: 0 | J13: 0 | K13: 0 | L13: 0 | M13: 0 | N13: 0 | O13: 0 | P13: 0 | Q13: 0 | R13: 0 | S13: =SUM(G13:R13)/12 -> 0
G14: 0 | H14: 0 | I14: 0 | J14: 0 | K14: 0 | L14: 0 | M14: 0 | N14: 0 | O14: 0 | P14: 0 | Q14: 0 | R14: 0 | S14: 0
G15: 0 | H15: 0 | I15: 0 | J15: 0 | K15: 0 | L15: 0 | M15: 0 | N15: 0 | O15: 0 | P15: 0 | Q15: 0 | R15: 0 | S15: 0
G16: 0 | H16: 0 | I16: 0 | J16: 0 | K16: 0 | L16: 0 | M16: 0 | N16: 0 | O16: 0 | P16: 0 | Q16: 0 | R16: 0 | S16: 0
G17: 0 | H17: 0 | I17: 0 | J17: 0 | K17: 0 | L17: 0 | M17: 0 | N17: 0 | O17: 0 | P17: 0 | Q17: 0 | R17: 0 | S17: 0
G18: 0 | H18: 0 | I18: 0 | J18: 0 | K18: 0 | L18: 0 | M18: 0 | N18: 0 | O18: 0 | P18: 0 | Q18: 0 | R18: 0 | S18: 0
G19: 0 | H19: 0 | I19: 0 | J19: 0 | K19: 0 | L19: 0 | M19: 0 | N19: 0 | O19: 0 | P19: 0 | Q19: 0 | R19: 0 | S19: =SUM(G19:R19)/12 -> 0
G20: 0 | H20: 0 | I20: 0 | J20: 0 | K20: 0 | L20: 0 | M20: 0 | N20: 0 | O20: 0 | P20: 0 | Q20: 0 | R20: 0 | S20: =SUM(G20:R20)/12 -> 0
B23: Totales | D23: =SUM(D7:D21) -> 0 | G23: =SUM(G7:G21) -> 0 | H23: 0 | I23: 0 | J23: 0 | K23: 0 | L23: 0 | M23: 0 | N23: 0 | O23: 0 | P23: 0 | Q23: 0 | R23: 0 | S23: 0

Sheet Prom. Deudas (hidden)
B1: =Empresa!$D$8 -> EMPRESA EJEMPLO | Q1: =B1 -> EMPRESA EJEMPLO
B2: Promedio de Deudas de la Balanza de Comprobación - Ajuste Anual por Inflación | Q2: Notas o Comentarios
B3: ="Ejercicio "&Empresa!$D$13 -> Ejercicio 2024
B5: Cuentas en Moneda Nacional | C5: Enero | D5: Febrero | E5: Marzo | F5: Abril | G5: Mayo | H5: Junio | I5: Julio | J5: Agosto | K5: Septiembre | L5: Octubre | M5: Noviembre | N5: Diciembre | O5: Promedio
C7: =IF($B7="",0,SUMIF(CUENTA_NOMBRE,$B7,SALDOS_ENE)) -> 0 | D7: =IF(B7="",0,SUMIF(CUENTA_NOMBRE,$B7,SALDOS_FEB)) -> 0 | E7: =IF(B7="",0,SUMIF(CUENTA_NOMBRE,$B7,SALDOS_MAR)) -> 0 | F7: =IF(B7="",0,SUMIF(CUENTA_NOMBRE,$B7,SALDOS_ABR)) -> 0 | G7: =IF(B7="",0,SUMIF(CUENTA_NOMBRE,$B7,SALDOS_MAY)) -> 0 | H7: =IF(B7="",0,SUMIF(CUENTA_NOMBRE,$B7,SALDOS_JUN)) -> 0 | I7: =IF(B7="",0,SUMIF(CUENTA_NOMBRE,$B7,SALDOS_JUL)) -> 0 | J7: =IF(B7="",0,SUMIF(CUENTA_NOMBRE,$B7,SALDOS_AGO)) -> 0 | K7: =IF(B7="",0,SUMIF(CUENTA_NOMBRE,$B7,SALDOS_SEP)) -> 0 | L7: =IF(B7="",0,SUMIF(CUENTA_NOMBRE,$B7,SALDOS_OCT)) -> 0 | M7: =IF(B7="",0,SUMIF(CUENTA_NOMBRE,$B7,SALDOS_NOV)) -> 0 | N7: =IF(B7="",0,SUMIF(CUENTA_NOMBRE,$B7,SALDOS_FINALES)) -> 0 | O7: =SUM(C7:N7)/12 -> 0
C8: 0 | D8: 0 | E8: 0 | F8: 0 | G8: 0 | H8: 0 | I8: 0 | J8: 0 | K8: 0 | L8: 0 | M8: 0 | N8: 0 | O8: =SUM(C8:N8)/12 -> 0
C9: 0 | D9: 0 | E9: 0 | F9: 0 | G9: 0 | H9: 0 | I9: 0 | J9: 0 | K9: 0 | L9: 0 | M9: 0 | N9: 0 | O9: 0
C10: 0 | D10: 0 | E10: 0 | F10: 0 | G10: 0 | H10: 0 | I10: 0 | J10: 0 | K10: 0 | L10: 0 | M10: 0 | N10: 0 | O10: 0
C11: 0 | D11: 0 | E11: 0 | F11: 0 | G11: 0 | H11: 0 | I11: 0 | J11: 0 | K11: 0 | L11: 0 | M11: 0 | N11: 0 | O11: 0
C12: 0 | D12: =IF(B12="",0,SUMIF(CUENTA_NOMBRE,$B12,SALDOS_FEB)) -> 0 | E12: =IF(B12="",0,SUMIF(CUENTA_NOMBRE,$B12,SALDOS_MAR)) -> 0 | F12: =IF(B12="",0,SUMIF(CUENTA_NOMBRE,$B12,SALDOS_ABR)) -> 0 | G12: =IF(B12="",0,SUMIF(CUENTA_NOMBRE,$B12,SALDOS_MAY)) -> 0 | H12: =IF(B12="",0,SUMIF(CUENTA_NOMBRE,$B12,SALDOS_JUN)) -> 0 | I12: =IF(B12="",0,SUMIF(CUENTA_NOMBRE,$B12,SALDOS_JUL)) -> 0 | J12: =IF(B12="",0,SUMIF(CUENTA_NOMBRE,$B12,SALDOS_AGO)) -> 0 | K12: =IF(B12="",0,SUMIF(CUENTA_NOMBRE,$B12,SALDOS_SEP)) -> 0 | L12: =IF(B12="",0,SUMIF(CUENTA_NOMBRE,$B12,SALDOS_OCT)) -> 0 | M12: =IF(B12="",0,SUMIF(CUENTA_NOMBRE,$B12,SALDOS_NOV)) -> 0 | N12: =IF(B12="",0,SUMIF(CUENTA_NOMBRE,$B12,SALDOS_FINALES)) -> 0 | O12: =SUM(C12:N12)/12 -> 0
C13: 0 | D13: 0 | E13: 0 | F13: 0 | G13: 0 | H13: 0 | I13: 0 | J13: 0 | K13: 0 | L13: 0 | M13: 0 | N13: 0 | O13: =SUM(C13:N13)/12 -> 0
C14: 0 | D14: 0 | E14: 0 | F14: 0 | G14: 0 | H14: 0 | I14: 0 | J14: 0 | K14: 0 | L14: 0 | M14: 0 | N14: 0 | O14: =SUM(C14:N14)/12 -> 0
C15: 0 | D15: 0 | E15: 0 | F15: 0 | G15: 0 | H15: 0 | I15: 0 | J15: 0 | K15: 0 | L15: 0 | M15: 0 | N15: 0 | O15: =SUM(C15:N15)/12 -> 0
B18: Totales | C18: =ABS(SUM(C7:C17)) -> 0 | D18: 0 | E18: 0 | F18: 0 | G18: 0 | H18: 0 | I18: 0 | J18: 0 | K18: 0 | L18: 0 | M18: 0 | N18: 0 | O18: 0
N20: Comprobación | O20: =IF(O18=0,"",SUM('Ajuste Inflación'!F7:F11)) -> 
N21: Diferencia | O21: =IF(O18=0,"",O18-O20) -> 

Sheet Prom. Deud. M.E. (hidden)
A1: =Empresa!$D$8 -> EMPRESA EJEMPLO | P1: =A1 -> EMPRESA EJEMPLO
A2: Promedios de Deudas en Monedas Extranjeras para Ajuste anual por Inflación | P2: Notas o Comentarios
A3: ="Ejercicio "&Empresa!$D$13 -> Ejercicio 2024
A6: Descripción | B6: Enero | C6: Febrero | D6: Marzo | E6: Abril | F6: Mayo | G6: Junio | H6: Julio | I6: Agosto | J6: Septiembre | K6: Octubre | L6: Noviembre | M6: Diciembre | N6: Promedio
A8: MONEDA:
A9: Seleccionar - Moneda | N9: =SUM(B9:M9)/12 -> 0
A10: Seleccionar - Moneda | N10: 0
A11: Unión Monetaria Europea - Euro | N11: 0
A12: Estados Unidos de América - Dólar | I12: 9696.97 | J12: 9696.97 | K12: 9696.97 | L12: 9696.97 | M12: 9696.97 | N12: 4040.404167
A13: Estados Unidos de América - Dólar | N13: 0
A14: Seleccionar - Moneda | N14: 0
A16: EQUIVALENCIAS A DOLARES AMERICANOS:
A17: =A9 -> Seleccionar - Moneda | B17: =IF(ISNA(IF($A17="",0,VLOOKUP($A17,EQUIV_A_DOLAR,2))),0,IF($A17="",0,VLOOKUP($A17,EQUIV_A_DOLAR,2))) -> 0 | C17: =IF(ISNA(IF($A17="",0,VLOOKUP($A17,EQUIV_A_DOLAR,3))),0,IF($A17="",0,VLOOKUP($A17,EQUIV_A_DOLAR,3))) -> 0 | D17: =IF(ISNA(IF($A17="",0,VLOOKUP($A17,EQUIV_A_DOLAR,4))),0,IF($A17="",0,VLOOKUP($A17,EQUIV_A_DOLAR,4))) -> 0 | E17: =IF(ISNA(IF($A17="",0,VLOOKUP($A17,EQUIV_A_DOLAR,5))),0,IF($A17="",0,VLOOKUP($A17,EQUIV_A_DOLAR,5))) -> 0 | F17: =IF(ISNA(IF($A17="",0,VLOOKUP($A17,EQUIV_A_DOLAR,6))),0,IF($A17="",0,VLOOKUP($A17,EQUIV_A_DOLAR,6))) -> 0 | G17: =IF(ISNA(IF($A17="",0,VLOOKUP($A17,EQUIV_A_DOLAR,7))),0,IF($A17="",0,VLOOKUP($A17,EQUIV_A_DOLAR,7))) -> 0 | H17: =IF(ISNA(IF($A17="",0,VLOOKUP($A17,EQUIV_A_DOLAR,8))),0,IF($A17="",0,VLOOKUP($A17,EQUIV_A_DOLAR,8))) -> 0 | I17: =IF(ISNA(IF($A17="",0,VLOOKUP($A17,EQUIV_A_DOLAR,9))),0,IF($A17="",0,VLOOKUP($A17,EQUIV_A_DOLAR,9))) -> 0 | J17: =IF(ISNA(IF($A17="",0,VLOOKUP($A17,EQUIV_A_DOLAR,10))),0,IF($A17="",0,VLOOKUP($A17,EQUIV_A_DOLAR,10))) -> 0 | K17: =IF(ISNA(IF($A17="",0,VLOOKUP($A17,EQUIV_A_DOLAR,11))),0,IF($A17="",0,VLOOKUP($A17,EQUIV_A_DOLAR,11))) -> 0 | L17: =IF(ISNA(IF($A17="",0,VLOOKUP($A17,EQUIV_A_DOLAR,12))),0,IF($A17="",0,VLOOKUP($A17,EQUIV_A_DOLAR,12))) -> 0 | M17: =IF(ISNA(IF($A17="",0,VLOOKUP($A17,EQUIV_A_DOLAR,13))),0,IF($A17="",0,VLOOKUP($A17,EQUIV_A_DOLAR,13))) -> 0 | N17: 0
A18: Seleccionar - Moneda | B18: 0 | C18: 0 | D18: 0 | E18: 0 | F18: 0 | G18: 0 | H18: 0 | I18: 0 | J18: 0 | K18: 0 | L18: 0 | M18: 0 | N18: 0
A19: Unión Monetaria Europea - Euro | B19: 1.378 | C19: 1.3484 | D19: 1.3811 | E19: 1.3783 | F19: 1.3864 | G19: 1.3646 | H19: 1.3691 | I19: 1.3381 | J19: 1.3172 | K19: 1.2633 | L19: 1.2507 | M19: 1.2466 | N19: 0
A20: Estados Unidos de América - Dólar | B20: 1 | C20: 1 | D20: 1 | E20: 1 | F20: 1 | G20: 1 | H20: 1 | I20: 1 | J20: 1 | K20: 1 | L20: 1 | M20: 1 | N20: 0
A21: Estados Unidos de América - Dólar | B21: 1 | C21: 1 | D21: 1 | E21: 1 | F21: 1 | G21: 1 | H21: 1 | I21: 1 | J21: 1 | K21: 1 | L21: 1 | M21: 1 | N21: 0
A22: Seleccionar - Moneda | B22: 0 | C22: 0 | D22: 0 | E22: 0 | F22: 0 | G22: 0 | H22: 0 | I22: 0 | J22: 0 | K22: 0 | L22: 0 | M22: 0 | N22: 0
A24: IMPORTE EN DOLARES AMERICANOS:
A25: =A9 -> Seleccionar - Moneda | B25: =B9*B17 -> 0 | C25: 0 | D25: 0 | E25: 0 | F25: 0 | G25: 0 | H25: 0 | I25: 0 | J25: 0 | K25: 0 | L25: 0 | M25: 0 | N25: =SUM(B25:M25)/12 -> 0
A26: Seleccionar - Moneda | B26: =B10*B18 -> 0 | C26: 0 | D26: 0 | E26: 0 | F26: 0 | G26: 0 | H26: 0 | I26: 0 | J26: 0 | K26: 0 | L26: 0 | M26: 0 | N26: =SUM(B26:M26)/12 -> 0
A27: Unión Monetaria Europea - Euro | B27: =B11*B19 -> 0 | C27: 0 | D27: 0 | E27: 0 | F27: 0 | G27: 0 | H27: 0 | I27: 0 | J27: 0 | K27: 0 | L27: 0 | M27: 0 | N27: 0
A28: Estados Unidos de América - Dólar | B28: =B12*B20 -> 0 | C28: 0 | D28: 0 | E28: 0 | F28: 0 | G28: 0 | H28: 0 | I28: 9696.97 | J28: 9696.97 | K28: 9696.97 | L28: 9696.97 | M28: 9696.97 | N28: 4040.404167
A29: Estados Unidos de América - Dólar | B29: =B13*B21 -> 0 | C29: 0 | D29: 0 | E29: 0 | F29: 0 | G29: 0 | H29: 0 | I29: 0 | J29: 0 | K29: 0 | L29: 0 | M29: 0 | N29: =SUM(B29:M29)/12 -> 0
A30: Seleccionar - Moneda | B30: 0 | C30: 0 | D30: 0 | E30: 0 | F30: 0 | G30: 0 | H30: 0 | I30: 0 | J30: 0 | K30: 0 | L30: 0 | M30: 0 | N30: =SUM(B30:M30)/12 -> 0
A32: Total en Dólares Americanos | B32: =SUM(B26:B31) -> 0 | C32: 0 | D32: 0 | E32: 0 | F32: 0 | G32: 0 | H32: 0 | I32: 9696.97 | J32: 9696.97 | K32: 9696.97 | L32: 9696.97 | M32: 9696.97 | N32: =SUM(B32:M32)/12 -> 4040.404167
A33: Tipo de Cambio a Pesos | I33: 18.5899 | J33: 19.1792 | K33: 18.6531 | L33: 20.1329 | M33: 20.3455 | N33: 0
A34: Deudas en Moneda Extranjera | B34: =B32*B33 -> 0 | C34: =C32*C33 -> 0 | D34: 0 | E34: 0 | F34: 0 | G34: 0 | H34: 0 | I34: 180265.7026 | J34: 185980.127 | K34: 180878.5511 | L34: 195228.1273 | M34: 197289.7031 | N34: =SUM(B34:M34)/12 -> 78303.5176

Sheet IMSS - Infonavit (hidden)
B1: =Empresa!$D$8 -> EMPRESA EJEMPLO | Q1: =Empresa!$D$8 -> EMPRESA EJEMPLO | AG1: =Q1 -> EMPRESA EJEMPLO
B2: Cuotas IMSS - Infonavit | Q2: Promedio de Cuotas IMSS - Infonavit para Ajuste Anual por Inflación | AG2: Notas o Comentarios
B3: ="Ejercicio "&Empresa!$D$13 -> Ejercicio 2024 | Q3: ="Ejercicio "&Empresa!$D$13 -> Ejercicio 2024
B5: Mes | C5: C.F. | D5: Exc. Pat. | E5: P.D. Pat. | F5: G.M.P. Pat. | G5: R.T. | H5: I.V. Pat. | I5: G.P.S. | J5: Total | K5: Retiro | L5: CV Pat. | M5: INFO S/Cred. | N5: INFO C/Cred. | O5: Total INFO | P5: Amortizac. | Q5: Total pagado | R5: Fecha de pago | S5: =VALUE("31-1-"&Empresa!$D$13) -> 2024-01-31 | T5: =VALUE("28-2-"&Empresa!$D$13) -> 2024-02-28 | U5: =VALUE("31-3-"&Empresa!$D$13) -> 2024-03-31 | V5: =VALUE("30-4-"&Empresa!$D$13) -> 2024-04-30 | W5: =VALUE("31-5-"&Empresa!$D$13) -> 2024-05-31 | X5: =VALUE("30-6-"&Empresa!$D$13) -> 2024-06-30 | Y5: =VALUE("31-7-"&Empresa!$D$13) -> 2024-07-31 | Z5: =VALUE("31-8-"&Empresa!$D$13) -> 2024-08-31 | AA5: =VALUE("30-9-"&Empresa!$D$13) -> 2024-09-30 | AB5: =VALUE("31-10-"&Empresa!$D$13) -> 2024-10-31 | AC5: =VALUE("30-11-"&Empresa!$D$13) -> 2024-11-30 | AD5: =VALUE("31-12-"&Empresa!$D$13) -> 2024-12-31 | AE5: Promedio
B7: Enero | J7: =SUM(C7:I7) -> 0 | O7: =M7+N7 -> 0 | Q7: =J7+K7+L7+O7+P7 -> 0 | S7: =Q7 -> 0 | T7: =IF($R$7>T5,$S$7,0) -> 0 | U7: 0 | V7: 0 | W7: 0 | X7: 0 | Y7: 0 | Z7: 0 | AA7: 0 | AB7: 0 | AC7: 0 | AD7: 0 | AE7: =SUM(S7:AD7)/12 -> 0
B8: Complementaria 1 | J8: =SUM(C8:I8) -> 0 | O8: =M8+N8 -> 0 | Q8: =J8+K8+L8+O8+P8 -> 0 | S8: =Q8 -> 0 | T8: =IF($R$8>T5,$S$8,0) -> 0 | U8: 0 | V8: 0 | W8: 0 | X8: 0 | Y8: 0 | Z8: 0 | AA8: 0 | AB8: 0 | AC8: 0 | AD8: 0 | AE8: =SUM(S8:AD8)/12 -> 0
B9: Complementaria 2 | J9: 0 | O9: 0 | Q9: 0 | S9: =Q9 -> 0 | T9: =IF($R$9>T5,$S$9,0) -> 0 | U9: 0 | V9: 0 | W9: 0 | X9: 0 | Y9: 0 | Z9: 0 | AA9: 0 | AB9: 0 | AC9: 0 | AD9: 0 | AE9: 0
B10: Febrero | J10: 0 | O10: 0 | Q10: 0 | T10: =Q10 -> 0 | U10: =IF($R$10>U5,$T$10,0) -> 0 | V10: 0 | W10: 0 | X10: 0 | Y10: 0 | Z10: 0 | AA10: 0 | AB10: 0 | AC10: 0 | AD10: 0 | AE10: 0
B11: Complementaria 1 | J11: 0 | O11: 0 | Q11: 0 | T11: =Q11 -> 0 | U11: =IF($R$11>U5,$T$11,0) -> 0 | V11: 0 | W11: 0 | X11: 0 | Y11: 0 | Z11: 0 | AA11: 0 | AB11: 0 | AC11: 0 | AD11: 0 | AE11: 0
B12: Complementaria 2 | J12: 0 | O12: 0 | Q12: 0 | T12: =Q12 -> 0 | U12: =IF($R$12>U5,$T$12,0) -> 0 | V12: 0 | W12: 0 | X12: 0 | Y12: 0 | Z12: 0 | AA12: 0 | AB12: 0 | AC12: 0 | AD12: 0 | AE12: 0
B13: Marzo | J13: 0 | O13: 0 | Q13: 0 | U13: =Q13 -> 0 | V13: =IF($R$13>V5,$U$13,0) -> 0 | W13: =IF($R$13>W5,#REF!,0) -> 0 | X13: =IF($R$13>X5,#REF!,0) -> 0 | Y13: =IF($R$13>Y5,#REF!,0) -> 0 | Z13: =IF($R$13>Z5,#REF!,0) -> 0 | AA13: =IF($R$13>AA5,#REF!,0) -> 0 | AB13: =IF($R$13>AB5,#REF!,0) -> 0 | AC13: =IF($R$13>AC5,#REF!,0) -> 0 | AD13: =IF($R$13>AD5,#REF!,0) -> 0 | AE13: 0
B14: Complementaria 1 | J14: 0 | O14: 0 | Q14: 0 | U14: =Q14 -> 0 | V14: =IF($R$14>V5,$U$14,0) -> 0 | W14: 0 | X14: 0 | Y14: 0 | Z14: 0 | AA14: 0 | AB14: 0 | AC14: 0 | AD14: 0 | AE14: 0
B15: Complementaria 2 | J15: 0 | O15: 0 | Q15: 0 | U15: =Q15 -> 0 | V15: =IF($R$15>V5,$U$15,0) -> 0 | W15: 0 | X15: 0 | Y15: 0 | Z15: 0 | AA15: 0 | AB15: 0 | AC15: 0 | AD15: 0 | AE15: 0
B16: Abril | J16: 0 | O16: 0 | Q16: 0 | V16: =Q16 -> 0 | W16: =IF($R$16>W5,$V$16,0) -> 0 | X16: 0 | Y16: 0 | Z16: 0 | AA16: 0 | AB16: 0 | AC16: 0 | AD16: 0 | AE16: 0
B17: Complementaria 1 | J17: 0 | O17: 0 | Q17: 0 | V17: =Q17 -> 0 | W17: =IF($R$17>W5,$V$17,0) -> 0 | X17: 0 | Y17: 0 | Z17: 0 | AA17: 0 | AB17: 0 | AC17: 0 | AD17: 0 | AE17: 0
B18: Complementaria 2 | J18: 0 | O18: 0 | Q18: 0 | V18: =Q18 -> 0 | W18: =IF($R$18>W5,$V$18,0) -> 0 | X18: 0 | Y18: 0 | Z18: 0 | AA18: 0 | AB18: 0 | AC18: 0 | AD18: 0 | AE18: 0
B19: Mayo | J19: 0 | O19: 0 | Q19: 0 | W19: =Q19 -> 0 | X19: =IF($R$19>X5,$W$19,0) -> 0 | Y19: 0 | Z19: 0 | AA19: 0 | AB19: 0 | AC19: 0 | AD19: 0 | AE19: 0
B20: Complementaria 1 | J20: 0 | O20: 0 | Q20: 0 | W20: =Q20 -> 0 | X20: =IF($R$20>X5,$W$20,0) -> 0 | Y20: 0 | Z20: 0 | AA20: 0 | AB20: 0 | AC20: 0 | AD20: 0 | AE20: 0
B21: Complementaria 2 | J21: 0 | O21: 0 | Q21: 0 | W21: =Q21 -> 0 | X21: =IF($R$21>X5,$W$21,0) -> 0 | Y21: 0 | Z21: 0 | AA21: 0 | AB21: 0 | AC21: 0 | AD21: 0 | AE21: 0
B22: Junio | J22: 0 | O22: 0 | Q22: 0 | X22: =Q22 -> 0 | Y22: =IF($R$22>Y5,$X$22,0) -> 0 | Z22: 0 | AA22: 0 | AB22: 0 | AC22: 0 | AD22: 0 | AE22: 0
B23: Complementaria 1 | J23: 0 | O23: 0 | Q23: 0 | X23: =Q23 -> 0 | Y23: =IF($R$23>Y5,$X$23,0) -> 0 | Z23: 0 | AA23: 0 | AB23: 0 | AC23: 0 | AD23: 0 | AE23: 0
B24: Complementaria 2 | J24: 0 | O24: 0 | Q24: 0 | X24: =Q24 -> 0 | Y24: =IF($R$24>Y5,$X$24,0) -> 0 | Z24: 0 | AA24: 0 | AB24: 0 | AC24: 0 | AD24: 0 | AE24: 0
B25: Julio | J25: 0 | O25: 0 | Q25: 0 | Y25: =Q25 -> 0 | Z25: =IF($R$25>Z5,$Y$25,0) -> 0 | AA25: =IF($R$25>AA5,$Y$25,0) -> 0 | AB25: =IF($R$25>AB5,$Y$25,0) -> 0 | AC25: =IF($R$25>AC5,$Y$25,0) -> 0 | AD25: =IF($R$25>AD5,$Y$25,0) -> 0 | AE25: 0
B26: Complementaria 1 | J26: 0 | O26: 0 | Q26: 0 | Y26: =Q26 -> 0 | Z26: =IF($R$26>Z5,$Y$26,0) -> 0 | AA26: =IF($R$26>AA5,$Y$26,0) -> 0 | AB26: =IF($R$26>AB5,$Y$26,0) -> 0 | AC26: =IF($R$26>AC5,$Y$26,0) -> 0 | AD26: =IF($R$26>AD5,$Y$26,0) -> 0 | AE26: 0
B27: Complementaria 2 | J27: 0 | O27: 0 | Q27: 0 | Y27: =Q27 -> 0 | Z27: =IF($R$27>Z5,$Y$27,0) -> 0 | AA27: =IF($R$27>AA5,$Y$27,0) -> 0 | AB27: =IF($R$27>AB5,$Y$27,0) -> 0 | AC27: =IF($R$27>AC5,$Y$27,0) -> 0 | AD27: =IF($R$27>AD5,$Y$27,0) -> 0 | AE27: 0
B28: Agosto | J28: 0 | O28: 0 | Q28: 0 | Z28: =Q28 -> 0 | AA28: =IF($R$28>AA5,$Z$28,0) -> 0 | AB28: =IF($R$28>AB5,$Z$28,0) -> 0 | AC28: =IF($R$28>AC5,$Z$28,0) -> 0 | AD28: =IF($R$28>AD5,$Z$28,0) -> 0 | AE28: 0
B29: Complementaria 1 | J29: 0 | O29: 0 | Q29: 0 | Z29: =Q29 -> 0 | AA29: =IF($R$29>AA5,$Z$29,0) -> 0 | AB29: =IF($R$29>AB5,$Z$29,0) -> 0 | AC29: =IF($R$29>AC5,$Z$29,0) -> 0 | AD29: =IF($R$29>AD5,$Z$29,0) -> 0 | AE29: 0
B30: Complementaria 2 | J30: 0 | O30: 0 | Q30: 0 | Z30: =Q30 -> 0 | AA30: =IF($R$30>AA5,$Z$30,0) -> 0 | AB30: =IF($R$30>AB5,$Z$30,0) -> 0 | AC30: =IF($R$30>AC5,$Z$30,0) -> 0 | AD30: =IF($R$30>AD5,$Z$30,0) -> 0 | AE30: 0
B31: Septiembre | J31: 0 | O31: 0 | Q31: 0 | AA31: =Q31 -> 0 | AB31: =IF($R$31>AB5,$AA$31,0) -> 0 | AC31: =IF($R$31>AC5,$AA$31,0) -> 0 | AD31: =IF($R$31>AD5,$AA$31,0) -> 0 | AE31: 0
B32: Complementaria 1 | J32: 0 | O32: 0 | Q32: =J32+K32+L32+O32+P32 -> 0 | AA32: =Q32 -> 0 | AB32: =IF($R$32>AB5,$AA$32,0) -> 0 | AC32: =IF($R$32>AC5,$AA$32,0) -> 0 | AD32: =IF($R$32>AD5,$AA$32,0) -> 0 | AE32: 0
B33: Complementaria 2 | J33: 0 | O33: 0 | Q33: 0 | AA33: =Q33 -> 0 | AB33: =IF($R$33>AB5,$AA$33,0) -> 0 | AC33: =IF($R$33>AC5,$AA$33,0) -> 0 | AD33: =IF($R$33>AD5,$AA$33,0) -> 0 | AE33: 0
B34: Octubre | J34: 0 | O34: 0 | Q34: 0 | AB34: =Q34 -> 0 | AC34: =IF($R$34>AC5,$AB$34,0) -> 0 | AD34: =IF($R$34>AD5,$AB$34,0) -> 0 | AE34: 0
B35: Complementaria 1 | J35: 0 | O35: 0 | Q35: 0 | AB35: =Q35 -> 0 | AC35: =IF($R$35>AC5,$AB$35,0) -> 0 | AD35: =IF($R$35>AD5,$AB$35,0) -> 0 | AE35: 0
B36: Complementaria 2 | J36: 0 | O36: 0 | Q36: 0 | AB36: =Q36 -> 0 | AC36: =IF($R$36>AC5,$AB$36,0) -> 0 | AD36: =IF($R$36>AD5,$AB$36,0) -> 0 | AE36: 0
B37: Noviembre | J37: 0 | O37: 0 | Q37: 0 | AC37: =Q37 -> 0 | AD37: =IF($R$37>AD5,$AC$37,0) -> 0 | AE37: 0
B38: Complementaria 1 | J38: 0 | O38: 0 | Q38: 0 | AC38: =Q38 -> 0 | AD38: =IF($R$38>AD5,$AC$38,0) -> 0 | AE38: 0
B39: Complementaria 2 | J39: 0 | O39: 0 | Q39: 0 | AC39: =Q39 -> 0 | AD39: =IF($R$39>AD5,$AC$39,0) -> 0 | AE39: 0
B40: Diciembre | J40: 0 | O40: 0 | Q40: =J40+K40+L40+O40+P40 -> 0 | AD40: =Q40 -> 0 | AE40: 0
B41: Complementaria 1 | J41: 0 | O41: 0 | Q41: 0 | AD41: =Q41 -> 0 | AE41: 0
B42: Complementaria 2 | J42: 0 | O42: 0 | Q42: 0 | AD42: =Q42 -> 0 | AE42: 0
B44: Totales | C44: =SUM(C7:C43) -> 0 | D44: 0 | E44: 0 | F44: 0 | G44: 0 | H44: 0 | I44: 0 | J44: 0 | K44: 0 | L44: 0 | M44: 0 | N44: 0 | O44: 0 | P44: 0 | Q44: 0 | S44: 0 | T44: 0 | U44: 0 | V44: 0 | W44: 0 | X44: 0 | Y44: 0 | Z44: 0 | AA44: 0 | AB44: 0 | AC44: 0 | AD44: 0 | AE44: 0

Sheet Otros Imp. por Pagar (hidden)
B1: =Empresa!$D$8 -> EMPRESA EJEMPLO | L1: =Empresa!$D$8 -> EMPRESA EJEMPLO | AB1: =L1 -> EMPRESA EJEMPLO
B2: Otros Impuestos | L2: Promedio de Otros Impuestos para el Ajuste Anual por Inflación | AB2: Notas o Comentarios
B3: ="Ejercicio "&Empresa!$D$13 -> Ejercicio 2024 | L3: Ejercicio 2014
B5: Mes | C5: ISR Salarios | D5: ISR Asimilados a Salarios | E5: ISR Honorarios | F5: ISR Arrendamiento | G5: IVA Propio | H5: IVA Retenido | I5: 2% Sobre Nominas | J5: Otro | K5: Otro | L5: Total pagado | M5: Mes de pago | N5: =VALUE("31-1-"&Empresa!$D$13) -> 2024-01-31 | O5: =VALUE("28-2-"&Empresa!$D$13) -> 2024-02-28 | P5: =VALUE("31-3-"&Empresa!$D$13) -> 2024-03-31 | Q5: =VALUE("30-4-"&Empresa!$D$13) -> 2024-04-30 | R5: =VALUE("31-5-"&Empresa!$D$13) -> 2024-05-31 | S5: =VALUE("30-6-"&Empresa!$D$13) -> 2024-06-30 | T5: =VALUE("31-7-"&Empresa!$D$13) -> 2024-07-31 | U5: =VALUE("31-8-"&Empresa!$D$13) -> 2024-08-31 | V5: =VALUE("30-9-"&Empresa!$D$13) -> 2024-09-30 | W5: =VALUE("31-10-"&Empresa!$D$13) -> 2024-10-31 | X5: =VALUE("30-11-"&Empresa!$D$13) -> 2024-11-30 | Y5: =VALUE("31-12-"&Empresa!$D$13) -> 2024-12-31 | Z5: Promedio
B7: Enero | L7: =SUM(C7:K7) -> 0 | N7: =L7 -> 0 | O7: =IF($M$7>O5,$N$7,0) -> 0 | P7: 0 | Q7: 0 | R7: 0 | S7: 0 | T7: 0 | U7: 0 | V7: 0 | W7: 0 | X7: 0 | Y7: 0 | Z7: =SUM(N7:Y7)/12 -> 0
B8: Enero | L8: =SUM(C8:K8) -> 0 | N8: =L8 -> 0 | O8: =IF($M$8>O5,$N$8,0) -> 0 | P8: 0 | Q8: 0 | R8: 0 | S8: 0 | T8: 0 | U8: 0 | V8: 0 | W8: 0 | X8: 0 | Y8: 0 | Z8: =SUM(N8:Y8)/12 -> 0
B9: Enero | L9: 0 | N9: =L9 -> 0 | O9: =IF($M$9>O5,$N$9,0) -> 0 | P9: 0 | Q9: 0 | R9: 0 | S9: 0 | T9: 0 | U9: 0 | V9: 0 | W9: 0 | X9: 0 | Y9: 0 | Z9: 0
B10: Enero | L10: 0 | N10: =L10 -> 0 | O10: =IF($M$10>O5,$N$10,0) -> 0 | P10: =IF($M$10>P5,$N$10,0) -> 0 | Q10: 0 | R10: 0 | S10: 0 | T10: 0 | U10: 0 | V10: 0 | W10: 0 | X10: 0 | Y10: 0 | Z10: 0
B11: Febrero | L11: 0 | O11: =L11 -> 0 | P11: =IF($M$11>P5,$O$11,0) -> 0 | Q11: 0 | R11: 0 | S11: 0 | T11: 0 | U11: 0 | V11: 0 | W11: 0 | X11: 0 | Y11: 0 | Z11: 0
B12: Febrero | L12: 0 | O12: =L12 -> 0 | P12: =IF($M$12>P5,$O$12,0) -> 0 | Q12: 0 | R12: 0 | S12: 0 | T12: 0 | U12: 0 | V12: 0 | W12: 0 | X12: 0 | Y12: 0 | Z12: 0
B13: Febrero | L13: 0 | O13: =L13 -> 0 | P13: =IF($M$13>P5,$O$13,0) -> 0 | Q13: 0 | R13: 0 | S13: 0 | T13: 0 | U13: 0 | V13: 0 | W13: 0 | X13: 0 | Y13: 0 | Z13: 0
B14: Febrero | L14: 0 | O14: =L14 -> 0 | P14: =IF($M$14>P5,$O$14,0) -> 0 | Q14: =IF($M$14>Q5,$O$14,0) -> 0 | R14: 0 | S14: 0 | T14: 0 | U14: 0 | V14: 0 | W14: 0 | X14: 0 | Y14: 0 | Z14: 0
B15: Marzo | L15: 0 | P15: =L15 -> 0 | Q15: =IF($M$15>Q5,$P$15,0) -> 0 | R15: =IF($M$15>R5,#REF!,0) -> 0 | S15: =IF($M$15>S5,#REF!,0) -> 0 | T15: =IF($M$15>T5,#REF!,0) -> 0 | U15: =IF($M$15>U5,#REF!,0) -> 0 | V15: =IF($M$15>V5,#REF!,0) -> 0 | W15: =IF($M$15>W5,#REF!,0) -> 0 | X15: =IF($M$15>X5,#REF!,0) -> 0 | Y15: =IF($M$15>Y5,#REF!,0) -> 0 | Z15: 0
B16: Marzo | L16: 0 | P16: =L16 -> 0 | Q16: =IF($M$16>Q5,$P$16,0) -> 0 | R16: 0 | S16: 0 | T16: 0 | U16: 0 | V16: 0 | W16: 0 | X16: 0 | Y16: 0 | Z16: 0
B17: Marzo | L17: 0 | P17: =L17 -> 0 | Q17: =IF($M$17>Q5,$P$17,0) -> 0 | R17: 0 | S17: 0 | T17: 0 | U17: 0 | V17: 0 | W17: 0 | X17: 0 | Y17: 0 | Z17: 0
B18: Marzo | L18: 0 | P18: =L18 -> 0 | Q18: =IF($M$18>Q5,$P$18,0) -> 0 | R18: =IF($M$18>R5,$P$18,0) -> 0 | S18: 0 | T18: 0 | U18: 0 | V18: 0 | W18: 0 | X18: 0 | Y18: 0 | Z18: 0
B19: Abril | L19: 0 | Q19: =L19 -> 0 | R19: =IF($M$19>R5,$Q$19,0) -> 0 | S19: 0 | T19: 0 | U19: 0 | V19: 0 | W19: 0 | X19: 0 | Y19: 0 | Z19: 0
B20: Abril | L20: 0 | Q20: =L20 -> 0 | R20: =IF($M$20>R5,$Q$20,0) -> 0 | S20: 0 | T20: 0 | U20: 0 | V20: 0 | W20: 0 | X20: 0 | Y20: 0 | Z20: 0
B21: Abril | L21: 0 | Q21: =L21 -> 0 | R21: =IF($M$21>R5,$Q$21,0) -> 0 | S21: 0 | T21: 0 | U21: 0 | V21: 0 | W21: 0 | X21: 0 | Y21: 0 | Z21: 0
B22: Abril | L22: 0 | Q22: =L22 -> 0 | R22: =IF($M$22>R5,$Q$22,0) -> 0 | S22: =IF($M$22>S5,$Q$22,0) -> 0 | T22: 0 | U22: 0 | V22: 0 | W22: 0 | X22: 0 | Y22: 0 | Z22: 0
B23: Mayo | L23: 0 | R23: =L23 -> 0 | S23: =IF($M$23>S5,$R$23,0) -> 0 | T23: 0 | U23: 0 | V23: 0 | W23: 0 | X23: 0 | Y23: 0 | Z23: 0
B24: Mayo | L24: 0 | R24: =L24 -> 0 | S24: =IF($M$24>S5,$R$24,0) -> 0 | T24: 0 | U24: 0 | V24: 0 | W24: 0 | X24: 0 | Y24: 0 | Z24: 0
B25: Mayo | L25: 0 | R25: =L25 -> 0 | S25: =IF($M$25>S5,$R$25,0) -> 0 | T25: 0 | U25: 0 | V25: 0 | W25: 0 | X25: 0 | Y25: 0 | Z25: 0
B26: Mayo | L26: 0 | R26: =L26 -> 0 | S26: =IF($M$26>S7,$R$26,0) -> 0 | T26: =IF($M$26>T7,$R$26,0) -> 0 | U26: 0 | V26: 0 | W26: 0 | X26: 0 | Y26: 0 | Z26: 0
B27: Junio | L27: 0 | S27: =L27 -> 0 | T27: =IF($M$27>T5,$S$27,0) -> 0 | U27: 0 | V27: 0 | W27: 0 | X27: 0 | Y27: 0 | Z27: 0
B28: Junio | L28: 0 | S28: =L28 -> 0 | T28: =IF($M$28>T5,$S$28,0) -> 0 | U28: 0 | V28: 0 | W28: 0 | X28: 0 | Y28: 0 | Z28: 0
B29: Junio | L29: 0 | S29: =L29 -> 0 | T29: =IF($M$29>T5,$S$29,0) -> 0 | U29: 0 | V29: 0 | W29: 0 | X29: 0 | Y29: 0 | Z29: 0
B30: Junio | L30: 0 | S30: =L30 -> 0 | T30: =IF($M$30>T7,$S$30,0) -> 0 | U30: =IF($M$30>U7,$S$30,0) -> 0 | V30: 0 | W30: 0 | X30: 0 | Y30: 0 | Z30: 0
B31: Julio | L31: 0 | T31: =L31 -> 0 | U31: =IF($M$31>U5,$T$31,0) -> 0 | V31: =IF($M$31>V5,$T$31,0) -> 0 | W31: =IF($M$31>W5,$T$31,0) -> 0 | X31: =IF($M$31>X5,$T$31,0) -> 0 | Y31: =IF($M$31>Y5,$T$31,0) -> 0 | Z31: 0
B32: Julio | L32: 0 | T32: =L32 -> 0 | U32: =IF($M$32>U5,$T$32,0) -> 0 | V32: =IF($M$32>V5,$T$32,0) -> 0 | W32: =IF($M$32>W5,$T$32,0) -> 0 | X32: =IF($M$32>X5,$T$32,0) -> 0 | Y32: =IF($M$32>Y5,$T$32,0) -> 0 | Z32: 0
B33: Julio | L33: 0 | T33: =L33 -> 0 | U33: =IF($M$33>U5,$T$33,0) -> 0 | V33: =IF($M$33>V5,$T$33,0) -> 0 | W33: =IF($M$33>W5,$T$33,0) -> 0 | X33: =IF($M$33>X5,$T$33,0) -> 0 | Y33: =IF($M$33>Y5,$T$33,0) -> 0 | Z33: 0
B34: Julio | L34: 0 | T34: =L34 -> 0 | U34: =IF($M$34>U7,$T$34,0) -> 0 | V34: =IF($M$34>V7,$T$34,0) -> 0 | W34: 0 | X34: 0 | Y34: 0 | Z34: 0
B35: Agosto | L35: 0 | U35: =L35 -> 0 | V35: =IF($M$35>V5,$U$35,0) -> 0 | W35: =IF($M$35>W5,$U$35,0) -> 0 | X35: =IF($M$35>X5,$U$35,0) -> 0 | Y35: =IF($M$35>Y5,$U$35,0) -> 0 | Z35: 0
B36: Agosto | L36: 0 | U36: =L36 -> 0 | V36: =IF($M$36>V5,$U$36,0) -> 0 | W36: =IF($M$36>W5,$U$36,0) -> 0 | X36: =IF($M$36>X5,$U$36,0) -> 0 | Y36: =IF($M$36>Y5,$U$36,0) -> 0 | Z36: 0
B37: Agosto | L37: 0 | U37: =L37 -> 0 | V37: =IF($M$37>V5,$U$37,0) -> 0 | W37: =IF($M$37>W5,$U$37,0) -> 0 | X37: =IF($M$37>X5,$U$37,0) -> 0 | Y37: =IF($M$37>Y5,$U$37,0) -> 0 | Z37: 0
B38: Agosto | L38: 0 | U38: =L38 -> 0 | V38: =IF($M$38>V7,$U$38,0) -> 0 | W38: =IF($M$38>W7,$U$38,0) -> 0 | X38: 0 | Y38: 0 | Z38: 0
B39: Septiembre | L39: 0 | V39: =L39 -> 0 | W39: =IF($M$39>W5,$V$39,0) -> 0 | X39: =IF($M$39>X5,$V$39,0) -> 0 | Y39: =IF($M$39>Y5,$V$39,0) -> 0 | Z39: 0
B40: Septiembre | L40: 0 | V40: =L40 -> 0 | W40: =IF($M$40>W5,$V$40,0) -> 0 | X40: =IF($M$40>X5,$V$40,0) -> 0 | Y40: =IF($M$40>Y5,$V$40,0) -> 0 | Z40: 0
B41: Septiembre | L41: 0 | V41: =L41 -> 0 | W41: =IF($M$41>W5,$V$41,0) -> 0 | X41: =IF($M$41>X5,$V$41,0) -> 0 | Y41: =IF($M$41>Y5,$V$41,0) -> 0 | Z41: 0
B42: Septiembre | L42: 0 | V42: =L42 -> 0 | W42: =IF($M$42>W7,$V$42,0) -> 0 | X42: =IF($M$42>X7,$V$42,0) -> 0 | Y42: 0 | Z42: 0
B43: Octubre | L43: 0 | W43: =L43 -> 0 | X43: =IF($M$43>X5,$W$43,0) -> 0 | Y43: =IF($M$43>Y5,$W$43,0) -> 0 | Z43: 0
B44: Octubre | L44: 0 | W44: =L44 -> 0 | X44: =IF($M$44>X5,$W$44,0) -> 0 | Y44: =IF($M$44>Y5,$W$44,0) -> 0 | Z44: 0
B45: Octubre | L45: 0 | W45: =L45 -> 0 | X45: =IF($M$45>X5,$W$45,0) -> 0 | Y45: =IF($M$45>Y5,$W$45,0) -> 0 | Z45: 0
B46: Octubre | L46: 0 | W46: =L46 -> 0 | X46: =IF($M$46>X7,$W$46,0) -> 0 | Y46: =IF($M$46>Y7,$W$46,0) -> 0 | Z46: 0
B47: Noviembre | L47: 0 | X47: =L47 -> 0 | Y47: =IF($M$47>Y5,$X$47,0) -> 0 | Z47: 0
B48: Noviembre | L48: 0 | X48: =L48 -> 0 | Y48: =IF($M$48>Y5,$X$48,0) -> 0 | Z48: 0
B49: Noviembre | L49: 0 | X49: =L49 -> 0 | Y49: =IF($M$49>Y5,$X$49,0) -> 0 | Z49: 0
B50: Noviembre | L50: 0 | X50: =L50 -> 0 | Y50: =IF($M$50>Y7,$X$50,0) -> 0 | Z50: 0
B51: Diciembre | L51: 0 | Y51: =L51 -> 0 | Z51: 0
B52: Diciembre | L52: 0 | Y52: =L52 -> 0 | Z52: 0
B53: Diciembre | L53: 0 | Y53: =L53 -> 0 | Z53: 0
B54: Diciembre | L54: 0 | Y54: =L54 -> 0 | Z54: 0
B55: Ejercicios Anteriores | N55: =IF($M$55="",$L$55,IF($M$55>N$5,$L$55,0)) -> 0 | O55: =IF($M$55="",$L$55,IF($M$55>O$5,$L$55,0)) -> 0 | P55: 0 | Q55: 0 | R55: 0 | S55: 0 | T55: 0 | U55: 0 | V55: 0 | W55: 0 | X55: 0 | Y55: 0 | Z55: 0
B56: Ejercicios Anteriores | N56: =IF($M$56="",$L$56,IF($M$56>N$5,$L$56,0)) -> 0 | O56: =IF($M$56="",$L$56,IF($M$56>O$5,$L$56,0)) -> 0 | P56: 0 | Q56: 0 | R56: 0 | S56: 0 | T56: 0 | U56: 0 | V56: 0 | W56: 0 | X56: 0 | Y56: 0 | Z56: 0
B57: Ejercicios Anteriores | N57: =IF($M$57="",$L$57,IF($M$57>N$5,$L$57,0)) -> 0 | O57: =IF($M$57="",$L$57,IF($M$57>O$5,$L$57,0)) -> 0 | P57: 0 | Q57: 0 | R57: 0 | S57: 0 | T57: 0 | U57: 0 | V57: 0 | W57: 0 | X57: 0 | Y57: 0 | Z57: 0
B58: Ejercicios Anteriores | N58: =IF($M$58="",$L$58,IF($M$58>N$5,$L$58,0)) -> 0 | O58: =IF($M$58="",$L$58,IF($M$58>O$5,$L$58,0)) -> 0 | P58: 0 | Q58: 0 | R58: 0 | S58: 0 | T58: 0 | U58: 0 | V58: 0 | W58: 0 | X58: 0 | Y58: 0 | Z58: 0
B59: Ejercicios Anteriores | N59: =IF($M$59="",$L$59,IF($M$59>N$5,$L$59,0)) -> 0 | O59: =IF($M$59="",$L$59,IF($M$59>O$5,$L$59,0)) -> 0 | P59: 0 | Q59: 0 | R59: 0 | S59: 0 | T59: 0 | U59: 0 | V59: 0 | W59: 0 | X59: 0 | Y59: 0 | Z59: 0
B61: Totales | C61: =SUM(C7:C60) -> 0 | D61: 0 | E61: 0 | F61: 0 | G61: 0 | H61: 0 | I61: 0 | J61: 0 | K61: 0 | L61: =SUM(L7:L60) -> 0 | N61: =SUM(N7:N60) -> 0 | O61: 0 | P61: 0 | Q61: 0 | R61: 0 | S61: 0 | T61: 0 | U61: 0 | V61: 0 | W61: 0 | X61: 0 | Y61: 0 | Z61: 0

Sheet Ajuste Inflación (hidden)
B1: =Empresa!$D$8 -> EMPRESA EJEMPLO | H1: =B1 -> EMPRESA EJEMPLO
B2: Ajuste Anual Por Inflación | H2: Notas o Comentarios
B3: ="Ejercicio "&Empresa!$D$13 -> Ejercicio 2024
B5: Promedio de Créditos | E5: Promedio de Deudas
B6: Descripción | E6: Descripción | F6: Importe
B7: Bancos (M.N.) | E7: Proveedores (M.N.)
B8: Clientes (M.N.) | E8: Acreedores Div. (M.N.)
B9: Deudores Div. (M.N.) | E9: Doctos. Por Pagar (M.N.)
B10: Impuestos a Favor | E10: Impuestos por Pagar
B11: Otros Créditos (M.N.) | E11: Otras Deudas (M.N.)
B13: Promedio de Créditos (Balanza de Comprobación) | C13: =SUM(C7:C12) -> 0 | E13: Promedio de Deudas (Balanza de Comprobación) | F13: =SUM(F7:F12) -> 0
B15: Créditos en Moneda Extranjera | E15: Deudas en Moneda Extranjera
B16: Otros Impuestos a Favor | C16: 0 | E16: Promedio de IMSS - Infonavit
E17: Otros Impuestos por pagar
B18: Otros Créditos:
E19: Otras Deudas:
B26: Promedio de Créditos | C26: =SUM(C13:C25) -> 0 | E26: Promedio de Deudas | F26: =SUM(F13:F25) -> 0
B29: Diferencia de Promedios | C29: =C26-F26 -> 0
B30: Factor de Ajuste | C30: =TRUNC(VLOOKUP(Empresa!$D$13,INPC,13)/VLOOKUP(Empresa!$D$13-1,INPC,13),4)-1 -> 0.0457
B31: Ajuste por Inflación Acumulable | C31: =ROUND(ABS(IF(C29>0,0,C29*C30)),0) -> 0
B32: Ajuste por Inflación Deducible | C32: =ROUND(ABS(IF(C29<0,0,C29*C30)),0) -> 0

Sheet Pagos Anticipados (hidden)
B1: =Empresa!$D$8 -> EMPRESA EJEMPLO | H1: =B1 -> EMPRESA EJEMPLO
B2: Análisis de Pagos Anticipados | H2: Notas o Comentarios
B3: ="Ejercicio "&Empresa!$D$13 -> Ejercicio 2024
B5: Cuenta | C5: Saldo Inicial | D5: Adquisiciones | E5: Amortizaciones | F5: Saldo Final
C7: =IF($B7="",0,SUMIF(CUENTA_NOMBRE,$B7,SALDOS_INICIALES)) -> 0 | D7: =F7-C7+E7 -> 0 | F7: =IF(B7="",0,SUMIF(CUENTA_NOMBRE,$B7,SALDOS_FINALES)) -> 0
C8: 0 | D8: 0 | F8: 0
C9: 0 | D9: 0 | F9: 0
C10: 0 | D10: 0 | F10: 0
C11: 0 | D11: 0 | F11: 0
C12: 0 | D12: 0 | F12: 0
C13: 0 | D13: =F13-C13+E13 -> 0 | F13: =IF(B13="",0,SUMIF(CUENTA_NOMBRE,$B13,SALDOS_FINALES)) -> 0
C14: 0 | D14: 0 | F14: 0
C15: 0 | D15: 0 | F15: 0
C16: 0 | D16: 0 | F16: 0
B19: Total Determinado en Balanzas | C19: =SUM(C6:C17) -> 0 | D19: =SUM(D6:D17) -> 0 | E19: =SUM(E6:E17) -> 0 | F19: =SUM(F6:F17) -> 0
B24: Otros Pagos Anticipados | C24: Saldo Inicial | D24: Adquisiciones | E24: Amortizaciones | F24: Saldo Final
B37: Total de Otros Pagos Anticipados | C37: =SUM(C25:C28) -> 0 | D37: =SUM(D25:D28) -> 0 | E37: =SUM(E25:E28) -> 0 | F37: =SUM(F25:F28) -> 0
B39: Total de Pagos Anticipados | C39: =C19+C37 -> 0 | D39: =D19+D37 -> 0 | E39: =E19+E37 -> 0 | F39: =F19+F37 -> 0
B41: Clasificado en Balanzas | C41: =SUMIF(CL_OTROS_D_FISC,'Clasificaciones de Balanza'!H7,SALDOS_INICIALES) -> 0 | F41: =SUMIF(CL_OTROS_D_FISC,'Clasificaciones de Balanza'!H7,SALDOS_FINALES) -> 0
B42: Diferencia | C42: =C19-C41 -> 0 | F42: =F19-F41 -> 0

Sheet Provisiones de Pasivos (hidden)
B1: =Empresa!$D$8 -> EMPRESA EJEMPLO | H1: =B1 -> EMPRESA EJEMPLO
B2: Provisiones de Pasivos | H2: Notas o Comentarios
B3: ="Ejercicio "&Empresa!$D$13 -> Ejercicio 2024
B5: Concepto | C5: Saldo Inicial | D5: Pago de Provisiones de Pasivos Deducibles | E5: Provisiones | F5: Saldo Final
C7: =IF($B7="",0,SUMIF(CUENTA_NOMBRE,$B7,SALDOS_INICIALES)) -> 0 | D7: =F7-C7+E7 -> 0 | F7: =IF(B7="",0,SUMIF(CUENTA_NOMBRE,$B7,SALDOS_FINALES)) -> 0
C8: 0 | D8: 0 | F8: 0
C9: 0 | D9: 0 | F9: 0
C10: 0 | D10: 0 | F10: 0
C11: 0 | D11: 0 | F11: 0
C12: 0 | D12: =F12-C12+E12 -> 0 | F12: =IF(B12="",0,SUMIF(CUENTA_NOMBRE,$B12,SALDOS_FINALES)) -> 0
C13: 0 | D13: 0 | F13: 0
C14: 0 | D14: 0 | F14: 0
C15: 0 | D15: 0 | F15: 0
C16: 0 | D16: 0 | F16: 0
C17: 0 | D17: 0 | F17: 0
B20: Total Determinado en Balanzas | C20: =ABS(SUM(C6:C18)) -> 0 | D20: =ABS(SUM(D6:D18)) -> 0 | E20: =ABS(SUM(E6:E18)) -> 0 | F20: =ABS(SUM(F6:F18)) -> 0
B25: Otras Provisiones de Pasivos | C25: Saldo Inicial | D25: Pago de Provisiones de Pasivos Deducibles | E25: Provisiones | F25: Saldo Final
B37: Total de Otras Provisiones de Pasivos | C37: =ABS(SUM(C27:C36)) -> 0 | D37: =ABS(SUM(D27:D36)) -> 0 | E37: =ABS(SUM(E27:E36)) -> 0 | F37: =ABS(SUM(F27:F36)) -> 0
B39: Total de Provisiones de Pasivos | C39: =C37+C20 -> 0 | D39: =D37+D20 -> 0 | E39: =E37+E20 -> 0 | F39: =F37+F20 -> 0
B41: Clasificado en Balanzas | C41: =SUMIF(CL_OTROS_D_FISC,'Clasificaciones de Balanza'!H8,SALDOS_INICIALES) -> 0 | F41: =SUMIF(CL_OTROS_D_FISC,'Clasificaciones de Balanza'!H8,SALDOS_FINALES) -> 0
B42: Diferencia | C42: =C19-C41 -> 0 | F42: =F19-F41 -> 0

Sheet Pasivos N.D. (hidden)
B1: =Empresa!$D$8 -> EMPRESA EJEMPLO | K1: =B1 -> EMPRESA EJEMPLO
B2: Pasivos No Deducibles a Personas Físicas, Sociedades y Asociaciones Civiles, | K2: Notas o Comentarios
B3: de Suministro de Agua, de Recolección de Basura y Donativos (Art. 27 Fracc. VIII LISR)
B4: ="Ejercicio "&Empresa!$D$13 -> Ejercicio 2024
B6: Cuenta | C6: Tipo de Pasivo de acuerdo al IVA (en Frontera para 2013 y anteriores) | D6: Saldo Inicial | E6: Tasa de Desglose de IVA | F6: Saldo Desglosado al Inicio del Ejercicio | G6: Saldo Final | H6: Tasa de Desglose de IVA | I6: Saldo Desglosado al Final del Ejercicio
D8: =IF($B8="",0,SUMIF(CUENTA_NOMBRE,$B8,SALDOS_INICIALES)) -> 0 | E8: =SUMIF(TASA_DESGLOSE_PASIVOS,C8,DESGLOSE_PASIVOS) -> 0 | F8: =D8/(1+E8) -> 0 | G8: =IF(B8="",0,SUMIF(CUENTA_NOMBRE,$B8,SALDOS_FINALES)) -> 0 | H8: =SUMIF(TASA_DESGLOSE_PASIVOS,C8,DESGLOSE_PASIVOS) -> 0 | I8: =G8/(1+H8) -> 0
D9: 0 | E9: 0 | F9: 0 | G9: 0 | H9: 0 | I9: 0
D10: 0 | E10: 0 | F10: 0 | G10: 0 | H10: 0 | I10: 0
D11: 0 | E11: 0 | F11: 0 | G11: 0 | H11: 0 | I11: 0
D12: 0 | E12: 0 | F12: 0 | G12: 0 | H12: 0 | I12: 0
D13: 0 | E13: =SUMIF(TASA_DESGLOSE_PASIVOS,C13,DESGLOSE_PASIVOS) -> 0 | F13: =D13/(1+E13) -> 0 | G13: =IF(B13="",0,SUMIF(CUENTA_NOMBRE,$B13,SALDOS_FINALES)) -> 0 | H13: =SUMIF(TASA_DESGLOSE_PASIVOS,C13,DESGLOSE_PASIVOS) -> 0 | I13: =G13/(1+H13) -> 0
D14: 0 | E14: 0 | F14: 0 | G14: 0 | H14: 0 | I14: 0
D15: 0 | E15: 0 | F15: 0 | G15: 0 | H15: 0 | I15: 0
D16: 0 | E16: 0 | F16: 0 | G16: 0 | H16: 0 | I16: 0
D17: 0 | E17: 0 | F17: 0 | G17: 0 | H17: 0 | I17: 0
B20: Pasivos No Deducibles de la Balanza | D20: =ABS(SUM(D7:D12)) -> 0 | F20: =ABS(SUM(F7:F12)) -> 0 | G20: =ABS(SUM(G7:G12)) -> 0 | I20: =ABS(SUM(I7:I12)) -> 0
B25: Otros Pasivos No Deducibles | C25: Tipo de Pasivo de acuerdo al IVA (en Frontera para 2013 y anteriores) | D25: Saldo Inicial | E25: Tasa de Desglose de IVA | F25: Saldo Desglosado al Inicio del Ejercicio | G25: Saldo Final | H25: Tasa de Desglose de IVA | I25: Saldo Desglosado al Final del Ejercicio
B28: fletes no pagados | I28: 17000
B29: servicios contables no pagados | I29: 10000
B37: Otros Pasivos No Deducibles | D37: =ABS(SUM(D26:D36)) -> 0 | F37: =ABS(SUM(F26:F36)) -> 0 | G37: =ABS(SUM(G26:G36)) -> 0 | I37: =ABS(SUM(I26:I36)) -> 27000
B39: Total de Pasivos No deducibles | D39: =D20+D37 -> 0 | F39: =F20+F37 -> 0 | G39: =G20+G37 -> 0 | I39: =I20+I37 -> 27000
B41: Clasificado en Balanzas | D41: =SUMIF(CL_OTROS_D_FISC,'Clasificaciones de Balanza'!H9,SALDOS_INICIALES) -> 0 | I41: =SUMIF(CL_OTROS_D_FISC,'Clasificaciones de Balanza'!H9,SALDOS_FINALES) -> 0
B42: Diferencia | D42: =D20-D41 -> 0 | I42: =I20-I41 -> 0

Sheet Salarios Por Pagar (hidden)
B1: =Empresa!$D$8 -> EMPRESA EJEMPLO | H1: =B1 -> EMPRESA EJEMPLO
B2: Salarios Por Pagar | H2: Notas o Comentarios
B3: ="Ejercicio "&Empresa!$D$13 -> Ejercicio 2024
B5: Nominas por Pagar al Cierre del Ejercicio | C5: Percepciones | D5: Deducciones | E5: Neto a Pagar | F5: Fecha de Pago
E8: =C8-D8 -> 0
E9: =C9-D9 -> 0
E10: 0
E11: 0
E12: 0
E13: 0
E14: 0
E15: 0
E16: 0
E17: 0
E18: 0
E19: 0
E20: 0
E21: 0
E22: 0
B24: Total de Nominas por Pagar | C24: =ABS(SUM(C6:C23)) -> 0 | D24: =ABS(SUM(D6:D23)) -> 0 | E24: =ABS(SUM(E6:E23)) -> 0
B28: Nominas por Pagar al Cierre del Ejercicio Anterior | C28: Percepciones | D28: Deducciones | E28: Neto a Pagar | F28: Fecha de Pago
E30: =C30-D30 -> 0
E31: =C31-D31 -> 0
E32: 0
E33: 0
E34: 0
E35: 0
E36: 0
E37: 0
E38: 0
E39: 0
E40: 0
E41: 0
E42: 0
E43: 0
E44: 0
E45: 0
B47: Total de Nominas por Pagar del Ejercicio Anterior | C47: =ABS(SUM(C29:C46)) -> 0 | D47: =ABS(SUM(D29:D46)) -> 0 | E47: =ABS(SUM(E29:E46)) -> 0

Sheet Parte ND de Salarios Ex (hidden)
B1: =Empresa!$D$8 -> EMPRESA EJEMPLO | M1: =B1 -> EMPRESA EJEMPLO
B2: Parte No Deducible de Percepciones Exentas | M2: Notas o Comentarios
B3: ="Ejercicio "&Empresa!$D$13 -> Ejercicio 2024
B5: Salarios y Prestaciones en Gastos de Operación | C5: Diciembre | D5: Cargos | E5: Abonos | F5: Saldo Final | G5: Gravados | H5: Exentos | I5: Diferencia | J5: Exentos Deducibles | K5: Exentos No Deducibles | X5: Enero | Y5: Febrero | Z5: Marzo | AA5: Abril | AB5: Mayo | AC5: Junio | AD5: Julio | AE5: Agosto | AF5: Septiembre | AG5: Octubre | AH5: Noviembre
C7: =IF(B7="",0,SUMIF(CUENTA_NOMBRE,$B7,SALDOS_FINALES)) -> 0 | F7: =C7+D7-E7 -> 0 | I7: =F7-G7-H7 -> 0 | J7: =IF($H$68>=$H$73,$H7*0.53,$H7*0.47) -> 0 | K7: =H7-J7 -> 0 | X7: =IF($B7="",0,SUMIF(CUENTA_NOMBRE,$B7,SALDOS_ENE)) -> 0 | Y7: =IF(B7="",0,SUMIF(CUENTA_NOMBRE,$B7,SALDOS_FEB)) -> 0 | Z7: =IF(B7="",0,SUMIF(CUENTA_NOMBRE,$B7,SALDOS_MAR)) -> 0 | AA7: =IF(B7="",0,SUMIF(CUENTA_NOMBRE,$B7,SALDOS_ABR)) -> 0 | AB7: =IF(B7="",0,SUMIF(CUENTA_NOMBRE,$B7,SALDOS_MAY)) -> 0 | AC7: =IF(B7="",0,SUMIF(CUENTA_NOMBRE,$B7,SALDOS_JUN)) -> 0 | AD7: =IF(B7="",0,SUMIF(CUENTA_NOMBRE,$B7,SALDOS_JUL)) -> 0 | AE7: =IF(B7="",0,SUMIF(CUENTA_NOMBRE,$B7,SALDOS_AGO)) -> 0 | AF7: =IF(B7="",0,SUMIF(CUENTA_NOMBRE,$B7,SALDOS_SEP)) -> 0 | AG7: =IF(B7="",0,SUMIF(CUENTA_NOMBRE,$B7,SALDOS_OCT)) -> 0 | AH7: =IF(B7="",0,SUMIF(CUENTA_NOMBRE,$B7,SALDOS_NOV)) -> 0
C8: 0 | F8: =C8+D8-E8 -> 0 | I8: =F8-G8-H8 -> 0 | J8: =IF(H8=0,0,H8*$J$71) -> 0 | K8: =IF(H8=0,0,H8*$K$71) -> 0 | X8: 0 | Y8: 0 | Z8: 0 | AA8: 0 | AB8: 0 | AC8: 0 | AD8: 0 | AE8: 0 | AF8: 0 | AG8: 0 | AH8: 0
C9: 0 | F9: 0 | I9: 0 | J9: =IF(H9=0,0,H9*$J$71) -> 0 | K9: =IF(H9=0,0,H9*$K$71) -> 0 | X9: 0 | Y9: 0 | Z9: 0 | AA9: 0 | AB9: 0 | AC9: 0 | AD9: 0 | AE9: 0 | AF9: 0 | AG9: 0 | AH9: 0
C10: 0 | F10: 0 | I10: 0 | J10: 0 | K10: 0 | X10: 0 | Y10: 0 | Z10: 0 | AA10: 0 | AB10: 0 | AC10: 0 | AD10: 0 | AE10: 0 | AF10: 0 | AG10: 0 | AH10: 0
C11: 0 | F11: 0 | I11: 0 | J11: 0 | K11: 0 | X11: 0 | Y11: 0 | Z11: 0 | AA11: 0 | AB11: 0 | AC11: 0 | AD11: 0 | AE11: 0 | AF11: 0 | AG11: 0 | AH11: 0
C12: 0 | F12: 0 | I12: 0 | J12: 0 | K12: 0 | X12: 0 | Y12: 0 | Z12: 0 | AA12: 0 | AB12: 0 | AC12: 0 | AD12: 0 | AE12: 0 | AF12: 0 | AG12: 0 | AH12: 0
C13: 0 | F13: 0 | I13: 0 | J13: 0 | K13: 0 | X13: 0 | Y13: 0 | Z13: 0 | AA13: 0 | AB13: 0 | AC13: 0 | AD13: 0 | AE13: 0 | AF13: 0 | AG13: 0 | AH13: 0
C14: 0 | F14: 0 | I14: 0 | J14: 0 | K14: 0 | X14: 0 | Y14: 0 | Z14: 0 | AA14: 0 | AB14: 0 | AC14: 0 | AD14: 0 | AE14: 0 | AF14: 0 | AG14: 0 | AH14: 0
C15: 0 | F15: 0 | I15: 0 | J15: 0 | K15: 0 | X15: 0 | Y15: 0 | Z15: 0 | AA15: 0 | AB15: 0 | AC15: 0 | AD15: 0 | AE15: 0 | AF15: 0 | AG15: 0 | AH15: 0
C16: 0 | F16: 0 | I16: 0 | J16: 0 | K16: 0 | X16: 0 | Y16: 0 | Z16: 0 | AA16: 0 | AB16: 0 | AC16: 0 | AD16: 0 | AE16: 0 | AF16: 0 | AG16: 0 | AH16: 0
C17: =IF(B17="",0,SUMIF(CUENTA_NOMBRE,$B17,SALDOS_FINALES)) -> 0 | F17: =C17+D17-E17 -> 0 | I17: =F17-G17-H17 -> 0 | J17: 0 | K17: 0
B20: Total en Gastos de Operación | C20: =ABS(SUM(C7:C19)) -> 0 | D20: 0 | E20: 0 | F20: 0 | G20: 0 | H20: 0 | I20: 0 | J20: 0 | K20: 0 | X20: =ABS(SUM(X7:X19)) -> 0 | Y20: 0 | Z20: 0 | AA20: 0 | AB20: 0 | AC20: 0 | AD20: 0 | AE20: 0 | AF20: 0 | AG20: 0 | AH20: 0
B22: PTU pagada en el ejercicio | C22: ='PTU Pagada'!O16 -> 98001 | F22: =C22+D22-E22 -> 98001 | I22: =F22-G22-H22 -> 98001 | J22: =IF(H22=0,0,H22*$J$71) -> 0 | K22: =IF(H22=0,0,H22*$K$71) -> 0
B24: Salarios y Prestaciones en Cuentas de Balance
F26: =C26+D26-E26 -> 0 | I26: =F26-G26-H26 -> 0 | J26: =IF(H26=0,0,H26*$J$71) -> 0 | K26: =IF(H26=0,0,H26*$K$71) -> 0
F27: 0 | I27: =F27-G27-H27 -> 0 | J27: 0 | K27: 0
F28: 0 | I28: 0 | J28: 0 | K28: 0
F29: 0 | I29: 0 | J29: 0 | K29: 0
F30: 0 | I30: 0 | J30: 0 | K30: 0
F31: 0 | I31: 0 | J31: 0 | K31: 0
F32: 0 | I32: 0 | J32: 0 | K32: 0
F33: 0 | I33: 0 | J33: 0 | K33: 0
F34: 0 | I34: 0 | J34: 0 | K34: 0
F35: 0 | I35: 0 | J35: 0 | K35: 0
F36: 0 | I36: 0 | J36: 0 | K36: 0
F37: 0 | I37: 0 | J37: 0 | K37: 0
F38: 0 | I38: 0 | J38: 0 | K38: 0
F39: 0 | I39: 0 | J39: 0 | K39: 0
F40: 0 | I40: =F40-G40-H40 -> 0 | J40: 0 | K40: 0
F41: 0 | I41: 0 | J41: 0 | K41: 0
F42: 0 | I42: 0 | J42: 0 | K42: 0
F43: 0 | I43: 0 | J43: 0 | K43: 0
F44: 0 | I44: 0 | J44: 0 | K44: 0
F45: 0 | I45: 0 | J45: 0 | K45: 0
F46: 0 | I46: 0 | J46: 0 | K46: 0
F47: 0 | I47: 0 | J47: 0 | K47: 0
F48: 0 | I48: 0 | J48: 0 | K48: 0
F49: 0 | I49: 0 | J49: 0 | K49: 0
F50: 0 | I50: 0 | J50: 0 | K50: 0
F51: 0 | I51: 0 | J51: 0 | K51: 0
F52: 0 | I52: 0 | J52: 0 | K52: 0
F53: 0 | I53: 0 | J53: 0 | K53: 0
F54: 0 | I54: 0 | J54: 0 | K54: 0
F55: 0 | I55: 0 | J55: 0 | K55: 0
F56: 0 | I56: 0 | J56: 0 | K56: 0
F57: 0 | I57: 0 | J57: 0 | K57: 0
F58: 0 | I58: 0 | J58: 0 | K58: 0
F59: 0 | I59: 0 | J59: 0 | K59: 0
F60: 0 | I60: 0 | J60: 0 | K60: 0
F61: 0 | I61: 0 | J61: 0 | K61: 0
F62: 0 | I62: 0 | J62: 0 | K62: 0
F63: 0 | I63: 0 | J63: 0 | K63: 0
F64: 0 | I64: 0 | J64: 0 | K64: 0
B66: Total en cuentas de balance | C66: =SUM(C24:C65) -> 0 | D66: 0 | E66: 0 | F66: 0 | G66: 0 | H66: 0 | I66: 0 | J66: 0 | K66: 0 | X66: =ABS(SUM(X13:X65)) -> 0 | Y66: 0 | Z66: 0 | AA66: 0 | AB66: 0 | AC66: 0 | AD66: 0 | AE66: 0 | AF66: 0 | AG66: 0 | AH66: 0
B68: Totales | C68: =C20+C22+C66 -> 98001 | D68: 0 | E68: 0 | F68: 98001 | G68: 0 | H68: 0 | I68: 98001 | J68: 0 | K68: 0 | X68: =ABS(SUM(X15:X67)) -> 0 | Y68: 0 | Z68: 0 | AA68: 0 | AB68: 0 | AC68: 0 | AD68: 0 | AE68: 0 | AF68: 0 | AG68: 0 | AH68: 0
B70: Porciento de Percepciones Exentas del Ejerc. en Relación al Total de Percepciones | F70: =IF(F68=0,0,H68/F68) -> 0
B71: Porcentajes de Deducibles y No Deducibles | J71: =IF(F70>=F74,0.53,0.47) -> 0.53 | K71: =IF(F70>=F74,0.47,0.53) -> 0.47
B73: Salarios y Prestaciones Exentas del Ejerc. Anterior | F73: =C73+D73-E73 -> 0 | I73: =F73-G73-H73 -> 0 | X73: =ABS(SUM(X9:X69)) -> 0 | Y73: 0 | Z73: 0 | AA73: 0 | AB73: 0 | AC73: 0 | AD73: 0 | AE73: 0 | AF73: 0 | AG73: 0 | AH73: 0
B74: Porciento de Percepciones Exentas del Ejerc. Ant. en Relación al Total de Percepciones | F74: =IF(H73=0,0,H73/F73) -> 0

Sheet Pérdidas Fiscales
B1: =Empresa!D8 -> EMPRESA EJEMPLO | AG1: =B1 -> EMPRESA EJEMPLO
B2: Pérdidas Fiscales Por Amortizar | AG2: Notas o Comentarios
B3: ="Ejercicio "&Empresa!D13 -> Ejercicio 2024
B5: Ejercicio de la Pérdida | E5: Ejercicio de la Pérdida | H5: Ejercicio de la Pérdida | K5: Ejercicio de la Pérdida | N5: Ejercicio de la Pérdida | Q5: Ejercicio de la Pérdida | T5: Ejercicio de la Pérdida | W5: Ejercicio de la Pérdida | Z5: Ejercicio de la Pérdida | AC5: Ejercicio de la Pérdida
B6: Mes de Inicio del Ejercicio | E6: Mes de Inicio del Ejercicio | H6: Mes de Inicio del Ejercicio | K6: Mes de Inicio del Ejercicio | N6: Mes de Inicio del Ejercicio | Q6: Mes de Inicio del Ejercicio | T6: Mes de Inicio del Ejercicio | W6: Mes de Inicio del Ejercicio | Z6: Mes de Inicio del Ejercicio | AC6: Mes de Inicio del Ejercicio
B7: Mes Final del Ejercicio del Ejercicio | E7: Mes Final del Ejercicio | H7: Mes Final del Ejercicio | K7: Mes Final del Ejercicio | N7: Mes Final del Ejercicio | Q7: Mes Final del Ejercicio | T7: Mes Final del Ejercicio | W7: Mes Final del Ejercicio | Z7: Mes Final del Ejercicio | AC7: Mes Final del Ejercicio
B8: Monto Original de la Pérdida | E8: Monto Original de la Pérdida | H8: Monto Original de la Pérdida | K8: Monto Original de la Pérdida | N8: Monto Original de la Pérdida | Q8: Monto Original de la Pérdida | T8: Monto Original de la Pérdida | W8: Monto Original de la Pérdida | Z8: Monto Original de la Pérdida | AC8: Monto Original de la Pérdida
B10: Actualización Inicial: | E10: Actualización Inicial: | H10: Actualización Inicial: | K10: Actualización Inicial: | N10: Actualización Inicial: | Q10: Actualización Inicial: | T10: Actualización Inicial: | W10: Actualización Inicial: | Z10: Actualización Inicial: | AC10: Actualización Inicial:
B11: INPC Ultimo Mes del Ejercicio | C11: =IF(C5="","",VLOOKUP(C5,INPC,C7+1)) ->  | E11: INPC Ultimo Mes del Ejercicio | F11: =IF(F5="","",VLOOKUP(F5,INPC,F7+1)) ->  | H11: INPC Ultimo Mes del Ejercicio | I11: =IF(I5="","",VLOOKUP(I5,INPC,I7+1)) ->  | K11: INPC Ultimo Mes del Ejercicio | L11: =IF(L5="","",VLOOKUP(L5,INPC,L7+1)) ->  | N11: INPC Ultimo Mes del Ejercicio | O11: =IF(O5="","",VLOOKUP(O5,INPC,O7+1)) ->  | Q11: INPC Ultimo Mes del Ejercicio | R11: =IF(R5="","",VLOOKUP(R5,INPC,R7+1)) ->  | T11: INPC Ultimo Mes del Ejercicio | U11: =IF(U5="","",VLOOKUP(U5,INPC,U7+1)) ->  | W11: INPC Ultimo Mes del Ejercicio | X11: =IF(X5="","",VLOOKUP(X5,INPC,X7+1)) ->  | Z11: INPC Ultimo Mes del Ejercicio | AA11: =IF(AA5="","",VLOOKUP(AA5,INPC,AA7+1)) ->  | AC11: INPC Ultimo Mes del Ejercicio | AD11: =IF(AD5="","",VLOOKUP(AD5,INPC,AD7+1)) -> 
B12: INPC 1er. Mes de la 2a Mitad | C12: =IF(C5="","",VLOOKUP(C5,INPC,C6+ROUND((C7-C6)/2,0)+1)) ->  | E12: INPC 1er. Mes de la 2a Mitad | F12: =IF(F5="","",VLOOKUP(F5,INPC,F6+ROUND((F7-F6)/2,0)+1)) ->  | H12: INPC 1er. Mes de la 2a Mitad | I12: =IF(I5="","",VLOOKUP(I5,INPC,I6+ROUND((I7-I6)/2,0)+1)) ->  | K12: INPC 1er. Mes de la 2a Mitad | L12: =IF(L5="","",VLOOKUP(L5,INPC,L6+ROUND((L7-L6)/2,0)+1)) ->  | N12: INPC 1er. Mes de la 2a Mitad | O12: =IF(O5="","",VLOOKUP(O5,INPC,O6+ROUND((O7-O6)/2,0)+1)) ->  | Q12: INPC 1er. Mes de la 2a Mitad | R12: =IF(R5="","",VLOOKUP(R5,INPC,R6+ROUND((R7-R6)/2,0)+1)) ->  | T12: INPC 1er. Mes de la 2a Mitad | U12: =IF(U5="","",VLOOKUP(U5,INPC,U6+ROUND((U7-U6)/2,0)+1)) ->  | W12: INPC 1er. Mes de la 2a Mitad | X12: =IF(X5="","",VLOOKUP(X5,INPC,X6+ROUND((X7-X6)/2,0)+1)) ->  | Z12: INPC 1er. Mes de la 2a Mitad | AA12: =IF(AA5="","",VLOOKUP(AA5,INPC,AA6+ROUND((AA7-AA6)/2,0)+1)) ->  | AC12: INPC 1er. Mes de la 2a Mitad | AD12: =IF(AD5="","",VLOOKUP(AD5,INPC,AD6+ROUND((AD7-AD6)/2,0)+1)) -> 
B13: Factor | C13: =IF(C5="","",TRUNC(C11/C12,4)) ->  | E13: Factor | F13: =IF(F5="","",TRUNC(F11/F12,4)) ->  | H13: Factor | I13: =IF(I5="","",TRUNC(I11/I12,4)) ->  | K13: Factor | L13: =IF(L5="","",TRUNC(L11/L12,4)) ->  | N13: Factor | O13: =IF(O5="","",TRUNC(O11/O12,4)) ->  | Q13: Factor | R13: =IF(R5="","",TRUNC(R11/R12,4)) ->  | T13: Factor | U13: =IF(U5="","",TRUNC(U11/U12,4)) ->  | W13: Factor | X13: =IF(X5="","",TRUNC(X11/X12,4)) ->  | Z13: Factor | AA13: =IF(AA5="","",TRUNC(AA11/AA12,4)) ->  | AC13: Factor | AD13: =IF(AD5="","",TRUNC(AD11/AD12,4)) -> 
B14: Pérdida Fiscal Actualizada | C14: =IF(C5="","",C8*C13) ->  | E14: Pérdida Fiscal Actualizada | F14: =IF(F5="","",F8*F13) ->  | H14: Pérdida Fiscal Actualizada | I14: =IF(I5="","",I8*I13) ->  | K14: Pérdida Fiscal Actualizada | L14: =IF(L5="","",L8*L13) ->  | N14: Pérdida Fiscal Actualizada | O14: =IF(O5="","",O8*O13) ->  | Q14: Pérdida Fiscal Actualizada | R14: =IF(R5="","",R8*R13) ->  | T14: Pérdida Fiscal Actualizada | U14: =IF(U5="","",U8*U13) ->  | W14: Pérdida Fiscal Actualizada | X14: =IF(X5="","",X8*X13) ->  | Z14: Pérdida Fiscal Actualizada | AA14: =IF(AA5="","",AA8*AA13) ->  | AC14: Pérdida Fiscal Actualizada | AD14: =IF(AD5="","",AD8*AD13) -> 
B16: Amortizaciones: | E16: Amortizaciones: | H16: Amortizaciones: | K16: Amortizaciones: | N16: Amortizaciones: | Q16: Amortizaciones: | T16: Amortizaciones: | W16: Amortizaciones: | Z16: Amortizaciones: | AC16: Amortizaciones:
B18: Ejercicio | E18: Ejercicio | H18: Ejercicio | K18: Ejercicio | N18: Ejercicio | Q18: Ejercicio | T18: Ejercicio | W18: Ejercicio | Z18: Ejercicio | AC18: Ejercicio
B19: =IF(C18="","","INPC Último Mes 1a Mitad") ->  | C19: =IF(C18="","",VLOOKUP(C18,INPC,7)) ->  | E19: =IF(F18="","","INPC Último Mes 1a Mitad") ->  | F19: =IF(F18="","",VLOOKUP(F18,INPC,7)) ->  | H19: =IF(I18="","","INPC Último Mes 1a Mitad") ->  | I19: =IF(I18="","",VLOOKUP(I18,INPC,7)) ->  | K19: =IF(L18="","","INPC Último Mes 1a Mitad") ->  | L19: =IF(L18="","",VLOOKUP(L18,INPC,7)) ->  | N19: =IF(O18="","","INPC Último Mes 1a Mitad") ->  | O19: =IF(O18="","",VLOOKUP(O18,INPC,7)) ->  | Q19: =IF(R18="","","INPC Último Mes 1a Mitad") ->  | R19: =IF(R18="","",VLOOKUP(R18,INPC,7)) ->  | T19: =IF(U18="","","INPC Último Mes 1a Mitad") ->  | U19: =IF(U18="","",VLOOKUP(U18,INPC,7)) ->  | W19: =IF(X18="","","INPC Último Mes 1a Mitad") ->  | X19: =IF(X18="","",VLOOKUP(X18,INPC,7)) ->  | Z19: =IF(AA18="","","INPC Último Mes 1a Mitad") ->  | AA19: =IF(AA18="","",VLOOKUP(AA18,INPC,7)) ->  | AC19: =IF(AD18="","","INPC Último Mes 1a Mitad") ->  | AD19: =IF(AD18="","",VLOOKUP(AD18,INPC,7)) -> 
B20: =IF(C18="","","INPC Última Actualización") ->  | C20: =IF(C18="","",C11) ->  | E20: =IF(F18="","","INPC Última Actualización") ->  | F20: =IF(F18="","",F11) ->  | H20: =IF(I18="","","INPC Última Actualización") ->  | I20: =IF(I18="","",I11) ->  | K20: =IF(L18="","","INPC Última Actualización") ->  | L20: =IF(L18="","",L11) ->  | N20: =IF(O18="","","INPC Última Actualización") ->  | O20: =IF(O18="","",O11) ->  | Q20: =IF(R18="","","INPC Última Actualización") ->  | R20: =IF(R18="","",R11) ->  | T20: =IF(U18="","","INPC Última Actualización") ->  | U20: =IF(U18="","",U11) ->  | W20: =IF(X18="","","INPC Última Actualización") ->  | X20: =IF(X18="","",X11) ->  | Z20: =IF(AA18="","","INPC Última Actualización") ->  | AA20: =IF(AA18="","",AA11) ->  | AC20: =IF(AD18="","","INPC Última Actualización") ->  | AD20: =IF(AD18="","",AD11) -> 
